Workbook

Sheet Contents
C1: Go to Charts by Pressing Shift and Enter on Menu Item | H1: Instructions at www.edbodmer.com
H2: Questions: e-mail edwardbodmer@gmail.com
C3: Sheet Tab | D3: Description | E3: Author
B4: 1 | C4: Contents
B5: 2 | C5: Read Stocks
B6: 3 | C6: Multiple Stock Graph
B7: 4 | C7: Summary
B8: 5 | C8: Yahoo Index
B9: 6 | C9: FRED Indicies
B10: 7 | C10: Exchange Rates
B11: 8 | C11: Commodity Prices
B12: 9 | C12: Yahoo Stocks
B13: 10 | C13: Google Finance Stocks
B14: 11 | C14: Google Index
B15: 12 | C15: International Indicies
B16: 13 | C16: Errors
B17: 14 | C17: General Points
B18: 15 | C18: Forms
B19: 16 | C19: BREAK
B20: 17 | C20: S&P 500
B21: 18 | C21: DAX
B22: 19 | C22: NASDAQCOM
B23: 20 | C23: GDP Inf
B24: 21 | C24: CPI US
B25: 22 | C25: CCUSSP01DEM650N
B26: 23 | C26: INR
B27: 24 | C27: UK
B28: 25 | C28: CFH
B29: 26 | C29: US NOM GNP
B30: 27 | C30: MCOILBRENTEU
B31: 28 | C31: GE
B32: 29 | C32: AAPL
B33: 30 | C33: GOOG
B34: 31 | C34: AMZN

Sheet Read Stocks
M1: Final Applied | N1: Final Applied | O1: Column | P1: Source | S1: Finance.yahoo Index | X1: FRED Index | AF1: Google Index | AN1: FRED Commodities | AV1: Yahoo Stock Prices | BD1: Google Stock Prices | BL1: FRED Exonomic Data
G2: Start Row | H2: Number | I2: Column | J2: Source | M2: Sheet Name | N2: Stock or Index Name | Q2: Counter | R2: Accum | S2: Sheet | T2: Name | U2: Column | V2: Source | X2: Counter | Y2: Counter 1 | Z2: Sheet | AA2: Re-ordered | AB2: Name | AC2: Re-ordered | AD2: Column | AE2: Source | AF2: Counter | AG2: Counter | AH2: Sheet | AI2: Re-ordered | AJ2: Name | AK2: Re-ordered | AL2: Column | AM2: Source | AN2: counter | AO2: Accum | AP2: Sheet | AQ2: Re-ordered | AR2: Name | AS2: Re-ordered | AT2: Column | AU2: Source | AV2: Counter | AW2: Counter 1 | AX2: Sheet | AY2: Re-ordered | AZ2: Name | BA2: Re-ordered | BB2: Column | BC2: Source | BD2: Counter | BE2: Counter 1 | BF2: Sheet | BG2: Re-ordered | BH2: Name | BI2: Re-ordered | BJ2: Column | BK2: Source | BL2: Counter | BM2: Counter 1 | BN2: Sheet | BO2: Re-ordered | BP2: Name | BQ2: Re-ordered | BR2: Column | BS2: Source
F3: TRUE | G3: 1 | H3: ='Yahoo Index'!Total_Tickers*F3 -> 2 | I3: F | J3: yahoo | L3: 1 | M3: =S3&AA3&AI3&AQ3&AY3&BG3&BO3 -> S&P 500 | N3: =T3&AC3&AK3&AS3&BA3&BI3&BQ3 -> US S&P 500 | O3: =U3&AD3&AL3&AT3&BB3&BJ3&BR3 -> F | P3: =V3&AE3&AM3&AU3&BC3&BK3&BS3 -> yahoo | Q3: =G3 -> 1 | R3: =IF(AND($F$3,Q3<=$H$3),Q3,0) -> 1 | S3: =IF(R3,'Yahoo Index'!E55,"") -> S&P 500 | T3: =IF(R3,'Yahoo Index'!F55,"") -> US S&P 500 | U3: =IF(R3,$I$3,"") -> F | V3: =IF(R3,$J$3,"") -> yahoo | X3: =G6 -> 3 | Y3: =IF(AND($F$6,X3<=$H$6),X3) -> 3 | Z3: =IF($F$6,'FRED Indicies'!E16) -> NASDAQ100 | AA3: =IFERROR(INDEX(Z:Z,MATCH(L3,Y:Y,0)),"") ->  | AB3: =IF($F$6,'FRED Indicies'!D16) -> Nasdaq 100 Index | AC3: =IFERROR(INDEX(AB:AB,MATCH(L3,Y:Y,0)),"") ->  | AD3: =IF(AA3<>"",$I$6,"") ->  | AE3: =IF(AA3<>"",$J$6,"") ->  | AF3: =G9 -> 4 | AG3: =IF(AND($F$9,AF3<=$H$9),AF3) -> FALSE | AH3: =IF(AG3,'Google Index'!E30) -> FALSE | AI3: =IFERROR(INDEX(AH:AH,MATCH(Q3,AG:AG,0)),"") ->  | AJ3: =IF(AF3,'Google Index'!F30) -> HT Media | AK3: =IFERROR(INDEX(AJ:AJ,MATCH(Q3,AG:AG,0)),"") ->  | AL3: =IF(AI3<>"",$I$6,"") ->  | AM3: =IF(AK3<>"",$J$6,"") ->  | AN3: =G12 -> 4 | AO3: =IF(AND($F$12,AN3<=$H$12),AN3) -> 4 | AP3: =IF(AO3,'Commodity Prices'!C16) -> DCOILBRENTEU | AQ3: =IFERROR(INDEX(AP:AP,MATCH(L3,AO:AO,0)),"") ->  | AR3: =IF(AO3,'Commodity Prices'!D16) -> Crude Oil Prices: Brent - Europe (DCOILBRENTEU) | AS3: =IFERROR(INDEX(AR:AR,MATCH(L3,AO:AO,0)),"") ->  | AT3: =IF(AQ3<>"",$I$12,"") ->  | AU3: =IF(AS3<>"",$J$12,"") ->  | AV3: =G15 -> 6 | AW3: =IF(AND($F$15,AV3<=$H$15),AV3) -> 6 | AX3: =IF(AW3,'Yahoo Stocks'!D30) -> GE | AY3: =IFERROR(INDEX(AX:AX,MATCH(L3,AW:AW,0)),"") ->  | AZ3: =IF(AW3,'Yahoo Stocks'!E30) -> General Electric | BA3: =IFERROR(INDEX(AZ:AZ,MATCH(L3,AW:AW,0)),"") ->  | BB3: =IF(AY3<>"",$I$15,"") ->  | BC3: =IF(BA3<>"",$J$15,"") ->  | BD3: =G18 -> 29 | BE3: =IF(AND($F$18,BD3<=$H$18),BD3) -> FALSE | BF3: =IF(BE3,'Google Finance Stocks'!D27) -> FALSE | BG3: =IFERROR(INDEX(BF:BF,MATCH(Q3,BE:BE,0)),"") ->  | BH3: =IF(BE3,'Google Finance Stocks'!E27) -> FALSE | BI3: =IFERROR(INDEX(BH:BH,MATCH(Q3,BE:BE,0)),"") ->  | BJ3: =IF(BI3<>"",$I$18,"") ->  | BK3: =IF(BI3<>"",$J$18,"") ->  | BL3: =G21 -> 29 | BM3: =IF(AND($F$21,BL3<=$H$21),BL3) -> 29 | BN3: ='Exchange Rates'!D13 -> GDP Inf | BO3: =IFERROR(INDEX(BN:BN,MATCH(L3,BM:BM,0)),"") ->  | BP3: =IF(BM3,'Exchange Rates'!E13) -> Implicit Price Deflator | BQ3: =IFERROR(INDEX(BP:BP,MATCH(L3,BM:BM,0)),"") ->  | BR3: =IF(BQ3<>"",$I$21,"") ->  | BS3: =IF(BQ3<>"",$J$21,"") -> 
L4: 2 | M4: =S4&AA4&AI4&AQ4&AY4&BG4&BO4 -> DAX | N4: =T4&AC4&AK4&AS4&BA4&BI4&BQ4 -> DAX in Euro | O4: =U4&AD4&AL4&AT4&BB4&BJ4&BR4 -> F | P4: =V4&AE4&AM4&AU4&BC4&BK4&BS4 -> yahoo | Q4: =Q3+1 -> 2 | R4: =IF(AND($F$3,Q4<=$H$3),Q4) -> 2 | S4: =IF(R4,'Yahoo Index'!E56,"") -> DAX | T4: =IF(R4,'Yahoo Index'!F56,"") -> DAX in Euro | U4: =IF(R4,$I$3,"") -> F | V4: =IF(R4,$J$3,"") -> yahoo | X4: =X3+1 -> 4 | Y4: FALSE | Z4: =IF($F$6,'FRED Indicies'!E17) -> 0 | AB4: =IF($F$6,'FRED Indicies'!D17) -> 0 | AD4: =IF(AA4<>"",$I$6,"") ->  | AE4: =IF(AA4<>"",$J$6,"") ->  | AF4: =AF3+1 -> 5 | AG4: =IF(AND($F$9,AF4<=$H$9),AF4) -> FALSE | AH4: =IF(AG4,'Google Index'!E31) -> FALSE | AJ4: =IF(AF4,'Google Index'!F31) -> 0 | AL4: =IF(AI4<>"",$I$6,"") ->  | AM4: =IF(AK4<>"",$J$6,"") ->  | AN4: =AN3+1 -> 5 | AO4: =IF(AND($F$12,AN4<=$H$12),AN4) -> 5 | AP4: =IF(AO4,'Commodity Prices'!C17) -> PCOPPUSDM | AQ4: =IFERROR(INDEX(AP:AP,MATCH(L4,AO:AO,0)),"") ->  | AR4: =IF(AO4,'Commodity Prices'!D17) -> Global price of Copper© (PCOPPUSDM) | AT4: =IF(AQ4<>"",$I$12,"") ->  | AU4: =IF(AS4<>"",$J$12,"") ->  | AV4: =AV3+1 -> 7 | AW4: =IF(AND($F$15,AV4<=$H$15),AV4) -> 7 | AX4: =IF(AW4,'Yahoo Stocks'!D31) -> AAPL | AY4: =IFERROR(INDEX(AX:AX,MATCH(L4,AW:AW,0)),"") ->  | AZ4: =IF(AW4,'Yahoo Stocks'!E31) -> Apple | BA4: =IFERROR(INDEX(AZ:AZ,MATCH(L4,AW:AW,0)),"") ->  | BB4: =IF(AY4<>"",$I$15,"") ->  | BC4: =IF(BA4<>"",$J$15,"") ->  | BD4: =BD3+1 -> 30 | BE4: =IF(AND($F$18,BD4<=$H$18),BD4) -> FALSE | BF4: =IF(BE4,'Google Finance Stocks'!D28) -> FALSE | BG4: =IFERROR(INDEX(BF:BF,MATCH(Q4,BE:BE,0)),"") ->  | BH4: =IF(BE4,'Google Finance Stocks'!E28) -> FALSE | BI4: =IFERROR(INDEX(BH:BH,MATCH(Q4,BE:BE,0)),"") ->  | BJ4: =IF(BI4<>"",$I$18,"") ->  | BK4: =IF(BI4<>"",$J$18,"") ->  | BL4: =BL3+1 -> 30 | BM4: =IF(AND($F$21,BL4<=$H$21),BL4) -> 30 | BN4: ='Exchange Rates'!D14 -> CPI US | BO4: =IFERROR(INDEX(BN:BN,MATCH(L4,BM:BM,0)),"") ->  | BP4: =IF(BM4,'Exchange Rates'!E14) -> Consumer Price Inflation | BQ4: =IFERROR(INDEX(BP:BP,MATCH(L4,BM:BM,0)),"") ->  | BR4: =IF(BQ4<>"",$I$21,"") ->  | BS4: =IF(BQ4<>"",$J$21,"") -> 
L5: 3 | M5: NASDAQ100 | N5: =T5&AC5&AK5&AS5&BA5&BI5&BQ5 -> Nasdaq 100 Index | O5: B | P5: FRED | Q5: =Q4+1 -> 3 | R5: FALSE | S5: =IF(R5,'Yahoo Index'!E57,"") ->  | T5: =IF(R5,'Yahoo Index'!F57,"") ->  | X5: =X4+1 -> 5 | Y5: FALSE | Z5: =IF($F$6,'FRED Indicies'!E18) -> 0 | AA5: NASDAQ100 | AB5: =IF($F$6,'FRED Indicies'!D18) -> 0 | AC5: Nasdaq 100 Index | AD5: B | AE5: FRED | AF5: =AF4+1 -> 6 | AG5: FALSE | AH5: =IF(AG5,'Google Index'!E32) -> FALSE | AJ5: =IF(AF5,'Google Index'!F32) -> 0 | AN5: =AN4+1 -> 6 | AO5: FALSE | AP5: =IF(AO5,'Commodity Prices'!C18) -> FALSE | AR5: =IF(AO5,'Commodity Prices'!D18) -> FALSE | AV5: =AV4+1 -> 8 | AW5: 8 | AX5: =IF(AW5,'Yahoo Stocks'!D32) -> GOOG | AZ5: =IF(AW5,'Yahoo Stocks'!E32) -> Google | BD5: =BD4+1 -> 31 | BE5: FALSE | BF5: =IF(BE5,'Google Finance Stocks'!D29) -> FALSE | BH5: =IF(BE5,'Google Finance Stocks'!E29) -> FALSE | BL5: =BL4+1 -> 31 | BM5: 31 | BN5: ='Exchange Rates'!D15 -> Euro | BP5: =IF(BM5,'Exchange Rates'!E15) -> U.S. / Euro Foreign Exchange Rate (EXUSEU)
F6: TRUE | G6: =H3+1 -> 3 | H6: ='FRED Indicies'!Total_Index*F6+G6-1 -> 3 | I6: B | J6: FRED | L6: 4 | M6: DCOILBRENTEU | N6: Crude Oil Prices: Brent - Europe (DCOILBRENTEU) | O6: B | P6: FRED | Q6: 4 | R6: FALSE | S6: =IF(R6,'Yahoo Index'!E58,"") ->  | T6: =IF(R6,'Yahoo Index'!F58,"") ->  | X6: 6 | Y6: FALSE | Z6: =IF($F$6,'FRED Indicies'!E19) -> 0 | AB6: =IF($F$6,'FRED Indicies'!D19) -> 0 | AF6: 7 | AG6: FALSE | AH6: =IF(AG6,'Google Index'!E33) -> FALSE | AJ6: =IF(AF6,'Google Index'!F33) -> 0 | AN6: 7 | AO6: FALSE | AP6: =IF(AO6,'Commodity Prices'!C19) -> FALSE | AQ6: DCOILBRENTEU | AR6: =IF(AO6,'Commodity Prices'!D19) -> FALSE | AS6: Crude Oil Prices: Brent - Europe (DCOILBRENTEU) | AT6: B | AU6: FRED | AV6: 9 | AW6: 9 | AX6: =IF(AW6,'Yahoo Stocks'!D33) -> AMZN | AZ6: =IF(AW6,'Yahoo Stocks'!E33) -> Amazon | BD6: 32 | BE6: FALSE | BF6: =IF(BE6,'Google Finance Stocks'!D30) -> FALSE | BH6: =IF(BE6,'Google Finance Stocks'!E30) -> FALSE | BL6: 32 | BM6: 32 | BN6: ='Exchange Rates'!D16 -> INR | BP6: =IF(BM6,'Exchange Rates'!E16) -> India / U.S. Foreign Exchange Rate (DEXINUS)
L7: 5 | M7: PCOPPUSDM | N7: Global price of Copper© (PCOPPUSDM) | O7: B | P7: FRED | Q7: 5 | R7: FALSE | S7: =IF(R7,'Yahoo Index'!E59,"") ->  | T7: =IF(R7,'Yahoo Index'!F59,"") ->  | X7: 7 | Y7: FALSE | Z7: =IF($F$6,'FRED Indicies'!E20) -> 0 | AB7: =IF($F$6,'FRED Indicies'!D20) -> 0 | AF7: 8 | AG7: FALSE | AH7: =IF(AG7,'Google Index'!E34) -> FALSE | AJ7: =IF(AF7,'Google Index'!F34) -> 0 | AN7: 8 | AO7: FALSE | AP7: =IF(AO7,'Commodity Prices'!C20) -> FALSE | AQ7: PCOPPUSDM | AR7: =IF(AO7,'Commodity Prices'!D20) -> FALSE | AS7: Global price of Copper© (PCOPPUSDM) | AT7: B | AU7: FRED | AV7: 10 | AW7: 10 | AX7: =IF(AW7,'Yahoo Stocks'!D34) -> FB | AZ7: =IF(AW7,'Yahoo Stocks'!E34) -> Facebook | BD7: 33 | BE7: FALSE | BF7: =IF(BE7,'Google Finance Stocks'!D31) -> FALSE | BH7: =IF(BE7,'Google Finance Stocks'!E31) -> FALSE | BL7: 33 | BM7: 33 | BN7: ='Exchange Rates'!D17 -> UK | BP7: =IF(BM7,'Exchange Rates'!E17) -> U.S. / U.K. Foreign Exchange Rate (EXUSUK)
L8: 6 | M8: GE | N8: General Electric | O8: F | P8: Yahoo | Q8: 6 | R8: FALSE | S8: =IF(R8,'Yahoo Index'!E60,"") ->  | T8: =IF(R8,'Yahoo Index'!F60,"") ->  | X8: 8 | Y8: FALSE | Z8: =IF($F$6,'FRED Indicies'!E21) -> 0 | AB8: =IF($F$6,'FRED Indicies'!D21) -> 0 | AF8: 9 | AG8: FALSE | AH8: =IF(AG8,'Google Index'!E35) -> FALSE | AJ8: =IF(AF8,'Google Index'!F35) -> 0 | AN8: 9 | AO8: FALSE | AP8: =IF(AO8,'Commodity Prices'!C21) -> FALSE | AR8: =IF(AO8,'Commodity Prices'!D21) -> FALSE | AV8: 11 | AW8: 11 | AX8: =IF(AW8,'Yahoo Stocks'!D35) -> DTE.DE | AY8: GE | AZ8: =IF(AW8,'Yahoo Stocks'!E35) -> Deutsche Telekom AG (ADR) | BA8: General Electric | BB8: F | BC8: Yahoo | BD8: 34 | BE8: FALSE | BF8: =IF(BE8,'Google Finance Stocks'!D32) -> FALSE | BH8: =IF(BE8,'Google Finance Stocks'!E32) -> FALSE | BL8: 34 | BM8: 34 | BN8: ='Exchange Rates'!D18 -> CFH | BP8: =IF(BM8,'Exchange Rates'!E18) -> Switzerland / U.S. Foreign Exchange Rate (DEXSZUS)
F9: FALSE | G9: =H6+1 -> 4 | H9: ='Google Index'!D20*F9+G9-1 -> 3 | I9: D | J9: Google | L9: 7 | M9: AAPL | N9: Apple | O9: F | P9: Yahoo | Q9: 7 | R9: FALSE | S9: =IF(R9,'Yahoo Index'!E61,"") ->  | T9: =IF(R9,'Yahoo Index'!F61,"") ->  | X9: 9 | Y9: FALSE | Z9: =IF($F$6,'FRED Indicies'!E22) -> 0 | AB9: =IF($F$6,'FRED Indicies'!D22) -> 0 | AF9: 10 | AG9: FALSE | AH9: =IF(AG9,'Google Index'!E36) -> FALSE | AJ9: =IF(AF9,'Google Index'!F36) -> 0 | AN9: 10 | AO9: FALSE | AP9: =IF(AO9,'Commodity Prices'!C22) -> FALSE | AR9: =IF(AO9,'Commodity Prices'!D22) -> FALSE | AV9: 12 | AW9: 12 | AX9: =IF(AW9,'Yahoo Stocks'!D36) -> FTE | AY9: AAPL | AZ9: =IF(AW9,'Yahoo Stocks'!E36) -> France Telecom SA (ADR) | BA9: Apple | BB9: F | BC9: Yahoo | BD9: 35 | BE9: FALSE | BF9: =IF(BE9,'Google Finance Stocks'!D33) -> FALSE | BH9: =IF(BE9,'Google Finance Stocks'!E33) -> FALSE | BL9: 35 | BM9: 35 | BN9: ='Exchange Rates'!D19 -> US NOM GNP | BP9: =IF(BM9,'Exchange Rates'!E19) -> Gross National Product (GNP)
L10: 8 | M10: GOOG | N10: Google | O10: F | P10: Yahoo | Q10: 8 | R10: FALSE | S10: =IF(R10,'Yahoo Index'!E62,"") ->  | T10: =IF(R10,'Yahoo Index'!F62,"") ->  | X10: 10 | Y10: FALSE | Z10: =IF($F$6,'FRED Indicies'!E23) -> 0 | AB10: =IF($F$6,'FRED Indicies'!D23) -> 0 | AF10: 11 | AG10: FALSE | AH10: =IF(AG10,'Google Index'!E37) -> FALSE | AJ10: =IF(AF10,'Google Index'!F37) -> 0 | AN10: 11 | AO10: FALSE | AP10: =IF(AO10,'Commodity Prices'!C23) -> FALSE | AR10: =IF(AO10,'Commodity Prices'!D23) -> FALSE | AV10: 13 | AW10: 13 | AX10: =IF(AW10,'Yahoo Stocks'!D37) -> BT | AY10: GOOG | AZ10: =IF(AW10,'Yahoo Stocks'!E37) -> BT Group plc (ADR) (BT) | BA10: Google | BB10: F | BC10: Yahoo | BD10: 36 | BE10: FALSE | BF10: =IF(BE10,'Google Finance Stocks'!D34) -> FALSE | BH10: =IF(BE10,'Google Finance Stocks'!E34) -> FALSE | BL10: 36 | BM10: FALSE | BN10: ='Exchange Rates'!D20 -> 0 | BP10: =IF(BM10,'Exchange Rates'!E20) -> FALSE
L11: 9 | M11: AMZN | N11: Amazon | O11: F | P11: Yahoo | Q11: 9 | R11: FALSE | S11: =IF(R11,'Yahoo Index'!E63,"") ->  | T11: =IF(R11,'Yahoo Index'!F63,"") ->  | X11: 11 | Y11: FALSE | Z11: =IF($F$6,'FRED Indicies'!E24) -> 0 | AB11: =IF($F$6,'FRED Indicies'!D24) -> 0 | AF11: 12 | AG11: FALSE | AH11: =IF(AG11,'Google Index'!E38) -> FALSE | AJ11: =IF(AF11,'Google Index'!F38) -> 0 | AN11: 12 | AO11: FALSE | AP11: =IF(AO11,'Commodity Prices'!C24) -> FALSE | AR11: =IF(AO11,'Commodity Prices'!D24) -> FALSE | AV11: 14 | AW11: 14 | AX11: =IF(AW11,'Yahoo Stocks'!D38) -> VOD | AY11: AMZN | AZ11: =IF(AW11,'Yahoo Stocks'!E38) -> Vodafone Group plc | BA11: Amazon | BB11: F | BC11: Yahoo | BD11: 37 | BE11: FALSE | BF11: =IF(BE11,'Google Finance Stocks'!D35) -> FALSE | BH11: =IF(BE11,'Google Finance Stocks'!E35) -> FALSE | BL11: 37 | BM11: FALSE | BN11: ='Exchange Rates'!D21 -> 0 | BP11: =IF(BM11,'Exchange Rates'!E21) -> FALSE
F12: TRUE | G12: =H9+1 -> 4 | H12: =Total_Com*F12+G12-1 -> 5 | I12: B | J12: FRED | L12: 10 | M12: FB | N12: Facebook | O12: F | P12: Yahoo | Q12: 10 | R12: FALSE | S12: =IF(R12,'Yahoo Index'!E64,"") ->  | T12: =IF(R12,'Yahoo Index'!F64,"") ->  | X12: 12 | Y12: FALSE | Z12: =IF($F$6,'FRED Indicies'!E25) -> 0 | AB12: =IF($F$6,'FRED Indicies'!D25) -> 0 | AF12: 13 | AG12: FALSE | AH12: =IF(AG12,'Google Index'!E39) -> FALSE | AJ12: =IF(AF12,'Google Index'!F39) -> 0 | AN12: 13 | AO12: FALSE | AP12: =IF(AO12,'Commodity Prices'!C25) -> FALSE | AR12: =IF(AO12,'Commodity Prices'!D25) -> FALSE | AV12: 15 | AW12: 15 | AX12: =IF(AW12,'Yahoo Stocks'!D39) -> VZ | AY12: FB | AZ12: =IF(AW12,'Yahoo Stocks'!E39) -> Verizon Communications... | BA12: Facebook | BB12: F | BC12: Yahoo | BD12: 38 | BE12: FALSE | BF12: =IF(BE12,'Google Finance Stocks'!D36) -> FALSE | BH12: =IF(BE12,'Google Finance Stocks'!E36) -> FALSE | BL12: 38 | BM12: FALSE | BN12: ='Exchange Rates'!D22 -> 0 | BP12: =IF(BM12,'Exchange Rates'!E22) -> FALSE
L13: 11 | M13: DTE.DE | N13: Deutsche Telekom AG (ADR) | O13: F | P13: Yahoo | Q13: 11 | R13: FALSE | S13: =IF(R13,'Yahoo Index'!E65,"") ->  | T13: =IF(R13,'Yahoo Index'!F65,"") ->  | X13: 13 | Y13: FALSE | Z13: =IF($F$6,'FRED Indicies'!E26) -> 0 | AB13: =IF($F$6,'FRED Indicies'!D26) -> 0 | AF13: 14 | AG13: FALSE | AH13: =IF(AG13,'Google Index'!E40) -> FALSE | AJ13: =IF(AF13,'Google Index'!F40) -> 0 | AN13: 14 | AO13: FALSE | AP13: =IF(AO13,'Commodity Prices'!C26) -> FALSE | AR13: =IF(AO13,'Commodity Prices'!D26) -> FALSE | AV13: 16 | AW13: 16 | AX13: =IF(AW13,'Yahoo Stocks'!D40) -> S | AY13: DTE.DE | AZ13: =IF(AW13,'Yahoo Stocks'!E40) -> Sprint | BA13: Deutsche Telekom AG (ADR) | BB13: F | BC13: Yahoo | BD13: 39 | BE13: FALSE | BF13: =IF(BE13,'Google Finance Stocks'!D37) -> FALSE | BH13: =IF(BE13,'Google Finance Stocks'!E37) -> FALSE | BL13: 39 | BM13: FALSE | BN13: ='Exchange Rates'!D23 -> 0 | BP13: =IF(BM13,'Exchange Rates'!E23) -> FALSE
L14: 12 | M14: FTE | N14: France Telecom SA (ADR) | O14: F | P14: Yahoo | Q14: 12 | R14: FALSE | S14: =IF(R14,'Yahoo Index'!E66,"") ->  | T14: =IF(R14,'Yahoo Index'!F66,"") ->  | X14: 14 | Y14: FALSE | Z14: =IF($F$6,'FRED Indicies'!E27) -> 0 | AB14: =IF($F$6,'FRED Indicies'!D27) -> 0 | AF14: 15 | AG14: FALSE | AH14: =IF(AG14,'Google Index'!E41) -> FALSE | AJ14: =IF(AF14,'Google Index'!F41) -> 0 | AN14: 15 | AO14: FALSE | AP14: =IF(AO14,'Commodity Prices'!C27) -> FALSE | AR14: =IF(AO14,'Commodity Prices'!D27) -> FALSE | AV14: 17 | AW14: 17 | AX14: =IF(AW14,'Yahoo Stocks'!D41) -> PHI | AY14: FTE | AZ14: =IF(AW14,'Yahoo Stocks'!E41) -> Philippine Long Distance (PHI) | BA14: France Telecom SA (ADR) | BB14: F | BC14: Yahoo | BD14: 40 | BE14: FALSE | BF14: =IF(BE14,'Google Finance Stocks'!D38) -> FALSE | BH14: =IF(BE14,'Google Finance Stocks'!E38) -> FALSE | BL14: 40 | BM14: FALSE | BN14: ='Exchange Rates'!D24 -> 0 | BP14: =IF(BM14,'Exchange Rates'!E24) -> FALSE
F15: TRUE | G15: =H12+1 -> 6 | H15: =Yahoo_Stock_Tickers*F15+G15-1 -> 28 | I15: F | J15: Yahoo | L15: 13 | M15: BT | N15: BT Group plc (ADR) (BT) | O15: F | P15: Yahoo | Q15: 13 | R15: FALSE | S15: =IF(R15,'Yahoo Index'!E67,"") ->  | T15: =IF(R15,'Yahoo Index'!F67,"") ->  | X15: 15 | Y15: FALSE | Z15: =IF($F$6,'FRED Indicies'!E28) -> 0 | AB15: =IF($F$6,'FRED Indicies'!D28) -> 0 | AF15: 16 | AG15: FALSE | AH15: =IF(AG15,'Google Index'!E42) -> FALSE | AJ15: =IF(AF15,'Google Index'!F42) -> 0 | AN15: 16 | AO15: FALSE | AP15: =IF(AO15,'Commodity Prices'!C28) -> FALSE | AR15: =IF(AO15,'Commodity Prices'!D28) -> FALSE | AV15: 18 | AW15: 18 | AX15: =IF(AW15,'Yahoo Stocks'!D42) -> TKC | AY15: BT | AZ15: =IF(AW15,'Yahoo Stocks'!E42) -> Turkcell Iletisim Hizm... | BA15: BT Group plc (ADR) (BT) | BB15: F | BC15: Yahoo | BD15: 41 | BE15: FALSE | BF15: =IF(BE15,'Google Finance Stocks'!D39) -> FALSE | BH15: =IF(BE15,'Google Finance Stocks'!E39) -> FALSE | BL15: 41 | BM15: FALSE | BN15: ='Exchange Rates'!D25 -> 0 | BP15: =IF(BM15,'Exchange Rates'!E25) -> FALSE
L16: 14 | M16: VOD | N16: Vodafone Group plc | O16: F | P16: Yahoo | Q16: 14 | R16: FALSE | S16: =IF(R16,'Yahoo Index'!E68,"") ->  | T16: =IF(R16,'Yahoo Index'!F68,"") ->  | X16: 16 | Y16: FALSE | Z16: =IF($F$6,'FRED Indicies'!E29) -> 0 | AB16: =IF($F$6,'FRED Indicies'!D29) -> 0 | AF16: 17 | AG16: FALSE | AH16: =IF(AG16,'Google Index'!E43) -> FALSE | AJ16: =IF(AF16,'Google Index'!F43) -> 0 | AN16: 17 | AO16: FALSE | AP16: =IF(AO16,'Commodity Prices'!C29) -> FALSE | AR16: =IF(AO16,'Commodity Prices'!D29) -> FALSE | AV16: 19 | AW16: 19 | AX16: =IF(AW16,'Yahoo Stocks'!D43) -> JPM | AY16: VOD | AZ16: =IF(AW16,'Yahoo Stocks'!E43) -> JP Morgan | BA16: Vodafone Group plc | BB16: F | BC16: Yahoo | BD16: 42 | BE16: FALSE | BF16: =IF(BE16,'Google Finance Stocks'!D40) -> FALSE | BH16: =IF(BE16,'Google Finance Stocks'!E40) -> FALSE | BL16: 42 | BM16: FALSE | BN16: ='Exchange Rates'!D26 -> 0 | BP16: =IF(BM16,'Exchange Rates'!E26) -> FALSE
L17: 15 | M17: VZ | N17: Verizon Communications... | O17: F | P17: Yahoo | Q17: 15 | R17: FALSE | S17: =IF(R17,'Yahoo Index'!E69,"") ->  | T17: =IF(R17,'Yahoo Index'!F69,"") ->  | X17: 17 | Y17: FALSE | Z17: =IF($F$6,'FRED Indicies'!E30) -> 0 | AB17: =IF($F$6,'FRED Indicies'!D30) -> 0 | AF17: 18 | AG17: FALSE | AH17: =IF(AG17,'Google Index'!E44) -> FALSE | AJ17: =IF(AF17,'Google Index'!F44) -> 0 | AN17: 18 | AO17: FALSE | AP17: =IF(AO17,'Commodity Prices'!C30) -> FALSE | AR17: =IF(AO17,'Commodity Prices'!D30) -> FALSE | AV17: 20 | AW17: 20 | AX17: =IF(AW17,'Yahoo Stocks'!D44) -> MCD | AY17: VZ | AZ17: =IF(AW17,'Yahoo Stocks'!E44) -> McDonalds | BA17: Verizon Communications... | BB17: F | BC17: Yahoo | BD17: 43 | BE17: FALSE | BF17: =IF(BE17,'Google Finance Stocks'!D41) -> FALSE | BH17: =IF(BE17,'Google Finance Stocks'!E41) -> FALSE | BL17: 43 | BM17: FALSE | BN17: ='Exchange Rates'!D27 -> 0 | BP17: =IF(BM17,'Exchange Rates'!E27) -> FALSE
F18: FALSE | G18: =H15+1 -> 29 | H18: =Google_Tickers*F18+G18-1 -> 28 | I18: D | J18: Google | L18: 16 | M18: S | N18: Sprint | O18: F | P18: Yahoo | Q18: 16 | R18: FALSE | S18: =IF(R18,'Yahoo Index'!E70,"") ->  | T18: =IF(R18,'Yahoo Index'!F70,"") ->  | X18: 18 | Y18: FALSE | Z18: =IF($F$6,'FRED Indicies'!E31) -> 0 | AB18: =IF($F$6,'FRED Indicies'!D31) -> 0 | AF18: 19 | AG18: FALSE | AH18: =IF(AG18,'Google Index'!E45) -> FALSE | AJ18: =IF(AF18,'Google Index'!F45) -> 0 | AN18: 19 | AO18: FALSE | AP18: =IF(AO18,'Commodity Prices'!C31) -> FALSE | AR18: =IF(AO18,'Commodity Prices'!D31) -> FALSE | AV18: 21 | AW18: 21 | AX18: =IF(AW18,'Yahoo Stocks'!D45) -> WMT | AY18: S | AZ18: =IF(AW18,'Yahoo Stocks'!E45) -> Wall Mart | BA18: Sprint | BB18: F | BC18: Yahoo | BD18: 44 | BE18: FALSE | BF18: =IF(BE18,'Google Finance Stocks'!D42) -> FALSE | BH18: =IF(BE18,'Google Finance Stocks'!E42) -> FALSE | BL18: 44 | BM18: FALSE | BN18: ='Exchange Rates'!D28 -> 0 | BP18: =IF(BM18,'Exchange Rates'!E28) -> FALSE
L19: 17 | M19: PHI | N19: Philippine Long Distance (PHI) | O19: F | P19: Yahoo | Q19: 17 | R19: FALSE | S19: =IF(R19,'Yahoo Index'!E71,"") ->  | T19: =IF(R19,'Yahoo Index'!F71,"") ->  | X19: 19 | Y19: FALSE | Z19: =IF($F$6,'FRED Indicies'!E32) -> 0 | AB19: =IF($F$6,'FRED Indicies'!D32) -> 0 | AF19: 20 | AG19: FALSE | AH19: =IF(AG19,'Google Index'!E46) -> FALSE | AJ19: =IF(AF19,'Google Index'!F46) -> 0 | AN19: 20 | AO19: FALSE | AP19: =IF(AO19,'Commodity Prices'!C32) -> FALSE | AR19: =IF(AO19,'Commodity Prices'!D32) -> FALSE | AV19: 22 | AW19: 22 | AX19: =IF(AW19,'Yahoo Stocks'!D46) -> NG.L | AY19: PHI | AZ19: =IF(AW19,'Yahoo Stocks'!E46) -> National Grid | BA19: Philippine Long Distance (PHI) | BB19: F | BC19: Yahoo | BD19: 45 | BE19: FALSE | BF19: =IF(BE19,'Google Finance Stocks'!D43) -> FALSE | BH19: =IF(BE19,'Google Finance Stocks'!E43) -> FALSE | BL19: 45 | BM19: FALSE | BN19: ='Exchange Rates'!D29 -> 0 | BP19: =IF(BM19,'Exchange Rates'!E29) -> FALSE
L20: 18 | M20: TKC | N20: Turkcell Iletisim Hizm... | O20: F | P20: Yahoo | Q20: 18 | R20: FALSE | S20: =IF(R20,'Yahoo Index'!E72,"") ->  | T20: =IF(R20,'Yahoo Index'!F72,"") ->  | X20: 20 | Y20: FALSE | Z20: =IF($F$6,'FRED Indicies'!E33) -> 0 | AB20: =IF($F$6,'FRED Indicies'!D33) -> 0 | AF20: 21 | AG20: FALSE | AH20: =IF(AG20,'Google Index'!E47) -> FALSE | AJ20: =IF(AF20,'Google Index'!F47) -> 0 | AN20: 21 | AO20: FALSE | AP20: =IF(AO20,'Commodity Prices'!C33) -> FALSE | AR20: =IF(AO20,'Commodity Prices'!D33) -> FALSE | AV20: 23 | AW20: 23 | AX20: =IF(AW20,'Yahoo Stocks'!D47) -> EXC | AY20: TKC | AZ20: =IF(AW20,'Yahoo Stocks'!E47) -> Exelon | BA20: Turkcell Iletisim Hizm... | BB20: F | BC20: Yahoo | BD20: 46 | BE20: FALSE | BF20: =IF(BE20,'Google Finance Stocks'!D44) -> FALSE | BH20: =IF(BE20,'Google Finance Stocks'!E44) -> FALSE | BL20: 46 | BM20: FALSE | BN20: ='Exchange Rates'!D30 -> 0 | BP20: =IF(BM20,'Exchange Rates'!E30) -> FALSE
F21: TRUE | G21: =H18+1 -> 29 | H21: ='Exchange Rates'!D5*'Read Stocks'!F21+G21-1 -> 35 | I21: B | J21: FRED | L21: 19 | M21: JPM | N21: JP Morgan | O21: F | P21: Yahoo | Q21: 19 | R21: FALSE | S21: =IF(R21,'Yahoo Index'!E73,"") ->  | T21: =IF(R21,'Yahoo Index'!F73,"") ->  | X21: 21 | Y21: FALSE | Z21: =IF($F$6,'FRED Indicies'!E34) -> 0 | AB21: =IF($F$6,'FRED Indicies'!D34) -> 0 | AF21: 22 | AG21: FALSE | AH21: =IF(AG21,'Google Index'!E48) -> FALSE | AJ21: =IF(AF21,'Google Index'!F48) -> 0 | AN21: 22 | AO21: FALSE | AP21: =IF(AO21,'Commodity Prices'!C34) -> FALSE | AR21: =IF(AO21,'Commodity Prices'!D34) -> FALSE | AV21: 24 | AW21: 24 | AX21: =IF(AW21,'Yahoo Stocks'!D48) -> ENGI.PA | AY21: JPM | AZ21: =IF(AW21,'Yahoo Stocks'!E48) -> GDF Suez | BA21: JP Morgan | BB21: F | BC21: Yahoo | BD21: 47 | BE21: FALSE | BF21: =IF(BE21,'Google Finance Stocks'!D45) -> FALSE | BH21: =IF(BE21,'Google Finance Stocks'!E45) -> FALSE | BL21: 47 | BM21: FALSE | BN21: ='Exchange Rates'!D31 -> 0 | BP21: =IF(BM21,'Exchange Rates'!E31) -> FALSE
L22: 20 | M22: MCD | N22: McDonalds | O22: F | P22: Yahoo | Q22: 20 | R22: FALSE | S22: =IF(R22,'Yahoo Index'!E74,"") ->  | T22: =IF(R22,'Yahoo Index'!F74,"") ->  | X22: 22 | Y22: FALSE | Z22: =IF($F$6,'FRED Indicies'!E35) -> 0 | AB22: =IF($F$6,'FRED Indicies'!D35) -> 0 | AF22: 23 | AG22: FALSE | AH22: =IF(AG22,'Google Index'!E49) -> FALSE | AJ22: =IF(AF22,'Google Index'!F49) -> 0 | AN22: 23 | AO22: FALSE | AP22: =IF(AO22,'Commodity Prices'!C35) -> FALSE | AR22: =IF(AO22,'Commodity Prices'!D35) -> FALSE | AV22: 25 | AW22: 25 | AX22: =IF(AW22,'Yahoo Stocks'!D49) -> EDF.PA | AY22: MCD | AZ22: =IF(AW22,'Yahoo Stocks'!E49) -> EDF | BA22: McDonalds | BB22: F | BC22: Yahoo | BD22: 48 | BE22: FALSE | BF22: =IF(BE22,'Google Finance Stocks'!D46) -> FALSE | BH22: =IF(BE22,'Google Finance Stocks'!E46) -> FALSE | BL22: 48 | BM22: FALSE | BN22: ='Exchange Rates'!D32 -> 0 | BP22: =IF(BM22,'Exchange Rates'!E32) -> FALSE
L23: 21 | M23: WMT | N23: Wall Mart | O23: F | P23: Yahoo | Q23: 21 | R23: FALSE | S23: =IF(R23,'Yahoo Index'!E75,"") ->  | T23: =IF(R23,'Yahoo Index'!F75,"") ->  | X23: 23 | Y23: FALSE | Z23: =IF($F$6,'FRED Indicies'!E36) -> 0 | AB23: =IF($F$6,'FRED Indicies'!D36) -> 0 | AF23: 24 | AG23: FALSE | AH23: =IF(AG23,'Google Index'!E50) -> FALSE | AJ23: =IF(AF23,'Google Index'!F50) -> 0 | AN23: 24 | AO23: FALSE | AP23: =IF(AO23,'Commodity Prices'!C36) -> FALSE | AR23: =IF(AO23,'Commodity Prices'!D36) -> FALSE | AV23: 26 | AW23: 26 | AX23: =IF(AW23,'Yahoo Stocks'!D50) -> ED | AY23: WMT | AZ23: =IF(AW23,'Yahoo Stocks'!E50) -> Consolidated Edison | BA23: Wall Mart | BB23: F | BC23: Yahoo | BD23: 49 | BE23: FALSE | BF23: =IF(BE23,'Google Finance Stocks'!D47) -> FALSE | BH23: =IF(BE23,'Google Finance Stocks'!E47) -> FALSE | BL23: 49 | BM23: FALSE | BN23: ='Exchange Rates'!D33 -> 0 | BP23: =IF(BM23,'Exchange Rates'!E33) -> FALSE
L24: 22 | M24: NG.L | N24: National Grid | O24: F | P24: Yahoo | Q24: 22 | R24: FALSE | S24: =IF(R24,'Yahoo Index'!E76,"") ->  | T24: =IF(R24,'Yahoo Index'!F76,"") ->  | X24: 24 | Y24: FALSE | Z24: =IF($F$6,'FRED Indicies'!E37) -> 0 | AB24: =IF($F$6,'FRED Indicies'!D37) -> 0 | AF24: 25 | AG24: FALSE | AH24: =IF(AG24,'Google Index'!E51) -> FALSE | AJ24: =IF(AF24,'Google Index'!F51) -> 0 | AN24: 25 | AO24: FALSE | AP24: =IF(AO24,'Commodity Prices'!C37) -> FALSE | AR24: =IF(AO24,'Commodity Prices'!D37) -> FALSE | AV24: 27 | AW24: 27 | AX24: =IF(AW24,'Yahoo Stocks'!D51) -> 5347.KL | AY24: NG.L | AZ24: =IF(AW24,'Yahoo Stocks'!E51) -> Tenaga | BA24: National Grid | BB24: F | BC24: Yahoo | BD24: 50 | BE24: FALSE | BF24: =IF(BE24,'Google Finance Stocks'!D48) -> FALSE | BH24: =IF(BE24,'Google Finance Stocks'!E48) -> FALSE | BL24: 50 | BM24: FALSE | BN24: ='Exchange Rates'!D34 -> 0 | BP24: =IF(BM24,'Exchange Rates'!E34) -> FALSE
L25: 23 | M25: EXC | N25: Exelon | O25: F | P25: Yahoo | Q25: 23 | R25: FALSE | S25: =IF(R25,'Yahoo Index'!E77,"") ->  | T25: =IF(R25,'Yahoo Index'!F77,"") ->  | X25: 25 | Y25: FALSE | Z25: =IF($F$6,'FRED Indicies'!E38) -> 0 | AB25: =IF($F$6,'FRED Indicies'!D38) -> 0 | AF25: 26 | AG25: FALSE | AH25: =IF(AG25,'Google Index'!E52) -> FALSE | AJ25: =IF(AF25,'Google Index'!F52) -> 0 | AN25: 26 | AO25: FALSE | AP25: =IF(AO25,'Commodity Prices'!C38) -> FALSE | AR25: =IF(AO25,'Commodity Prices'!D38) -> FALSE | AV25: 28 | AW25: 28 | AX25: =IF(AW25,'Yahoo Stocks'!D52) -> MAEOY | AY25: EXC | AZ25: =IF(AW25,'Yahoo Stocks'!E52) -> Meralco | BA25: Exelon | BB25: F | BC25: Yahoo | BD25: 51 | BE25: FALSE | BF25: =IF(BE25,'Google Finance Stocks'!D49) -> FALSE | BH25: =IF(BE25,'Google Finance Stocks'!E49) -> FALSE | BL25: 51 | BM25: FALSE | BN25: ='Exchange Rates'!D35 -> 0 | BP25: =IF(BM25,'Exchange Rates'!E35) -> FALSE
L26: 24 | M26: ENGI.PA | N26: GDF Suez | O26: F | P26: Yahoo | Q26: 24 | R26: FALSE | S26: =IF(R26,'Yahoo Index'!E78,"") ->  | T26: =IF(R26,'Yahoo Index'!F78,"") ->  | X26: 26 | Y26: FALSE | Z26: =IF($F$6,'FRED Indicies'!E39) -> 0 | AB26: =IF($F$6,'FRED Indicies'!D39) -> 0 | AF26: 27 | AG26: FALSE | AH26: =IF(AG26,'Google Index'!E53) -> FALSE | AJ26: =IF(AF26,'Google Index'!F53) -> 0 | AN26: 27 | AO26: FALSE | AP26: =IF(AO26,'Commodity Prices'!C39) -> FALSE | AR26: =IF(AO26,'Commodity Prices'!D39) -> FALSE | AV26: 29 | AW26: FALSE | AX26: =IF(AW26,'Yahoo Stocks'!D53) -> FALSE | AY26: ENGI.PA | AZ26: =IF(AW26,'Yahoo Stocks'!E53) -> FALSE | BA26: GDF Suez | BB26: F | BC26: Yahoo | BD26: 52 | BE26: FALSE | BF26: =IF(BE26,'Google Finance Stocks'!D50) -> FALSE | BH26: =IF(BE26,'Google Finance Stocks'!E50) -> FALSE | BL26: 52 | BM26: FALSE | BN26: ='Exchange Rates'!D36 -> 0 | BP26: =IF(BM26,'Exchange Rates'!E36) -> FALSE
L27: 25 | M27: EDF.PA | N27: EDF | O27: F | P27: Yahoo | Q27: 25 | R27: FALSE | S27: =IF(R27,'Yahoo Index'!E79,"") ->  | T27: =IF(R27,'Yahoo Index'!F79,"") ->  | X27: 27 | Y27: FALSE | Z27: =IF($F$6,'FRED Indicies'!E40) -> 0 | AB27: =IF($F$6,'FRED Indicies'!D40) -> 0 | AF27: 28 | AG27: FALSE | AH27: =IF(AG27,'Google Index'!E54) -> FALSE | AJ27: =IF(AF27,'Google Index'!F54) -> 0 | AN27: 28 | AO27: FALSE | AP27: =IF(AO27,'Commodity Prices'!C40) -> FALSE | AR27: =IF(AO27,'Commodity Prices'!D40) -> FALSE | AV27: 30 | AW27: FALSE | AX27: =IF(AW27,'Yahoo Stocks'!D54) -> FALSE | AY27: EDF.PA | AZ27: =IF(AW27,'Yahoo Stocks'!E54) -> FALSE | BA27: EDF | BB27: F | BC27: Yahoo | BD27: 53 | BE27: FALSE | BF27: =IF(BE27,'Google Finance Stocks'!D51) -> FALSE | BH27: =IF(BE27,'Google Finance Stocks'!E51) -> FALSE | BL27: 53 | BM27: FALSE | BN27: ='Exchange Rates'!D37 -> 0 | BP27: =IF(BM27,'Exchange Rates'!E37) -> FALSE
L28: 26 | M28: ED | N28: Consolidated Edison | O28: F | P28: Yahoo | Q28: 26 | R28: FALSE | S28: =IF(R28,'Yahoo Index'!E80,"") ->  | T28: =IF(R28,'Yahoo Index'!F80,"") ->  | X28: 28 | Y28: FALSE | Z28: =IF($F$6,'FRED Indicies'!E41) -> 0 | AB28: =IF($F$6,'FRED Indicies'!D41) -> 0 | AF28: 29 | AG28: FALSE | AH28: =IF(AG28,'Google Index'!E55) -> FALSE | AJ28: =IF(AF28,'Google Index'!F55) -> 0 | AN28: 29 | AO28: FALSE | AP28: =IF(AO28,'Commodity Prices'!C41) -> FALSE | AR28: =IF(AO28,'Commodity Prices'!D41) -> FALSE | AV28: 31 | AW28: FALSE | AX28: =IF(AW28,'Yahoo Stocks'!D55) -> FALSE | AY28: ED | AZ28: =IF(AW28,'Yahoo Stocks'!E55) -> FALSE | BA28: Consolidated Edison | BB28: F | BC28: Yahoo | BD28: 54 | BE28: FALSE | BF28: =IF(BE28,'Google Finance Stocks'!D52) -> FALSE | BH28: =IF(BE28,'Google Finance Stocks'!E52) -> FALSE | BL28: 54 | BM28: FALSE | BN28: ='Exchange Rates'!D38 -> 0 | BP28: =IF(BM28,'Exchange Rates'!E38) -> FALSE
L29: 27 | M29: 5347.KL | N29: Tenaga | O29: F | P29: Yahoo | Q29: 27 | R29: FALSE | S29: =IF(R29,'Yahoo Index'!E81,"") ->  | T29: =IF(R29,'Yahoo Index'!F81,"") ->  | X29: 29 | Y29: FALSE | Z29: =IF($F$6,'FRED Indicies'!E42) -> 0 | AB29: =IF($F$6,'FRED Indicies'!D42) -> 0 | AF29: 30 | AG29: FALSE | AH29: =IF(AG29,'Google Index'!E56) -> FALSE | AJ29: =IF(AF29,'Google Index'!F56) -> 0 | AN29: 30 | AO29: FALSE | AP29: =IF(AO29,'Commodity Prices'!C42) -> FALSE | AR29: =IF(AO29,'Commodity Prices'!D42) -> FALSE | AV29: 32 | AW29: FALSE | AX29: =IF(AW29,'Yahoo Stocks'!D56) -> FALSE | AY29: 5347.KL | AZ29: =IF(AW29,'Yahoo Stocks'!E56) -> FALSE | BA29: Tenaga | BB29: F | BC29: Yahoo | BD29: 55 | BE29: FALSE | BF29: =IF(BE29,'Google Finance Stocks'!D53) -> FALSE | BH29: =IF(BE29,'Google Finance Stocks'!E53) -> FALSE | BL29: 55 | BM29: FALSE | BN29: ='Exchange Rates'!D39 -> 0 | BP29: =IF(BM29,'Exchange Rates'!E39) -> FALSE
L30: 28 | M30: MAEOY | N30: Meralco | O30: F | P30: Yahoo | Q30: 28 | R30: FALSE | S30: =IF(R30,'Yahoo Index'!E82,"") ->  | T30: =IF(R30,'Yahoo Index'!F82,"") ->  | X30: 30 | Y30: FALSE | Z30: =IF($F$6,'FRED Indicies'!E43) -> 0 | AB30: =IF($F$6,'FRED Indicies'!D43) -> 0 | AF30: 31 | AG30: FALSE | AH30: =IF(AG30,'Google Index'!E57) -> FALSE | AJ30: =IF(AF30,'Google Index'!F57) -> 0 | AN30: 31 | AO30: FALSE | AP30: =IF(AO30,'Commodity Prices'!C43) -> FALSE | AR30: =IF(AO30,'Commodity Prices'!D43) -> FALSE | AV30: 33 | AW30: FALSE | AX30: =IF(AW30,'Yahoo Stocks'!D57) -> FALSE | AY30: MAEOY | AZ30: =IF(AW30,'Yahoo Stocks'!E57) -> FALSE | BA30: Meralco | BB30: F | BC30: Yahoo | BD30: 56 | BE30: FALSE | BF30: =IF(BE30,'Google Finance Stocks'!D54) -> FALSE | BH30: =IF(BE30,'Google Finance Stocks'!E54) -> FALSE | BL30: 56 | BM30: FALSE | BN30: ='Exchange Rates'!D40 -> 0 | BP30: =IF(BM30,'Exchange Rates'!E40) -> FALSE
L31: 29 | M31: GDP Inf | N31: Implicit Price Deflator | O31: B | P31: FRED | Q31: 29 | R31: FALSE | S31: =IF(R31,'Yahoo Index'!E83,"") ->  | T31: =IF(R31,'Yahoo Index'!F83,"") ->  | X31: 31 | Y31: FALSE | Z31: =IF($F$6,'FRED Indicies'!E44) -> 0 | AB31: =IF($F$6,'FRED Indicies'!D44) -> 0 | AF31: 32 | AG31: FALSE | AH31: =IF(AG31,'Google Index'!E58) -> FALSE | AJ31: =IF(AF31,'Google Index'!F58) -> 0 | AN31: 32 | AO31: FALSE | AP31: =IF(AO31,'Commodity Prices'!C44) -> FALSE | AR31: =IF(AO31,'Commodity Prices'!D44) -> FALSE | AV31: 34 | AW31: FALSE | AX31: =IF(AW31,'Yahoo Stocks'!D58) -> FALSE | AZ31: =IF(AW31,'Yahoo Stocks'!E58) -> FALSE | BD31: 57 | BE31: FALSE | BF31: =IF(BE31,'Google Finance Stocks'!D55) -> FALSE | BH31: =IF(BE31,'Google Finance Stocks'!E55) -> FALSE | BL31: 57 | BM31: FALSE | BN31: ='Exchange Rates'!D41 -> 0 | BO31: GDP Inf | BP31: =IF(BM31,'Exchange Rates'!E41) -> FALSE | BQ31: Implicit Price Deflator | BR31: B | BS31: FRED
L32: 30 | M32: CPI US | N32: Consumer Price Inflation | O32: B | P32: FRED | Q32: 30 | R32: FALSE | S32: =IF(R32,'Yahoo Index'!E84,"") ->  | T32: =IF(R32,'Yahoo Index'!F84,"") ->  | X32: 32 | Y32: FALSE | Z32: =IF($F$6,'FRED Indicies'!E45) -> 0 | AB32: =IF($F$6,'FRED Indicies'!D45) -> 0 | AF32: 33 | AG32: FALSE | AH32: =IF(AG32,'Google Index'!E59) -> FALSE | AJ32: =IF(AF32,'Google Index'!F59) -> 0 | AN32: 33 | AO32: FALSE | AP32: =IF(AO32,'Commodity Prices'!C45) -> FALSE | AR32: =IF(AO32,'Commodity Prices'!D45) -> FALSE | AV32: 35 | AW32: FALSE | AX32: =IF(AW32,'Yahoo Stocks'!D59) -> FALSE | AZ32: =IF(AW32,'Yahoo Stocks'!E59) -> FALSE | BD32: 58 | BE32: FALSE | BF32: =IF(BE32,'Google Finance Stocks'!D56) -> FALSE | BH32: =IF(BE32,'Google Finance Stocks'!E56) -> FALSE | BL32: 58 | BM32: FALSE | BN32: ='Exchange Rates'!D42 -> 0 | BO32: CPI US | BP32: =IF(BM32,'Exchange Rates'!E42) -> FALSE | BQ32: Consumer Price Inflation | BR32: B | BS32: FRED
L33: 31 | M33: Euro | N33: U.S. / Euro Foreign Exchange Rate (EXUSEU) | O33: B | P33: FRED | Q33: 31 | R33: FALSE | S33: =IF(R33,'Yahoo Index'!E85,"") ->  | T33: =IF(R33,'Yahoo Index'!F85,"") ->  | X33: 33 | Y33: FALSE | Z33: =IF($F$6,'FRED Indicies'!E46) -> 0 | AB33: =IF($F$6,'FRED Indicies'!D46) -> 0 | AF33: 34 | AG33: FALSE | AH33: =IF(AG33,'Google Index'!E60) -> FALSE | AJ33: =IF(AF33,'Google Index'!F60) -> 0 | AN33: 34 | AO33: FALSE | AP33: =IF(AO33,'Commodity Prices'!C46) -> FALSE | AR33: =IF(AO33,'Commodity Prices'!D46) -> FALSE | AV33: 36 | AW33: FALSE | AX33: =IF(AW33,'Yahoo Stocks'!D60) -> FALSE | AZ33: =IF(AW33,'Yahoo Stocks'!E60) -> FALSE | BD33: 59 | BE33: FALSE | BF33: =IF(BE33,'Google Finance Stocks'!D57) -> FALSE | BH33: =IF(BE33,'Google Finance Stocks'!E57) -> FALSE | BL33: 59 | BM33: FALSE | BN33: ='Exchange Rates'!D43 -> 0 | BO33: Euro | BP33: =IF(BM33,'Exchange Rates'!E43) -> FALSE | BQ33: U.S. / Euro Foreign Exchange Rate (EXUSEU) | BR33: B | BS33: FRED
L34: 32 | M34: INR | N34: India / U.S. Foreign Exchange Rate (DEXINUS) | O34: B | P34: FRED | Q34: 32 | R34: FALSE | S34: =IF(R34,'Yahoo Index'!E86,"") ->  | T34: =IF(R34,'Yahoo Index'!F86,"") ->  | X34: 34 | Y34: FALSE | Z34: =IF($F$6,'FRED Indicies'!E47) -> 0 | AB34: =IF($F$6,'FRED Indicies'!D47) -> 0 | AF34: 35 | AG34: FALSE | AH34: =IF(AG34,'Google Index'!E61) -> FALSE | AJ34: =IF(AF34,'Google Index'!F61) -> 0 | AN34: 35 | AO34: FALSE | AP34: =IF(AO34,'Commodity Prices'!C47) -> FALSE | AR34: =IF(AO34,'Commodity Prices'!D47) -> FALSE | AV34: 37 | AW34: FALSE | AX34: =IF(AW34,'Yahoo Stocks'!D61) -> FALSE | AZ34: =IF(AW34,'Yahoo Stocks'!E61) -> FALSE | BD34: 60 | BE34: FALSE | BF34: =IF(BE34,'Google Finance Stocks'!D58) -> FALSE | BH34: =IF(BE34,'Google Finance Stocks'!E58) -> FALSE | BL34: 60 | BM34: FALSE | BN34: ='Exchange Rates'!D44 -> 0 | BO34: INR | BP34: =IF(BM34,'Exchange Rates'!E44) -> FALSE | BQ34: India / U.S. Foreign Exchange Rate (DEXINUS) | BR34: B | BS34: FRED
L35: 33 | M35: UK | N35: U.S. / U.K. Foreign Exchange Rate (EXUSUK) | O35: B | P35: FRED | Q35: 33 | R35: FALSE | S35: =IF(R35,'Yahoo Index'!E87,"") ->  | T35: =IF(R35,'Yahoo Index'!F87,"") ->  | X35: 35 | Y35: =IF(AND($F$6,X35<=$H$6),X35) -> FALSE | Z35: =IF($F$6,'FRED Indicies'!E48) -> 0 | AA35: =IFERROR(INDEX(Z:Z,MATCH(L35,Y:Y,0)),"") ->  | AB35: =IF($F$6,'FRED Indicies'!D48) -> 0 | AC35: =IFERROR(INDEX(AB:AB,MATCH(L35,Y:Y,0)),"") ->  | AF35: 36 | AG35: FALSE | AH35: =IF(AG35,'Google Index'!E62) -> FALSE | AI35: =IFERROR(INDEX(AH:AH,MATCH(Q35,AG:AG,0)),"") ->  | AJ35: =IF(AF35,'Google Index'!F62) -> 0 | AK35: =IFERROR(INDEX(AJ:AJ,MATCH(Q35,AG:AG,0)),"") ->  | AN35: 36 | AO35: FALSE | AP35: =IF(AO35,'Commodity Prices'!C48) -> FALSE | AQ35: =IFERROR(INDEX(AP:AP,MATCH(L35,AO:AO,0)),"") ->  | AR35: =IF(AO35,'Commodity Prices'!D48) -> FALSE | AS35: =IFERROR(INDEX(AR:AR,MATCH(L35,AO:AO,0)),"") ->  | AV35: 38 | AW35: FALSE | AX35: =IF(AW35,'Yahoo Stocks'!D62) -> FALSE | AZ35: =IF(AW35,'Yahoo Stocks'!E62) -> FALSE | BD35: 61 | BE35: FALSE | BF35: =IF(BE35,'Google Finance Stocks'!D59) -> FALSE | BH35: =IF(BE35,'Google Finance Stocks'!E59) -> FALSE | BL35: 61 | BM35: FALSE | BN35: ='Exchange Rates'!D45 -> 0 | BO35: UK | BP35: =IF(BM35,'Exchange Rates'!E45) -> FALSE | BQ35: U.S. / U.K. Foreign Exchange Rate (EXUSUK) | BR35: B | BS35: FRED
L36: 34 | M36: CFH | N36: Switzerland / U.S. Foreign Exchange Rate (DEXSZUS) | O36: B | P36: FRED | Q36: 34 | R36: FALSE | S36: =IF(R36,'Yahoo Index'!E88,"") ->  | T36: =IF(R36,'Yahoo Index'!F88,"") ->  | X36: 36 | Y36: FALSE | Z36: =IF($F$6,'FRED Indicies'!E49) -> 0 | AB36: =IF($F$6,'FRED Indicies'!D49) -> 0 | AF36: 37 | AG36: FALSE | AH36: =IF(AG36,'Google Index'!E63) -> FALSE | AJ36: =IF(AF36,'Google Index'!F63) -> 0 | AN36: 37 | AO36: FALSE | AP36: =IF(AO36,'Commodity Prices'!C49) -> FALSE | AR36: =IF(AO36,'Commodity Prices'!D49) -> FALSE | AV36: 39 | AW36: FALSE | AX36: =IF(AW36,'Yahoo Stocks'!D63) -> FALSE | AZ36: =IF(AW36,'Yahoo Stocks'!E63) -> FALSE | BD36: 62 | BE36: FALSE | BF36: =IF(BE36,'Google Finance Stocks'!D60) -> FALSE | BH36: =IF(BE36,'Google Finance Stocks'!E60) -> FALSE | BL36: 62 | BM36: FALSE | BN36: ='Exchange Rates'!D46 -> 0 | BO36: CFH | BP36: =IF(BM36,'Exchange Rates'!E46) -> FALSE | BQ36: Switzerland / U.S. Foreign Exchange Rate (DEXSZUS) | BR36: B | BS36: FRED
L37: 35 | M37: US NOM GNP | N37: Gross National Product (GNP) | O37: B | P37: FRED | Q37: 35 | R37: FALSE | S37: =IF(R37,'Yahoo Index'!E89,"") ->  | T37: =IF(R37,'Yahoo Index'!F89,"") ->  | X37: 37 | Y37: FALSE | Z37: =IF($F$6,'FRED Indicies'!E50) -> 0 | AB37: =IF($F$6,'FRED Indicies'!D50) -> 0 | AF37: 38 | AG37: FALSE | AH37: =IF(AG37,'Google Index'!E64) -> FALSE | AJ37: =IF(AF37,'Google Index'!F64) -> 0 | AN37: 38 | AO37: FALSE | AP37: =IF(AO37,'Commodity Prices'!C50) -> FALSE | AR37: =IF(AO37,'Commodity Prices'!D50) -> FALSE | AV37: 40 | AW37: FALSE | AX37: =IF(AW37,'Yahoo Stocks'!D64) -> FALSE | AZ37: =IF(AW37,'Yahoo Stocks'!E64) -> FALSE | BD37: 63 | BE37: FALSE | BF37: =IF(BE37,'Google Finance Stocks'!D61) -> FALSE | BH37: =IF(BE37,'Google Finance Stocks'!E61) -> FALSE | BL37: 63 | BM37: FALSE | BN37: ='Exchange Rates'!D47 -> 0 | BO37: US NOM GNP | BP37: =IF(BM37,'Exchange Rates'!E47) -> FALSE | BQ37: Gross National Product (GNP) | BR37: B | BS37: FRED
L38: 36 | Q38: 36 | R38: FALSE | S38: =IF(R38,'Yahoo Index'!E90,"") ->  | T38: =IF(R38,'Yahoo Index'!F90,"") ->  | X38: 38 | Y38: FALSE | Z38: =IF($F$6,'FRED Indicies'!E51) -> 0 | AB38: =IF($F$6,'FRED Indicies'!D51) -> 0 | AF38: 39 | AG38: FALSE | AH38: =IF(AG38,'Google Index'!E65) -> FALSE | AJ38: =IF(AF38,'Google Index'!F65) -> 0 | AN38: 39 | AO38: FALSE | AP38: =IF(AO38,'Commodity Prices'!C51) -> FALSE | AR38: =IF(AO38,'Commodity Prices'!D51) -> FALSE | AV38: 41 | AW38: FALSE | AX38: =IF(AW38,'Yahoo Stocks'!D65) -> FALSE | AZ38: =IF(AW38,'Yahoo Stocks'!E65) -> FALSE | BD38: 64 | BE38: FALSE | BF38: =IF(BE38,'Google Finance Stocks'!D62) -> FALSE | BH38: =IF(BE38,'Google Finance Stocks'!E62) -> FALSE | BL38: 64 | BM38: FALSE | BN38: ='Exchange Rates'!D48 -> 0 | BP38: =IF(BM38,'Exchange Rates'!E48) -> FALSE
L39: 37 | Q39: 37 | R39: FALSE | S39: =IF(R39,'Yahoo Index'!E91,"") ->  | T39: =IF(R39,'Yahoo Index'!F91,"") ->  | X39: 39 | Y39: FALSE | Z39: =IF($F$6,'FRED Indicies'!E52) -> 0 | AB39: =IF($F$6,'FRED Indicies'!D52) -> 0 | AF39: 40 | AG39: FALSE | AH39: =IF(AG39,'Google Index'!E66) -> FALSE | AJ39: =IF(AF39,'Google Index'!F66) -> 0 | AN39: 40 | AO39: FALSE | AP39: =IF(AO39,'Commodity Prices'!C52) -> FALSE | AR39: =IF(AO39,'Commodity Prices'!D52) -> FALSE | AV39: 42 | AW39: FALSE | AX39: =IF(AW39,'Yahoo Stocks'!D66) -> FALSE | AZ39: =IF(AW39,'Yahoo Stocks'!E66) -> FALSE | BD39: 65 | BE39: FALSE | BF39: =IF(BE39,'Google Finance Stocks'!D63) -> FALSE | BH39: =IF(BE39,'Google Finance Stocks'!E63) -> FALSE | BL39: 65 | BM39: FALSE | BN39: ='Exchange Rates'!D49 -> 0 | BP39: =IF(BM39,'Exchange Rates'!E49) -> FALSE
L40: 38 | Q40: 38 | R40: FALSE | S40: =IF(R40,'Yahoo Index'!E92,"") ->  | T40: =IF(R40,'Yahoo Index'!F92,"") ->  | X40: 40 | Y40: FALSE | Z40: =IF($F$6,'FRED Indicies'!E53) -> 0 | AB40: =IF($F$6,'FRED Indicies'!D53) -> 0 | AF40: 41 | AG40: FALSE | AH40: =IF(AG40,'Google Index'!E67) -> FALSE | AJ40: =IF(AF40,'Google Index'!F67) -> 0 | AN40: 41 | AO40: FALSE | AP40: =IF(AO40,'Commodity Prices'!C53) -> FALSE | AR40: =IF(AO40,'Commodity Prices'!D53) -> FALSE | AV40: 43 | AW40: FALSE | AX40: =IF(AW40,'Yahoo Stocks'!D67) -> FALSE | AZ40: =IF(AW40,'Yahoo Stocks'!E67) -> FALSE | BD40: 66 | BE40: FALSE | BF40: =IF(BE40,'Google Finance Stocks'!D64) -> FALSE | BH40: =IF(BE40,'Google Finance Stocks'!E64) -> FALSE | BL40: 66 | BM40: FALSE | BN40: ='Exchange Rates'!D50 -> 0 | BP40: =IF(BM40,'Exchange Rates'!E50) -> FALSE
L41: 39 | Q41: 39 | R41: FALSE | S41: =IF(R41,'Yahoo Index'!E93,"") ->  | T41: =IF(R41,'Yahoo Index'!F93,"") ->  | X41: 41 | Y41: FALSE | Z41: =IF($F$6,'FRED Indicies'!E54) -> 0 | AB41: =IF($F$6,'FRED Indicies'!D54) -> 0 | AF41: 42 | AG41: FALSE | AH41: =IF(AG41,'Google Index'!E68) -> FALSE | AJ41: =IF(AF41,'Google Index'!F68) -> 0 | AN41: 42 | AO41: FALSE | AP41: =IF(AO41,'Commodity Prices'!C54) -> FALSE | AR41: =IF(AO41,'Commodity Prices'!D54) -> FALSE | AV41: 44 | AW41: FALSE | AX41: =IF(AW41,'Yahoo Stocks'!D68) -> FALSE | AZ41: =IF(AW41,'Yahoo Stocks'!E68) -> FALSE | BD41: 67 | BE41: FALSE | BF41: =IF(BE41,'Google Finance Stocks'!D65) -> FALSE | BH41: =IF(BE41,'Google Finance Stocks'!E65) -> FALSE | BL41: 67 | BM41: FALSE | BN41: ='Exchange Rates'!D51 -> 0 | BP41: =IF(BM41,'Exchange Rates'!E51) -> FALSE
L42: 40 | Q42: 40 | R42: FALSE | S42: =IF(R42,'Yahoo Index'!E94,"") ->  | T42: =IF(R42,'Yahoo Index'!F94,"") ->  | X42: 42 | Y42: FALSE | Z42: =IF($F$6,'FRED Indicies'!E55) -> 0 | AB42: =IF($F$6,'FRED Indicies'!D55) -> 0 | AF42: 43 | AG42: FALSE | AH42: =IF(AG42,'Google Index'!E69) -> FALSE | AJ42: =IF(AF42,'Google Index'!F69) -> 0 | AN42: 43 | AO42: FALSE | AP42: =IF(AO42,'Commodity Prices'!C55) -> FALSE | AR42: =IF(AO42,'Commodity Prices'!D55) -> FALSE | AV42: 45 | AW42: FALSE | AX42: =IF(AW42,'Yahoo Stocks'!D69) -> FALSE | AZ42: =IF(AW42,'Yahoo Stocks'!E69) -> FALSE | BD42: 68 | BE42: FALSE | BF42: =IF(BE42,'Google Finance Stocks'!D66) -> FALSE | BH42: =IF(BE42,'Google Finance Stocks'!E66) -> FALSE | BL42: 68 | BM42: FALSE | BN42: ='Exchange Rates'!D52 -> 0 | BP42: =IF(BM42,'Exchange Rates'!E52) -> FALSE
L43: 41 | Q43: 41 | R43: FALSE | S43: =IF(R43,'Yahoo Index'!E95,"") ->  | T43: =IF(R43,'Yahoo Index'!F95,"") ->  | X43: 43 | Y43: FALSE | Z43: =IF($F$6,'FRED Indicies'!E56) -> 0 | AB43: =IF($F$6,'FRED Indicies'!D56) -> 0 | AF43: 44 | AG43: FALSE | AH43: =IF(AG43,'Google Index'!E70) -> FALSE | AJ43: =IF(AF43,'Google Index'!F70) -> 0 | AN43: 44 | AO43: FALSE | AP43: =IF(AO43,'Commodity Prices'!C56) -> FALSE | AR43: =IF(AO43,'Commodity Prices'!D56) -> FALSE | AV43: 46 | AW43: FALSE | AX43: =IF(AW43,'Yahoo Stocks'!D70) -> FALSE | AZ43: =IF(AW43,'Yahoo Stocks'!E70) -> FALSE | BD43: 69 | BE43: FALSE | BF43: =IF(BE43,'Google Finance Stocks'!D67) -> FALSE | BH43: =IF(BE43,'Google Finance Stocks'!E67) -> FALSE | BL43: 69 | BM43: FALSE | BN43: ='Exchange Rates'!D53 -> 0 | BP43: =IF(BM43,'Exchange Rates'!E53) -> FALSE
L44: 42 | Q44: 42 | R44: FALSE | S44: =IF(R44,'Yahoo Index'!E96,"") ->  | T44: =IF(R44,'Yahoo Index'!F96,"") ->  | X44: 44 | Y44: FALSE | Z44: =IF($F$6,'FRED Indicies'!E57) -> 0 | AB44: =IF($F$6,'FRED Indicies'!D57) -> 0 | AF44: 45 | AG44: FALSE | AH44: =IF(AG44,'Google Index'!E71) -> FALSE | AJ44: =IF(AF44,'Google Index'!F71) -> 0 | AN44: 45 | AO44: FALSE | AP44: =IF(AO44,'Commodity Prices'!C57) -> FALSE | AR44: =IF(AO44,'Commodity Prices'!D57) -> FALSE | AV44: 47 | AW44: FALSE | AX44: =IF(AW44,'Yahoo Stocks'!D71) -> FALSE | AZ44: =IF(AW44,'Yahoo Stocks'!E71) -> FALSE | BD44: 70 | BE44: FALSE | BF44: =IF(BE44,'Google Finance Stocks'!D68) -> FALSE | BH44: =IF(BE44,'Google Finance Stocks'!E68) -> FALSE | BL44: 70 | BM44: FALSE | BN44: ='Exchange Rates'!D54 -> 0 | BP44: =IF(BM44,'Exchange Rates'!E54) -> FALSE
L45: 43 | Q45: 43 | R45: FALSE | S45: =IF(R45,'Yahoo Index'!E97,"") ->  | T45: =IF(R45,'Yahoo Index'!F97,"") ->  | X45: 45 | Y45: FALSE | Z45: =IF($F$6,'FRED Indicies'!E58) -> 0 | AB45: =IF($F$6,'FRED Indicies'!D58) -> 0 | AF45: 46 | AG45: FALSE | AH45: =IF(AG45,'Google Index'!E72) -> FALSE | AJ45: =IF(AF45,'Google Index'!F72) -> 0 | AN45: 46 | AO45: FALSE | AP45: =IF(AO45,'Commodity Prices'!C58) -> FALSE | AR45: =IF(AO45,'Commodity Prices'!D58) -> FALSE | AV45: 48 | AW45: FALSE | AX45: =IF(AW45,'Yahoo Stocks'!D72) -> FALSE | AZ45: =IF(AW45,'Yahoo Stocks'!E72) -> FALSE | BD45: 71 | BE45: FALSE | BF45: =IF(BE45,'Google Finance Stocks'!D69) -> FALSE | BH45: =IF(BE45,'Google Finance Stocks'!E69) -> FALSE | BL45: 71 | BM45: FALSE | BN45: ='Exchange Rates'!D55 -> 0 | BP45: =IF(BM45,'Exchange Rates'!E55) -> FALSE
L46: 44 | Q46: 44 | R46: FALSE | S46: =IF(R46,'Yahoo Index'!E98,"") ->  | T46: =IF(R46,'Yahoo Index'!F98,"") ->  | X46: 46 | Y46: FALSE | Z46: =IF($F$6,'FRED Indicies'!E59) -> 0 | AB46: =IF($F$6,'FRED Indicies'!D59) -> 0 | AF46: 47 | AG46: FALSE | AH46: =IF(AG46,'Google Index'!E73) -> FALSE | AJ46: =IF(AF46,'Google Index'!F73) -> 0 | AN46: 47 | AO46: FALSE | AP46: =IF(AO46,'Commodity Prices'!C59) -> FALSE | AR46: =IF(AO46,'Commodity Prices'!D59) -> FALSE | AV46: 49 | AW46: FALSE | AX46: =IF(AW46,'Yahoo Stocks'!D73) -> FALSE | AZ46: =IF(AW46,'Yahoo Stocks'!E73) -> FALSE | BD46: 72 | BE46: FALSE | BF46: =IF(BE46,'Google Finance Stocks'!D70) -> FALSE | BH46: =IF(BE46,'Google Finance Stocks'!E70) -> FALSE | BL46: 72 | BM46: FALSE | BN46: ='Exchange Rates'!D56 -> 0 | BP46: =IF(BM46,'Exchange Rates'!E56) -> FALSE
L47: 45 | Q47: 45 | R47: FALSE | S47: =IF(R47,'Yahoo Index'!E99,"") ->  | T47: =IF(R47,'Yahoo Index'!F99,"") ->  | X47: 47 | Y47: FALSE | Z47: =IF($F$6,'FRED Indicies'!E60) -> 0 | AB47: =IF($F$6,'FRED Indicies'!D60) -> 0 | AF47: 48 | AG47: FALSE | AH47: =IF(AG47,'Google Index'!E74) -> FALSE | AJ47: =IF(AF47,'Google Index'!F74) -> 0 | AN47: 48 | AO47: FALSE | AP47: =IF(AO47,'Commodity Prices'!C60) -> FALSE | AR47: =IF(AO47,'Commodity Prices'!D60) -> FALSE | AV47: 50 | AW47: FALSE | AX47: =IF(AW47,'Yahoo Stocks'!D74) -> FALSE | AZ47: =IF(AW47,'Yahoo Stocks'!E74) -> FALSE | BD47: 73 | BE47: FALSE | BF47: =IF(BE47,'Google Finance Stocks'!D71) -> FALSE | BH47: =IF(BE47,'Google Finance Stocks'!E71) -> FALSE | BL47: 73 | BM47: FALSE | BN47: ='Exchange Rates'!D57 -> 0 | BP47: =IF(BM47,'Exchange Rates'!E57) -> FALSE
L48: 46 | Q48: 46 | R48: FALSE | S48: =IF(R48,'Yahoo Index'!E100,"") ->  | T48: =IF(R48,'Yahoo Index'!F100,"") ->  | X48: 48 | Y48: FALSE | Z48: =IF($F$6,'FRED Indicies'!E61) -> 0 | AB48: =IF($F$6,'FRED Indicies'!D61) -> 0 | AF48: 49 | AG48: FALSE | AH48: =IF(AG48,'Google Index'!E75) -> FALSE | AJ48: =IF(AF48,'Google Index'!F75) -> 0 | AN48: 49 | AO48: FALSE | AP48: =IF(AO48,'Commodity Prices'!C61) -> FALSE | AR48: =IF(AO48,'Commodity Prices'!D61) -> FALSE | AV48: 51 | AW48: FALSE | AX48: =IF(AW48,'Yahoo Stocks'!D75) -> FALSE | AZ48: =IF(AW48,'Yahoo Stocks'!E75) -> FALSE | BD48: 74 | BE48: FALSE | BF48: =IF(BE48,'Google Finance Stocks'!D72) -> FALSE | BH48: =IF(BE48,'Google Finance Stocks'!E72) -> FALSE | BL48: 74 | BM48: FALSE | BN48: ='Exchange Rates'!D58 -> 0 | BP48: =IF(BM48,'Exchange Rates'!E58) -> FALSE
L49: 47 | Q49: 47 | R49: FALSE | S49: =IF(R49,'Yahoo Index'!E101,"") ->  | T49: =IF(R49,'Yahoo Index'!F101,"") ->  | X49: 49 | Y49: FALSE | Z49: =IF($F$6,'FRED Indicies'!E62) -> 0 | AB49: =IF($F$6,'FRED Indicies'!D62) -> 0 | AF49: 50 | AG49: FALSE | AH49: =IF(AG49,'Google Index'!E76) -> FALSE | AJ49: =IF(AF49,'Google Index'!F76) -> 0 | AN49: 50 | AO49: FALSE | AP49: =IF(AO49,'Commodity Prices'!C62) -> FALSE | AR49: =IF(AO49,'Commodity Prices'!D62) -> FALSE | AV49: 52 | AW49: FALSE | AX49: =IF(AW49,'Yahoo Stocks'!D76) -> FALSE | AZ49: =IF(AW49,'Yahoo Stocks'!E76) -> FALSE | BD49: 75 | BE49: FALSE | BF49: =IF(BE49,'Google Finance Stocks'!D73) -> FALSE | BH49: =IF(BE49,'Google Finance Stocks'!E73) -> FALSE | BL49: 75 | BM49: FALSE | BN49: ='Exchange Rates'!D59 -> 0 | BP49: =IF(BM49,'Exchange Rates'!E59) -> FALSE
L50: 48 | Q50: 48 | R50: FALSE | S50: =IF(R50,'Yahoo Index'!E102,"") ->  | T50: =IF(R50,'Yahoo Index'!F102,"") ->  | X50: 50 | Y50: FALSE | Z50: =IF($F$6,'FRED Indicies'!E63) -> 0 | AB50: =IF($F$6,'FRED Indicies'!D63) -> 0 | AF50: 51 | AG50: FALSE | AH50: =IF(AG50,'Google Index'!E77) -> FALSE | AJ50: =IF(AF50,'Google Index'!F77) -> 0 | AN50: 51 | AO50: FALSE | AP50: =IF(AO50,'Commodity Prices'!C63) -> FALSE | AR50: =IF(AO50,'Commodity Prices'!D63) -> FALSE | AV50: 53 | AW50: FALSE | AX50: =IF(AW50,'Yahoo Stocks'!D77) -> FALSE | AZ50: =IF(AW50,'Yahoo Stocks'!E77) -> FALSE | BD50: 76 | BE50: FALSE | BF50: =IF(BE50,'Google Finance Stocks'!D74) -> FALSE | BH50: =IF(BE50,'Google Finance Stocks'!E74) -> FALSE | BL50: 76 | BM50: FALSE | BN50: ='Exchange Rates'!D60 -> 0 | BP50: =IF(BM50,'Exchange Rates'!E60) -> FALSE
L51: 49 | Q51: 49 | R51: FALSE | S51: =IF(R51,'Yahoo Index'!E103,"") ->  | T51: =IF(R51,'Yahoo Index'!F103,"") ->  | X51: 51 | Y51: FALSE | Z51: =IF($F$6,'FRED Indicies'!E64) -> 0 | AB51: =IF($F$6,'FRED Indicies'!D64) -> 0 | AF51: 52 | AG51: FALSE | AH51: =IF(AG51,'Google Index'!E78) -> FALSE | AJ51: =IF(AF51,'Google Index'!F78) -> 0 | AN51: 52 | AO51: FALSE | AP51: =IF(AO51,'Commodity Prices'!C64) -> FALSE | AR51: =IF(AO51,'Commodity Prices'!D64) -> FALSE | AV51: 54 | AW51: FALSE | AX51: =IF(AW51,'Yahoo Stocks'!D78) -> FALSE | AZ51: =IF(AW51,'Yahoo Stocks'!E78) -> FALSE | BD51: 77 | BE51: FALSE | BF51: =IF(BE51,'Google Finance Stocks'!D75) -> FALSE | BH51: =IF(BE51,'Google Finance Stocks'!E75) -> FALSE | BL51: 77 | BM51: FALSE | BN51: ='Exchange Rates'!D61 -> 0 | BP51: =IF(BM51,'Exchange Rates'!E61) -> FALSE
L52: 50 | Q52: 50 | R52: FALSE | S52: =IF(R52,'Yahoo Index'!E104,"") ->  | T52: =IF(R52,'Yahoo Index'!F104,"") ->  | X52: 52 | Y52: FALSE | Z52: =IF($F$6,'FRED Indicies'!E65) -> 0 | AB52: =IF($F$6,'FRED Indicies'!D65) -> 0 | AF52: 53 | AG52: FALSE | AH52: =IF(AG52,'Google Index'!E79) -> FALSE | AJ52: =IF(AF52,'Google Index'!F79) -> 0 | AN52: 53 | AO52: FALSE | AP52: =IF(AO52,'Commodity Prices'!C65) -> FALSE | AR52: =IF(AO52,'Commodity Prices'!D65) -> FALSE | AV52: 55 | AW52: FALSE | AX52: =IF(AW52,'Yahoo Stocks'!D79) -> FALSE | AZ52: =IF(AW52,'Yahoo Stocks'!E79) -> FALSE | BD52: 78 | BE52: FALSE | BF52: =IF(BE52,'Google Finance Stocks'!D76) -> FALSE | BH52: =IF(BE52,'Google Finance Stocks'!E76) -> FALSE | BL52: 78 | BM52: FALSE | BN52: ='Exchange Rates'!D62 -> 0 | BP52: =IF(BM52,'Exchange Rates'!E62) -> FALSE
L53: 51 | M53: =S53&AA53&AI53&AQ53&AY53&BG53&BO53 ->  | N53: =T53&AC53&AK53&AS53&BA53&BI53&BQ53 ->  | O53: =U53&AD53&AL53&AT53&BB53&BJ53&BR53 ->  | P53: =V53&AE53&AM53&AU53&BC53&BK53&BS53 ->  | Q53: 51 | R53: =IF(AND($F$3,Q53<=$H$3),Q53) -> FALSE | S53: =IF(R53,'Yahoo Index'!E105,"") ->  | T53: =IF(R53,'Yahoo Index'!F105,"") ->  | U53: =IF(R53,$I$3,"") ->  | V53: =IF(R53,$J$3,"") ->  | X53: 53 | Y53: =IF(AND($F$6,X53<=$H$6),X53) -> FALSE | Z53: =IF($F$6,'FRED Indicies'!E66) -> 0 | AA53: =IFERROR(INDEX(Z:Z,MATCH(L53,Y:Y,0)),"") ->  | AB53: =IF($F$6,'FRED Indicies'!D66) -> 0 | AC53: =IFERROR(INDEX(AB:AB,MATCH(L53,Y:Y,0)),"") ->  | AD53: =IF(AA53<>"",$I$6,"") ->  | AE53: =IF(AA53<>"",$J$6,"") ->  | AF53: 54 | AG53: =IF(AND($F$9,AF53<=$H$9),AF53) -> FALSE | AH53: =IF(AG53,'Google Index'!E80) -> FALSE | AI53: =IFERROR(INDEX(AH:AH,MATCH(Q53,AG:AG,0)),"") ->  | AJ53: =IF(AF53,'Google Index'!F80) -> 0 | AK53: =IFERROR(INDEX(AJ:AJ,MATCH(Q53,AG:AG,0)),"") ->  | AL53: =IF(AI53<>"",$I$6,"") ->  | AM53: =IF(AK53<>"",$J$6,"") ->  | AN53: 54 | AO53: =IF(AND($F$12,AN53<=$H$12),AN53) -> FALSE | AP53: =IF(AO53,'Commodity Prices'!C66) -> FALSE | AQ53: =IFERROR(INDEX(AP:AP,MATCH(L53,AO:AO,0)),"") ->  | AR53: =IF(AO53,'Commodity Prices'!D66) -> FALSE | AS53: =IFERROR(INDEX(AR:AR,MATCH(L53,AO:AO,0)),"") ->  | AT53: =IF(AQ53<>"",$I$12,"") ->  | AU53: =IF(AS53<>"",$J$12,"") ->  | AV53: 56 | AW53: =IF(AND($F$15,AV53<=$H$15),AV53) -> FALSE | AX53: =IF(AW53,'Yahoo Stocks'!D80) -> FALSE | AZ53: =IF(AW53,'Yahoo Stocks'!E80) -> FALSE | BD53: 79 | BE53: =IF(AND($F$18,BD53<=$H$18),BD53) -> FALSE | BF53: =IF(BE53,'Google Finance Stocks'!D77) -> FALSE | BG53: =IFERROR(INDEX(BF:BF,MATCH(Q53,BE:BE,0)),"") ->  | BH53: =IF(BE53,'Google Finance Stocks'!E77) -> FALSE | BI53: =IFERROR(INDEX(BH:BH,MATCH(Q53,BE:BE,0)),"") ->  | BJ53: =IF(BI53<>"",$I$18,"") ->  | BK53: =IF(BI53<>"",$J$18,"") ->  | BL53: 79 | BM53: =IF(AND($F$21,BL53<=$H$21),BL53) -> FALSE | BN53: ='Exchange Rates'!D63 -> 0 | BO53: =IFERROR(INDEX(BN:BN,MATCH(L53,BM:BM,0)),"") ->  | BP53: =IF(BM53,'Exchange Rates'!E63) -> FALSE | BQ53: =IFERROR(INDEX(BP:BP,MATCH(L53,BM:BM,0)),"") ->  | BR53: =IF(BQ53<>"",$I$21,"") ->  | BS53: =IF(BQ53<>"",$J$21,"") -> 
L54: 52 | Q54: 52 | R54: FALSE | S54: =IF(R54,'Yahoo Index'!E106,"") ->  | T54: =IF(R54,'Yahoo Index'!F106,"") ->  | X54: 54 | Y54: FALSE | Z54: =IF($F$6,'FRED Indicies'!E67) -> 0 | AB54: =IF($F$6,'FRED Indicies'!D67) -> 0 | AF54: 55 | AG54: FALSE | AH54: =IF(AG54,'Google Index'!E81) -> FALSE | AJ54: =IF(AF54,'Google Index'!F81) -> 0 | AN54: 55 | AO54: FALSE | AP54: =IF(AO54,'Commodity Prices'!C67) -> FALSE | AR54: =IF(AO54,'Commodity Prices'!D67) -> FALSE | AV54: 57 | AW54: FALSE | AX54: =IF(AW54,'Yahoo Stocks'!D81) -> FALSE | AZ54: =IF(AW54,'Yahoo Stocks'!E81) -> FALSE | BD54: 80 | BE54: FALSE | BF54: =IF(BE54,'Google Finance Stocks'!D78) -> FALSE | BH54: =IF(BE54,'Google Finance Stocks'!E78) -> FALSE | BL54: 80 | BM54: FALSE | BN54: ='Exchange Rates'!D64 -> 0 | BP54: =IF(BM54,'Exchange Rates'!E64) -> FALSE
L55: 53 | Q55: 53 | R55: FALSE | S55: =IF(R55,'Yahoo Index'!E107,"") ->  | T55: =IF(R55,'Yahoo Index'!F107,"") ->  | X55: 55 | Y55: FALSE | Z55: =IF($F$6,'FRED Indicies'!E68) -> 0 | AB55: =IF($F$6,'FRED Indicies'!D68) -> 0 | AF55: 56 | AG55: FALSE | AH55: =IF(AG55,'Google Index'!E82) -> FALSE | AJ55: =IF(AF55,'Google Index'!F82) -> 0 | AN55: 56 | AO55: FALSE | AP55: =IF(AO55,'Commodity Prices'!C68) -> FALSE | AR55: =IF(AO55,'Commodity Prices'!D68) -> FALSE | AV55: 58 | AW55: FALSE | AX55: =IF(AW55,'Yahoo Stocks'!D82) -> FALSE | AZ55: =IF(AW55,'Yahoo Stocks'!E82) -> FALSE | BD55: 81 | BE55: FALSE | BF55: =IF(BE55,'Google Finance Stocks'!D79) -> FALSE | BH55: =IF(BE55,'Google Finance Stocks'!E79) -> FALSE | BL55: 81 | BM55: FALSE | BN55: ='Exchange Rates'!D65 -> 0 | BP55: =IF(BM55,'Exchange Rates'!E65) -> FALSE
L56: 54 | Q56: 54 | R56: FALSE | S56: =IF(R56,'Yahoo Index'!E108,"") ->  | T56: =IF(R56,'Yahoo Index'!F108,"") ->  | X56: 56 | Y56: FALSE | Z56: =IF($F$6,'FRED Indicies'!E69) -> 0 | AB56: =IF($F$6,'FRED Indicies'!D69) -> 0 | AF56: 57 | AG56: FALSE | AH56: =IF(AG56,'Google Index'!E83) -> FALSE | AJ56: =IF(AF56,'Google Index'!F83) -> 0 | AN56: 57 | AO56: FALSE | AP56: =IF(AO56,'Commodity Prices'!C69) -> FALSE | AR56: =IF(AO56,'Commodity Prices'!D69) -> FALSE | AV56: 59 | AW56: FALSE | AX56: =IF(AW56,'Yahoo Stocks'!D83) -> FALSE | AZ56: =IF(AW56,'Yahoo Stocks'!E83) -> FALSE | BD56: 82 | BE56: FALSE | BF56: =IF(BE56,'Google Finance Stocks'!D80) -> FALSE | BH56: =IF(BE56,'Google Finance Stocks'!E80) -> FALSE | BL56: 82 | BM56: FALSE | BN56: ='Exchange Rates'!D66 -> 0 | BP56: =IF(BM56,'Exchange Rates'!E66) -> FALSE
L57: 55 | Q57: 55 | R57: FALSE | S57: =IF(R57,'Yahoo Index'!E109,"") ->  | T57: =IF(R57,'Yahoo Index'!F109,"") ->  | X57: 57 | Y57: FALSE | Z57: =IF($F$6,'FRED Indicies'!E70) -> 0 | AB57: =IF($F$6,'FRED Indicies'!D70) -> 0 | AF57: 58 | AG57: FALSE | AH57: =IF(AG57,'Google Index'!E84) -> FALSE | AJ57: =IF(AF57,'Google Index'!F84) -> 0 | AN57: 58 | AO57: FALSE | AP57: =IF(AO57,'Commodity Prices'!C70) -> FALSE | AR57: =IF(AO57,'Commodity Prices'!D70) -> FALSE | AV57: 60 | AW57: FALSE | AX57: =IF(AW57,'Yahoo Stocks'!D84) -> FALSE | AZ57: =IF(AW57,'Yahoo Stocks'!E84) -> FALSE | BD57: 83 | BE57: FALSE | BF57: =IF(BE57,'Google Finance Stocks'!D81) -> FALSE | BH57: =IF(BE57,'Google Finance Stocks'!E81) -> FALSE | BL57: 83 | BM57: FALSE | BN57: ='Exchange Rates'!D67 -> 0 | BP57: =IF(BM57,'Exchange Rates'!E67) -> FALSE
L58: 56 | Q58: 56 | R58: FALSE | S58: =IF(R58,'Yahoo Index'!E110,"") ->  | T58: =IF(R58,'Yahoo Index'!F110,"") ->  | X58: 58 | Y58: FALSE | Z58: =IF($F$6,'FRED Indicies'!E71) -> 0 | AB58: =IF($F$6,'FRED Indicies'!D71) -> 0 | AF58: 59 | AG58: FALSE | AH58: =IF(AG58,'Google Index'!E85) -> FALSE | AJ58: =IF(AF58,'Google Index'!F85) -> 0 | AN58: 59 | AO58: FALSE | AP58: =IF(AO58,'Commodity Prices'!C71) -> FALSE | AR58: =IF(AO58,'Commodity Prices'!D71) -> FALSE | AV58: 61 | AW58: FALSE | AX58: =IF(AW58,'Yahoo Stocks'!D85) -> FALSE | AZ58: =IF(AW58,'Yahoo Stocks'!E85) -> FALSE | BD58: 84 | BE58: FALSE | BF58: =IF(BE58,'Google Finance Stocks'!D82) -> FALSE | BH58: =IF(BE58,'Google Finance Stocks'!E82) -> FALSE | BL58: 84 | BM58: FALSE | BN58: ='Exchange Rates'!D68 -> 0 | BP58: =IF(BM58,'Exchange Rates'!E68) -> FALSE
L59: 57 | Q59: 57 | R59: FALSE | S59: =IF(R59,'Yahoo Index'!E111,"") ->  | T59: =IF(R59,'Yahoo Index'!F111,"") ->  | X59: 59 | Y59: FALSE | Z59: =IF($F$6,'FRED Indicies'!E72) -> 0 | AB59: =IF($F$6,'FRED Indicies'!D72) -> 0 | AF59: 60 | AG59: FALSE | AH59: =IF(AG59,'Google Index'!E86) -> FALSE | AJ59: =IF(AF59,'Google Index'!F86) -> 0 | AN59: 60 | AO59: FALSE | AP59: =IF(AO59,'Commodity Prices'!C72) -> FALSE | AR59: =IF(AO59,'Commodity Prices'!D72) -> FALSE | AV59: 62 | AW59: FALSE | AX59: =IF(AW59,'Yahoo Stocks'!D86) -> FALSE | AZ59: =IF(AW59,'Yahoo Stocks'!E86) -> FALSE | BD59: 85 | BE59: FALSE | BF59: =IF(BE59,'Google Finance Stocks'!D83) -> FALSE | BH59: =IF(BE59,'Google Finance Stocks'!E83) -> FALSE | BL59: 85 | BM59: FALSE | BN59: ='Exchange Rates'!D69 -> 0 | BP59: =IF(BM59,'Exchange Rates'!E69) -> FALSE
L60: 58 | Q60: 58 | R60: FALSE | S60: =IF(R60,'Yahoo Index'!E112,"") ->  | T60: =IF(R60,'Yahoo Index'!F112,"") ->  | X60: 60 | Y60: FALSE | Z60: =IF($F$6,'FRED Indicies'!E73) -> 0 | AB60: =IF($F$6,'FRED Indicies'!D73) -> 0 | AF60: 61 | AG60: FALSE | AH60: =IF(AG60,'Google Index'!E87) -> FALSE | AJ60: =IF(AF60,'Google Index'!F87) -> 0 | AN60: 61 | AO60: FALSE | AP60: =IF(AO60,'Commodity Prices'!C73) -> FALSE | AR60: =IF(AO60,'Commodity Prices'!D73) -> FALSE | AV60: 63 | AW60: FALSE | AX60: =IF(AW60,'Yahoo Stocks'!D87) -> FALSE | AZ60: =IF(AW60,'Yahoo Stocks'!E87) -> FALSE | BD60: 86 | BE60: FALSE | BF60: =IF(BE60,'Google Finance Stocks'!D84) -> FALSE | BH60: =IF(BE60,'Google Finance Stocks'!E84) -> FALSE | BL60: 86 | BM60: FALSE | BN60: ='Exchange Rates'!D70 -> 0 | BP60: =IF(BM60,'Exchange Rates'!E70) -> FALSE
L61: 59 | Q61: 59 | R61: FALSE | S61: =IF(R61,'Yahoo Index'!E113,"") ->  | T61: =IF(R61,'Yahoo Index'!F113,"") ->  | X61: 61 | Y61: FALSE | Z61: =IF($F$6,'FRED Indicies'!E74) -> 0 | AB61: =IF($F$6,'FRED Indicies'!D74) -> 0 | AF61: 62 | AG61: FALSE | AH61: =IF(AG61,'Google Index'!E88) -> FALSE | AJ61: =IF(AF61,'Google Index'!F88) -> 0 | AN61: 62 | AO61: FALSE | AP61: =IF(AO61,'Commodity Prices'!C74) -> FALSE | AR61: =IF(AO61,'Commodity Prices'!D74) -> FALSE | AV61: 64 | AW61: FALSE | AX61: =IF(AW61,'Yahoo Stocks'!D88) -> FALSE | AZ61: =IF(AW61,'Yahoo Stocks'!E88) -> FALSE | BD61: 87 | BE61: FALSE | BF61: =IF(BE61,'Google Finance Stocks'!D85) -> FALSE | BH61: =IF(BE61,'Google Finance Stocks'!E85) -> FALSE | BL61: 87 | BM61: FALSE | BN61: ='Exchange Rates'!D71 -> 0 | BP61: =IF(BM61,'Exchange Rates'!E71) -> FALSE
L62: 60 | Q62: 60 | R62: FALSE | S62: =IF(R62,'Yahoo Index'!E114,"") ->  | T62: =IF(R62,'Yahoo Index'!F114,"") ->  | X62: 62 | Y62: FALSE | Z62: =IF($F$6,'FRED Indicies'!E75) -> 0 | AB62: =IF($F$6,'FRED Indicies'!D75) -> 0 | AF62: 63 | AG62: FALSE | AH62: =IF(AG62,'Google Index'!E89) -> FALSE | AJ62: =IF(AF62,'Google Index'!F89) -> 0 | AN62: 63 | AO62: FALSE | AP62: =IF(AO62,'Commodity Prices'!C75) -> FALSE | AR62: =IF(AO62,'Commodity Prices'!D75) -> FALSE | AV62: 65 | AW62: FALSE | AX62: =IF(AW62,'Yahoo Stocks'!D89) -> FALSE | AZ62: =IF(AW62,'Yahoo Stocks'!E89) -> FALSE | BD62: 88 | BE62: FALSE | BF62: =IF(BE62,'Google Finance Stocks'!D86) -> FALSE | BH62: =IF(BE62,'Google Finance Stocks'!E86) -> FALSE | BL62: 88 | BM62: FALSE | BN62: ='Exchange Rates'!D72 -> 0 | BP62: =IF(BM62,'Exchange Rates'!E72) -> FALSE
L63: 61 | Q63: 61 | R63: FALSE | S63: =IF(R63,'Yahoo Index'!E115,"") ->  | T63: =IF(R63,'Yahoo Index'!F115,"") ->  | X63: 63 | Y63: FALSE | Z63: =IF($F$6,'FRED Indicies'!E76) -> 0 | AB63: =IF($F$6,'FRED Indicies'!D76) -> 0 | AF63: 64 | AG63: FALSE | AH63: =IF(AG63,'Google Index'!E90) -> FALSE | AJ63: =IF(AF63,'Google Index'!F90) -> 0 | AN63: 64 | AO63: FALSE | AP63: =IF(AO63,'Commodity Prices'!C76) -> FALSE | AR63: =IF(AO63,'Commodity Prices'!D76) -> FALSE | AV63: 66 | AW63: FALSE | AX63: =IF(AW63,'Yahoo Stocks'!D90) -> FALSE | AZ63: =IF(AW63,'Yahoo Stocks'!E90) -> FALSE | BD63: 89 | BE63: FALSE | BF63: =IF(BE63,'Google Finance Stocks'!D87) -> FALSE | BH63: =IF(BE63,'Google Finance Stocks'!E87) -> FALSE | BL63: 89 | BM63: FALSE | BN63: ='Exchange Rates'!D73 -> 0 | BP63: =IF(BM63,'Exchange Rates'!E73) -> FALSE
L64: 62 | Q64: 62 | R64: FALSE | S64: =IF(R64,'Yahoo Index'!E116,"") ->  | T64: =IF(R64,'Yahoo Index'!F116,"") ->  | X64: 64 | Y64: FALSE | Z64: =IF($F$6,'FRED Indicies'!E77) -> 0 | AB64: =IF($F$6,'FRED Indicies'!D77) -> 0 | AF64: 65 | AG64: FALSE | AH64: =IF(AG64,'Google Index'!E91) -> FALSE | AJ64: =IF(AF64,'Google Index'!F91) -> 0 | AN64: 65 | AO64: FALSE | AP64: =IF(AO64,'Commodity Prices'!C77) -> FALSE | AR64: =IF(AO64,'Commodity Prices'!D77) -> FALSE | AV64: 67 | AW64: FALSE | AX64: =IF(AW64,'Yahoo Stocks'!D91) -> FALSE | AZ64: =IF(AW64,'Yahoo Stocks'!E91) -> FALSE | BD64: 90 | BE64: FALSE | BF64: =IF(BE64,'Google Finance Stocks'!D88) -> FALSE | BH64: =IF(BE64,'Google Finance Stocks'!E88) -> FALSE | BL64: 90 | BM64: FALSE | BN64: ='Exchange Rates'!D74 -> 0 | BP64: =IF(BM64,'Exchange Rates'!E74) -> FALSE
L65: 63 | Q65: 63 | R65: FALSE | S65: =IF(R65,'Yahoo Index'!E117,"") ->  | T65: =IF(R65,'Yahoo Index'!F117,"") ->  | X65: 65 | Y65: FALSE | Z65: =IF($F$6,'FRED Indicies'!E78) -> 0 | AB65: =IF($F$6,'FRED Indicies'!D78) -> 0 | AF65: 66 | AG65: FALSE | AH65: =IF(AG65,'Google Index'!E92) -> FALSE | AJ65: =IF(AF65,'Google Index'!F92) -> 0 | AN65: 66 | AO65: FALSE | AP65: =IF(AO65,'Commodity Prices'!C78) -> FALSE | AR65: =IF(AO65,'Commodity Prices'!D78) -> FALSE | AV65: 68 | AW65: FALSE | AX65: =IF(AW65,'Yahoo Stocks'!D92) -> FALSE | AZ65: =IF(AW65,'Yahoo Stocks'!E92) -> FALSE | BD65: 91 | BE65: FALSE | BF65: =IF(BE65,'Google Finance Stocks'!D89) -> FALSE | BH65: =IF(BE65,'Google Finance Stocks'!E89) -> FALSE | BL65: 91 | BM65: FALSE | BN65: ='Exchange Rates'!D75 -> 0 | BP65: =IF(BM65,'Exchange Rates'!E75) -> FALSE
L66: 64 | Q66: 64 | R66: FALSE | S66: =IF(R66,'Yahoo Index'!E118,"") ->  | T66: =IF(R66,'Yahoo Index'!F118,"") ->  | X66: 66 | Y66: FALSE | Z66: =IF($F$6,'FRED Indicies'!E79) -> 0 | AB66: =IF($F$6,'FRED Indicies'!D79) -> 0 | AF66: 67 | AG66: FALSE | AH66: =IF(AG66,'Google Index'!E93) -> FALSE | AJ66: =IF(AF66,'Google Index'!F93) -> 0 | AN66: 67 | AO66: FALSE | AP66: =IF(AO66,'Commodity Prices'!C79) -> FALSE | AR66: =IF(AO66,'Commodity Prices'!D79) -> FALSE | AV66: 69 | AW66: FALSE | AX66: =IF(AW66,'Yahoo Stocks'!D93) -> FALSE | AZ66: =IF(AW66,'Yahoo Stocks'!E93) -> FALSE | BD66: 92 | BE66: FALSE | BF66: =IF(BE66,'Google Finance Stocks'!D90) -> FALSE | BH66: =IF(BE66,'Google Finance Stocks'!E90) -> FALSE | BL66: 92 | BM66: FALSE | BN66: ='Exchange Rates'!D76 -> 0 | BP66: =IF(BM66,'Exchange Rates'!E76) -> FALSE
L67: 65 | Q67: 65 | R67: FALSE | S67: =IF(R67,'Yahoo Index'!E119,"") ->  | T67: =IF(R67,'Yahoo Index'!F119,"") ->  | X67: 67 | Y67: FALSE | Z67: =IF($F$6,'FRED Indicies'!E80) -> 0 | AB67: =IF($F$6,'FRED Indicies'!D80) -> 0 | AF67: 68 | AG67: FALSE | AH67: =IF(AG67,'Google Index'!E94) -> FALSE | AJ67: =IF(AF67,'Google Index'!F94) -> 0 | AN67: 68 | AO67: FALSE | AP67: =IF(AO67,'Commodity Prices'!C80) -> FALSE | AR67: =IF(AO67,'Commodity Prices'!D80) -> FALSE | AV67: 70 | AW67: FALSE | AX67: =IF(AW67,'Yahoo Stocks'!D94) -> FALSE | AZ67: =IF(AW67,'Yahoo Stocks'!E94) -> FALSE | BD67: 93 | BE67: FALSE | BF67: =IF(BE67,'Google Finance Stocks'!D91) -> FALSE | BH67: =IF(BE67,'Google Finance Stocks'!E91) -> FALSE | BL67: 93 | BM67: FALSE | BN67: ='Exchange Rates'!D77 -> 0 | BP67: =IF(BM67,'Exchange Rates'!E77) -> FALSE
L68: 66 | Q68: 66 | R68: FALSE | S68: =IF(R68,'Yahoo Index'!E120,"") ->  | T68: =IF(R68,'Yahoo Index'!F120,"") ->  | X68: 68 | Y68: FALSE | Z68: =IF($F$6,'FRED Indicies'!E81) -> 0 | AB68: =IF($F$6,'FRED Indicies'!D81) -> 0 | AF68: 69 | AG68: FALSE | AH68: =IF(AG68,'Google Index'!E95) -> FALSE | AJ68: =IF(AF68,'Google Index'!F95) -> 0 | AN68: 69 | AO68: FALSE | AP68: =IF(AO68,'Commodity Prices'!C81) -> FALSE | AR68: =IF(AO68,'Commodity Prices'!D81) -> FALSE | AV68: 71 | AW68: FALSE | AX68: =IF(AW68,'Yahoo Stocks'!D95) -> FALSE | AY68: =IFERROR(INDEX(AX:AX,MATCH(L68,AW:AW,0)),"") ->  | AZ68: =IF(AW68,'Yahoo Stocks'!E95) -> FALSE | BA68: =IFERROR(INDEX(AZ:AZ,MATCH(L68,AW:AW,0)),"") ->  | BB68: =IF(AY68<>"",$I$15,"") ->  | BC68: =IF(BA68<>"",$J$15,"") ->  | BD68: 94 | BE68: FALSE | BF68: =IF(BE68,'Google Finance Stocks'!D92) -> FALSE | BH68: =IF(BE68,'Google Finance Stocks'!E92) -> FALSE | BL68: 94 | BM68: FALSE | BN68: ='Exchange Rates'!D78 -> 0 | BP68: =IF(BM68,'Exchange Rates'!E78) -> FALSE
L69: 67 | Q69: =Q68+1 -> 67 | R69: FALSE | S69: =IF(R69,'Yahoo Index'!E121,"") ->  | T69: =IF(R69,'Yahoo Index'!F121,"") ->  | X69: =X68+1 -> 69 | Y69: FALSE | Z69: =IF($F$6,'FRED Indicies'!E82) -> 0 | AB69: =IF($F$6,'FRED Indicies'!D82) -> 0 | AF69: =AF68+1 -> 70 | AG69: FALSE | AH69: =IF(AG69,'Google Index'!E96) -> FALSE | AJ69: =IF(AF69,'Google Index'!F96) -> 0 | AN69: =AN68+1 -> 70 | AO69: FALSE | AP69: =IF(AO69,'Commodity Prices'!C82) -> FALSE | AR69: =IF(AO69,'Commodity Prices'!D82) -> FALSE | AV69: =AV68+1 -> 72 | AW69: FALSE | AX69: =IF(AW69,'Yahoo Stocks'!D96) -> FALSE | AZ69: =IF(AW69,'Yahoo Stocks'!E96) -> FALSE | BD69: =BD68+1 -> 95 | BE69: FALSE | BF69: =IF(BE69,'Google Finance Stocks'!D93) -> FALSE | BH69: =IF(BE69,'Google Finance Stocks'!E93) -> FALSE | BL69: =BL68+1 -> 95 | BM69: FALSE | BN69: ='Exchange Rates'!D79 -> 0 | BP69: =IF(BM69,'Exchange Rates'!E79) -> FALSE
L70: 68 | Q70: 68 | R70: FALSE | S70: =IF(R70,'Yahoo Index'!E122,"") ->  | T70: =IF(R70,'Yahoo Index'!F122,"") ->  | X70: 70 | Y70: FALSE | Z70: =IF($F$6,'FRED Indicies'!E83) -> 0 | AB70: =IF($F$6,'FRED Indicies'!D83) -> 0 | AF70: 71 | AG70: FALSE | AH70: =IF(AG70,'Google Index'!E97) -> FALSE | AJ70: =IF(AF70,'Google Index'!F97) -> 0 | AN70: 71 | AO70: FALSE | AP70: =IF(AO70,'Commodity Prices'!C83) -> FALSE | AR70: =IF(AO70,'Commodity Prices'!D83) -> FALSE | AV70: 73 | AW70: FALSE | AX70: =IF(AW70,'Yahoo Stocks'!D97) -> FALSE | AZ70: =IF(AW70,'Yahoo Stocks'!E97) -> FALSE | BD70: 96 | BE70: FALSE | BF70: =IF(BE70,'Google Finance Stocks'!D94) -> FALSE | BH70: =IF(BE70,'Google Finance Stocks'!E94) -> FALSE | BL70: 96 | BM70: FALSE | BN70: ='Exchange Rates'!D80 -> 0 | BP70: =IF(BM70,'Exchange Rates'!E80) -> FALSE
L71: 69 | Q71: 69 | R71: FALSE | S71: =IF(R71,'Yahoo Index'!E123,"") ->  | T71: =IF(R71,'Yahoo Index'!F123,"") ->  | X71: 71 | Y71: FALSE | Z71: =IF($F$6,'FRED Indicies'!E84) -> 0 | AB71: =IF($F$6,'FRED Indicies'!D84) -> 0 | AF71: 72 | AG71: FALSE | AH71: =IF(AG71,'Google Index'!E98) -> FALSE | AJ71: =IF(AF71,'Google Index'!F98) -> 0 | AN71: 72 | AO71: FALSE | AP71: =IF(AO71,'Commodity Prices'!C84) -> FALSE | AR71: =IF(AO71,'Commodity Prices'!D84) -> FALSE | AV71: 74 | AW71: FALSE | AX71: =IF(AW71,'Yahoo Stocks'!D98) -> FALSE | AZ71: =IF(AW71,'Yahoo Stocks'!E98) -> FALSE | BD71: 97 | BE71: FALSE | BF71: =IF(BE71,'Google Finance Stocks'!D95) -> FALSE | BH71: =IF(BE71,'Google Finance Stocks'!E95) -> FALSE | BL71: 97 | BM71: FALSE | BN71: ='Exchange Rates'!D81 -> 0 | BP71: =IF(BM71,'Exchange Rates'!E81) -> FALSE
L72: 70 | Q72: 70 | R72: FALSE | S72: =IF(R72,'Yahoo Index'!E124,"") ->  | T72: =IF(R72,'Yahoo Index'!F124,"") ->  | X72: 72 | Y72: FALSE | Z72: =IF($F$6,'FRED Indicies'!E85) -> 0 | AB72: =IF($F$6,'FRED Indicies'!D85) -> 0 | AF72: 73 | AG72: FALSE | AH72: =IF(AG72,'Google Index'!E99) -> FALSE | AJ72: =IF(AF72,'Google Index'!F99) -> 0 | AN72: 73 | AO72: FALSE | AP72: =IF(AO72,'Commodity Prices'!C85) -> FALSE | AR72: =IF(AO72,'Commodity Prices'!D85) -> FALSE | AV72: 75 | AW72: FALSE | AX72: =IF(AW72,'Yahoo Stocks'!D99) -> FALSE | AZ72: =IF(AW72,'Yahoo Stocks'!E99) -> FALSE | BD72: 98 | BE72: FALSE | BF72: =IF(BE72,'Google Finance Stocks'!D96) -> FALSE | BH72: =IF(BE72,'Google Finance Stocks'!E96) -> FALSE | BL72: 98 | BM72: FALSE | BN72: ='Exchange Rates'!D82 -> 0 | BP72: =IF(BM72,'Exchange Rates'!E82) -> FALSE
L73: 71 | Q73: 71 | R73: FALSE | S73: =IF(R73,'Yahoo Index'!E125,"") ->  | T73: =IF(R73,'Yahoo Index'!F125,"") ->  | X73: 73 | Y73: FALSE | Z73: =IF($F$6,'FRED Indicies'!E86) -> 0 | AB73: =IF($F$6,'FRED Indicies'!D86) -> 0 | AF73: 74 | AG73: FALSE | AH73: =IF(AG73,'Google Index'!E100) -> FALSE | AJ73: =IF(AF73,'Google Index'!F100) -> 0 | AN73: 74 | AO73: FALSE | AP73: =IF(AO73,'Commodity Prices'!C86) -> FALSE | AR73: =IF(AO73,'Commodity Prices'!D86) -> FALSE | AV73: 76 | AW73: FALSE | AX73: =IF(AW73,'Yahoo Stocks'!D100) -> FALSE | AZ73: =IF(AW73,'Yahoo Stocks'!E100) -> FALSE | BD73: 99 | BE73: FALSE | BF73: =IF(BE73,'Google Finance Stocks'!D97) -> FALSE | BH73: =IF(BE73,'Google Finance Stocks'!E97) -> FALSE | BL73: 99 | BM73: FALSE | BN73: ='Exchange Rates'!D83 -> 0 | BP73: =IF(BM73,'Exchange Rates'!E83) -> FALSE
L74: 72 | Q74: 72 | R74: FALSE | S74: =IF(R74,'Yahoo Index'!E126,"") ->  | T74: =IF(R74,'Yahoo Index'!F126,"") ->  | X74: 74 | Y74: FALSE | Z74: =IF($F$6,'FRED Indicies'!E87) -> 0 | AB74: =IF($F$6,'FRED Indicies'!D87) -> 0 | AF74: 75 | AG74: FALSE | AH74: =IF(AG74,'Google Index'!E101) -> FALSE | AJ74: =IF(AF74,'Google Index'!F101) -> 0 | AN74: 75 | AO74: FALSE | AP74: =IF(AO74,'Commodity Prices'!C87) -> FALSE | AR74: =IF(AO74,'Commodity Prices'!D87) -> FALSE | AV74: 77 | AW74: FALSE | AX74: =IF(AW74,'Yahoo Stocks'!D101) -> FALSE | AZ74: =IF(AW74,'Yahoo Stocks'!E101) -> FALSE | BD74: 100 | BE74: FALSE | BF74: =IF(BE74,'Google Finance Stocks'!D98) -> FALSE | BH74: =IF(BE74,'Google Finance Stocks'!E98) -> FALSE | BL74: 100 | BM74: FALSE | BN74: ='Exchange Rates'!D84 -> 0 | BP74: =IF(BM74,'Exchange Rates'!E84) -> FALSE
L75: 73 | Q75: 73 | R75: FALSE | S75: =IF(R75,'Yahoo Index'!E127,"") ->  | T75: =IF(R75,'Yahoo Index'!F127,"") ->  | X75: 75 | Y75: FALSE | Z75: =IF($F$6,'FRED Indicies'!E88) -> 0 | AB75: =IF($F$6,'FRED Indicies'!D88) -> 0 | AF75: 76 | AG75: FALSE | AH75: =IF(AG75,'Google Index'!E102) -> FALSE | AJ75: =IF(AF75,'Google Index'!F102) -> 0 | AN75: 76 | AO75: FALSE | AP75: =IF(AO75,'Commodity Prices'!C88) -> FALSE | AR75: =IF(AO75,'Commodity Prices'!D88) -> FALSE | AV75: 78 | AW75: FALSE | AX75: =IF(AW75,'Yahoo Stocks'!D102) -> FALSE | AZ75: =IF(AW75,'Yahoo Stocks'!E102) -> FALSE | BD75: 101 | BE75: FALSE | BF75: =IF(BE75,'Google Finance Stocks'!D99) -> FALSE | BH75: =IF(BE75,'Google Finance Stocks'!E99) -> FALSE | BL75: 101 | BM75: FALSE | BN75: ='Exchange Rates'!D85 -> 0 | BP75: =IF(BM75,'Exchange Rates'!E85) -> FALSE
L76: 74 | Q76: 74 | R76: FALSE | S76: =IF(R76,'Yahoo Index'!E128,"") ->  | T76: =IF(R76,'Yahoo Index'!F128,"") ->  | X76: 76 | Y76: FALSE | Z76: =IF($F$6,'FRED Indicies'!E89) -> 0 | AB76: =IF($F$6,'FRED Indicies'!D89) -> 0 | AF76: 77 | AG76: FALSE | AH76: =IF(AG76,'Google Index'!E103) -> FALSE | AJ76: =IF(AF76,'Google Index'!F103) -> 0 | AN76: 77 | AO76: FALSE | AP76: =IF(AO76,'Commodity Prices'!C89) -> FALSE | AR76: =IF(AO76,'Commodity Prices'!D89) -> FALSE | AV76: 79 | AW76: FALSE | AX76: =IF(AW76,'Yahoo Stocks'!D103) -> FALSE | AZ76: =IF(AW76,'Yahoo Stocks'!E103) -> FALSE | BD76: 102 | BE76: FALSE | BF76: =IF(BE76,'Google Finance Stocks'!D100) -> FALSE | BH76: =IF(BE76,'Google Finance Stocks'!E100) -> FALSE | BL76: 102 | BM76: FALSE | BN76: ='Exchange Rates'!D86 -> 0 | BP76: =IF(BM76,'Exchange Rates'!E86) -> FALSE
L77: 75 | Q77: 75 | R77: FALSE | S77: =IF(R77,'Yahoo Index'!E129,"") ->  | T77: =IF(R77,'Yahoo Index'!F129,"") ->  | X77: 77 | Y77: FALSE | Z77: =IF($F$6,'FRED Indicies'!E90) -> 0 | AB77: =IF($F$6,'FRED Indicies'!D90) -> 0 | AF77: 78 | AG77: FALSE | AH77: =IF(AG77,'Google Index'!E104) -> FALSE | AJ77: =IF(AF77,'Google Index'!F104) -> 0 | AN77: 78 | AO77: FALSE | AP77: =IF(AO77,'Commodity Prices'!C90) -> FALSE | AR77: =IF(AO77,'Commodity Prices'!D90) -> FALSE | AV77: 80 | AW77: FALSE | AX77: =IF(AW77,'Yahoo Stocks'!D104) -> FALSE | AZ77: =IF(AW77,'Yahoo Stocks'!E104) -> FALSE | BD77: 103 | BE77: FALSE | BF77: =IF(BE77,'Google Finance Stocks'!D101) -> FALSE | BH77: =IF(BE77,'Google Finance Stocks'!E101) -> FALSE | BL77: 103 | BM77: FALSE | BN77: ='Exchange Rates'!D87 -> 0 | BP77: =IF(BM77,'Exchange Rates'!E87) -> FALSE
L78: 76 | Q78: 76 | R78: FALSE | S78: =IF(R78,'Yahoo Index'!E130,"") ->  | T78: =IF(R78,'Yahoo Index'!F130,"") ->  | X78: 78 | Y78: FALSE | Z78: =IF($F$6,'FRED Indicies'!E91) -> 0 | AB78: =IF($F$6,'FRED Indicies'!D91) -> 0 | AF78: 79 | AG78: FALSE | AH78: =IF(AG78,'Google Index'!E105) -> FALSE | AJ78: =IF(AF78,'Google Index'!F105) -> 0 | AN78: 79 | AO78: FALSE | AP78: =IF(AO78,'Commodity Prices'!C91) -> FALSE | AR78: =IF(AO78,'Commodity Prices'!D91) -> FALSE | AV78: 81 | AW78: FALSE | AX78: =IF(AW78,'Yahoo Stocks'!D105) -> FALSE | AZ78: =IF(AW78,'Yahoo Stocks'!E105) -> FALSE | BD78: 104 | BE78: FALSE | BF78: =IF(BE78,'Google Finance Stocks'!D102) -> FALSE | BH78: =IF(BE78,'Google Finance Stocks'!E102) -> FALSE | BL78: 104 | BM78: FALSE | BN78: ='Exchange Rates'!D88 -> 0 | BP78: =IF(BM78,'Exchange Rates'!E88) -> FALSE
L79: 77 | Q79: 77 | R79: FALSE | S79: =IF(R79,'Yahoo Index'!E131,"") ->  | T79: =IF(R79,'Yahoo Index'!F131,"") ->  | X79: 79 | Y79: FALSE | Z79: =IF($F$6,'FRED Indicies'!E92) -> 0 | AB79: =IF($F$6,'FRED Indicies'!D92) -> 0 | AF79: 80 | AG79: FALSE | AH79: =IF(AG79,'Google Index'!E106) -> FALSE | AJ79: =IF(AF79,'Google Index'!F106) -> 0 | AN79: 80 | AO79: FALSE | AP79: =IF(AO79,'Commodity Prices'!C92) -> FALSE | AR79: =IF(AO79,'Commodity Prices'!D92) -> FALSE | AV79: 82 | AW79: FALSE | AX79: =IF(AW79,'Yahoo Stocks'!D106) -> FALSE | AZ79: =IF(AW79,'Yahoo Stocks'!E106) -> FALSE | BD79: 105 | BE79: FALSE | BF79: =IF(BE79,'Google Finance Stocks'!D103) -> FALSE | BH79: =IF(BE79,'Google Finance Stocks'!E103) -> FALSE | BL79: 105 | BM79: FALSE | BN79: ='Exchange Rates'!D89 -> 0 | BP79: =IF(BM79,'Exchange Rates'!E89) -> FALSE
L80: 78 | Q80: 78 | R80: FALSE | S80: =IF(R80,'Yahoo Index'!E132,"") ->  | T80: =IF(R80,'Yahoo Index'!F132,"") ->  | X80: 80 | Y80: FALSE | Z80: =IF($F$6,'FRED Indicies'!E93) -> 0 | AB80: =IF($F$6,'FRED Indicies'!D93) -> 0 | AF80: 81 | AG80: FALSE | AH80: =IF(AG80,'Google Index'!E107) -> FALSE | AJ80: =IF(AF80,'Google Index'!F107) -> 0 | AN80: 81 | AO80: FALSE | AP80: =IF(AO80,'Commodity Prices'!C93) -> FALSE | AR80: =IF(AO80,'Commodity Prices'!D93) -> FALSE | AV80: 83 | AW80: FALSE | AX80: =IF(AW80,'Yahoo Stocks'!D107) -> FALSE | AZ80: =IF(AW80,'Yahoo Stocks'!E107) -> FALSE | BD80: 106 | BE80: FALSE | BF80: =IF(BE80,'Google Finance Stocks'!D104) -> FALSE | BH80: =IF(BE80,'Google Finance Stocks'!E104) -> FALSE | BL80: 106 | BM80: FALSE | BN80: ='Exchange Rates'!D90 -> 0 | BP80: =IF(BM80,'Exchange Rates'!E90) -> FALSE
L81: 79 | Q81: 79 | R81: FALSE | S81: =IF(R81,'Yahoo Index'!E133,"") ->  | T81: =IF(R81,'Yahoo Index'!F133,"") ->  | X81: 81 | Y81: FALSE | Z81: =IF($F$6,'FRED Indicies'!E94) -> 0 | AB81: =IF($F$6,'FRED Indicies'!D94) -> 0 | AF81: 82 | AG81: FALSE | AH81: =IF(AG81,'Google Index'!E108) -> FALSE | AJ81: =IF(AF81,'Google Index'!F108) -> 0 | AN81: 82 | AO81: FALSE | AP81: =IF(AO81,'Commodity Prices'!C94) -> FALSE | AR81: =IF(AO81,'Commodity Prices'!D94) -> FALSE | AV81: 84 | AW81: FALSE | AX81: =IF(AW81,'Yahoo Stocks'!D108) -> FALSE | AZ81: =IF(AW81,'Yahoo Stocks'!E108) -> FALSE | BD81: 107 | BE81: FALSE | BF81: =IF(BE81,'Google Finance Stocks'!D105) -> FALSE | BH81: =IF(BE81,'Google Finance Stocks'!E105) -> FALSE | BL81: 107 | BM81: FALSE | BN81: ='Exchange Rates'!D91 -> 0 | BP81: =IF(BM81,'Exchange Rates'!E91) -> FALSE
L82: 80 | Q82: 80 | R82: FALSE | S82: =IF(R82,'Yahoo Index'!E134,"") ->  | T82: =IF(R82,'Yahoo Index'!F134,"") ->  | X82: 82 | Y82: FALSE | Z82: =IF($F$6,'FRED Indicies'!E95) -> 0 | AB82: =IF($F$6,'FRED Indicies'!D95) -> 0 | AF82: 83 | AG82: FALSE | AH82: =IF(AG82,'Google Index'!E109) -> FALSE | AJ82: =IF(AF82,'Google Index'!F109) -> 0 | AN82: 83 | AO82: FALSE | AP82: =IF(AO82,'Commodity Prices'!C95) -> FALSE | AR82: =IF(AO82,'Commodity Prices'!D95) -> FALSE | AV82: 85 | AW82: FALSE | AX82: =IF(AW82,'Yahoo Stocks'!D109) -> FALSE | AZ82: =IF(AW82,'Yahoo Stocks'!E109) -> FALSE | BD82: 108 | BE82: FALSE | BF82: =IF(BE82,'Google Finance Stocks'!D106) -> FALSE | BH82: =IF(BE82,'Google Finance Stocks'!E106) -> FALSE | BL82: 108 | BM82: FALSE | BN82: ='Exchange Rates'!D92 -> 0 | BP82: =IF(BM82,'Exchange Rates'!E92) -> FALSE
L83: 81 | Q83: 81 | R83: FALSE | S83: =IF(R83,'Yahoo Index'!E135,"") ->  | T83: =IF(R83,'Yahoo Index'!F135,"") ->  | X83: 83 | Y83: FALSE | Z83: =IF($F$6,'FRED Indicies'!E96) -> 0 | AB83: =IF($F$6,'FRED Indicies'!D96) -> 0 | AF83: 84 | AG83: FALSE | AH83: =IF(AG83,'Google Index'!E110) -> FALSE | AJ83: =IF(AF83,'Google Index'!F110) -> 0 | AN83: 84 | AO83: FALSE | AP83: =IF(AO83,'Commodity Prices'!C96) -> FALSE | AR83: =IF(AO83,'Commodity Prices'!D96) -> FALSE | AV83: 86 | AW83: FALSE | AX83: =IF(AW83,'Yahoo Stocks'!D110) -> FALSE | AZ83: =IF(AW83,'Yahoo Stocks'!E110) -> FALSE | BD83: 109 | BE83: FALSE | BF83: =IF(BE83,'Google Finance Stocks'!D107) -> FALSE | BH83: =IF(BE83,'Google Finance Stocks'!E107) -> FALSE | BL83: 109 | BM83: FALSE | BN83: ='Exchange Rates'!D93 -> 0 | BP83: =IF(BM83,'Exchange Rates'!E93) -> FALSE
L84: 82 | Q84: 82 | R84: FALSE | S84: =IF(R84,'Yahoo Index'!E136,"") ->  | T84: =IF(R84,'Yahoo Index'!F136,"") ->  | X84: 84 | Y84: FALSE | Z84: =IF($F$6,'FRED Indicies'!E97) -> 0 | AB84: =IF($F$6,'FRED Indicies'!D97) -> 0 | AF84: 85 | AG84: FALSE | AH84: =IF(AG84,'Google Index'!E111) -> FALSE | AJ84: =IF(AF84,'Google Index'!F111) -> 0 | AN84: 85 | AO84: FALSE | AP84: =IF(AO84,'Commodity Prices'!C97) -> FALSE | AR84: =IF(AO84,'Commodity Prices'!D97) -> FALSE | AV84: 87 | AW84: FALSE | AX84: =IF(AW84,'Yahoo Stocks'!D111) -> FALSE | AZ84: =IF(AW84,'Yahoo Stocks'!E111) -> FALSE | BD84: 110 | BE84: FALSE | BF84: =IF(BE84,'Google Finance Stocks'!D108) -> FALSE | BH84: =IF(BE84,'Google Finance Stocks'!E108) -> FALSE | BL84: 110 | BM84: FALSE | BN84: ='Exchange Rates'!D94 -> 0 | BP84: =IF(BM84,'Exchange Rates'!E94) -> FALSE
L85: 83 | Q85: 83 | R85: FALSE | S85: =IF(R85,'Yahoo Index'!E137,"") ->  | T85: =IF(R85,'Yahoo Index'!F137,"") ->  | X85: 85 | Y85: FALSE | Z85: =IF($F$6,'FRED Indicies'!E98) -> 0 | AB85: =IF($F$6,'FRED Indicies'!D98) -> 0 | AF85: 86 | AG85: FALSE | AH85: =IF(AG85,'Google Index'!E112) -> FALSE | AJ85: =IF(AF85,'Google Index'!F112) -> 0 | AN85: 86 | AO85: FALSE | AP85: =IF(AO85,'Commodity Prices'!C98) -> FALSE | AR85: =IF(AO85,'Commodity Prices'!D98) -> FALSE | AV85: 88 | AW85: FALSE | AX85: =IF(AW85,'Yahoo Stocks'!D112) -> FALSE | AZ85: =IF(AW85,'Yahoo Stocks'!E112) -> FALSE | BD85: 111 | BE85: FALSE | BF85: =IF(BE85,'Google Finance Stocks'!D109) -> FALSE | BH85: =IF(BE85,'Google Finance Stocks'!E109) -> FALSE | BL85: 111 | BM85: FALSE | BN85: ='Exchange Rates'!D95 -> 0 | BP85: =IF(BM85,'Exchange Rates'!E95) -> FALSE
L86: 84 | Q86: 84 | R86: FALSE | S86: =IF(R86,'Yahoo Index'!E138,"") ->  | T86: =IF(R86,'Yahoo Index'!F138,"") ->  | X86: 86 | Y86: FALSE | Z86: =IF($F$6,'FRED Indicies'!E99) -> 0 | AB86: =IF($F$6,'FRED Indicies'!D99) -> 0 | AF86: 87 | AG86: FALSE | AH86: =IF(AG86,'Google Index'!E113) -> FALSE | AJ86: =IF(AF86,'Google Index'!F113) -> 0 | AN86: 87 | AO86: FALSE | AP86: =IF(AO86,'Commodity Prices'!C99) -> FALSE | AR86: =IF(AO86,'Commodity Prices'!D99) -> FALSE | AV86: 89 | AW86: FALSE | AX86: =IF(AW86,'Yahoo Stocks'!D113) -> FALSE | AZ86: =IF(AW86,'Yahoo Stocks'!E113) -> FALSE | BD86: 112 | BE86: FALSE | BF86: =IF(BE86,'Google Finance Stocks'!D110) -> FALSE | BH86: =IF(BE86,'Google Finance Stocks'!E110) -> FALSE | BL86: 112 | BM86: FALSE | BN86: ='Exchange Rates'!D96 -> 0 | BP86: =IF(BM86,'Exchange Rates'!E96) -> FALSE
L87: 85 | Q87: 85 | R87: FALSE | S87: =IF(R87,'Yahoo Index'!E139,"") ->  | T87: =IF(R87,'Yahoo Index'!F139,"") ->  | X87: 87 | Y87: FALSE | Z87: =IF($F$6,'FRED Indicies'!E100) -> 0 | AB87: =IF($F$6,'FRED Indicies'!D100) -> 0 | AF87: 88 | AG87: FALSE | AH87: =IF(AG87,'Google Index'!E114) -> FALSE | AJ87: =IF(AF87,'Google Index'!F114) -> 0 | AN87: 88 | AO87: FALSE | AP87: =IF(AO87,'Commodity Prices'!C100) -> FALSE | AR87: =IF(AO87,'Commodity Prices'!D100) -> FALSE | AV87: 90 | AW87: FALSE | AX87: =IF(AW87,'Yahoo Stocks'!D114) -> FALSE | AZ87: =IF(AW87,'Yahoo Stocks'!E114) -> FALSE | BD87: 113 | BE87: FALSE | BF87: =IF(BE87,'Google Finance Stocks'!D111) -> FALSE | BH87: =IF(BE87,'Google Finance Stocks'!E111) -> FALSE | BL87: 113 | BM87: FALSE | BN87: ='Exchange Rates'!D97 -> 0 | BP87: =IF(BM87,'Exchange Rates'!E97) -> FALSE
L88: 86 | Q88: 86 | R88: FALSE | S88: =IF(R88,'Yahoo Index'!E140,"") ->  | T88: =IF(R88,'Yahoo Index'!F140,"") ->  | X88: 88 | Y88: FALSE | Z88: =IF($F$6,'FRED Indicies'!E101) -> 0 | AB88: =IF($F$6,'FRED Indicies'!D101) -> 0 | AF88: 89 | AG88: FALSE | AH88: =IF(AG88,'Google Index'!E115) -> FALSE | AJ88: =IF(AF88,'Google Index'!F115) -> 0 | AN88: 89 | AO88: FALSE | AP88: =IF(AO88,'Commodity Prices'!C101) -> FALSE | AR88: =IF(AO88,'Commodity Prices'!D101) -> FALSE | AV88: 91 | AW88: FALSE | AX88: =IF(AW88,'Yahoo Stocks'!D115) -> FALSE | AZ88: =IF(AW88,'Yahoo Stocks'!E115) -> FALSE | BD88: 114 | BE88: FALSE | BF88: =IF(BE88,'Google Finance Stocks'!D112) -> FALSE | BH88: =IF(BE88,'Google Finance Stocks'!E112) -> FALSE | BL88: 114 | BM88: FALSE | BN88: ='Exchange Rates'!D98 -> 0 | BP88: =IF(BM88,'Exchange Rates'!E98) -> FALSE
L89: 87 | Q89: 87 | R89: FALSE | S89: =IF(R89,'Yahoo Index'!E141,"") ->  | T89: =IF(R89,'Yahoo Index'!F141,"") ->  | X89: 89 | Y89: FALSE | Z89: =IF($F$6,'FRED Indicies'!E102) -> 0 | AB89: =IF($F$6,'FRED Indicies'!D102) -> 0 | AF89: 90 | AG89: FALSE | AH89: =IF(AG89,'Google Index'!E116) -> FALSE | AJ89: =IF(AF89,'Google Index'!F116) -> 0 | AN89: 90 | AO89: FALSE | AP89: =IF(AO89,'Commodity Prices'!C102) -> FALSE | AR89: =IF(AO89,'Commodity Prices'!D102) -> FALSE | AV89: 92 | AW89: FALSE | AX89: =IF(AW89,'Yahoo Stocks'!D116) -> FALSE | AZ89: =IF(AW89,'Yahoo Stocks'!E116) -> FALSE | BD89: 115 | BE89: FALSE | BF89: =IF(BE89,'Google Finance Stocks'!D113) -> FALSE | BH89: =IF(BE89,'Google Finance Stocks'!E113) -> FALSE | BL89: 115 | BM89: FALSE | BN89: ='Exchange Rates'!D99 -> 0 | BP89: =IF(BM89,'Exchange Rates'!E99) -> FALSE
L90: 88 | Q90: 88 | R90: FALSE | S90: =IF(R90,'Yahoo Index'!E142,"") ->  | T90: =IF(R90,'Yahoo Index'!F142,"") ->  | X90: 90 | Y90: FALSE | Z90: =IF($F$6,'FRED Indicies'!E103) -> 0 | AB90: =IF($F$6,'FRED Indicies'!D103) -> 0 | AF90: 91 | AG90: FALSE | AH90: =IF(AG90,'Google Index'!E117) -> FALSE | AJ90: =IF(AF90,'Google Index'!F117) -> 0 | AN90: 91 | AO90: FALSE | AP90: =IF(AO90,'Commodity Prices'!C103) -> FALSE | AR90: =IF(AO90,'Commodity Prices'!D103) -> FALSE | AV90: 93 | AW90: FALSE | AX90: =IF(AW90,'Yahoo Stocks'!D117) -> FALSE | AZ90: =IF(AW90,'Yahoo Stocks'!E117) -> FALSE | BD90: 116 | BE90: FALSE | BF90: =IF(BE90,'Google Finance Stocks'!D114) -> FALSE | BH90: =IF(BE90,'Google Finance Stocks'!E114) -> FALSE | BL90: 116 | BM90: FALSE | BN90: ='Exchange Rates'!D100 -> 0 | BP90: =IF(BM90,'Exchange Rates'!E100) -> FALSE
L91: 89 | Q91: 89 | R91: FALSE | S91: =IF(R91,'Yahoo Index'!E143,"") ->  | T91: =IF(R91,'Yahoo Index'!F143,"") ->  | X91: 91 | Y91: FALSE | Z91: =IF($F$6,'FRED Indicies'!E104) -> 0 | AB91: =IF($F$6,'FRED Indicies'!D104) -> 0 | AF91: 92 | AG91: FALSE | AH91: =IF(AG91,'Google Index'!E118) -> FALSE | AJ91: =IF(AF91,'Google Index'!F118) -> 0 | AN91: 92 | AO91: FALSE | AP91: =IF(AO91,'Commodity Prices'!C104) -> FALSE | AR91: =IF(AO91,'Commodity Prices'!D104) -> FALSE | AV91: 94 | AW91: FALSE | AX91: =IF(AW91,'Yahoo Stocks'!D118) -> FALSE | AZ91: =IF(AW91,'Yahoo Stocks'!E118) -> FALSE | BD91: 117 | BE91: FALSE | BF91: =IF(BE91,'Google Finance Stocks'!D115) -> FALSE | BH91: =IF(BE91,'Google Finance Stocks'!E115) -> FALSE | BL91: 117 | BM91: FALSE | BN91: ='Exchange Rates'!D101 -> 0 | BP91: =IF(BM91,'Exchange Rates'!E101) -> FALSE
L92: 90 | Q92: 90 | R92: FALSE | S92: =IF(R92,'Yahoo Index'!E144,"") ->  | T92: =IF(R92,'Yahoo Index'!F144,"") ->  | X92: 92 | Y92: FALSE | Z92: =IF($F$6,'FRED Indicies'!E105) -> 0 | AB92: =IF($F$6,'FRED Indicies'!D105) -> 0 | AF92: 93 | AG92: FALSE | AH92: =IF(AG92,'Google Index'!E119) -> FALSE | AJ92: =IF(AF92,'Google Index'!F119) -> 0 | AN92: 93 | AO92: FALSE | AP92: =IF(AO92,'Commodity Prices'!C105) -> FALSE | AR92: =IF(AO92,'Commodity Prices'!D105) -> FALSE | AV92: 95 | AW92: FALSE | AX92: =IF(AW92,'Yahoo Stocks'!D119) -> FALSE | AZ92: =IF(AW92,'Yahoo Stocks'!E119) -> FALSE | BD92: 118 | BE92: FALSE | BF92: =IF(BE92,'Google Finance Stocks'!D116) -> FALSE | BH92: =IF(BE92,'Google Finance Stocks'!E116) -> FALSE | BL92: 118 | BM92: FALSE | BN92: ='Exchange Rates'!D102 -> 0 | BP92: =IF(BM92,'Exchange Rates'!E102) -> FALSE
L93: 91 | Q93: 91 | R93: FALSE | S93: =IF(R93,'Yahoo Index'!E145,"") ->  | T93: =IF(R93,'Yahoo Index'!F145,"") ->  | X93: 93 | Y93: FALSE | Z93: =IF($F$6,'FRED Indicies'!E106) -> 0 | AB93: =IF($F$6,'FRED Indicies'!D106) -> 0 | AF93: 94 | AG93: FALSE | AH93: =IF(AG93,'Google Index'!E120) -> FALSE | AJ93: =IF(AF93,'Google Index'!F120) -> 0 | AN93: 94 | AO93: FALSE | AP93: =IF(AO93,'Commodity Prices'!C106) -> FALSE | AR93: =IF(AO93,'Commodity Prices'!D106) -> FALSE | AV93: 96 | AW93: FALSE | AX93: =IF(AW93,'Yahoo Stocks'!D120) -> FALSE | AZ93: =IF(AW93,'Yahoo Stocks'!E120) -> FALSE | BD93: 119 | BE93: FALSE | BF93: =IF(BE93,'Google Finance Stocks'!D117) -> FALSE | BH93: =IF(BE93,'Google Finance Stocks'!E117) -> FALSE | BL93: 119 | BM93: FALSE | BN93: ='Exchange Rates'!D103 -> 0 | BP93: =IF(BM93,'Exchange Rates'!E103) -> FALSE
L94: 92 | Q94: 92 | R94: FALSE | S94: =IF(R94,'Yahoo Index'!E146,"") ->  | T94: =IF(R94,'Yahoo Index'!F146,"") ->  | X94: 94 | Y94: FALSE | Z94: =IF($F$6,'FRED Indicies'!E107) -> 0 | AB94: =IF($F$6,'FRED Indicies'!D107) -> 0 | AF94: 95 | AG94: FALSE | AH94: =IF(AG94,'Google Index'!E121) -> FALSE | AJ94: =IF(AF94,'Google Index'!F121) -> 0 | AN94: 95 | AO94: FALSE | AP94: =IF(AO94,'Commodity Prices'!C107) -> FALSE | AR94: =IF(AO94,'Commodity Prices'!D107) -> FALSE | AV94: 97 | AW94: FALSE | AX94: =IF(AW94,'Yahoo Stocks'!D121) -> FALSE | AZ94: =IF(AW94,'Yahoo Stocks'!E121) -> FALSE | BD94: 120 | BE94: FALSE | BF94: =IF(BE94,'Google Finance Stocks'!D118) -> FALSE | BH94: =IF(BE94,'Google Finance Stocks'!E118) -> FALSE | BL94: 120 | BM94: FALSE | BN94: ='Exchange Rates'!D104 -> 0 | BP94: =IF(BM94,'Exchange Rates'!E104) -> FALSE
L95: 93 | Q95: 93 | R95: FALSE | S95: =IF(R95,'Yahoo Index'!E147,"") ->  | T95: =IF(R95,'Yahoo Index'!F147,"") ->  | X95: 95 | Y95: FALSE | Z95: =IF($F$6,'FRED Indicies'!E108) -> 0 | AB95: =IF($F$6,'FRED Indicies'!D108) -> 0 | AF95: 96 | AG95: FALSE | AH95: =IF(AG95,'Google Index'!E122) -> FALSE | AJ95: =IF(AF95,'Google Index'!F122) -> 0 | AN95: 96 | AO95: FALSE | AP95: =IF(AO95,'Commodity Prices'!C108) -> FALSE | AR95: =IF(AO95,'Commodity Prices'!D108) -> FALSE | AV95: 98 | AW95: FALSE | AX95: =IF(AW95,'Yahoo Stocks'!D122) -> FALSE | AZ95: =IF(AW95,'Yahoo Stocks'!E122) -> FALSE | BD95: 121 | BE95: FALSE | BF95: =IF(BE95,'Google Finance Stocks'!D119) -> FALSE | BH95: =IF(BE95,'Google Finance Stocks'!E119) -> FALSE | BL95: 121 | BM95: FALSE | BN95: ='Exchange Rates'!D105 -> 0 | BP95: =IF(BM95,'Exchange Rates'!E105) -> FALSE
L96: 94 | Q96: 94 | R96: FALSE | S96: =IF(R96,'Yahoo Index'!E148,"") ->  | T96: =IF(R96,'Yahoo Index'!F148,"") ->  | X96: 96 | Y96: FALSE | Z96: =IF($F$6,'FRED Indicies'!E109) -> 0 | AB96: =IF($F$6,'FRED Indicies'!D109) -> 0 | AF96: 97 | AG96: FALSE | AH96: =IF(AG96,'Google Index'!E123) -> FALSE | AJ96: =IF(AF96,'Google Index'!F123) -> 0 | AN96: 97 | AO96: FALSE | AP96: =IF(AO96,'Commodity Prices'!C109) -> FALSE | AR96: =IF(AO96,'Commodity Prices'!D109) -> FALSE | AV96: 99 | AW96: FALSE | AX96: =IF(AW96,'Yahoo Stocks'!D123) -> FALSE | AZ96: =IF(AW96,'Yahoo Stocks'!E123) -> FALSE | BD96: 122 | BE96: FALSE | BF96: =IF(BE96,'Google Finance Stocks'!D120) -> FALSE | BH96: =IF(BE96,'Google Finance Stocks'!E120) -> FALSE | BL96: 122 | BM96: FALSE | BN96: ='Exchange Rates'!D106 -> 0 | BP96: =IF(BM96,'Exchange Rates'!E106) -> FALSE
L97: 95 | Q97: 95 | R97: FALSE | S97: =IF(R97,'Yahoo Index'!E149,"") ->  | T97: =IF(R97,'Yahoo Index'!F149,"") ->  | X97: 97 | Y97: FALSE | Z97: =IF($F$6,'FRED Indicies'!E110) -> 0 | AB97: =IF($F$6,'FRED Indicies'!D110) -> 0 | AF97: 98 | AG97: FALSE | AH97: =IF(AG97,'Google Index'!E124) -> FALSE | AJ97: =IF(AF97,'Google Index'!F124) -> 0 | AN97: 98 | AO97: FALSE | AP97: =IF(AO97,'Commodity Prices'!C110) -> FALSE | AR97: =IF(AO97,'Commodity Prices'!D110) -> FALSE | AV97: 100 | AW97: FALSE | AX97: =IF(AW97,'Yahoo Stocks'!D124) -> FALSE | AZ97: =IF(AW97,'Yahoo Stocks'!E124) -> FALSE | BD97: 123 | BE97: FALSE | BF97: =IF(BE97,'Google Finance Stocks'!D121) -> FALSE | BH97: =IF(BE97,'Google Finance Stocks'!E121) -> FALSE | BL97: 123 | BM97: FALSE | BN97: ='Exchange Rates'!D107 -> 0 | BP97: =IF(BM97,'Exchange Rates'!E107) -> FALSE
L98: 96 | Q98: 96 | R98: FALSE | S98: =IF(R98,'Yahoo Index'!E150,"") ->  | T98: =IF(R98,'Yahoo Index'!F150,"") ->  | X98: 98 | Y98: FALSE | Z98: =IF($F$6,'FRED Indicies'!E111) -> 0 | AB98: =IF($F$6,'FRED Indicies'!D111) -> 0 | AF98: 99 | AG98: FALSE | AH98: =IF(AG98,'Google Index'!E125) -> FALSE | AJ98: =IF(AF98,'Google Index'!F125) -> 0 | AN98: 99 | AO98: FALSE | AP98: =IF(AO98,'Commodity Prices'!C111) -> FALSE | AR98: =IF(AO98,'Commodity Prices'!D111) -> FALSE | AV98: 101 | AW98: FALSE | AX98: =IF(AW98,'Yahoo Stocks'!D125) -> FALSE | AZ98: =IF(AW98,'Yahoo Stocks'!E125) -> FALSE | BD98: 124 | BE98: FALSE | BF98: =IF(BE98,'Google Finance Stocks'!D122) -> FALSE | BH98: =IF(BE98,'Google Finance Stocks'!E122) -> FALSE | BL98: 124 | BM98: FALSE | BN98: ='Exchange Rates'!D108 -> 0 | BP98: =IF(BM98,'Exchange Rates'!E108) -> FALSE
L99: 97 | Q99: 97 | R99: FALSE | S99: =IF(R99,'Yahoo Index'!E151,"") ->  | T99: =IF(R99,'Yahoo Index'!F151,"") ->  | X99: 99 | Y99: FALSE | Z99: =IF($F$6,'FRED Indicies'!E112) -> 0 | AB99: =IF($F$6,'FRED Indicies'!D112) -> 0 | AF99: 100 | AG99: FALSE | AH99: =IF(AG99,'Google Index'!E126) -> FALSE | AJ99: =IF(AF99,'Google Index'!F126) -> 0 | AN99: 100 | AO99: FALSE | AP99: =IF(AO99,'Commodity Prices'!C112) -> FALSE | AR99: =IF(AO99,'Commodity Prices'!D112) -> FALSE | AV99: 102 | AW99: FALSE | AX99: =IF(AW99,'Yahoo Stocks'!D126) -> FALSE | AZ99: =IF(AW99,'Yahoo Stocks'!E126) -> FALSE | BD99: 125 | BE99: FALSE | BF99: =IF(BE99,'Google Finance Stocks'!D123) -> FALSE | BH99: =IF(BE99,'Google Finance Stocks'!E123) -> FALSE | BL99: 125 | BM99: FALSE | BN99: ='Exchange Rates'!D109 -> 0 | BP99: =IF(BM99,'Exchange Rates'!E109) -> FALSE
L100: 98 | Q100: 98 | R100: FALSE | S100: =IF(R100,'Yahoo Index'!E152,"") ->  | T100: =IF(R100,'Yahoo Index'!F152,"") ->  | X100: 100 | Y100: FALSE | Z100: =IF($F$6,'FRED Indicies'!E113) -> 0 | AB100: =IF($F$6,'FRED Indicies'!D113) -> 0 | AF100: 101 | AG100: FALSE | AH100: =IF(AG100,'Google Index'!E127) -> FALSE | AJ100: =IF(AF100,'Google Index'!F127) -> 0 | AN100: 101 | AO100: FALSE | AP100: =IF(AO100,'Commodity Prices'!C113) -> FALSE | AR100: =IF(AO100,'Commodity Prices'!D113) -> FALSE | AV100: 103 | AW100: FALSE | AX100: =IF(AW100,'Yahoo Stocks'!D127) -> FALSE | AZ100: =IF(AW100,'Yahoo Stocks'!E127) -> FALSE | BD100: 126 | BE100: FALSE | BF100: =IF(BE100,'Google Finance Stocks'!D124) -> FALSE | BH100: =IF(BE100,'Google Finance Stocks'!E124) -> FALSE | BL100: 126 | BM100: FALSE | BN100: ='Exchange Rates'!D110 -> 0 | BP100: =IF(BM100,'Exchange Rates'!E110) -> FALSE
L101: 99 | Q101: 99 | R101: FALSE | S101: =IF(R101,'Yahoo Index'!E153,"") ->  | T101: =IF(R101,'Yahoo Index'!F153,"") ->  | X101: 101 | Y101: FALSE | Z101: =IF($F$6,'FRED Indicies'!E114) -> 0 | AB101: =IF($F$6,'FRED Indicies'!D114) -> 0 | AF101: 102 | AG101: FALSE | AH101: =IF(AG101,'Google Index'!E128) -> FALSE | AJ101: =IF(AF101,'Google Index'!F128) -> 0 | AN101: 102 | AO101: FALSE | AP101: =IF(AO101,'Commodity Prices'!C114) -> FALSE | AR101: =IF(AO101,'Commodity Prices'!D114) -> FALSE | AV101: 104 | AW101: FALSE | AX101: =IF(AW101,'Yahoo Stocks'!D128) -> FALSE | AZ101: =IF(AW101,'Yahoo Stocks'!E128) -> FALSE | BD101: 127 | BE101: FALSE | BF101: =IF(BE101,'Google Finance Stocks'!D125) -> FALSE | BH101: =IF(BE101,'Google Finance Stocks'!E125) -> FALSE | BL101: 127 | BM101: FALSE | BN101: ='Exchange Rates'!D111 -> 0 | BP101: =IF(BM101,'Exchange Rates'!E111) -> FALSE
L102: 100 | Q102: 100 | R102: FALSE | S102: =IF(R102,'Yahoo Index'!E154,"") ->  | T102: =IF(R102,'Yahoo Index'!F154,"") ->  | X102: 102 | Y102: FALSE | Z102: =IF($F$6,'FRED Indicies'!E115) -> 0 | AB102: =IF($F$6,'FRED Indicies'!D115) -> 0 | AF102: 103 | AG102: FALSE | AH102: =IF(AG102,'Google Index'!E129) -> FALSE | AJ102: =IF(AF102,'Google Index'!F129) -> 0 | AN102: 103 | AO102: FALSE | AP102: =IF(AO102,'Commodity Prices'!C115) -> FALSE | AR102: =IF(AO102,'Commodity Prices'!D115) -> FALSE | AV102: 105 | AW102: FALSE | AX102: =IF(AW102,'Yahoo Stocks'!D129) -> FALSE | AZ102: =IF(AW102,'Yahoo Stocks'!E129) -> FALSE | BD102: 128 | BE102: FALSE | BF102: =IF(BE102,'Google Finance Stocks'!D126) -> FALSE | BH102: =IF(BE102,'Google Finance Stocks'!E126) -> FALSE | BL102: 128 | BM102: FALSE | BN102: ='Exchange Rates'!D112 -> 0 | BP102: =IF(BM102,'Exchange Rates'!E112) -> FALSE
L103: 101 | Q103: 101 | R103: FALSE | S103: =IF(R103,'Yahoo Index'!E155,"") ->  | T103: =IF(R103,'Yahoo Index'!F155,"") ->  | X103: 103 | Y103: FALSE | Z103: =IF($F$6,'FRED Indicies'!E116) -> 0 | AB103: =IF($F$6,'FRED Indicies'!D116) -> 0 | AF103: 104 | AG103: FALSE | AH103: =IF(AG103,'Google Index'!E130) -> FALSE | AJ103: =IF(AF103,'Google Index'!F130) -> 0 | AN103: 104 | AO103: FALSE | AP103: =IF(AO103,'Commodity Prices'!C116) -> FALSE | AR103: =IF(AO103,'Commodity Prices'!D116) -> FALSE | AV103: 106 | AW103: FALSE | AX103: =IF(AW103,'Yahoo Stocks'!D130) -> FALSE | AZ103: =IF(AW103,'Yahoo Stocks'!E130) -> FALSE | BD103: 129 | BE103: FALSE | BF103: =IF(BE103,'Google Finance Stocks'!D127) -> FALSE | BH103: =IF(BE103,'Google Finance Stocks'!E127) -> FALSE | BL103: 129 | BM103: FALSE | BN103: ='Exchange Rates'!D113 -> 0 | BP103: =IF(BM103,'Exchange Rates'!E113) -> FALSE
L104: 102 | Q104: 102 | R104: FALSE | S104: =IF(R104,'Yahoo Index'!E156,"") ->  | T104: =IF(R104,'Yahoo Index'!F156,"") ->  | X104: 104 | Y104: FALSE | Z104: =IF($F$6,'FRED Indicies'!E117) -> 0 | AB104: =IF($F$6,'FRED Indicies'!D117) -> 0 | AF104: 105 | AG104: FALSE | AH104: =IF(AG104,'Google Index'!E131) -> FALSE | AJ104: =IF(AF104,'Google Index'!F131) -> 0 | AN104: 105 | AO104: FALSE | AP104: =IF(AO104,'Commodity Prices'!C117) -> FALSE | AR104: =IF(AO104,'Commodity Prices'!D117) -> FALSE | AV104: 107 | AW104: FALSE | AX104: =IF(AW104,'Yahoo Stocks'!D131) -> FALSE | AZ104: =IF(AW104,'Yahoo Stocks'!E131) -> FALSE | BD104: 130 | BE104: FALSE | BF104: =IF(BE104,'Google Finance Stocks'!D128) -> FALSE | BH104: =IF(BE104,'Google Finance Stocks'!E128) -> FALSE | BL104: 130 | BM104: FALSE | BN104: ='Exchange Rates'!D114 -> 0 | BP104: =IF(BM104,'Exchange Rates'!E114) -> FALSE
L105: 103 | Q105: 103 | R105: FALSE | S105: =IF(R105,'Yahoo Index'!E157,"") ->  | T105: =IF(R105,'Yahoo Index'!F157,"") ->  | X105: 105 | Y105: FALSE | Z105: =IF($F$6,'FRED Indicies'!E118) -> 0 | AB105: =IF($F$6,'FRED Indicies'!D118) -> 0 | AF105: 106 | AG105: FALSE | AH105: =IF(AG105,'Google Index'!E132) -> FALSE | AJ105: =IF(AF105,'Google Index'!F132) -> 0 | AN105: 106 | AO105: FALSE | AP105: =IF(AO105,'Commodity Prices'!C118) -> FALSE | AR105: =IF(AO105,'Commodity Prices'!D118) -> FALSE | AV105: 108 | AW105: FALSE | AX105: =IF(AW105,'Yahoo Stocks'!D132) -> FALSE | AZ105: =IF(AW105,'Yahoo Stocks'!E132) -> FALSE | BD105: 131 | BE105: FALSE | BF105: =IF(BE105,'Google Finance Stocks'!D129) -> FALSE | BH105: =IF(BE105,'Google Finance Stocks'!E129) -> FALSE | BL105: 131 | BM105: FALSE | BN105: ='Exchange Rates'!D115 -> 0 | BP105: =IF(BM105,'Exchange Rates'!E115) -> FALSE
L106: 104 | Q106: 104 | R106: FALSE | S106: =IF(R106,'Yahoo Index'!E158,"") ->  | T106: =IF(R106,'Yahoo Index'!F158,"") ->  | X106: 106 | Y106: FALSE | Z106: =IF($F$6,'FRED Indicies'!E119) -> 0 | AB106: =IF($F$6,'FRED Indicies'!D119) -> 0 | AF106: 107 | AG106: FALSE | AH106: =IF(AG106,'Google Index'!E133) -> FALSE | AJ106: =IF(AF106,'Google Index'!F133) -> 0 | AN106: 107 | AO106: FALSE | AP106: =IF(AO106,'Commodity Prices'!C119) -> FALSE | AR106: =IF(AO106,'Commodity Prices'!D119) -> FALSE | AV106: 109 | AW106: FALSE | AX106: =IF(AW106,'Yahoo Stocks'!D133) -> FALSE | AZ106: =IF(AW106,'Yahoo Stocks'!E133) -> FALSE | BD106: 132 | BE106: FALSE | BF106: =IF(BE106,'Google Finance Stocks'!D130) -> FALSE | BH106: =IF(BE106,'Google Finance Stocks'!E130) -> FALSE | BL106: 132 | BM106: FALSE | BN106: ='Exchange Rates'!D116 -> 0 | BP106: =IF(BM106,'Exchange Rates'!E116) -> FALSE
L107: 105 | Q107: 105 | R107: FALSE | S107: =IF(R107,'Yahoo Index'!E159,"") ->  | T107: =IF(R107,'Yahoo Index'!F159,"") ->  | X107: 107 | Y107: FALSE | Z107: =IF($F$6,'FRED Indicies'!E120) -> 0 | AB107: =IF($F$6,'FRED Indicies'!D120) -> 0 | AF107: 108 | AG107: FALSE | AH107: =IF(AG107,'Google Index'!E134) -> FALSE | AJ107: =IF(AF107,'Google Index'!F134) -> 0 | AN107: 108 | AO107: FALSE | AP107: =IF(AO107,'Commodity Prices'!C120) -> FALSE | AR107: =IF(AO107,'Commodity Prices'!D120) -> FALSE | AV107: 110 | AW107: FALSE | AX107: =IF(AW107,'Yahoo Stocks'!D134) -> FALSE | AZ107: =IF(AW107,'Yahoo Stocks'!E134) -> FALSE | BD107: 133 | BE107: FALSE | BF107: =IF(BE107,'Google Finance Stocks'!D131) -> FALSE | BH107: =IF(BE107,'Google Finance Stocks'!E131) -> FALSE | BL107: 133 | BM107: FALSE | BN107: ='Exchange Rates'!D117 -> 0 | BP107: =IF(BM107,'Exchange Rates'!E117) -> FALSE
L108: 106 | Q108: 106 | R108: FALSE | S108: =IF(R108,'Yahoo Index'!E160,"") ->  | T108: =IF(R108,'Yahoo Index'!F160,"") ->  | X108: 108 | Y108: FALSE | Z108: =IF($F$6,'FRED Indicies'!E121) -> 0 | AB108: =IF($F$6,'FRED Indicies'!D121) -> 0 | AF108: 109 | AG108: FALSE | AH108: =IF(AG108,'Google Index'!E135) -> FALSE | AJ108: =IF(AF108,'Google Index'!F135) -> 0 | AN108: 109 | AO108: FALSE | AP108: =IF(AO108,'Commodity Prices'!C121) -> FALSE | AR108: =IF(AO108,'Commodity Prices'!D121) -> FALSE | AV108: 111 | AW108: FALSE | AX108: =IF(AW108,'Yahoo Stocks'!D135) -> FALSE | AZ108: =IF(AW108,'Yahoo Stocks'!E135) -> FALSE | BD108: 134 | BE108: FALSE | BF108: =IF(BE108,'Google Finance Stocks'!D132) -> FALSE | BH108: =IF(BE108,'Google Finance Stocks'!E132) -> FALSE | BL108: 134 | BM108: FALSE | BN108: ='Exchange Rates'!D118 -> 0 | BP108: =IF(BM108,'Exchange Rates'!E118) -> FALSE
L109: 107 | Q109: 107 | R109: FALSE | S109: =IF(R109,'Yahoo Index'!E161,"") ->  | T109: =IF(R109,'Yahoo Index'!F161,"") ->  | X109: 109 | Y109: FALSE | Z109: =IF($F$6,'FRED Indicies'!E122) -> 0 | AB109: =IF($F$6,'FRED Indicies'!D122) -> 0 | AF109: 110 | AG109: FALSE | AH109: =IF(AG109,'Google Index'!E136) -> FALSE | AJ109: =IF(AF109,'Google Index'!F136) -> 0 | AN109: 110 | AO109: FALSE | AP109: =IF(AO109,'Commodity Prices'!C122) -> FALSE | AR109: =IF(AO109,'Commodity Prices'!D122) -> FALSE | AV109: 112 | AW109: FALSE | AX109: =IF(AW109,'Yahoo Stocks'!D136) -> FALSE | AZ109: =IF(AW109,'Yahoo Stocks'!E136) -> FALSE | BD109: 135 | BE109: FALSE | BF109: =IF(BE109,'Google Finance Stocks'!D133) -> FALSE | BH109: =IF(BE109,'Google Finance Stocks'!E133) -> FALSE | BL109: 135 | BM109: FALSE | BN109: ='Exchange Rates'!D119 -> 0 | BP109: =IF(BM109,'Exchange Rates'!E119) -> FALSE
L110: 108 | Q110: 108 | R110: FALSE | S110: =IF(R110,'Yahoo Index'!E162,"") ->  | T110: =IF(R110,'Yahoo Index'!F162,"") ->  | X110: 110 | Y110: FALSE | Z110: =IF($F$6,'FRED Indicies'!E123) -> 0 | AB110: =IF($F$6,'FRED Indicies'!D123) -> 0 | AF110: 111 | AG110: FALSE | AH110: =IF(AG110,'Google Index'!E137) -> FALSE | AJ110: =IF(AF110,'Google Index'!F137) -> 0 | AN110: 111 | AO110: FALSE | AP110: =IF(AO110,'Commodity Prices'!C123) -> FALSE | AR110: =IF(AO110,'Commodity Prices'!D123) -> FALSE | AV110: 113 | AW110: FALSE | AX110: =IF(AW110,'Yahoo Stocks'!D137) -> FALSE | AZ110: =IF(AW110,'Yahoo Stocks'!E137) -> FALSE | BD110: 136 | BE110: FALSE | BF110: =IF(BE110,'Google Finance Stocks'!D134) -> FALSE | BH110: =IF(BE110,'Google Finance Stocks'!E134) -> FALSE | BL110: 136 | BM110: FALSE | BN110: ='Exchange Rates'!D120 -> 0 | BP110: =IF(BM110,'Exchange Rates'!E120) -> FALSE
L111: 109 | Q111: 109 | R111: FALSE | S111: =IF(R111,'Yahoo Index'!E163,"") ->  | T111: =IF(R111,'Yahoo Index'!F163,"") ->  | X111: 111 | Y111: FALSE | Z111: =IF($F$6,'FRED Indicies'!E124) -> 0 | AB111: =IF($F$6,'FRED Indicies'!D124) -> 0 | AF111: 112 | AG111: FALSE | AH111: =IF(AG111,'Google Index'!E138) -> FALSE | AJ111: =IF(AF111,'Google Index'!F138) -> 0 | AN111: 112 | AO111: FALSE | AP111: =IF(AO111,'Commodity Prices'!C124) -> FALSE | AR111: =IF(AO111,'Commodity Prices'!D124) -> FALSE | AV111: 114 | AW111: FALSE | AX111: =IF(AW111,'Yahoo Stocks'!D138) -> FALSE | AZ111: =IF(AW111,'Yahoo Stocks'!E138) -> FALSE | BD111: 137 | BE111: FALSE | BF111: =IF(BE111,'Google Finance Stocks'!D135) -> FALSE | BH111: =IF(BE111,'Google Finance Stocks'!E135) -> FALSE | BL111: 137 | BM111: FALSE | BN111: ='Exchange Rates'!D121 -> 0 | BP111: =IF(BM111,'Exchange Rates'!E121) -> FALSE
L112: 110 | Q112: 110 | R112: FALSE | S112: =IF(R112,'Yahoo Index'!E164,"") ->  | T112: =IF(R112,'Yahoo Index'!F164,"") ->  | X112: 112 | Y112: FALSE | Z112: =IF($F$6,'FRED Indicies'!E125) -> 0 | AB112: =IF($F$6,'FRED Indicies'!D125) -> 0 | AF112: 113 | AG112: FALSE | AH112: =IF(AG112,'Google Index'!E139) -> FALSE | AJ112: =IF(AF112,'Google Index'!F139) -> 0 | AN112: 113 | AO112: FALSE | AP112: =IF(AO112,'Commodity Prices'!C125) -> FALSE | AR112: =IF(AO112,'Commodity Prices'!D125) -> FALSE | AV112: 115 | AW112: FALSE | AX112: =IF(AW112,'Yahoo Stocks'!D139) -> FALSE | AZ112: =IF(AW112,'Yahoo Stocks'!E139) -> FALSE | BD112: 138 | BE112: FALSE | BF112: =IF(BE112,'Google Finance Stocks'!D136) -> FALSE | BH112: =IF(BE112,'Google Finance Stocks'!E136) -> FALSE | BL112: 138 | BM112: FALSE | BN112: ='Exchange Rates'!D122 -> 0 | BP112: =IF(BM112,'Exchange Rates'!E122) -> FALSE
L113: 111 | Q113: 111 | R113: FALSE | S113: =IF(R113,'Yahoo Index'!E165,"") ->  | T113: =IF(R113,'Yahoo Index'!F165,"") ->  | X113: 113 | Y113: FALSE | Z113: =IF($F$6,'FRED Indicies'!E126) -> 0 | AB113: =IF($F$6,'FRED Indicies'!D126) -> 0 | AF113: 114 | AG113: FALSE | AH113: =IF(AG113,'Google Index'!E140) -> FALSE | AJ113: =IF(AF113,'Google Index'!F140) -> 0 | AN113: 114 | AO113: FALSE | AP113: =IF(AO113,'Commodity Prices'!C126) -> FALSE | AR113: =IF(AO113,'Commodity Prices'!D126) -> FALSE | AV113: 116 | AW113: FALSE | AX113: =IF(AW113,'Yahoo Stocks'!D140) -> FALSE | AZ113: =IF(AW113,'Yahoo Stocks'!E140) -> FALSE | BD113: 139 | BE113: FALSE | BF113: =IF(BE113,'Google Finance Stocks'!D137) -> FALSE | BH113: =IF(BE113,'Google Finance Stocks'!E137) -> FALSE | BL113: 139 | BM113: FALSE | BN113: ='Exchange Rates'!D123 -> 0 | BP113: =IF(BM113,'Exchange Rates'!E123) -> FALSE
L114: 112 | Q114: 112 | R114: FALSE | S114: =IF(R114,'Yahoo Index'!E166,"") ->  | T114: =IF(R114,'Yahoo Index'!F166,"") ->  | X114: 114 | Y114: FALSE | Z114: =IF($F$6,'FRED Indicies'!E127) -> 0 | AB114: =IF($F$6,'FRED Indicies'!D127) -> 0 | AF114: 115 | AG114: FALSE | AH114: =IF(AG114,'Google Index'!E141) -> FALSE | AJ114: =IF(AF114,'Google Index'!F141) -> 0 | AN114: 115 | AO114: FALSE | AP114: =IF(AO114,'Commodity Prices'!C127) -> FALSE | AR114: =IF(AO114,'Commodity Prices'!D127) -> FALSE | AV114: 117 | AW114: FALSE | AX114: =IF(AW114,'Yahoo Stocks'!D141) -> FALSE | AZ114: =IF(AW114,'Yahoo Stocks'!E141) -> FALSE | BD114: 140 | BE114: FALSE | BF114: =IF(BE114,'Google Finance Stocks'!D138) -> FALSE | BH114: =IF(BE114,'Google Finance Stocks'!E138) -> FALSE | BL114: 140 | BM114: FALSE | BN114: ='Exchange Rates'!D124 -> 0 | BP114: =IF(BM114,'Exchange Rates'!E124) -> FALSE
L115: 113 | Q115: 113 | R115: FALSE | S115: =IF(R115,'Yahoo Index'!E167,"") ->  | T115: =IF(R115,'Yahoo Index'!F167,"") ->  | X115: 115 | Y115: FALSE | Z115: =IF($F$6,'FRED Indicies'!E128) -> 0 | AB115: =IF($F$6,'FRED Indicies'!D128) -> 0 | AF115: 116 | AG115: FALSE | AH115: =IF(AG115,'Google Index'!E142) -> FALSE | AJ115: =IF(AF115,'Google Index'!F142) -> 0 | AN115: 116 | AO115: FALSE | AP115: =IF(AO115,'Commodity Prices'!C128) -> FALSE | AR115: =IF(AO115,'Commodity Prices'!D128) -> FALSE | AV115: 118 | AW115: FALSE | AX115: =IF(AW115,'Yahoo Stocks'!D142) -> FALSE | AZ115: =IF(AW115,'Yahoo Stocks'!E142) -> FALSE | BD115: 141 | BE115: FALSE | BF115: =IF(BE115,'Google Finance Stocks'!D139) -> FALSE | BH115: =IF(BE115,'Google Finance Stocks'!E139) -> FALSE | BL115: 141 | BM115: FALSE | BN115: ='Exchange Rates'!D125 -> 0 | BP115: =IF(BM115,'Exchange Rates'!E125) -> FALSE
L116: 114 | Q116: 114 | R116: FALSE | S116: =IF(R116,'Yahoo Index'!E168,"") ->  | T116: =IF(R116,'Yahoo Index'!F168,"") ->  | X116: 116 | Y116: FALSE | Z116: =IF($F$6,'FRED Indicies'!E129) -> 0 | AB116: =IF($F$6,'FRED Indicies'!D129) -> 0 | AF116: 117 | AG116: FALSE | AH116: =IF(AG116,'Google Index'!E143) -> FALSE | AJ116: =IF(AF116,'Google Index'!F143) -> 0 | AN116: 117 | AO116: FALSE | AP116: =IF(AO116,'Commodity Prices'!C129) -> FALSE | AR116: =IF(AO116,'Commodity Prices'!D129) -> FALSE | AV116: 119 | AW116: FALSE | AX116: =IF(AW116,'Yahoo Stocks'!D143) -> FALSE | AZ116: =IF(AW116,'Yahoo Stocks'!E143) -> FALSE | BD116: 142 | BE116: FALSE | BF116: =IF(BE116,'Google Finance Stocks'!D140) -> FALSE | BH116: =IF(BE116,'Google Finance Stocks'!E140) -> FALSE | BL116: 142 | BM116: FALSE | BN116: ='Exchange Rates'!D126 -> 0 | BP116: =IF(BM116,'Exchange Rates'!E126) -> FALSE
L117: 115 | M117: =S117&AA117&AI117&AQ117&AY117&BG117&BO117 ->  | N117: =T117&AC117&AK117&AS117&BA117&BI117&BQ117 ->  | O117: =U117&AD117&AL117&AT117&BB117&BJ117&BR117 ->  | P117: =V117&AE117&AM117&AU117&BC117&BK117&BS117 ->  | Q117: 115 | R117: =IF(AND($F$3,Q117<=$H$3),Q117) -> FALSE | S117: =IF(R117,'Yahoo Index'!E169,"") ->  | T117: =IF(R117,'Yahoo Index'!F169,"") ->  | U117: =IF(R117,$I$3,"") ->  | V117: =IF(R117,$J$3,"") ->  | X117: 117 | Y117: =IF(AND($F$6,X117<=$H$6),X117) -> FALSE | Z117: =IF($F$6,'FRED Indicies'!E130) -> 0 | AA117: =IFERROR(INDEX(Z:Z,MATCH(L117,Y:Y,0)),"") ->  | AB117: =IF($F$6,'FRED Indicies'!D130) -> 0 | AC117: =IFERROR(INDEX(AB:AB,MATCH(L117,Y:Y,0)),"") ->  | AD117: =IF(AA117<>"",$I$6,"") ->  | AE117: =IF(AA117<>"",$J$6,"") ->  | AF117: 118 | AG117: =IF(AND($F$9,AF117<=$H$9),AF117) -> FALSE | AH117: =IF(AG117,'Google Index'!E144) -> FALSE | AI117: =IFERROR(INDEX(AH:AH,MATCH(Q117,AG:AG,0)),"") ->  | AJ117: =IF(AF117,'Google Index'!F144) -> 0 | AK117: =IFERROR(INDEX(AJ:AJ,MATCH(Q117,AG:AG,0)),"") ->  | AL117: =IF(AI117<>"",$I$6,"") ->  | AM117: =IF(AK117<>"",$J$6,"") ->  | AN117: 118 | AO117: =IF(AND($F$12,AN117<=$H$12),AN117) -> FALSE | AP117: =IF(AO117,'Commodity Prices'!C130) -> FALSE | AQ117: =IFERROR(INDEX(AP:AP,MATCH(L117,AO:AO,0)),"") ->  | AR117: =IF(AO117,'Commodity Prices'!D130) -> FALSE | AS117: =IFERROR(INDEX(AR:AR,MATCH(L117,AO:AO,0)),"") ->  | AT117: =IF(AQ117<>"",$I$12,"") ->  | AU117: =IF(AS117<>"",$J$12,"") ->  | AV117: 120 | AW117: =IF(AND($F$15,AV117<=$H$15),AV117) -> FALSE | AX117: =IF(AW117,'Yahoo Stocks'!D144) -> FALSE | AZ117: =IF(AW117,'Yahoo Stocks'!E144) -> FALSE | BD117: 143 | BE117: =IF(AND($F$18,BD117<=$H$18),BD117) -> FALSE | BF117: =IF(BE117,'Google Finance Stocks'!D141) -> FALSE | BG117: =IFERROR(INDEX(BF:BF,MATCH(Q117,BE:BE,0)),"") ->  | BH117: =IF(BE117,'Google Finance Stocks'!E141) -> FALSE | BI117: =IFERROR(INDEX(BH:BH,MATCH(Q117,BE:BE,0)),"") ->  | BJ117: =IF(BI117<>"",$I$18,"") ->  | BK117: =IF(BI117<>"",$J$18,"") ->  | BL117: 143 | BM117: =IF(AND($F$21,BL117<=$H$21),BL117) -> FALSE | BN117: ='Exchange Rates'!D127 -> 0 | BO117: =IFERROR(INDEX(BN:BN,MATCH(L117,BM:BM,0)),"") ->  | BP117: =IF(BM117,'Exchange Rates'!E127) -> FALSE | BQ117: =IFERROR(INDEX(BP:BP,MATCH(L117,BM:BM,0)),"") ->  | BR117: =IF(BQ117<>"",$I$21,"") ->  | BS117: =IF(BQ117<>"",$J$21,"") -> 
L118: 116 | Q118: 116 | R118: FALSE | S118: =IF(R118,'Yahoo Index'!E170,"") ->  | T118: =IF(R118,'Yahoo Index'!F170,"") ->  | X118: 118 | Y118: FALSE | Z118: =IF($F$6,'FRED Indicies'!E131) -> 0 | AB118: =IF($F$6,'FRED Indicies'!D131) -> 0 | AF118: 119 | AG118: FALSE | AH118: =IF(AG118,'Google Index'!E145) -> FALSE | AJ118: =IF(AF118,'Google Index'!F145) -> 0 | AN118: 119 | AO118: FALSE | AP118: =IF(AO118,'Commodity Prices'!C131) -> FALSE | AR118: =IF(AO118,'Commodity Prices'!D131) -> FALSE | AV118: 121 | AW118: FALSE | AX118: =IF(AW118,'Yahoo Stocks'!D145) -> FALSE | AZ118: =IF(AW118,'Yahoo Stocks'!E145) -> FALSE | BD118: 144 | BE118: FALSE | BF118: =IF(BE118,'Google Finance Stocks'!D142) -> FALSE | BH118: =IF(BE118,'Google Finance Stocks'!E142) -> FALSE | BL118: 144 | BM118: FALSE | BN118: ='Exchange Rates'!D128 -> 0 | BP118: =IF(BM118,'Exchange Rates'!E128) -> FALSE
L119: 117 | Q119: 117 | R119: FALSE | S119: =IF(R119,'Yahoo Index'!E171,"") ->  | T119: =IF(R119,'Yahoo Index'!F171,"") ->  | X119: 119 | Y119: FALSE | Z119: =IF($F$6,'FRED Indicies'!E132) -> 0 | AB119: =IF($F$6,'FRED Indicies'!D132) -> 0 | AF119: 120 | AG119: FALSE | AH119: =IF(AG119,'Google Index'!E146) -> FALSE | AJ119: =IF(AF119,'Google Index'!F146) -> 0 | AN119: 120 | AO119: FALSE | AP119: =IF(AO119,'Commodity Prices'!C132) -> FALSE | AR119: =IF(AO119,'Commodity Prices'!D132) -> FALSE | AV119: 122 | AW119: FALSE | AX119: =IF(AW119,'Yahoo Stocks'!D146) -> FALSE | AZ119: =IF(AW119,'Yahoo Stocks'!E146) -> FALSE | BD119: 145 | BE119: FALSE | BF119: =IF(BE119,'Google Finance Stocks'!D143) -> FALSE | BH119: =IF(BE119,'Google Finance Stocks'!E143) -> FALSE | BL119: 145 | BM119: FALSE | BN119: ='Exchange Rates'!D129 -> 0 | BP119: =IF(BM119,'Exchange Rates'!E129) -> FALSE
L120: 118 | Q120: 118 | R120: FALSE | S120: =IF(R120,'Yahoo Index'!E172,"") ->  | T120: =IF(R120,'Yahoo Index'!F172,"") ->  | X120: 120 | Y120: FALSE | Z120: =IF($F$6,'FRED Indicies'!E133) -> 0 | AB120: =IF($F$6,'FRED Indicies'!D133) -> 0 | AF120: 121 | AG120: FALSE | AH120: =IF(AG120,'Google Index'!E147) -> FALSE | AJ120: =IF(AF120,'Google Index'!F147) -> 0 | AN120: 121 | AO120: FALSE | AP120: =IF(AO120,'Commodity Prices'!C133) -> FALSE | AR120: =IF(AO120,'Commodity Prices'!D133) -> FALSE | AV120: 123 | AW120: FALSE | AX120: =IF(AW120,'Yahoo Stocks'!D147) -> FALSE | AZ120: =IF(AW120,'Yahoo Stocks'!E147) -> FALSE | BD120: 146 | BE120: FALSE | BF120: =IF(BE120,'Google Finance Stocks'!D144) -> FALSE | BH120: =IF(BE120,'Google Finance Stocks'!E144) -> FALSE | BL120: 146 | BM120: FALSE | BN120: ='Exchange Rates'!D130 -> 0 | BP120: =IF(BM120,'Exchange Rates'!E130) -> FALSE
L121: 119 | Q121: 119 | R121: FALSE | S121: =IF(R121,'Yahoo Index'!E173,"") ->  | T121: =IF(R121,'Yahoo Index'!F173,"") ->  | X121: 121 | Y121: FALSE | Z121: =IF($F$6,'FRED Indicies'!E134) -> 0 | AB121: =IF($F$6,'FRED Indicies'!D134) -> 0 | AF121: 122 | AG121: FALSE | AH121: =IF(AG121,'Google Index'!E148) -> FALSE | AJ121: =IF(AF121,'Google Index'!F148) -> 0 | AN121: 122 | AO121: FALSE | AP121: =IF(AO121,'Commodity Prices'!C134) -> FALSE | AR121: =IF(AO121,'Commodity Prices'!D134) -> FALSE | AV121: 124 | AW121: FALSE | AX121: =IF(AW121,'Yahoo Stocks'!D148) -> FALSE | AZ121: =IF(AW121,'Yahoo Stocks'!E148) -> FALSE | BD121: 147 | BE121: FALSE | BF121: =IF(BE121,'Google Finance Stocks'!D145) -> FALSE | BH121: =IF(BE121,'Google Finance Stocks'!E145) -> FALSE | BL121: 147 | BM121: FALSE | BN121: ='Exchange Rates'!D131 -> 0 | BP121: =IF(BM121,'Exchange Rates'!E131) -> FALSE
L122: 120 | Q122: 120 | R122: FALSE | S122: =IF(R122,'Yahoo Index'!E174,"") ->  | T122: =IF(R122,'Yahoo Index'!F174,"") ->  | X122: 122 | Y122: FALSE | Z122: =IF($F$6,'FRED Indicies'!E135) -> 0 | AB122: =IF($F$6,'FRED Indicies'!D135) -> 0 | AF122: 123 | AG122: FALSE | AH122: =IF(AG122,'Google Index'!E149) -> FALSE | AJ122: =IF(AF122,'Google Index'!F149) -> 0 | AN122: 123 | AO122: FALSE | AP122: =IF(AO122,'Commodity Prices'!C135) -> FALSE | AR122: =IF(AO122,'Commodity Prices'!D135) -> FALSE | AV122: 125 | AW122: FALSE | AX122: =IF(AW122,'Yahoo Stocks'!D149) -> FALSE | AZ122: =IF(AW122,'Yahoo Stocks'!E149) -> FALSE | BD122: 148 | BE122: FALSE | BF122: =IF(BE122,'Google Finance Stocks'!D146) -> FALSE | BH122: =IF(BE122,'Google Finance Stocks'!E146) -> FALSE | BL122: 148 | BM122: FALSE | BN122: ='Exchange Rates'!D132 -> 0 | BP122: =IF(BM122,'Exchange Rates'!E132) -> FALSE
L123: 121 | Q123: 121 | R123: FALSE | S123: =IF(R123,'Yahoo Index'!E175,"") ->  | T123: =IF(R123,'Yahoo Index'!F175,"") ->  | X123: 123 | Y123: FALSE | Z123: =IF($F$6,'FRED Indicies'!E136) -> 0 | AB123: =IF($F$6,'FRED Indicies'!D136) -> 0 | AF123: 124 | AG123: FALSE | AH123: =IF(AG123,'Google Index'!E150) -> FALSE | AJ123: =IF(AF123,'Google Index'!F150) -> 0 | AN123: 124 | AO123: FALSE | AP123: =IF(AO123,'Commodity Prices'!C136) -> FALSE | AR123: =IF(AO123,'Commodity Prices'!D136) -> FALSE | AV123: 126 | AW123: FALSE | AX123: =IF(AW123,'Yahoo Stocks'!D150) -> FALSE | AZ123: =IF(AW123,'Yahoo Stocks'!E150) -> FALSE | BD123: 149 | BE123: FALSE | BF123: =IF(BE123,'Google Finance Stocks'!D147) -> FALSE | BH123: =IF(BE123,'Google Finance Stocks'!E147) -> FALSE | BL123: 149 | BM123: FALSE | BN123: ='Exchange Rates'!D133 -> 0 | BP123: =IF(BM123,'Exchange Rates'!E133) -> FALSE
L124: 122 | Q124: 122 | R124: FALSE | S124: =IF(R124,'Yahoo Index'!E176,"") ->  | T124: =IF(R124,'Yahoo Index'!F176,"") ->  | X124: 124 | Y124: FALSE | Z124: =IF($F$6,'FRED Indicies'!E137) -> 0 | AB124: =IF($F$6,'FRED Indicies'!D137) -> 0 | AF124: 125 | AG124: FALSE | AH124: =IF(AG124,'Google Index'!E151) -> FALSE | AJ124: =IF(AF124,'Google Index'!F151) -> 0 | AN124: 125 | AO124: FALSE | AP124: =IF(AO124,'Commodity Prices'!C137) -> FALSE | AR124: =IF(AO124,'Commodity Prices'!D137) -> FALSE | AV124: 127 | AW124: FALSE | AX124: =IF(AW124,'Yahoo Stocks'!D151) -> FALSE | AZ124: =IF(AW124,'Yahoo Stocks'!E151) -> FALSE | BD124: 150 | BE124: FALSE | BF124: =IF(BE124,'Google Finance Stocks'!D148) -> FALSE | BH124: =IF(BE124,'Google Finance Stocks'!E148) -> FALSE | BL124: 150 | BM124: FALSE | BN124: ='Exchange Rates'!D134 -> 0 | BP124: =IF(BM124,'Exchange Rates'!E134) -> FALSE
L125: 123 | Q125: 123 | R125: FALSE | S125: =IF(R125,'Yahoo Index'!E177,"") ->  | T125: =IF(R125,'Yahoo Index'!F177,"") ->  | X125: 125 | Y125: FALSE | Z125: =IF($F$6,'FRED Indicies'!E138) -> 0 | AB125: =IF($F$6,'FRED Indicies'!D138) -> 0 | AF125: 126 | AG125: FALSE | AH125: =IF(AG125,'Google Index'!E152) -> FALSE | AJ125: =IF(AF125,'Google Index'!F152) -> 0 | AN125: 126 | AO125: FALSE | AP125: =IF(AO125,'Commodity Prices'!C138) -> FALSE | AR125: =IF(AO125,'Commodity Prices'!D138) -> FALSE | AV125: 128 | AW125: FALSE | AX125: =IF(AW125,'Yahoo Stocks'!D152) -> FALSE | AZ125: =IF(AW125,'Yahoo Stocks'!E152) -> FALSE | BD125: 151 | BE125: FALSE | BF125: =IF(BE125,'Google Finance Stocks'!D149) -> FALSE | BH125: =IF(BE125,'Google Finance Stocks'!E149) -> FALSE | BL125: 151 | BM125: FALSE | BN125: ='Exchange Rates'!D135 -> 0 | BP125: =IF(BM125,'Exchange Rates'!E135) -> FALSE
L126: 124 | Q126: 124 | R126: FALSE | S126: =IF(R126,'Yahoo Index'!E178,"") ->  | T126: =IF(R126,'Yahoo Index'!F178,"") ->  | X126: 126 | Y126: FALSE | Z126: =IF($F$6,'FRED Indicies'!E139) -> 0 | AB126: =IF($F$6,'FRED Indicies'!D139) -> 0 | AF126: 127 | AG126: FALSE | AH126: =IF(AG126,'Google Index'!E153) -> FALSE | AJ126: =IF(AF126,'Google Index'!F153) -> 0 | AN126: 127 | AO126: FALSE | AP126: =IF(AO126,'Commodity Prices'!C139) -> FALSE | AR126: =IF(AO126,'Commodity Prices'!D139) -> FALSE | AV126: 129 | AW126: FALSE | AX126: =IF(AW126,'Yahoo Stocks'!D153) -> FALSE | AZ126: =IF(AW126,'Yahoo Stocks'!E153) -> FALSE | BD126: 152 | BE126: FALSE | BF126: =IF(BE126,'Google Finance Stocks'!D150) -> FALSE | BH126: =IF(BE126,'Google Finance Stocks'!E150) -> FALSE | BL126: 152 | BM126: FALSE | BN126: ='Exchange Rates'!D136 -> 0 | BO126: =IFERROR(INDEX(BN:BN,MATCH(L126,BM:BM,0)),"") ->  | BP126: =IF(BM126,'Exchange Rates'!E136) -> FALSE
L127: 125 | Q127: 125 | R127: FALSE | S127: =IF(R127,'Yahoo Index'!E179,"") ->  | T127: =IF(R127,'Yahoo Index'!F179,"") ->  | X127: 127 | Y127: FALSE | Z127: =IF($F$6,'FRED Indicies'!E140) -> 0 | AB127: =IF($F$6,'FRED Indicies'!D140) -> 0 | AF127: 128 | AG127: FALSE | AH127: =IF(AG127,'Google Index'!E154) -> FALSE | AJ127: =IF(AF127,'Google Index'!F154) -> 0 | AN127: 128 | AO127: FALSE | AP127: =IF(AO127,'Commodity Prices'!C140) -> FALSE | AR127: =IF(AO127,'Commodity Prices'!D140) -> FALSE | AV127: 130 | AW127: FALSE | AX127: =IF(AW127,'Yahoo Stocks'!D154) -> FALSE | AZ127: =IF(AW127,'Yahoo Stocks'!E154) -> FALSE | BD127: 153 | BE127: FALSE | BF127: =IF(BE127,'Google Finance Stocks'!D151) -> FALSE | BH127: =IF(BE127,'Google Finance Stocks'!E151) -> FALSE | BL127: 153 | BM127: FALSE | BN127: ='Exchange Rates'!D137 -> 0 | BO127: =IFERROR(INDEX(BN:BN,MATCH(L127,BM:BM,0)),"") ->  | BP127: =IF(BM127,'Exchange Rates'!E137) -> FALSE
L128: 126 | M128: =S128&AA128&AI128&AQ128&AY128&BG128&BO128 ->  | N128: =T128&AC128&AK128&AS128&BA128&BI128&BQ128 ->  | O128: =U128&AD128&AL128&AT128&BB128&BJ128&BR128 ->  | P128: =V128&AE128&AM128&AU128&BC128&BK128&BS128 ->  | Q128: 126 | R128: =IF(AND($F$3,Q128<=$H$3),Q128) -> FALSE | X128: 128 | Y128: =IF(AND($F$6,X128<=$H$6),X128) -> FALSE | Z128: =IF($F$6,'FRED Indicies'!E141) -> 0 | AA128: =IFERROR(INDEX(Z:Z,MATCH(L128,Y:Y,0)),"") ->  | AB128: =IF($F$6,'FRED Indicies'!D141) -> 0 | AC128: =IFERROR(INDEX(AB:AB,MATCH(L128,Y:Y,0)),"") ->  | AD128: =IF(AA128<>"",$I$6,"") ->  | AE128: =IF(AA128<>"",$J$6,"") ->  | AF128: 129 | AG128: =IF(AND($F$9,AF128<=$H$9),AF128) -> FALSE | AH128: =IF(AG128,'Google Index'!E155) -> FALSE | AI128: =IFERROR(INDEX(AH:AH,MATCH(Q128,AG:AG,0)),"") ->  | AJ128: =IF(AF128,'Google Index'!F155) -> 0 | AK128: =IFERROR(INDEX(AJ:AJ,MATCH(Q128,AG:AG,0)),"") ->  | AL128: =IF(AI128<>"",$I$6,"") ->  | AM128: =IF(AK128<>"",$J$6,"") ->  | AN128: 129 | AO128: =IF(AND($F$12,AN128<=$H$12),AN128) -> FALSE | AP128: =IF(AO128,'Commodity Prices'!C141) -> FALSE | AQ128: =IFERROR(INDEX(AP:AP,MATCH(L128,AO:AO,0)),"") ->  | AR128: =IF(AO128,'Commodity Prices'!D141) -> FALSE | AS128: =IFERROR(INDEX(AR:AR,MATCH(L128,AO:AO,0)),"") ->  | AT128: =IF(AQ128<>"",$I$12,"") ->  | AU128: =IF(AS128<>"",$J$12,"") ->  | AV128: 131 | AW128: =IF(AND($F$15,AV128<=$H$15),AV128) -> FALSE | AX128: =IF(AW128,'Yahoo Stocks'!D155) -> FALSE | AZ128: =IF(AW128,'Yahoo Stocks'!E155) -> FALSE | BD128: 154 | BE128: =IF(AND($F$18,BD128<=$H$18),BD128) -> FALSE | BF128: =IF(BE128,'Google Finance Stocks'!D152) -> FALSE | BG128: =IFERROR(INDEX(BF:BF,MATCH(Q128,BE:BE,0)),"") ->  | BH128: =IF(BE128,'Google Finance Stocks'!E152) -> FALSE | BI128: =IFERROR(INDEX(BH:BH,MATCH(Q128,BE:BE,0)),"") ->  | BJ128: =IF(BI128<>"",$I$18,"") ->  | BK128: =IF(BI128<>"",$J$18,"") ->  | BL128: 154 | BM128: =IF(AND($F$21,BL128<=$H$21),BL128) -> FALSE | BN128: ='Exchange Rates'!D138 -> 0 | BO128: =IFERROR(INDEX(BN:BN,MATCH(L128,BM:BM,0)),"") ->  | BP128: =IF(BM128,'Exchange Rates'!E138) -> FALSE | BQ128: =IFERROR(INDEX(BP:BP,MATCH(L128,BM:BM,0)),"") ->  | BR128: =IF(BQ128<>"",$I$21,"") ->  | BS128: =IF(BQ128<>"",$J$21,"") -> 
L129: 127 | Q129: 127 | R129: FALSE | X129: 129 | Y129: FALSE | Z129: =IF($F$6,'FRED Indicies'!E142) -> 0 | AB129: =IF($F$6,'FRED Indicies'!D142) -> 0 | AF129: 130 | AG129: FALSE | AH129: =IF(AG129,'Google Index'!E156) -> FALSE | AJ129: =IF(AF129,'Google Index'!F156) -> 0 | AN129: 130 | AO129: FALSE | AP129: =IF(AO129,'Commodity Prices'!C142) -> FALSE | AR129: =IF(AO129,'Commodity Prices'!D142) -> FALSE | AV129: 132 | AW129: FALSE | AX129: =IF(AW129,'Yahoo Stocks'!D156) -> FALSE | AZ129: =IF(AW129,'Yahoo Stocks'!E156) -> FALSE | BD129: 155 | BE129: FALSE | BF129: =IF(BE129,'Google Finance Stocks'!D153) -> FALSE | BH129: =IF(BE129,'Google Finance Stocks'!E153) -> FALSE | BL129: 155 | BM129: FALSE | BN129: ='Exchange Rates'!D139 -> 0 | BO129: =IFERROR(INDEX(BN:BN,MATCH(L129,BM:BM,0)),"") ->  | BP129: =IF(BM129,'Exchange Rates'!E139) -> FALSE
L130: 128 | Q130: 128 | R130: FALSE | X130: 130 | Y130: FALSE | Z130: =IF($F$6,'FRED Indicies'!E143) -> 0 | AB130: =IF($F$6,'FRED Indicies'!D143) -> 0 | AF130: 131 | AG130: FALSE | AH130: =IF(AG130,'Google Index'!E157) -> FALSE | AJ130: =IF(AF130,'Google Index'!F157) -> 0 | AN130: 131 | AO130: FALSE | AP130: =IF(AO130,'Commodity Prices'!C143) -> FALSE | AR130: =IF(AO130,'Commodity Prices'!D143) -> FALSE | AV130: 133 | AW130: FALSE | AX130: =IF(AW130,'Yahoo Stocks'!D157) -> FALSE | AZ130: =IF(AW130,'Yahoo Stocks'!E157) -> FALSE | BD130: 156 | BE130: FALSE | BF130: =IF(BE130,'Google Finance Stocks'!D154) -> FALSE | BH130: =IF(BE130,'Google Finance Stocks'!E154) -> FALSE | BL130: 156 | BM130: FALSE | BN130: ='Exchange Rates'!D140 -> 0 | BP130: =IF(BM130,'Exchange Rates'!E140) -> FALSE
L131: 129 | Q131: 129 | R131: FALSE | X131: 131 | Y131: FALSE | Z131: =IF($F$6,'FRED Indicies'!E144) -> 0 | AB131: =IF($F$6,'FRED Indicies'!D144) -> 0 | AF131: 132 | AG131: FALSE | AH131: =IF(AG131,'Google Index'!E158) -> FALSE | AJ131: =IF(AF131,'Google Index'!F158) -> 0 | AN131: 132 | AO131: FALSE | AP131: =IF(AO131,'Commodity Prices'!C144) -> FALSE | AR131: =IF(AO131,'Commodity Prices'!D144) -> FALSE | AV131: 134 | AW131: FALSE | AX131: =IF(AW131,'Yahoo Stocks'!D158) -> FALSE | AZ131: =IF(AW131,'Yahoo Stocks'!E158) -> FALSE | BD131: 157 | BE131: FALSE | BF131: =IF(BE131,'Google Finance Stocks'!D155) -> FALSE | BH131: =IF(BE131,'Google Finance Stocks'!E155) -> FALSE | BL131: 157 | BM131: FALSE | BN131: ='Exchange Rates'!D141 -> 0 | BP131: =IF(BM131,'Exchange Rates'!E141) -> FALSE
L132: 130 | Q132: 130 | R132: FALSE | X132: 132 | Y132: FALSE | Z132: =IF($F$6,'FRED Indicies'!E145) -> 0 | AB132: =IF($F$6,'FRED Indicies'!D145) -> 0 | AF132: 133 | AG132: FALSE | AH132: =IF(AG132,'Google Index'!E159) -> FALSE | AJ132: =IF(AF132,'Google Index'!F159) -> 0 | AN132: 133 | AO132: FALSE | AP132: =IF(AO132,'Commodity Prices'!C145) -> FALSE | AR132: =IF(AO132,'Commodity Prices'!D145) -> FALSE | AV132: 135 | AW132: FALSE | AX132: =IF(AW132,'Yahoo Stocks'!D159) -> FALSE | AY132: =IFERROR(INDEX(AX:AX,MATCH(L132,AW:AW,0)),"") ->  | AZ132: =IF(AW132,'Yahoo Stocks'!E159) -> FALSE | BA132: =IFERROR(INDEX(AZ:AZ,MATCH(L132,AW:AW,0)),"") ->  | BB132: =IF(AY132<>"",$I$15,"") ->  | BC132: =IF(BA132<>"",$J$15,"") ->  | BD132: 158 | BE132: FALSE | BF132: =IF(BE132,'Google Finance Stocks'!D156) -> FALSE | BH132: =IF(BE132,'Google Finance Stocks'!E156) -> FALSE | BL132: 158 | BM132: FALSE | BN132: ='Exchange Rates'!D142 -> 0 | BP132: =IF(BM132,'Exchange Rates'!E142) -> FALSE
L133: 131 | Q133: =Q132+1 -> 131 | R133: FALSE | X133: =X132+1 -> 133 | Y133: FALSE | Z133: =IF($F$6,'FRED Indicies'!E146) -> 0 | AB133: =IF($F$6,'FRED Indicies'!D146) -> 0 | AF133: =AF132+1 -> 134 | AG133: FALSE | AH133: =IF(AG133,'Google Index'!E160) -> FALSE | AJ133: =IF(AF133,'Google Index'!F160) -> 0 | AN133: =AN132+1 -> 134 | AO133: FALSE | AP133: =IF(AO133,'Commodity Prices'!C146) -> FALSE | AR133: =IF(AO133,'Commodity Prices'!D146) -> FALSE | AV133: =AV132+1 -> 136 | AW133: FALSE | AX133: =IF(AW133,'Yahoo Stocks'!D160) -> FALSE | AZ133: =IF(AW133,'Yahoo Stocks'!E160) -> FALSE | BD133: =BD132+1 -> 159 | BE133: FALSE | BF133: =IF(BE133,'Google Finance Stocks'!D157) -> FALSE | BH133: =IF(BE133,'Google Finance Stocks'!E157) -> FALSE | BL133: =BL132+1 -> 159 | BM133: FALSE | BN133: ='Exchange Rates'!D143 -> 0 | BP133: =IF(BM133,'Exchange Rates'!E143) -> FALSE
L134: 132 | Q134: 132 | R134: FALSE | X134: 134 | Y134: FALSE | Z134: =IF($F$6,'FRED Indicies'!E147) -> 0 | AB134: =IF($F$6,'FRED Indicies'!D147) -> 0 | AF134: 135 | AG134: FALSE | AH134: =IF(AG134,'Google Index'!E161) -> FALSE | AJ134: =IF(AF134,'Google Index'!F161) -> 0 | AN134: 135 | AO134: FALSE | AP134: =IF(AO134,'Commodity Prices'!C147) -> FALSE | AR134: =IF(AO134,'Commodity Prices'!D147) -> FALSE | AV134: 137 | AW134: FALSE | AX134: =IF(AW134,'Yahoo Stocks'!D161) -> FALSE | AZ134: =IF(AW134,'Yahoo Stocks'!E161) -> FALSE | BD134: 160 | BE134: FALSE | BF134: =IF(BE134,'Google Finance Stocks'!D158) -> FALSE | BH134: =IF(BE134,'Google Finance Stocks'!E158) -> FALSE | BL134: 160 | BM134: FALSE | BN134: ='Exchange Rates'!D144 -> 0 | BP134: =IF(BM134,'Exchange Rates'!E144) -> FALSE
L135: 133 | M135: =S135&AA135&AI135&AQ135&AY135&BG135&BO135 ->  | N135: =T135&AC135&AK135&AS135&BA135&BI135&BQ135 ->  | O135: =U135&AD135&AL135&AT135&BB135&BJ135&BR135 ->  | P135: =V135&AE135&AM135&AU135&BC135&BK135&BS135 ->  | Q135: 133 | R135: =IF(AND($F$3,Q135<=$H$3),Q135) -> FALSE | X135: 135 | Y135: FALSE | Z135: =IF($F$6,'FRED Indicies'!E148) -> 0 | AB135: =IF($F$6,'FRED Indicies'!D148) -> 0 | AF135: 136 | AG135: FALSE | AH135: =IF(AG135,'Google Index'!E162) -> FALSE | AJ135: =IF(AF135,'Google Index'!F162) -> 0 | AN135: 136 | AO135: FALSE | AP135: =IF(AO135,'Commodity Prices'!C148) -> FALSE | AR135: =IF(AO135,'Commodity Prices'!D148) -> FALSE | AV135: 138 | AW135: FALSE | AX135: =IF(AW135,'Yahoo Stocks'!D162) -> FALSE | AZ135: =IF(AW135,'Yahoo Stocks'!E162) -> FALSE | BD135: 161 | BE135: FALSE | BF135: =IF(BE135,'Google Finance Stocks'!D159) -> FALSE | BH135: =IF(BE135,'Google Finance Stocks'!E159) -> FALSE | BL135: 161 | BM135: FALSE | BN135: ='Exchange Rates'!D145 -> 0 | BP135: =IF(BM135,'Exchange Rates'!E145) -> FALSE
L136: 134 | Q136: 134 | R136: FALSE | X136: 136 | Y136: FALSE | Z136: =IF($F$6,'FRED Indicies'!E149) -> 0 | AB136: =IF($F$6,'FRED Indicies'!D149) -> 0 | AF136: 137 | AG136: FALSE | AH136: =IF(AG136,'Google Index'!E163) -> FALSE | AJ136: =IF(AF136,'Google Index'!F163) -> 0 | AN136: 137 | AO136: FALSE | AP136: =IF(AO136,'Commodity Prices'!C149) -> FALSE | AR136: =IF(AO136,'Commodity Prices'!D149) -> FALSE | AV136: 139 | AW136: FALSE | AX136: =IF(AW136,'Yahoo Stocks'!D163) -> FALSE | AZ136: =IF(AW136,'Yahoo Stocks'!E163) -> FALSE | BD136: 162 | BE136: FALSE | BF136: =IF(BE136,'Google Finance Stocks'!D160) -> FALSE | BH136: =IF(BE136,'Google Finance Stocks'!E160) -> FALSE | BL136: 162 | BM136: FALSE | BN136: ='Exchange Rates'!D146 -> 0 | BP136: =IF(BM136,'Exchange Rates'!E146) -> FALSE
L137: 135 | Q137: 135 | R137: FALSE | X137: 137 | Y137: FALSE | Z137: =IF($F$6,'FRED Indicies'!E150) -> 0 | AB137: =IF($F$6,'FRED Indicies'!D150) -> 0 | AF137: 138 | AG137: FALSE | AH137: =IF(AG137,'Google Index'!E164) -> FALSE | AJ137: =IF(AF137,'Google Index'!F164) -> 0 | AN137: 138 | AO137: FALSE | AP137: =IF(AO137,'Commodity Prices'!C150) -> FALSE | AR137: =IF(AO137,'Commodity Prices'!D150) -> FALSE | AV137: 140 | AW137: FALSE | AX137: =IF(AW137,'Yahoo Stocks'!D164) -> FALSE | AZ137: =IF(AW137,'Yahoo Stocks'!E164) -> FALSE | BD137: 163 | BE137: FALSE | BF137: =IF(BE137,'Google Finance Stocks'!D161) -> FALSE | BH137: =IF(BE137,'Google Finance Stocks'!E161) -> FALSE | BL137: 163 | BM137: FALSE | BN137: ='Exchange Rates'!D147 -> 0 | BP137: =IF(BM137,'Exchange Rates'!E147) -> FALSE
L138: 136 | Q138: 136 | R138: FALSE | X138: 138 | Y138: FALSE | Z138: =IF($F$6,'FRED Indicies'!E151) -> 0 | AB138: =IF($F$6,'FRED Indicies'!D151) -> 0 | AF138: 139 | AG138: FALSE | AH138: =IF(AG138,'Google Index'!E165) -> FALSE | AJ138: =IF(AF138,'Google Index'!F165) -> 0 | AN138: 139 | AO138: FALSE | AP138: =IF(AO138,'Commodity Prices'!C151) -> FALSE | AR138: =IF(AO138,'Commodity Prices'!D151) -> FALSE | AV138: 141 | AW138: FALSE | AX138: =IF(AW138,'Yahoo Stocks'!D165) -> FALSE | AZ138: =IF(AW138,'Yahoo Stocks'!E165) -> FALSE | BD138: 164 | BE138: FALSE | BF138: =IF(BE138,'Google Finance Stocks'!D162) -> FALSE | BH138: =IF(BE138,'Google Finance Stocks'!E162) -> FALSE | BL138: 164 | BM138: FALSE | BN138: ='Exchange Rates'!D148 -> 0 | BP138: =IF(BM138,'Exchange Rates'!E148) -> FALSE
L139: 137 | Q139: 137 | R139: FALSE | X139: 139 | Y139: FALSE | Z139: =IF($F$6,'FRED Indicies'!E152) -> 0 | AB139: =IF($F$6,'FRED Indicies'!D152) -> 0 | AF139: 140 | AG139: FALSE | AH139: =IF(AG139,'Google Index'!E166) -> FALSE | AJ139: =IF(AF139,'Google Index'!F166) -> 0 | AN139: 140 | AO139: FALSE | AP139: =IF(AO139,'Commodity Prices'!C152) -> FALSE | AR139: =IF(AO139,'Commodity Prices'!D152) -> FALSE | AV139: 142 | AW139: FALSE | AX139: =IF(AW139,'Yahoo Stocks'!D166) -> FALSE | AZ139: =IF(AW139,'Yahoo Stocks'!E166) -> FALSE | BD139: 165 | BE139: FALSE | BF139: =IF(BE139,'Google Finance Stocks'!D163) -> FALSE | BH139: =IF(BE139,'Google Finance Stocks'!E163) -> FALSE | BL139: 165 | BM139: FALSE | BN139: ='Exchange Rates'!D149 -> 0 | BP139: =IF(BM139,'Exchange Rates'!E149) -> FALSE
L140: 138 | Q140: 138 | R140: FALSE | X140: 140 | Y140: FALSE | Z140: =IF($F$6,'FRED Indicies'!E153) -> 0 | AB140: =IF($F$6,'FRED Indicies'!D153) -> 0 | AF140: 141 | AG140: FALSE | AH140: =IF(AG140,'Google Index'!E167) -> FALSE | AJ140: =IF(AF140,'Google Index'!F167) -> 0 | AN140: 141 | AO140: FALSE | AP140: =IF(AO140,'Commodity Prices'!C153) -> FALSE | AR140: =IF(AO140,'Commodity Prices'!D153) -> FALSE | AV140: 143 | AW140: FALSE | AX140: =IF(AW140,'Yahoo Stocks'!D167) -> FALSE | AZ140: =IF(AW140,'Yahoo Stocks'!E167) -> FALSE | BD140: 166 | BE140: FALSE | BF140: =IF(BE140,'Google Finance Stocks'!D164) -> FALSE | BH140: =IF(BE140,'Google Finance Stocks'!E164) -> FALSE | BL140: 166 | BM140: FALSE | BN140: ='Exchange Rates'!D150 -> 0 | BP140: =IF(BM140,'Exchange Rates'!E150) -> FALSE
L141: 139 | M141: =S141&AA141&AI141&AQ141&AY141&BG141&BO141 ->  | N141: =T141&AC141&AK141&AS141&BA141&BI141&BQ141 ->  | O141: =U141&AD141&AL141&AT141&BB141&BJ141&BR141 ->  | P141: =V141&AE141&AM141&AU141&BC141&BK141&BS141 ->  | Q141: 139 | R141: FALSE | X141: 141 | Y141: FALSE | Z141: =IF($F$6,'FRED Indicies'!E154) -> 0 | AB141: =IF($F$6,'FRED Indicies'!D154) -> 0 | AF141: 142 | AG141: FALSE | AH141: =IF(AG141,'Google Index'!E168) -> FALSE | AJ141: =IF(AF141,'Google Index'!F168) -> 0 | AN141: 142 | AO141: FALSE | AP141: =IF(AO141,'Commodity Prices'!C154) -> FALSE | AR141: =IF(AO141,'Commodity Prices'!D154) -> FALSE | AV141: 144 | AW141: FALSE | AX141: =IF(AW141,'Yahoo Stocks'!D168) -> FALSE | AZ141: =IF(AW141,'Yahoo Stocks'!E168) -> FALSE | BD141: 167 | BE141: FALSE | BF141: =IF(BE141,'Google Finance Stocks'!D165) -> FALSE | BH141: =IF(BE141,'Google Finance Stocks'!E165) -> FALSE | BL141: 167 | BM141: FALSE | BN141: ='Exchange Rates'!D151 -> 0 | BP141: =IF(BM141,'Exchange Rates'!E151) -> FALSE
L142: 140 | Q142: 140 | R142: FALSE | X142: 142 | Y142: FALSE | Z142: =IF($F$6,'FRED Indicies'!E155) -> 0 | AB142: =IF($F$6,'FRED Indicies'!D155) -> 0 | AF142: 143 | AG142: FALSE | AH142: =IF(AG142,'Google Index'!E169) -> FALSE | AJ142: =IF(AF142,'Google Index'!F169) -> 0 | AN142: 143 | AO142: FALSE | AP142: =IF(AO142,'Commodity Prices'!C155) -> FALSE | AR142: =IF(AO142,'Commodity Prices'!D155) -> FALSE | AV142: 145 | AW142: FALSE | AX142: =IF(AW142,'Yahoo Stocks'!D169) -> FALSE | AZ142: =IF(AW142,'Yahoo Stocks'!E169) -> FALSE | BD142: 168 | BE142: FALSE | BF142: =IF(BE142,'Google Finance Stocks'!D166) -> FALSE | BH142: =IF(BE142,'Google Finance Stocks'!E166) -> FALSE | BL142: 168 | BM142: FALSE | BN142: ='Exchange Rates'!D152 -> 0 | BP142: =IF(BM142,'Exchange Rates'!E152) -> FALSE
L143: 141 | Q143: 141 | R143: FALSE | X143: 143 | Y143: FALSE | Z143: =IF($F$6,'FRED Indicies'!E156) -> 0 | AB143: =IF($F$6,'FRED Indicies'!D156) -> 0 | AF143: 144 | AG143: FALSE | AH143: =IF(AG143,'Google Index'!E170) -> FALSE | AJ143: =IF(AF143,'Google Index'!F170) -> 0 | AN143: 144 | AO143: FALSE | AP143: =IF(AO143,'Commodity Prices'!C156) -> FALSE | AR143: =IF(AO143,'Commodity Prices'!D156) -> FALSE | AV143: 146 | AW143: FALSE | AX143: =IF(AW143,'Yahoo Stocks'!D170) -> FALSE | AZ143: =IF(AW143,'Yahoo Stocks'!E170) -> FALSE | BD143: 169 | BE143: FALSE | BF143: =IF(BE143,'Google Finance Stocks'!D167) -> FALSE | BH143: =IF(BE143,'Google Finance Stocks'!E167) -> FALSE | BL143: 169 | BM143: FALSE | BN143: ='Exchange Rates'!D153 -> 0 | BP143: =IF(BM143,'Exchange Rates'!E153) -> FALSE
L144: 142 | Q144: 142 | R144: FALSE | X144: 144 | Y144: FALSE | Z144: =IF($F$6,'FRED Indicies'!E157) -> 0 | AB144: =IF($F$6,'FRED Indicies'!D157) -> 0 | AF144: 145 | AG144: FALSE | AH144: =IF(AG144,'Google Index'!E171) -> FALSE | AJ144: =IF(AF144,'Google Index'!F171) -> 0 | AN144: 145 | AO144: FALSE | AP144: =IF(AO144,'Commodity Prices'!C157) -> FALSE | AR144: =IF(AO144,'Commodity Prices'!D157) -> FALSE | AV144: 147 | AW144: FALSE | AX144: =IF(AW144,'Yahoo Stocks'!D171) -> FALSE | AZ144: =IF(AW144,'Yahoo Stocks'!E171) -> FALSE | BD144: 170 | BE144: FALSE | BF144: =IF(BE144,'Google Finance Stocks'!D168) -> FALSE | BH144: =IF(BE144,'Google Finance Stocks'!E168) -> FALSE | BL144: 170 | BM144: FALSE | BN144: ='Exchange Rates'!D154 -> 0 | BP144: =IF(BM144,'Exchange Rates'!E154) -> FALSE
L145: 143 | Q145: 143 | R145: FALSE | X145: 145 | Y145: FALSE | Z145: =IF($F$6,'FRED Indicies'!E158) -> 0 | AB145: =IF($F$6,'FRED Indicies'!D158) -> 0 | AF145: 146 | AG145: FALSE | AH145: =IF(AG145,'Google Index'!E172) -> FALSE | AJ145: =IF(AF145,'Google Index'!F172) -> 0 | AN145: 146 | AO145: FALSE | AP145: =IF(AO145,'Commodity Prices'!C158) -> FALSE | AR145: =IF(AO145,'Commodity Prices'!D158) -> FALSE | AV145: 148 | AW145: FALSE | AX145: =IF(AW145,'Yahoo Stocks'!D172) -> FALSE | AZ145: =IF(AW145,'Yahoo Stocks'!E172) -> FALSE | BD145: 171 | BE145: FALSE | BF145: =IF(BE145,'Google Finance Stocks'!D169) -> FALSE | BH145: =IF(BE145,'Google Finance Stocks'!E169) -> FALSE | BL145: 171 | BM145: FALSE | BN145: ='Exchange Rates'!D155 -> 0 | BP145: =IF(BM145,'Exchange Rates'!E155) -> FALSE
L146: 144 | Q146: 144 | R146: FALSE | X146: 146 | Y146: FALSE | Z146: =IF($F$6,'FRED Indicies'!E159) -> 0 | AB146: =IF($F$6,'FRED Indicies'!D159) -> 0 | AF146: 147 | AG146: FALSE | AH146: =IF(AG146,'Google Index'!E173) -> FALSE | AJ146: =IF(AF146,'Google Index'!F173) -> 0 | AN146: 147 | AO146: FALSE | AP146: =IF(AO146,'Commodity Prices'!C159) -> FALSE | AR146: =IF(AO146,'Commodity Prices'!D159) -> FALSE | AV146: 149 | AW146: FALSE | AX146: =IF(AW146,'Yahoo Stocks'!D173) -> FALSE | AZ146: =IF(AW146,'Yahoo Stocks'!E173) -> FALSE | BD146: 172 | BE146: FALSE | BF146: =IF(BE146,'Google Finance Stocks'!D170) -> FALSE | BH146: =IF(BE146,'Google Finance Stocks'!E170) -> FALSE | BL146: 172 | BM146: FALSE | BN146: ='Exchange Rates'!D156 -> 0 | BP146: =IF(BM146,'Exchange Rates'!E156) -> FALSE
L147: 145 | Q147: 145 | R147: FALSE | X147: 147 | Y147: FALSE | Z147: =IF($F$6,'FRED Indicies'!E160) -> 0 | AB147: =IF($F$6,'FRED Indicies'!D160) -> 0 | AF147: 148 | AG147: FALSE | AH147: =IF(AG147,'Google Index'!E174) -> FALSE | AJ147: =IF(AF147,'Google Index'!F174) -> 0 | AN147: 148 | AO147: FALSE | AP147: =IF(AO147,'Commodity Prices'!C160) -> FALSE | AR147: =IF(AO147,'Commodity Prices'!D160) -> FALSE | AV147: 150 | AW147: FALSE | AX147: =IF(AW147,'Yahoo Stocks'!D174) -> FALSE | AZ147: =IF(AW147,'Yahoo Stocks'!E174) -> FALSE | BD147: 173 | BE147: FALSE | BF147: =IF(BE147,'Google Finance Stocks'!D171) -> FALSE | BH147: =IF(BE147,'Google Finance Stocks'!E171) -> FALSE | BL147: 173 | BM147: FALSE | BN147: ='Exchange Rates'!D157 -> 0 | BP147: =IF(BM147,'Exchange Rates'!E157) -> FALSE
L148: 146 | Q148: 146 | R148: FALSE | X148: 148 | Y148: FALSE | Z148: =IF($F$6,'FRED Indicies'!E161) -> 0 | AB148: =IF($F$6,'FRED Indicies'!D161) -> 0 | AF148: 149 | AG148: FALSE | AH148: =IF(AG148,'Google Index'!E175) -> FALSE | AJ148: =IF(AF148,'Google Index'!F175) -> 0 | AN148: 149 | AO148: FALSE | AP148: =IF(AO148,'Commodity Prices'!C161) -> FALSE | AR148: =IF(AO148,'Commodity Prices'!D161) -> FALSE | AV148: 151 | AW148: FALSE | AX148: =IF(AW148,'Yahoo Stocks'!D175) -> FALSE | AZ148: =IF(AW148,'Yahoo Stocks'!E175) -> FALSE | BD148: 174 | BE148: FALSE | BF148: =IF(BE148,'Google Finance Stocks'!D172) -> FALSE | BH148: =IF(BE148,'Google Finance Stocks'!E172) -> FALSE | BL148: 174 | BM148: FALSE | BN148: ='Exchange Rates'!D158 -> 0 | BP148: =IF(BM148,'Exchange Rates'!E158) -> FALSE
L149: 147 | Q149: 147 | R149: FALSE | X149: 149 | Y149: FALSE | Z149: =IF($F$6,'FRED Indicies'!E162) -> 0 | AB149: =IF($F$6,'FRED Indicies'!D162) -> 0 | AF149: 150 | AG149: FALSE | AH149: =IF(AG149,'Google Index'!E176) -> FALSE | AJ149: =IF(AF149,'Google Index'!F176) -> 0 | AN149: 150 | AO149: FALSE | AP149: =IF(AO149,'Commodity Prices'!C162) -> FALSE | AR149: =IF(AO149,'Commodity Prices'!D162) -> FALSE | AV149: 152 | AW149: FALSE | AX149: =IF(AW149,'Yahoo Stocks'!D176) -> FALSE | AZ149: =IF(AW149,'Yahoo Stocks'!E176) -> FALSE | BD149: 175 | BE149: FALSE | BF149: =IF(BE149,'Google Finance Stocks'!D173) -> FALSE | BH149: =IF(BE149,'Google Finance Stocks'!E173) -> FALSE | BL149: 175 | BM149: FALSE | BN149: ='Exchange Rates'!D159 -> 0 | BP149: =IF(BM149,'Exchange Rates'!E159) -> FALSE
L150: 148 | Q150: 148 | R150: FALSE | X150: 150 | Y150: FALSE | Z150: =IF($F$6,'FRED Indicies'!E163) -> 0 | AB150: =IF($F$6,'FRED Indicies'!D163) -> 0 | AF150: 151 | AG150: FALSE | AH150: =IF(AG150,'Google Index'!E177) -> FALSE | AJ150: =IF(AF150,'Google Index'!F177) -> 0 | AN150: 151 | AO150: FALSE | AP150: =IF(AO150,'Commodity Prices'!C163) -> FALSE | AR150: =IF(AO150,'Commodity Prices'!D163) -> FALSE | AV150: 153 | AW150: FALSE | AX150: =IF(AW150,'Yahoo Stocks'!D177) -> FALSE | AZ150: =IF(AW150,'Yahoo Stocks'!E177) -> FALSE | BD150: 176 | BE150: FALSE | BF150: =IF(BE150,'Google Finance Stocks'!D174) -> FALSE | BH150: =IF(BE150,'Google Finance Stocks'!E174) -> FALSE | BL150: 176 | BM150: FALSE | BN150: ='Exchange Rates'!D160 -> 0 | BP150: =IF(BM150,'Exchange Rates'!E160) -> FALSE
L151: 149 | Q151: 149 | R151: FALSE | X151: 151 | Y151: FALSE | Z151: =IF($F$6,'FRED Indicies'!E164) -> 0 | AB151: =IF($F$6,'FRED Indicies'!D164) -> 0 | AF151: 152 | AG151: FALSE | AH151: =IF(AG151,'Google Index'!E178) -> FALSE | AJ151: =IF(AF151,'Google Index'!F178) -> 0 | AN151: 152 | AO151: FALSE | AP151: =IF(AO151,'Commodity Prices'!C164) -> FALSE | AR151: =IF(AO151,'Commodity Prices'!D164) -> FALSE | AV151: 154 | AW151: FALSE | AX151: =IF(AW151,'Yahoo Stocks'!D178) -> FALSE | AZ151: =IF(AW151,'Yahoo Stocks'!E178) -> FALSE | BD151: 177 | BE151: FALSE | BF151: =IF(BE151,'Google Finance Stocks'!D175) -> FALSE | BH151: =IF(BE151,'Google Finance Stocks'!E175) -> FALSE | BL151: 177 | BM151: FALSE | BN151: ='Exchange Rates'!D161 -> 0 | BP151: =IF(BM151,'Exchange Rates'!E161) -> FALSE
L152: 150 | Q152: 150 | R152: FALSE | X152: 152 | Y152: FALSE | Z152: =IF($F$6,'FRED Indicies'!E165) -> 0 | AB152: =IF($F$6,'FRED Indicies'!D165) -> 0 | AF152: 153 | AG152: FALSE | AH152: =IF(AG152,'Google Index'!E179) -> FALSE | AJ152: =IF(AF152,'Google Index'!F179) -> 0 | AN152: 153 | AO152: FALSE | AP152: =IF(AO152,'Commodity Prices'!C165) -> FALSE | AR152: =IF(AO152,'Commodity Prices'!D165) -> FALSE | AV152: 155 | AW152: FALSE | AX152: =IF(AW152,'Yahoo Stocks'!D179) -> FALSE | AZ152: =IF(AW152,'Yahoo Stocks'!E179) -> FALSE | BD152: 178 | BE152: FALSE | BF152: =IF(BE152,'Google Finance Stocks'!D176) -> FALSE | BH152: =IF(BE152,'Google Finance Stocks'!E176) -> FALSE | BL152: 178 | BM152: FALSE | BN152: ='Exchange Rates'!D162 -> 0 | BP152: =IF(BM152,'Exchange Rates'!E162) -> FALSE
L153: 151 | Q153: 151 | R153: FALSE | X153: 153 | Y153: FALSE | Z153: =IF($F$6,'FRED Indicies'!E166) -> 0 | AB153: =IF($F$6,'FRED Indicies'!D166) -> 0 | AF153: 154 | AG153: FALSE | AH153: =IF(AG153,'Google Index'!E180) -> FALSE | AJ153: =IF(AF153,'Google Index'!F180) -> 0 | AN153: 154 | AO153: FALSE | AP153: =IF(AO153,'Commodity Prices'!C166) -> FALSE | AR153: =IF(AO153,'Commodity Prices'!D166) -> FALSE | AV153: 156 | AW153: FALSE | AX153: =IF(AW153,'Yahoo Stocks'!D180) -> FALSE | AZ153: =IF(AW153,'Yahoo Stocks'!E180) -> FALSE | BD153: 179 | BE153: FALSE | BF153: =IF(BE153,'Google Finance Stocks'!D177) -> FALSE | BH153: =IF(BE153,'Google Finance Stocks'!E177) -> FALSE | BL153: 179 | BM153: FALSE | BN153: ='Exchange Rates'!D163 -> 0 | BP153: =IF(BM153,'Exchange Rates'!E163) -> FALSE
L154: 152 | X154: 154 | Y154: FALSE | Z154: =IF($F$6,'FRED Indicies'!E167) -> 0 | AB154: =IF($F$6,'FRED Indicies'!D167) -> 0 | AF154: 155 | AG154: FALSE | AH154: =IF(AG154,'Google Index'!E181) -> FALSE | AJ154: =IF(AF154,'Google Index'!F181) -> 0 | AN154: 155 | AO154: FALSE | AP154: =IF(AO154,'Commodity Prices'!C167) -> FALSE | AR154: =IF(AO154,'Commodity Prices'!D167) -> FALSE | AV154: 157 | AW154: FALSE | AX154: =IF(AW154,'Yahoo Stocks'!D181) -> FALSE | AZ154: =IF(AW154,'Yahoo Stocks'!E181) -> FALSE | BD154: 180 | BE154: FALSE | BF154: =IF(BE154,'Google Finance Stocks'!D178) -> FALSE | BH154: =IF(BE154,'Google Finance Stocks'!E178) -> FALSE | BL154: 180 | BM154: FALSE | BN154: ='Exchange Rates'!D164 -> 0 | BP154: =IF(BM154,'Exchange Rates'!E164) -> FALSE
L155: 153 | X155: 155 | Y155: FALSE | Z155: =IF($F$6,'FRED Indicies'!E168) -> 0 | AB155: =IF($F$6,'FRED Indicies'!D168) -> 0 | AF155: 156 | AG155: FALSE | AH155: =IF(AG155,'Google Index'!E182) -> FALSE | AJ155: =IF(AF155,'Google Index'!F182) -> 0 | AN155: 156 | AO155: FALSE | AP155: =IF(AO155,'Commodity Prices'!C168) -> FALSE | AR155: =IF(AO155,'Commodity Prices'!D168) -> FALSE | AV155: 158 | AW155: FALSE | AX155: =IF(AW155,'Yahoo Stocks'!D182) -> FALSE | AZ155: =IF(AW155,'Yahoo Stocks'!E182) -> FALSE | BD155: 181 | BE155: FALSE | BF155: =IF(BE155,'Google Finance Stocks'!D179) -> FALSE | BH155: =IF(BE155,'Google Finance Stocks'!E179) -> FALSE | BL155: 181 | BM155: FALSE | BN155: ='Exchange Rates'!D165 -> 0 | BP155: =IF(BM155,'Exchange Rates'!E165) -> FALSE
L156: 154 | X156: 156 | Y156: FALSE | Z156: =IF($F$6,'FRED Indicies'!E169) -> 0 | AB156: =IF($F$6,'FRED Indicies'!D169) -> 0 | AF156: 157 | AG156: FALSE | AH156: =IF(AG156,'Google Index'!E183) -> FALSE | AJ156: =IF(AF156,'Google Index'!F183) -> 0 | AN156: 157 | AO156: FALSE | AP156: =IF(AO156,'Commodity Prices'!C169) -> FALSE | AR156: =IF(AO156,'Commodity Prices'!D169) -> FALSE | AV156: 159 | AW156: FALSE | AX156: =IF(AW156,'Yahoo Stocks'!D183) -> FALSE | AZ156: =IF(AW156,'Yahoo Stocks'!E183) -> FALSE | BD156: 182 | BE156: FALSE | BF156: =IF(BE156,'Google Finance Stocks'!D180) -> FALSE | BH156: =IF(BE156,'Google Finance Stocks'!E180) -> FALSE | BL156: 182 | BM156: FALSE | BN156: ='Exchange Rates'!D166 -> 0 | BP156: =IF(BM156,'Exchange Rates'!E166) -> FALSE
L157: 155 | X157: 157 | Y157: FALSE | Z157: =IF($F$6,'FRED Indicies'!E170) -> 0 | AB157: =IF($F$6,'FRED Indicies'!D170) -> 0 | AF157: 158 | AG157: FALSE | AH157: =IF(AG157,'Google Index'!E184) -> FALSE | AJ157: =IF(AF157,'Google Index'!F184) -> 0 | AN157: 158 | AO157: FALSE | AP157: =IF(AO157,'Commodity Prices'!C170) -> FALSE | AR157: =IF(AO157,'Commodity Prices'!D170) -> FALSE | AV157: 160 | AW157: FALSE | AX157: =IF(AW157,'Yahoo Stocks'!D184) -> FALSE | AZ157: =IF(AW157,'Yahoo Stocks'!E184) -> FALSE | BD157: 183 | BE157: FALSE | BF157: =IF(BE157,'Google Finance Stocks'!D181) -> FALSE | BH157: =IF(BE157,'Google Finance Stocks'!E181) -> FALSE | BL157: 183 | BM157: FALSE | BN157: ='Exchange Rates'!D167 -> 0 | BP157: =IF(BM157,'Exchange Rates'!E167) -> FALSE
L158: 156 | X158: 158 | Y158: FALSE | Z158: =IF($F$6,'FRED Indicies'!E171) -> 0 | AB158: =IF($F$6,'FRED Indicies'!D171) -> 0 | AF158: 159 | AG158: FALSE | AH158: =IF(AG158,'Google Index'!E185) -> FALSE | AJ158: =IF(AF158,'Google Index'!F185) -> 0 | AN158: 159 | AO158: FALSE | AP158: =IF(AO158,'Commodity Prices'!C171) -> FALSE | AR158: =IF(AO158,'Commodity Prices'!D171) -> FALSE | AV158: 161 | AW158: FALSE | AX158: =IF(AW158,'Yahoo Stocks'!D185) -> FALSE | AZ158: =IF(AW158,'Yahoo Stocks'!E185) -> FALSE | BD158: 184 | BE158: FALSE | BF158: =IF(BE158,'Google Finance Stocks'!D182) -> FALSE | BH158: =IF(BE158,'Google Finance Stocks'!E182) -> FALSE | BL158: 184 | BM158: FALSE | BN158: ='Exchange Rates'!D168 -> 0 | BP158: =IF(BM158,'Exchange Rates'!E168) -> FALSE
L159: 157 | X159: 159 | Y159: FALSE | Z159: =IF($F$6,'FRED Indicies'!E172) -> 0 | AB159: =IF($F$6,'FRED Indicies'!D172) -> 0 | AF159: 160 | AG159: FALSE | AH159: =IF(AG159,'Google Index'!E186) -> FALSE | AJ159: =IF(AF159,'Google Index'!F186) -> 0 | AN159: 160 | AO159: FALSE | AP159: =IF(AO159,'Commodity Prices'!C172) -> FALSE | AR159: =IF(AO159,'Commodity Prices'!D172) -> FALSE | AV159: 162 | AW159: FALSE | AX159: =IF(AW159,'Yahoo Stocks'!D186) -> FALSE | AZ159: =IF(AW159,'Yahoo Stocks'!E186) -> FALSE | BD159: 185 | BE159: FALSE | BF159: =IF(BE159,'Google Finance Stocks'!D183) -> FALSE | BH159: =IF(BE159,'Google Finance Stocks'!E183) -> FALSE | BL159: 185 | BM159: FALSE | BN159: ='Exchange Rates'!D169 -> 0 | BP159: =IF(BM159,'Exchange Rates'!E169) -> FALSE
L160: 158 | X160: 160 | Y160: FALSE | Z160: =IF($F$6,'FRED Indicies'!E173) -> 0 | AB160: =IF($F$6,'FRED Indicies'!D173) -> 0 | AF160: 161 | AG160: FALSE | AH160: =IF(AG160,'Google Index'!E187) -> FALSE | AJ160: =IF(AF160,'Google Index'!F187) -> 0 | AN160: 161 | AO160: FALSE | AP160: =IF(AO160,'Commodity Prices'!C173) -> FALSE | AR160: =IF(AO160,'Commodity Prices'!D173) -> FALSE | AV160: 163 | AW160: FALSE | AX160: =IF(AW160,'Yahoo Stocks'!D187) -> FALSE | AZ160: =IF(AW160,'Yahoo Stocks'!E187) -> FALSE | BD160: 186 | BE160: FALSE | BF160: =IF(BE160,'Google Finance Stocks'!D184) -> FALSE | BH160: =IF(BE160,'Google Finance Stocks'!E184) -> FALSE | BL160: 186 | BM160: FALSE | BN160: ='Exchange Rates'!D170 -> 0 | BP160: =IF(BM160,'Exchange Rates'!E170) -> FALSE
L161: 159 | X161: 161 | Y161: FALSE | Z161: =IF($F$6,'FRED Indicies'!E174) -> 0 | AB161: =IF($F$6,'FRED Indicies'!D174) -> 0 | AF161: 162 | AG161: FALSE | AH161: =IF(AG161,'Google Index'!E188) -> FALSE | AJ161: =IF(AF161,'Google Index'!F188) -> 0 | AN161: 162 | AO161: FALSE | AP161: =IF(AO161,'Commodity Prices'!C174) -> FALSE | AR161: =IF(AO161,'Commodity Prices'!D174) -> FALSE | AV161: 164 | AW161: FALSE | AX161: =IF(AW161,'Yahoo Stocks'!D188) -> FALSE | AZ161: =IF(AW161,'Yahoo Stocks'!E188) -> FALSE | BD161: 187 | BE161: FALSE | BF161: =IF(BE161,'Google Finance Stocks'!D185) -> FALSE | BH161: =IF(BE161,'Google Finance Stocks'!E185) -> FALSE | BL161: 187 | BM161: FALSE | BN161: ='Exchange Rates'!D171 -> 0 | BP161: =IF(BM161,'Exchange Rates'!E171) -> FALSE
L162: 160 | X162: 162 | Y162: FALSE | Z162: =IF($F$6,'FRED Indicies'!E175) -> 0 | AB162: =IF($F$6,'FRED Indicies'!D175) -> 0 | AF162: 163 | AG162: FALSE | AH162: =IF(AG162,'Google Index'!E189) -> FALSE | AJ162: =IF(AF162,'Google Index'!F189) -> 0 | AN162: 163 | AO162: FALSE | AP162: =IF(AO162,'Commodity Prices'!C175) -> FALSE | AR162: =IF(AO162,'Commodity Prices'!D175) -> FALSE | AV162: 165 | AW162: FALSE | AX162: =IF(AW162,'Yahoo Stocks'!D189) -> FALSE | AZ162: =IF(AW162,'Yahoo Stocks'!E189) -> FALSE | BD162: 188 | BE162: FALSE | BF162: =IF(BE162,'Google Finance Stocks'!D186) -> FALSE | BH162: =IF(BE162,'Google Finance Stocks'!E186) -> FALSE | BL162: 188 | BM162: FALSE | BN162: ='Exchange Rates'!D172 -> 0 | BP162: =IF(BM162,'Exchange Rates'!E172) -> FALSE
L163: 161 | X163: 163 | Y163: FALSE | Z163: =IF($F$6,'FRED Indicies'!E176) -> 0 | AB163: =IF($F$6,'FRED Indicies'!D176) -> 0 | AF163: 164 | AG163: FALSE | AH163: =IF(AG163,'Google Index'!E190) -> FALSE | AJ163: =IF(AF163,'Google Index'!F190) -> 0 | AN163: 164 | AO163: FALSE | AP163: =IF(AO163,'Commodity Prices'!C176) -> FALSE | AR163: =IF(AO163,'Commodity Prices'!D176) -> FALSE | AV163: 166 | AW163: FALSE | AX163: =IF(AW163,'Yahoo Stocks'!D190) -> FALSE | AZ163: =IF(AW163,'Yahoo Stocks'!E190) -> FALSE | BD163: 189 | BE163: FALSE | BF163: =IF(BE163,'Google Finance Stocks'!D187) -> FALSE | BH163: =IF(BE163,'Google Finance Stocks'!E187) -> FALSE | BL163: 189 | BM163: FALSE | BN163: ='Exchange Rates'!D173 -> 0 | BP163: =IF(BM163,'Exchange Rates'!E173) -> FALSE
L164: 162 | X164: 164 | Y164: FALSE | Z164: =IF($F$6,'FRED Indicies'!E177) -> 0 | AB164: =IF($F$6,'FRED Indicies'!D177) -> 0 | AF164: 165 | AG164: FALSE | AH164: =IF(AG164,'Google Index'!E191) -> FALSE | AJ164: =IF(AF164,'Google Index'!F191) -> 0 | AN164: 165 | AO164: FALSE | AP164: =IF(AO164,'Commodity Prices'!C177) -> FALSE | AR164: =IF(AO164,'Commodity Prices'!D177) -> FALSE | AV164: 167 | AW164: FALSE | AX164: =IF(AW164,'Yahoo Stocks'!D191) -> FALSE | AZ164: =IF(AW164,'Yahoo Stocks'!E191) -> FALSE | BD164: 190 | BE164: FALSE | BF164: =IF(BE164,'Google Finance Stocks'!D188) -> FALSE | BH164: =IF(BE164,'Google Finance Stocks'!E188) -> FALSE | BL164: 190 | BM164: FALSE | BN164: ='Exchange Rates'!D174 -> 0 | BP164: =IF(BM164,'Exchange Rates'!E174) -> FALSE
L165: 163 | X165: 165 | Y165: FALSE | Z165: =IF($F$6,'FRED Indicies'!E178) -> 0 | AB165: =IF($F$6,'FRED Indicies'!D178) -> 0 | AF165: 166 | AG165: FALSE | AH165: =IF(AG165,'Google Index'!E192) -> FALSE | AJ165: =IF(AF165,'Google Index'!F192) -> 0 | AN165: 166 | AO165: FALSE | AP165: =IF(AO165,'Commodity Prices'!C178) -> FALSE | AR165: =IF(AO165,'Commodity Prices'!D178) -> FALSE | AV165: 168 | AW165: FALSE | AX165: =IF(AW165,'Yahoo Stocks'!D192) -> FALSE | AZ165: =IF(AW165,'Yahoo Stocks'!E192) -> FALSE | BD165: 191 | BE165: FALSE | BF165: =IF(BE165,'Google Finance Stocks'!D189) -> FALSE | BH165: =IF(BE165,'Google Finance Stocks'!E189) -> FALSE | BL165: 191 | BM165: FALSE | BN165: ='Exchange Rates'!D175 -> 0 | BP165: =IF(BM165,'Exchange Rates'!E175) -> FALSE
L166: 164 | X166: 166 | Y166: FALSE | Z166: =IF($F$6,'FRED Indicies'!E179) -> 0 | AB166: =IF($F$6,'FRED Indicies'!D179) -> 0 | AF166: 167 | AG166: FALSE | AH166: =IF(AG166,'Google Index'!E193) -> FALSE | AJ166: =IF(AF166,'Google Index'!F193) -> 0 | AN166: 167 | AO166: FALSE | AP166: =IF(AO166,'Commodity Prices'!C179) -> FALSE | AR166: =IF(AO166,'Commodity Prices'!D179) -> FALSE | AV166: 169 | AW166: FALSE | AX166: =IF(AW166,'Yahoo Stocks'!D193) -> FALSE | AZ166: =IF(AW166,'Yahoo Stocks'!E193) -> FALSE | BD166: 192 | BE166: FALSE | BF166: =IF(BE166,'Google Finance Stocks'!D190) -> FALSE | BH166: =IF(BE166,'Google Finance Stocks'!E190) -> FALSE | BL166: 192 | BM166: FALSE | BN166: ='Exchange Rates'!D176 -> 0 | BP166: =IF(BM166,'Exchange Rates'!E176) -> FALSE
L167: 165 | X167: 167 | Y167: FALSE | Z167: =IF($F$6,'FRED Indicies'!E180) -> 0 | AB167: =IF($F$6,'FRED Indicies'!D180) -> 0 | AF167: 168 | AG167: FALSE | AH167: =IF(AG167,'Google Index'!E194) -> FALSE | AJ167: =IF(AF167,'Google Index'!F194) -> 0 | AN167: 168 | AO167: FALSE | AP167: =IF(AO167,'Commodity Prices'!C180) -> FALSE | AR167: =IF(AO167,'Commodity Prices'!D180) -> FALSE | AV167: 170 | AW167: FALSE | AX167: =IF(AW167,'Yahoo Stocks'!D194) -> FALSE | AZ167: =IF(AW167,'Yahoo Stocks'!E194) -> FALSE | BD167: 193 | BE167: FALSE | BF167: =IF(BE167,'Google Finance Stocks'!D191) -> FALSE | BH167: =IF(BE167,'Google Finance Stocks'!E191) -> FALSE | BL167: 193 | BM167: FALSE | BN167: ='Exchange Rates'!D177 -> 0 | BP167: =IF(BM167,'Exchange Rates'!E177) -> FALSE
L168: 166 | X168: 168 | Y168: FALSE | Z168: =IF($F$6,'FRED Indicies'!E181) -> 0 | AB168: =IF($F$6,'FRED Indicies'!D181) -> 0 | AF168: 169 | AG168: FALSE | AH168: =IF(AG168,'Google Index'!E195) -> FALSE | AJ168: =IF(AF168,'Google Index'!F195) -> 0 | AN168: 169 | AO168: FALSE | AP168: =IF(AO168,'Commodity Prices'!C181) -> FALSE | AR168: =IF(AO168,'Commodity Prices'!D181) -> FALSE | AV168: 171 | AW168: FALSE | AX168: =IF(AW168,'Yahoo Stocks'!D195) -> FALSE | AZ168: =IF(AW168,'Yahoo Stocks'!E195) -> FALSE | BD168: 194 | BE168: FALSE | BF168: =IF(BE168,'Google Finance Stocks'!D192) -> FALSE | BH168: =IF(BE168,'Google Finance Stocks'!E192) -> FALSE | BL168: 194 | BM168: FALSE | BN168: ='Exchange Rates'!D178 -> 0 | BP168: =IF(BM168,'Exchange Rates'!E178) -> FALSE
L169: 167 | X169: 169 | Y169: FALSE | Z169: =IF($F$6,'FRED Indicies'!E182) -> 0 | AB169: =IF($F$6,'FRED Indicies'!D182) -> 0 | AF169: 170 | AG169: FALSE | AH169: =IF(AG169,'Google Index'!E196) -> FALSE | AJ169: =IF(AF169,'Google Index'!F196) -> 0 | AN169: 170 | AO169: FALSE | AP169: =IF(AO169,'Commodity Prices'!C182) -> FALSE | AR169: =IF(AO169,'Commodity Prices'!D182) -> FALSE | AV169: 172 | AW169: FALSE | AX169: =IF(AW169,'Yahoo Stocks'!D196) -> FALSE | AZ169: =IF(AW169,'Yahoo Stocks'!E196) -> FALSE | BD169: 195 | BE169: FALSE | BF169: =IF(BE169,'Google Finance Stocks'!D193) -> FALSE | BH169: =IF(BE169,'Google Finance Stocks'!E193) -> FALSE | BL169: 195 | BM169: FALSE | BN169: ='Exchange Rates'!D179 -> 0 | BP169: =IF(BM169,'Exchange Rates'!E179) -> FALSE
L170: 168 | X170: 170 | Y170: FALSE | Z170: =IF($F$6,'FRED Indicies'!E183) -> 0 | AB170: =IF($F$6,'FRED Indicies'!D183) -> 0 | AF170: 171 | AG170: FALSE | AH170: =IF(AG170,'Google Index'!E197) -> FALSE | AJ170: =IF(AF170,'Google Index'!F197) -> 0 | AN170: 171 | AO170: FALSE | AP170: =IF(AO170,'Commodity Prices'!C183) -> FALSE | AR170: =IF(AO170,'Commodity Prices'!D183) -> FALSE | AV170: 173 | AW170: FALSE | AX170: =IF(AW170,'Yahoo Stocks'!D197) -> FALSE | AZ170: =IF(AW170,'Yahoo Stocks'!E197) -> FALSE | BD170: 196 | BE170: FALSE | BF170: =IF(BE170,'Google Finance Stocks'!D194) -> FALSE | BH170: =IF(BE170,'Google Finance Stocks'!E194) -> FALSE | BL170: 196 | BM170: FALSE | BN170: ='Exchange Rates'!D180 -> 0 | BP170: =IF(BM170,'Exchange Rates'!E180) -> FALSE
L171: 169 | X171: 171 | Y171: FALSE | Z171: =IF($F$6,'FRED Indicies'!E184) -> 0 | AB171: =IF($F$6,'FRED Indicies'!D184) -> 0 | AF171: 172 | AG171: FALSE | AH171: =IF(AG171,'Google Index'!E198) -> FALSE | AJ171: =IF(AF171,'Google Index'!F198) -> 0 | AN171: 172 | AO171: FALSE | AP171: =IF(AO171,'Commodity Prices'!C184) -> FALSE | AR171: =IF(AO171,'Commodity Prices'!D184) -> FALSE | AV171: 174 | AW171: FALSE | AX171: =IF(AW171,'Yahoo Stocks'!D198) -> FALSE | AZ171: =IF(AW171,'Yahoo Stocks'!E198) -> FALSE | BD171: 197 | BE171: FALSE | BF171: =IF(BE171,'Google Finance Stocks'!D195) -> FALSE | BH171: =IF(BE171,'Google Finance Stocks'!E195) -> FALSE | BL171: 197 | BM171: FALSE | BN171: ='Exchange Rates'!D181 -> 0 | BP171: =IF(BM171,'Exchange Rates'!E181) -> FALSE
L172: 170 | BD172: 198 | BE172: =IF(AND($F$18,BD172<=$H$18),BD172) -> FALSE | BF172: =IF(BE172,'Google Finance Stocks'!D196) -> FALSE | BG172: =IFERROR(INDEX(BF:BF,MATCH(Q172,BE:BE,0)),"") ->  | BH172: =IF(BE172,'Google Finance Stocks'!E196) -> FALSE | BI172: =IFERROR(INDEX(BH:BH,MATCH(Q172,BE:BE,0)),"") ->  | BJ172: =IF(BI172<>"",$I$18,"") ->  | BK172: =IF(BI172<>"",$J$18,"") ->  | BL172: 198 | BM172: =IF(AND($F$21,BL172<=$H$21),BL172) -> FALSE | BN172: ='Exchange Rates'!D182 -> 0 | BO172: =IFERROR(INDEX(BN:BN,MATCH(L172,BM:BM,0)),"") ->  | BP172: =IF(BM172,'Exchange Rates'!E182) -> FALSE | BQ172: =IFERROR(INDEX(BP:BP,MATCH(L172,BM:BM,0)),"") ->  | BR172: =IF(BQ172<>"",$I$21,"") ->  | BS172: =IF(BQ172<>"",$J$21,"") -> 
L173: 171 | BD173: 199 | BE173: FALSE | BF173: =IF(BE173,'Google Finance Stocks'!D197) -> FALSE | BH173: =IF(BE173,'Google Finance Stocks'!E197) -> FALSE | BL173: 199 | BM173: FALSE | BN173: ='Exchange Rates'!D183 -> 0 | BP173: =IF(BM173,'Exchange Rates'!E183) -> FALSE
L174: 172 | BD174: 200 | BE174: FALSE | BF174: =IF(BE174,'Google Finance Stocks'!D198) -> FALSE | BH174: =IF(BE174,'Google Finance Stocks'!E198) -> FALSE | BL174: 200 | BM174: FALSE | BN174: ='Exchange Rates'!D184 -> 0 | BP174: =IF(BM174,'Exchange Rates'!E184) -> FALSE
L175: 173 | BD175: 201 | BE175: FALSE | BF175: =IF(BE175,'Google Finance Stocks'!D199) -> FALSE | BH175: =IF(BE175,'Google Finance Stocks'!E199) -> FALSE | BL175: 201 | BM175: FALSE | BN175: ='Exchange Rates'!D185 -> 0 | BP175: =IF(BM175,'Exchange Rates'!E185) -> FALSE
L176: 174 | BD176: 202 | BE176: FALSE | BF176: =IF(BE176,'Google Finance Stocks'!D200) -> FALSE | BH176: =IF(BE176,'Google Finance Stocks'!E200) -> FALSE | BL176: 202 | BM176: FALSE | BN176: ='Exchange Rates'!D186 -> 0 | BP176: =IF(BM176,'Exchange Rates'!E186) -> FALSE
BD177: 203 | BE177: FALSE | BF177: =IF(BE177,'Google Finance Stocks'!D201) -> FALSE | BH177: =IF(BE177,'Google Finance Stocks'!E201) -> FALSE | BL177: 203 | BM177: FALSE | BN177: ='Exchange Rates'!D187 -> 0 | BP177: =IF(BM177,'Exchange Rates'!E187) -> FALSE
BD178: 204 | BE178: FALSE | BF178: =IF(BE178,'Google Finance Stocks'!D202) -> FALSE | BH178: =IF(BE178,'Google Finance Stocks'!E202) -> FALSE | BL178: 204 | BM178: FALSE | BN178: ='Exchange Rates'!D188 -> 0 | BP178: =IF(BM178,'Exchange Rates'!E188) -> FALSE
BD179: 205 | BE179: FALSE | BF179: =IF(BE179,'Google Finance Stocks'!D203) -> FALSE | BH179: =IF(BE179,'Google Finance Stocks'!E203) -> FALSE | BL179: 205 | BM179: FALSE | BN179: ='Exchange Rates'!D189 -> 0 | BP179: =IF(BM179,'Exchange Rates'!E189) -> FALSE
BD180: 206 | BE180: FALSE | BF180: =IF(BE180,'Google Finance Stocks'!D204) -> FALSE | BH180: =IF(BE180,'Google Finance Stocks'!E204) -> FALSE | BL180: 206 | BM180: FALSE | BN180: ='Exchange Rates'!D190 -> 0 | BP180: =IF(BM180,'Exchange Rates'!E190) -> FALSE
BD181: 207 | BE181: FALSE | BF181: =IF(BE181,'Google Finance Stocks'!D205) -> FALSE | BH181: =IF(BE181,'Google Finance Stocks'!E205) -> FALSE | BL181: 207 | BM181: FALSE | BN181: ='Exchange Rates'!D191 -> 0 | BP181: =IF(BM181,'Exchange Rates'!E191) -> FALSE
BD182: 208 | BE182: FALSE | BF182: =IF(BE182,'Google Finance Stocks'!D206) -> FALSE | BH182: =IF(BE182,'Google Finance Stocks'!E206) -> FALSE | BL182: 208 | BM182: FALSE | BN182: ='Exchange Rates'!D192 -> 0 | BP182: =IF(BM182,'Exchange Rates'!E192) -> FALSE
BD183: 209 | BE183: FALSE | BF183: =IF(BE183,'Google Finance Stocks'!D207) -> FALSE | BH183: =IF(BE183,'Google Finance Stocks'!E207) -> FALSE | BL183: 209 | BM183: FALSE | BN183: ='Exchange Rates'!D193 -> 0 | BP183: =IF(BM183,'Exchange Rates'!E193) -> FALSE
BD184: 210 | BE184: FALSE | BF184: =IF(BE184,'Google Finance Stocks'!D208) -> FALSE | BH184: =IF(BE184,'Google Finance Stocks'!E208) -> FALSE | BL184: 210 | BM184: FALSE | BN184: ='Exchange Rates'!D194 -> 0 | BP184: =IF(BM184,'Exchange Rates'!E194) -> FALSE
BD185: 211 | BE185: FALSE | BF185: =IF(BE185,'Google Finance Stocks'!D209) -> FALSE | BH185: =IF(BE185,'Google Finance Stocks'!E209) -> FALSE | BL185: 211 | BM185: FALSE | BN185: ='Exchange Rates'!D195 -> 0 | BP185: =IF(BM185,'Exchange Rates'!E195) -> FALSE
BD186: 212 | BE186: FALSE | BF186: =IF(BE186,'Google Finance Stocks'!D210) -> FALSE | BH186: =IF(BE186,'Google Finance Stocks'!E210) -> FALSE | BL186: 212 | BM186: FALSE | BN186: ='Exchange Rates'!D196 -> 0 | BP186: =IF(BM186,'Exchange Rates'!E196) -> FALSE
BD187: 213 | BE187: FALSE | BF187: =IF(BE187,'Google Finance Stocks'!D211) -> FALSE | BH187: =IF(BE187,'Google Finance Stocks'!E211) -> FALSE | BL187: 213 | BM187: FALSE | BN187: ='Exchange Rates'!D197 -> 0 | BP187: =IF(BM187,'Exchange Rates'!E197) -> FALSE
BD188: 214 | BE188: FALSE | BF188: =IF(BE188,'Google Finance Stocks'!D212) -> FALSE | BH188: =IF(BE188,'Google Finance Stocks'!E212) -> FALSE | BL188: 214 | BM188: FALSE | BN188: ='Exchange Rates'!D198 -> 0 | BP188: =IF(BM188,'Exchange Rates'!E198) -> FALSE
BD189: 215 | BE189: FALSE | BF189: =IF(BE189,'Google Finance Stocks'!D213) -> FALSE | BH189: =IF(BE189,'Google Finance Stocks'!E213) -> FALSE | BL189: 215 | BM189: FALSE | BN189: ='Exchange Rates'!D199 -> 0 | BP189: =IF(BM189,'Exchange Rates'!E199) -> FALSE
BD190: 216 | BE190: FALSE | BF190: =IF(BE190,'Google Finance Stocks'!D214) -> FALSE | BH190: =IF(BE190,'Google Finance Stocks'!E214) -> FALSE | BL190: 216 | BM190: FALSE | BN190: ='Exchange Rates'!D200 -> 0 | BP190: =IF(BM190,'Exchange Rates'!E200) -> FALSE
BD191: 217 | BE191: FALSE | BF191: =IF(BE191,'Google Finance Stocks'!D215) -> FALSE | BH191: =IF(BE191,'Google Finance Stocks'!E215) -> FALSE | BL191: 217 | BM191: FALSE | BN191: ='Exchange Rates'!D201 -> 0 | BP191: =IF(BM191,'Exchange Rates'!E201) -> FALSE
BD192: 218 | BE192: FALSE | BF192: =IF(BE192,'Google Finance Stocks'!D216) -> FALSE | BH192: =IF(BE192,'Google Finance Stocks'!E216) -> FALSE | BL192: 218 | BM192: FALSE | BN192: ='Exchange Rates'!D202 -> 0 | BP192: =IF(BM192,'Exchange Rates'!E202) -> FALSE
BD193: 219 | BE193: FALSE | BF193: =IF(BE193,'Google Finance Stocks'!D217) -> FALSE | BH193: =IF(BE193,'Google Finance Stocks'!E217) -> FALSE | BL193: 219 | BM193: FALSE | BN193: ='Exchange Rates'!D203 -> 0 | BP193: =IF(BM193,'Exchange Rates'!E203) -> FALSE
BD194: 220 | BE194: FALSE | BF194: =IF(BE194,'Google Finance Stocks'!D218) -> FALSE | BH194: =IF(BE194,'Google Finance Stocks'!E218) -> FALSE | BL194: 220 | BM194: FALSE | BN194: ='Exchange Rates'!D204 -> 0 | BP194: =IF(BM194,'Exchange Rates'!E204) -> FALSE
BD195: 221 | BE195: FALSE | BF195: =IF(BE195,'Google Finance Stocks'!D219) -> FALSE | BH195: =IF(BE195,'Google Finance Stocks'!E219) -> FALSE | BL195: 221 | BM195: FALSE | BN195: ='Exchange Rates'!D205 -> 0 | BP195: =IF(BM195,'Exchange Rates'!E205) -> FALSE
BD196: 222 | BE196: FALSE | BF196: =IF(BE196,'Google Finance Stocks'!D220) -> FALSE | BH196: =IF(BE196,'Google Finance Stocks'!E220) -> FALSE | BL196: 222 | BM196: FALSE | BN196: ='Exchange Rates'!D206 -> 0 | BP196: =IF(BM196,'Exchange Rates'!E206) -> FALSE
BD197: =BD196+1 -> 223 | BE197: FALSE | BF197: =IF(BE197,'Google Finance Stocks'!D221) -> FALSE | BH197: =IF(BE197,'Google Finance Stocks'!E221) -> FALSE | BL197: =BL196+1 -> 223 | BM197: FALSE | BN197: ='Exchange Rates'!D207 -> 0 | BP197: =IF(BM197,'Exchange Rates'!E207) -> FALSE
BD198: 224 | BE198: FALSE | BF198: =IF(BE198,'Google Finance Stocks'!D222) -> FALSE | BH198: =IF(BE198,'Google Finance Stocks'!E222) -> FALSE | BL198: 224 | BM198: FALSE | BN198: ='Exchange Rates'!D208 -> 0 | BP198: =IF(BM198,'Exchange Rates'!E208) -> FALSE
BD199: 225 | BE199: FALSE | BF199: =IF(BE199,'Google Finance Stocks'!D223) -> FALSE | BH199: =IF(BE199,'Google Finance Stocks'!E223) -> FALSE | BL199: 225 | BM199: FALSE | BN199: ='Exchange Rates'!D209 -> 0 | BP199: =IF(BM199,'Exchange Rates'!E209) -> FALSE
BD200: 226 | BE200: FALSE | BF200: =IF(BE200,'Google Finance Stocks'!D224) -> FALSE | BH200: =IF(BE200,'Google Finance Stocks'!E224) -> FALSE | BL200: 226 | BM200: FALSE | BN200: ='Exchange Rates'!D210 -> 0 | BP200: =IF(BM200,'Exchange Rates'!E210) -> FALSE
... 6 more rows

Sheet Multiple Stock Graph
C1: Index | K1: IRR | L1: Vol | M1: Beta | AA1: Start | AB1: Final | AC1: Years
J2: =O26 -> US S&P 500 | K2: =Summary!K4 -> 0.0773411915 | L2: =Summary!AT5 -> 0.1426409978 | M2: =Summary!AT3 -> 1 | Y2: =J2 -> US S&P 500 | AA2: =Summary!D3 -> 1950-01-01 | AB2: =Summary!K3 -> 6.195291771 | AC2: =Summary!E4 -> 25.48166393
B3: Comparison vs Base | G3: Counter | H3: Match | I3: Selection
A4: 1 | B4: ='Read Stocks'!M3 -> S&P 500 | C4: ='Read Stocks'!N3 -> US S&P 500 | D4: FALSE | F4: =D4*1 -> 0 | G4: 1 | H4: =MATCH(G4,F$1:F$555,0) -> 9 | I4: =INDEX(B:B,H4) -> GE | J4: =INDEX(C:C,H4) -> General Electric | K4: =IFERROR(TRANSPOSE(Summary!BA4:BF4),"") -> 0.09568062486 | L4: =IFERROR(TRANSPOSE(Summary!AU5:AZ5),"") -> 0.2596742928 | M4: =IFERROR(TRANSPOSE(Summary!AU3:AZ3),"") -> 1.2773269 | Y4: =J4 -> General Electric | AA4: =TRANSPOSE(Summary!AB2:AG2) -> 1962-01-01 | AB4: =TRANSPOSE(Summary!BA3:BF3) -> 9.365477196
A5: 2 | B5: ='Read Stocks'!M4 -> DAX | C5: ='Read Stocks'!N4 -> DAX in Euro | D5: FALSE | F5: =F4+D5 -> 0 | G5: 2 | H5: =MATCH(G5,F$1:F$555,0) -> 10 | I5: =INDEX(B:B,H5) -> AAPL | J5: =INDEX(C:C,H5) -> Apple | K5: 0.207795755 | L5: 0.4545247695 | M5: 1.261186782 | Y5: =J5 -> Apple | AA5: 1980-12-01 | AB5: 101.7038244
A6: 3 | B6: ='Read Stocks'!M5 -> NASDAQ100 | C6: ='Read Stocks'!N5 -> Nasdaq 100 Index | D6: FALSE | F6: 0 | G6: 3 | H6: 11 | I6: GOOG | J6: Google | K6: 0.1344461644 | L6: 0.3047214412 | M6: 1.075015777 | Y6: Google | AA6: 2004-08-01 | AB6: 21.93819088
A7: 4 | B7: ='Read Stocks'!M6 -> DCOILBRENTEU | C7: ='Read Stocks'!N6 -> Crude Oil Prices: Brent - Europe (DCOILBRENTEU) | D7: FALSE | F7: 0 | G7: 4 | H7: 12 | I7: AMZN | J7: Amazon | K7: 0.3327814688 | L7: 0.557584606 | M7: 1.818534245 | Y7: Amazon | AA7: 1997-05-01 | AB7: 1133.200033
A8: 5 | B8: ='Read Stocks'!M7 -> PCOPPUSDM | C8: ='Read Stocks'!N7 -> Global price of Copper© (PCOPPUSDM) | D8: FALSE | F8: 0 | G8: 5 | AB8: 1
A9: 6 | B9: ='Read Stocks'!M8 -> GE | C9: ='Read Stocks'!N8 -> General Electric | D9: TRUE | F9: 1 | G9: 6 | AB9: 1
A10: 7 | B10: ='Read Stocks'!M9 -> AAPL | C10: ='Read Stocks'!N9 -> Apple | D10: TRUE | F10: 2 | G10: 7
A11: 8 | B11: ='Read Stocks'!M10 -> GOOG | C11: ='Read Stocks'!N10 -> Google | D11: TRUE | F11: 3 | G11: 8
A12: 9 | B12: ='Read Stocks'!M11 -> AMZN | C12: ='Read Stocks'!N11 -> Amazon | D12: TRUE | F12: 4 | G12: 9
A13: 10 | B13: ='Read Stocks'!M12 -> FB | C13: ='Read Stocks'!N12 -> Facebook | D13: FALSE | F13: 4 | G13: 10
A14: 11 | B14: ='Read Stocks'!M13 -> DTE.DE | C14: ='Read Stocks'!N13 -> Deutsche Telekom AG (ADR) | D14: FALSE | F14: 4 | G14: 11
A15: 12 | B15: ='Read Stocks'!M14 -> FTE | C15: ='Read Stocks'!N14 -> France Telecom SA (ADR) | D15: FALSE | F15: 4 | G15: 12 | J15: =J2 -> US S&P 500 | K15: 0 | L15: =IFERROR(INDEX('Read Stocks'!$BN$3:$BN$11,'Multiple Stock Graph'!K15),"USD") -> USD | Y15: Instructions at www.edbodmer.com
A16: 13 | B16: ='Read Stocks'!M15 -> BT | C16: ='Read Stocks'!N15 -> BT Group plc (ADR) (BT) | D16: FALSE | F16: 4 | G16: 13 | J16: =J4 -> General Electric | K16: 0 | L16: =IFERROR(INDEX('Read Stocks'!$BN$3:$BN$11,'Multiple Stock Graph'!K16),"USD") -> USD | Y16: Questions: e-mail edwardbodmer@gmail.com
A17: 14 | B17: ='Read Stocks'!M16 -> VOD | C17: ='Read Stocks'!N16 -> Vodafone Group plc | D17: FALSE | F17: 4 | G17: 14 | J17: =J5 -> Apple | K17: 0 | L17: =IFERROR(INDEX('Read Stocks'!$BN$3:$BN$11,'Multiple Stock Graph'!K17),"USD") -> USD
A18: 15 | B18: ='Read Stocks'!M17 -> VZ | C18: ='Read Stocks'!N17 -> Verizon Communications... | D18: FALSE | F18: 4 | G18: 15 | J18: Google | K18: 0 | L18: =IFERROR(INDEX('Read Stocks'!$BN$3:$BN$11,'Multiple Stock Graph'!K18),"USD") -> USD
A19: 16 | B19: ='Read Stocks'!M18 -> S | C19: ='Read Stocks'!N18 -> Sprint | D19: FALSE | F19: 4 | G19: 16 | J19: Amazon | K19: 0 | L19: =IFERROR(INDEX('Read Stocks'!$BN$3:$BN$11,'Multiple Stock Graph'!K19),"USD") -> USD
A20: 17 | B20: ='Read Stocks'!M19 -> PHI | C20: ='Read Stocks'!N19 -> Philippine Long Distance (PHI) | D20: FALSE | F20: 4 | G20: 17 | K20: 0 | L20: =IFERROR(INDEX('Read Stocks'!$BN$3:$BN$11,'Multiple Stock Graph'!K20),"USD") -> USD
A21: 18 | B21: ='Read Stocks'!M20 -> TKC | C21: ='Read Stocks'!N20 -> Turkcell Iletisim Hizm... | D21: FALSE | F21: 4 | G21: 18 | K21: 0 | L21: =IFERROR(INDEX('Read Stocks'!$BN$3:$BN$11,'Multiple Stock Graph'!K21),"USD") -> USD
A22: 19 | B22: ='Read Stocks'!M21 -> JPM | C22: ='Read Stocks'!N21 -> JP Morgan | D22: FALSE | F22: 4 | G22: 19
A23: 20 | B23: ='Read Stocks'!M22 -> MCD | C23: ='Read Stocks'!N22 -> McDonalds | D23: FALSE | F23: 4 | G23: 20
A24: 21 | B24: ='Read Stocks'!M23 -> WMT | C24: ='Read Stocks'!N23 -> Wall Mart | D24: FALSE | F24: 4 | G24: 21
A25: 22 | B25: ='Read Stocks'!M24 -> NG.L | C25: ='Read Stocks'!N24 -> National Grid | D25: FALSE | F25: 4 | G25: 22
A26: 23 | B26: ='Read Stocks'!M25 -> EXC | C26: ='Read Stocks'!N25 -> Exelon | D26: FALSE | F26: 4 | G26: 23 | L26: Primary Stock | N26: =Forms!J4 -> 1 | O26: =INDEX(C4:C195,Forms!J4) -> US S&P 500
A27: 24 | B27: ='Read Stocks'!M26 -> ENGI.PA | C27: ='Read Stocks'!N26 -> GDF Suez | D27: FALSE | F27: 4 | G27: 24 | L27: Use the Drop Down Box for Selecting the Stock
A28: 25 | B28: ='Read Stocks'!M27 -> EDF.PA | C28: ='Read Stocks'!N27 -> EDF | D28: FALSE | F28: 4 | G28: 25 | L28: Use the check boxes for comparison
A29: 26 | B29: ='Read Stocks'!M28 -> ED | C29: ='Read Stocks'!N28 -> Consolidated Edison | D29: FALSE | F29: 4 | G29: 26 | L29: Use the first check box for index in computing beta and other statistics
A30: 27 | B30: ='Read Stocks'!M29 -> 5347.KL | C30: ='Read Stocks'!N29 -> Tenaga | D30: FALSE | F30: 4 | G30: 27
A31: 28 | B31: ='Read Stocks'!M30 -> MAEOY | C31: ='Read Stocks'!N30 -> Meralco | D31: FALSE | F31: 4 | G31: 28
A32: 29 | B32: ='Read Stocks'!M31 -> GDP Inf | C32: ='Read Stocks'!N31 -> Implicit Price Deflator | D32: FALSE | F32: 4 | G32: 29
A33: 30 | B33: ='Read Stocks'!M32 -> CPI US | C33: ='Read Stocks'!N32 -> Consumer Price Inflation | D33: FALSE | F33: 4 | G33: 30
A34: 31 | B34: ='Read Stocks'!M33 -> Euro | C34: ='Read Stocks'!N33 -> U.S. / Euro Foreign Exchange Rate (EXUSEU) | D34: FALSE | F34: 4 | G34: 31
A35: 32 | B35: ='Read Stocks'!M34 -> INR | C35: ='Read Stocks'!N34 -> India / U.S. Foreign Exchange Rate (DEXINUS) | D35: FALSE | F35: 4 | G35: 32
A36: 33 | B36: ='Read Stocks'!M35 -> UK | C36: ='Read Stocks'!N35 -> U.S. / U.K. Foreign Exchange Rate (EXUSUK) | D36: FALSE | F36: 4 | G36: 33
A37: 34 | B37: ='Read Stocks'!M36 -> CFH | C37: ='Read Stocks'!N36 -> Switzerland / U.S. Foreign Exchange Rate (DEXSZUS) | D37: FALSE | F37: 4 | G37: 34
A38: 35 | B38: ='Read Stocks'!M37 -> US NOM GNP | C38: ='Read Stocks'!N37 -> Gross National Product (GNP) | D38: FALSE | F38: 4 | G38: 35
A39: 36 | B39: ='Read Stocks'!M38 ->  | C39: ='Read Stocks'!N38 ->  | D39: FALSE | F39: 4 | G39: 36
A40: 37 | B40: ='Read Stocks'!M39 ->  | C40: ='Read Stocks'!N39 ->  | D40: FALSE | F40: 4 | G40: 37
A41: 38 | B41: ='Read Stocks'!M40 ->  | C41: ='Read Stocks'!N40 ->  | D41: FALSE | F41: 4 | G41: 38
A42: 39 | B42: ='Read Stocks'!M41 ->  | C42: ='Read Stocks'!N41 ->  | D42: FALSE | F42: 4 | G42: 39
A43: 40 | B43: ='Read Stocks'!M42 ->  | C43: ='Read Stocks'!N42 ->  | D43: FALSE | F43: 4 | G43: 40
A44: 41 | B44: ='Read Stocks'!M43 ->  | C44: ='Read Stocks'!N43 ->  | D44: FALSE | F44: =F43+D44 -> 4 | G44: 41 | I44: =INDEX(B:B,H44) -> 
A45: 42 | B45: ='Read Stocks'!M44 ->  | C45: ='Read Stocks'!N44 ->  | D45: FALSE | F45: =F44+D45 -> 4 | G45: 42
A46: 43 | B46: ='Read Stocks'!M45 ->  | C46: ='Read Stocks'!N45 ->  | D46: FALSE | F46: 4 | G46: 43
A47: 44 | B47: ='Read Stocks'!M46 ->  | C47: ='Read Stocks'!N46 ->  | D47: FALSE | F47: 4 | G47: 44
A48: 45 | B48: ='Read Stocks'!M47 ->  | C48: ='Read Stocks'!N47 ->  | D48: FALSE | F48: 4 | G48: 45
A49: 46 | B49: ='Read Stocks'!M48 ->  | C49: ='Read Stocks'!N48 ->  | D49: FALSE | F49: =F48+D49 -> 4 | G49: 45 | I49: =INDEX(B:B,H49) -> 
A50: 47 | B50: ='Read Stocks'!M49 ->  | C50: ='Read Stocks'!N49 ->  | D50: FALSE | F50: 4 | G50: 45
A51: 48 | B51: ='Read Stocks'!M50 ->  | C51: ='Read Stocks'!N50 ->  | D51: FALSE | F51: 4 | G51: 45
A52: 49 | B52: ='Read Stocks'!M51 ->  | C52: ='Read Stocks'!N51 ->  | D52: FALSE | F52: 4 | G52: 45
A53: 50 | B53: ='Read Stocks'!M52 ->  | C53: ='Read Stocks'!N52 ->  | D53: FALSE | F53: 4 | G53: 45
A54: 51 | B54: ='Read Stocks'!M53 ->  | C54: ='Read Stocks'!N53 ->  | D54: FALSE | F54: 4 | G54: 45
A55: 52 | B55: ='Read Stocks'!M54 ->  | C55: ='Read Stocks'!N54 ->  | D55: FALSE | F55: 4 | G55: 45
A56: 53 | B56: ='Read Stocks'!M55 ->  | C56: ='Read Stocks'!N55 ->  | D56: FALSE | F56: 4 | G56: 45
A57: 54 | B57: ='Read Stocks'!M56 ->  | C57: ='Read Stocks'!N56 ->  | D57: FALSE | F57: 4 | G57: 45
A58: 55 | B58: ='Read Stocks'!M57 ->  | C58: ='Read Stocks'!N57 ->  | D58: FALSE | F58: 4 | G58: 45
A59: 56 | B59: ='Read Stocks'!M58 ->  | C59: ='Read Stocks'!N58 ->  | D59: FALSE | F59: 4 | G59: 45
A60: 57 | B60: ='Read Stocks'!M59 ->  | C60: ='Read Stocks'!N59 ->  | D60: FALSE | F60: 4 | G60: 45
A61: 58 | B61: ='Read Stocks'!M60 ->  | C61: ='Read Stocks'!N60 ->  | D61: FALSE | F61: 4 | G61: 45
A62: 59 | B62: ='Read Stocks'!M61 ->  | C62: ='Read Stocks'!N61 ->  | D62: FALSE | F62: 4 | G62: 45
A63: 60 | B63: ='Read Stocks'!M62 ->  | C63: ='Read Stocks'!N62 ->  | D63: FALSE | F63: 4 | G63: 45
A64: 61 | B64: ='Read Stocks'!M63 ->  | C64: ='Read Stocks'!N63 ->  | D64: FALSE | F64: 4 | G64: 45
A65: 62 | B65: ='Read Stocks'!M64 ->  | C65: ='Read Stocks'!N64 ->  | D65: FALSE | F65: 4 | G65: 45
A66: 63 | B66: ='Read Stocks'!M65 ->  | C66: ='Read Stocks'!N65 ->  | D66: FALSE | F66: 4 | G66: 45
A67: 64 | B67: ='Read Stocks'!M66 ->  | C67: ='Read Stocks'!N66 ->  | D67: FALSE | F67: 4 | G67: 45
A68: 65 | B68: ='Read Stocks'!M67 ->  | C68: ='Read Stocks'!N67 ->  | D68: FALSE | F68: 4 | G68: 45
A69: 66 | B69: ='Read Stocks'!M68 ->  | C69: ='Read Stocks'!N68 ->  | D69: FALSE | F69: 4 | G69: 45 | H69: =MATCH(G69,F$1:F$555,0) ->  | J69: =INDEX(C:C,H69) -> 
A70: 67 | B70: ='Read Stocks'!M69 ->  | C70: ='Read Stocks'!N69 ->  | D70: FALSE | F70: 4 | G70: 45
A71: 68 | B71: ='Read Stocks'!M70 ->  | C71: ='Read Stocks'!N70 ->  | D71: FALSE | F71: 4 | G71: 45
A72: 69 | B72: ='Read Stocks'!M71 ->  | C72: ='Read Stocks'!N71 ->  | D72: FALSE | F72: 4 | G72: 45
A73: 70 | B73: ='Read Stocks'!M72 ->  | C73: ='Read Stocks'!N72 ->  | D73: FALSE | F73: 4 | G73: 45
A74: 71 | B74: ='Read Stocks'!M73 ->  | C74: ='Read Stocks'!N73 ->  | D74: FALSE | F74: 4 | G74: 45
A75: 72 | B75: ='Read Stocks'!M74 ->  | C75: ='Read Stocks'!N74 ->  | D75: FALSE | F75: 4 | G75: 45
A76: 73 | B76: ='Read Stocks'!M75 ->  | C76: ='Read Stocks'!N75 ->  | D76: FALSE | F76: 4 | G76: 45
A77: 74 | B77: ='Read Stocks'!M76 ->  | C77: ='Read Stocks'!N76 ->  | D77: FALSE | F77: 4 | G77: 45
A78: 75 | B78: ='Read Stocks'!M77 ->  | C78: ='Read Stocks'!N77 ->  | D78: FALSE | F78: 4 | G78: 45
A79: 76 | B79: ='Read Stocks'!M78 ->  | C79: ='Read Stocks'!N78 ->  | D79: FALSE | F79: 4 | G79: 45
A80: 77 | B80: ='Read Stocks'!M79 ->  | C80: ='Read Stocks'!N79 ->  | D80: FALSE | F80: 4 | G80: 45
A81: 78 | B81: ='Read Stocks'!M80 ->  | C81: ='Read Stocks'!N80 ->  | D81: FALSE | F81: 4 | G81: 45
A82: 79 | B82: ='Read Stocks'!M81 ->  | C82: ='Read Stocks'!N81 ->  | D82: FALSE | F82: 4 | G82: 45
A83: 80 | B83: ='Read Stocks'!M82 ->  | C83: ='Read Stocks'!N82 ->  | D83: FALSE | F83: 4 | G83: 45
A84: 81 | B84: ='Read Stocks'!M83 ->  | C84: ='Read Stocks'!N83 ->  | D84: FALSE | F84: 4 | G84: 45
A85: 82 | B85: ='Read Stocks'!M84 ->  | C85: ='Read Stocks'!N84 ->  | D85: FALSE | F85: 4 | G85: 45
A86: 83 | B86: ='Read Stocks'!M85 ->  | C86: ='Read Stocks'!N85 ->  | D86: FALSE | F86: 4 | G86: 45
A87: 84 | B87: ='Read Stocks'!M86 ->  | C87: ='Read Stocks'!N86 ->  | D87: FALSE | F87: 4 | G87: 45
A88: 85 | B88: ='Read Stocks'!M87 ->  | C88: ='Read Stocks'!N87 ->  | D88: FALSE | F88: 4 | G88: 45
A89: 86 | B89: ='Read Stocks'!M88 ->  | C89: ='Read Stocks'!N88 ->  | D89: FALSE | F89: 4 | G89: 45
A90: 87 | B90: ='Read Stocks'!M89 ->  | C90: ='Read Stocks'!N89 ->  | D90: FALSE | F90: 4 | G90: 45
A91: 88 | B91: ='Read Stocks'!M90 ->  | C91: ='Read Stocks'!N90 ->  | D91: FALSE | F91: 4 | G91: 45
A92: 89 | B92: ='Read Stocks'!M91 ->  | C92: ='Read Stocks'!N91 ->  | D92: FALSE | F92: 4 | G92: 45
A93: 90 | B93: ='Read Stocks'!M92 ->  | C93: ='Read Stocks'!N92 ->  | D93: FALSE | F93: 4 | G93: 45
A94: 91 | B94: ='Read Stocks'!M93 ->  | C94: ='Read Stocks'!N93 ->  | D94: FALSE | F94: 4 | G94: 45
A95: 92 | B95: ='Read Stocks'!M94 ->  | C95: ='Read Stocks'!N94 ->  | D95: FALSE | F95: 4 | G95: 45
A96: 93 | B96: ='Read Stocks'!M95 ->  | C96: ='Read Stocks'!N95 ->  | D96: FALSE | F96: 4 | G96: 45
A97: 94 | B97: ='Read Stocks'!M96 ->  | C97: ='Read Stocks'!N96 ->  | D97: FALSE | F97: 4 | G97: 45
A98: 95 | B98: ='Read Stocks'!M97 ->  | C98: ='Read Stocks'!N97 ->  | D98: FALSE | F98: 4 | G98: 45
A99: 96 | B99: ='Read Stocks'!M98 ->  | C99: ='Read Stocks'!N98 ->  | D99: FALSE | F99: 4 | G99: 45
A100: 97 | B100: ='Read Stocks'!M99 ->  | C100: ='Read Stocks'!N99 ->  | D100: FALSE | F100: 4 | G100: 45
A101: 98 | B101: ='Read Stocks'!M100 ->  | C101: ='Read Stocks'!N100 ->  | D101: FALSE | F101: 4 | G101: 45
A102: 99 | B102: ='Read Stocks'!M101 ->  | C102: ='Read Stocks'!N101 ->  | D102: FALSE | F102: 4 | G102: 45
A103: 100 | B103: ='Read Stocks'!M102 ->  | C103: ='Read Stocks'!N102 ->  | D103: FALSE | F103: 4 | G103: 45
A104: 101 | B104: ='Read Stocks'!M103 ->  | C104: ='Read Stocks'!N103 ->  | D104: FALSE | F104: 4 | G104: 45
A105: 102 | B105: ='Read Stocks'!M104 ->  | C105: ='Read Stocks'!N104 ->  | D105: FALSE | F105: 4 | G105: 45
A106: 103 | B106: ='Read Stocks'!M105 ->  | C106: ='Read Stocks'!N105 ->  | D106: FALSE | F106: 4 | G106: 45
A107: 104 | B107: ='Read Stocks'!M106 ->  | C107: ='Read Stocks'!N106 ->  | D107: FALSE | F107: 4 | G107: 45
A108: 105 | B108: ='Read Stocks'!M107 ->  | C108: ='Read Stocks'!N107 ->  | D108: FALSE | F108: 4 | G108: 45
A109: 106 | B109: ='Read Stocks'!M108 ->  | C109: ='Read Stocks'!N108 ->  | D109: FALSE | F109: 4 | G109: 45
A110: 107 | B110: ='Read Stocks'!M109 ->  | C110: ='Read Stocks'!N109 ->  | D110: FALSE | F110: 4 | G110: 45
A111: 108 | B111: ='Read Stocks'!M110 ->  | C111: ='Read Stocks'!N110 ->  | D111: FALSE | F111: 4 | G111: 45
A112: 109 | B112: ='Read Stocks'!M111 ->  | C112: ='Read Stocks'!N111 ->  | D112: FALSE | F112: 4 | G112: 45
A113: 110 | B113: ='Read Stocks'!M112 ->  | C113: ='Read Stocks'!N112 ->  | D113: FALSE | F113: =F112+D113 -> 4 | G113: 45 | I113: =INDEX(B:B,H113) -> 
A114: 111 | B114: ='Read Stocks'!M113 ->  | C114: ='Read Stocks'!N113 ->  | D114: FALSE | F114: 4 | G114: 45
A115: 112 | B115: ='Read Stocks'!M114 ->  | C115: ='Read Stocks'!N114 ->  | D115: FALSE | F115: 4 | G115: 45
A116: 113 | B116: ='Read Stocks'!M115 ->  | C116: ='Read Stocks'!N115 ->  | D116: FALSE | F116: 4 | G116: 45
A117: 114 | B117: ='Read Stocks'!M116 ->  | C117: ='Read Stocks'!N116 ->  | D117: FALSE | F117: 4 | G117: 45
A118: 115 | B118: ='Read Stocks'!M117 ->  | C118: ='Read Stocks'!N117 ->  | D118: FALSE | F118: 4 | G118: 45
A119: 116 | B119: ='Read Stocks'!M118 ->  | C119: ='Read Stocks'!N118 ->  | D119: FALSE | F119: 4 | G119: 45
A120: 117 | B120: ='Read Stocks'!M119 ->  | C120: ='Read Stocks'!N119 ->  | D120: FALSE | F120: 4 | G120: 45
A121: 118 | B121: ='Read Stocks'!M120 ->  | C121: ='Read Stocks'!N120 ->  | D121: FALSE | F121: 4 | G121: 45
A122: 119 | B122: ='Read Stocks'!M121 ->  | C122: ='Read Stocks'!N121 ->  | D122: FALSE | F122: 4 | G122: 45
A123: 120 | B123: ='Read Stocks'!M122 ->  | C123: ='Read Stocks'!N122 ->  | D123: FALSE | F123: 4 | G123: 45
A124: 121 | B124: ='Read Stocks'!M123 ->  | C124: ='Read Stocks'!N123 ->  | D124: FALSE | F124: 4 | G124: 45
A125: 122 | B125: ='Read Stocks'!M124 ->  | C125: ='Read Stocks'!N124 ->  | D125: FALSE | F125: 4 | G125: 45
A126: 123 | B126: ='Read Stocks'!M125 ->  | C126: ='Read Stocks'!N125 ->  | D126: FALSE | F126: 4 | G126: 45
A127: 124 | B127: ='Read Stocks'!M126 ->  | C127: ='Read Stocks'!N126 ->  | D127: FALSE | F127: 4 | G127: 45
A128: 125 | B128: ='Read Stocks'!M127 ->  | C128: ='Read Stocks'!N127 ->  | D128: FALSE | F128: 4 | G128: 45
A129: 126 | B129: ='Read Stocks'!M128 ->  | C129: ='Read Stocks'!N128 ->  | D129: FALSE | F129: 4 | G129: 45
A130: 127 | B130: ='Read Stocks'!M129 ->  | C130: ='Read Stocks'!N129 ->  | D130: FALSE | F130: 4 | G130: 45
A131: 128 | B131: ='Read Stocks'!M130 ->  | C131: ='Read Stocks'!N130 ->  | D131: FALSE | F131: 4 | G131: 45
A132: 129 | B132: ='Read Stocks'!M131 ->  | C132: ='Read Stocks'!N131 ->  | D132: FALSE | F132: 4 | G132: 45
A133: 130 | B133: ='Read Stocks'!M132 ->  | C133: ='Read Stocks'!N132 ->  | D133: FALSE | F133: 4 | G133: 45 | H133: =MATCH(G133,F$1:F$555,0) ->  | J133: =INDEX(C:C,H133) -> 
A134: 131 | B134: ='Read Stocks'!M133 ->  | C134: ='Read Stocks'!N133 ->  | D134: FALSE | F134: 4 | G134: 45
A135: 132 | B135: ='Read Stocks'!M134 ->  | C135: ='Read Stocks'!N134 ->  | D135: FALSE | F135: 4 | G135: 45
A136: 133 | B136: ='Read Stocks'!M135 ->  | C136: ='Read Stocks'!N135 ->  | D136: FALSE | F136: 4 | G136: 45
A137: 134 | B137: ='Read Stocks'!M136 ->  | C137: ='Read Stocks'!N136 ->  | D137: FALSE | F137: 4 | G137: 45
A138: 135 | B138: ='Read Stocks'!M137 ->  | C138: ='Read Stocks'!N137 ->  | D138: FALSE | F138: 4 | G138: 45
A139: 136 | B139: ='Read Stocks'!M138 ->  | C139: ='Read Stocks'!N138 ->  | D139: FALSE | F139: 4 | G139: 45
A140: 137 | B140: ='Read Stocks'!M139 ->  | C140: ='Read Stocks'!N139 ->  | D140: FALSE | F140: 4 | G140: 45
A141: 138 | B141: ='Read Stocks'!M140 ->  | C141: ='Read Stocks'!N140 ->  | D141: FALSE | F141: 4 | G141: 45
A142: 139 | B142: ='Read Stocks'!M141 ->  | C142: ='Read Stocks'!N141 ->  | D142: FALSE | F142: 4 | G142: 45
A143: 140 | B143: ='Read Stocks'!M142 ->  | C143: ='Read Stocks'!N142 ->  | D143: FALSE | F143: 4 | G143: 45
A144: 141 | B144: ='Read Stocks'!M143 ->  | C144: ='Read Stocks'!N143 ->  | D144: FALSE | F144: 4 | G144: 45
A145: 142 | B145: ='Read Stocks'!M144 ->  | C145: ='Read Stocks'!N144 ->  | D145: FALSE | F145: 4 | G145: 45
A146: 143 | B146: ='Read Stocks'!M145 ->  | C146: ='Read Stocks'!N145 ->  | D146: FALSE | F146: 4 | G146: 45
A147: 144 | B147: ='Read Stocks'!M146 ->  | C147: ='Read Stocks'!N146 ->  | D147: FALSE | F147: 4 | G147: 45
A148: 145 | B148: ='Read Stocks'!M147 ->  | C148: ='Read Stocks'!N147 ->  | D148: FALSE | F148: 4 | G148: 45
A149: 146 | B149: ='Read Stocks'!M148 ->  | C149: ='Read Stocks'!N148 ->  | D149: FALSE | F149: 4 | G149: 45
A150: 147 | B150: ='Read Stocks'!M149 ->  | C150: ='Read Stocks'!N149 ->  | D150: FALSE | F150: 4 | G150: 45
A151: 148 | B151: ='Read Stocks'!M150 ->  | C151: ='Read Stocks'!N150 ->  | D151: FALSE | F151: 4 | G151: 45
A152: 149 | B152: ='Read Stocks'!M151 ->  | C152: ='Read Stocks'!N151 ->  | D152: FALSE | F152: 4 | G152: 45
A153: 150 | B153: ='Read Stocks'!M152 ->  | C153: ='Read Stocks'!N152 ->  | D153: FALSE | F153: 4 | G153: 45
A154: 151 | B154: ='Read Stocks'!M153 ->  | C154: ='Read Stocks'!N153 ->  | D154: FALSE | F154: 4 | G154: 45
A155: 152 | B155: ='Read Stocks'!M154 ->  | C155: ='Read Stocks'!N154 ->  | D155: FALSE | F155: 4 | G155: 45
A156: 153 | B156: ='Read Stocks'!M155 ->  | C156: ='Read Stocks'!N155 ->  | D156: FALSE | F156: 4 | G156: 45
A157: 154 | B157: ='Read Stocks'!M156 ->  | C157: ='Read Stocks'!N156 ->  | D157: FALSE | F157: 4 | G157: 45
A158: 155 | B158: ='Read Stocks'!M157 ->  | C158: ='Read Stocks'!N157 ->  | D158: FALSE | F158: 4 | G158: 45
A159: 156 | B159: ='Read Stocks'!M158 ->  | C159: ='Read Stocks'!N158 ->  | D159: FALSE | F159: 4 | G159: 45
A160: 157 | B160: ='Read Stocks'!M159 ->  | C160: ='Read Stocks'!N159 ->  | D160: FALSE | F160: 4 | G160: 45
A161: 158 | B161: ='Read Stocks'!M160 ->  | C161: ='Read Stocks'!N160 ->  | D161: FALSE | F161: 4 | G161: 45
A162: 159 | B162: ='Read Stocks'!M161 ->  | C162: ='Read Stocks'!N161 ->  | D162: FALSE | F162: 4 | G162: 45
A163: 160 | B163: ='Read Stocks'!M162 ->  | C163: ='Read Stocks'!N162 ->  | D163: FALSE | F163: 4 | G163: 45
A164: 161 | B164: ='Read Stocks'!M163 ->  | C164: ='Read Stocks'!N163 ->  | D164: FALSE | F164: 4 | G164: 45
A165: 162 | B165: ='Read Stocks'!M164 ->  | C165: ='Read Stocks'!N164 ->  | D165: FALSE | F165: 4 | G165: 45
A166: 163 | B166: ='Read Stocks'!M165 ->  | C166: ='Read Stocks'!N165 ->  | D166: FALSE | F166: 4 | G166: 45
A167: 164 | B167: ='Read Stocks'!M166 ->  | C167: ='Read Stocks'!N166 ->  | D167: FALSE | F167: 4 | G167: 45
A168: 165 | B168: ='Read Stocks'!M167 ->  | C168: ='Read Stocks'!N167 ->  | D168: FALSE | F168: 4 | G168: 45
A169: 166 | B169: ='Read Stocks'!M168 ->  | C169: ='Read Stocks'!N168 ->  | D169: FALSE | F169: 4 | G169: 45
A170: 167 | B170: ='Read Stocks'!M169 ->  | C170: ='Read Stocks'!N169 ->  | D170: FALSE | F170: 4 | G170: 45
A171: 168 | B171: ='Read Stocks'!M170 ->  | C171: ='Read Stocks'!N170 ->  | D171: FALSE | F171: 4 | G171: 45
A172: 169 | B172: ='Read Stocks'!M171 ->  | C172: ='Read Stocks'!N171 ->  | D172: FALSE | F172: 4 | G172: 45
A173: 170 | B173: ='Read Stocks'!M172 ->  | C173: ='Read Stocks'!N172 ->  | D173: FALSE | F173: 4 | G173: 45
A174: 171 | B174: ='Read Stocks'!M173 ->  | C174: ='Read Stocks'!N173 ->  | D174: FALSE | F174: 4 | G174: 45
A175: 172 | B175: ='Read Stocks'!M174 ->  | C175: ='Read Stocks'!N174 ->  | D175: FALSE | F175: 4 | G175: 45
A176: 173 | B176: ='Read Stocks'!M175 ->  | C176: ='Read Stocks'!N175 ->  | D176: FALSE | F176: 4 | G176: 45
A177: 174 | B177: ='Read Stocks'!M176 ->  | C177: ='Read Stocks'!N176 ->  | D177: FALSE | F177: =F176+D177 -> 4 | G177: 45 | I177: =INDEX(B:B,H177) -> 
A178: 175 | B178: ='Read Stocks'!M177 -> 0 | C178: ='Read Stocks'!N177 -> 0 | D178: FALSE | F178: 4 | G178: 45
A179: 176 | B179: ='Read Stocks'!M178 -> 0 | C179: ='Read Stocks'!N178 -> 0 | D179: FALSE | F179: 4 | G179: 45
A180: 177 | B180: ='Read Stocks'!M179 -> 0 | C180: ='Read Stocks'!N179 -> 0 | D180: FALSE | F180: 4 | G180: 45
A181: 178 | B181: ='Read Stocks'!M180 -> 0 | C181: ='Read Stocks'!N180 -> 0 | D181: FALSE | F181: 4 | G181: 45
A182: 179 | B182: ='Read Stocks'!M181 -> 0 | C182: ='Read Stocks'!N181 -> 0 | D182: FALSE | F182: 4 | G182: 45
A183: 180 | B183: ='Read Stocks'!M182 -> 0 | C183: ='Read Stocks'!N182 -> 0 | D183: FALSE | F183: 4 | G183: 45
A184: 181 | B184: ='Read Stocks'!M183 -> 0 | C184: ='Read Stocks'!N183 -> 0 | D184: FALSE | F184: 4 | G184: 45
A185: 182 | B185: ='Read Stocks'!M184 -> 0 | C185: ='Read Stocks'!N184 -> 0 | D185: FALSE | F185: 4 | G185: 45
A186: 183 | B186: ='Read Stocks'!M185 -> 0 | C186: ='Read Stocks'!N185 -> 0 | D186: FALSE | F186: 4 | G186: 45
A187: 184 | B187: ='Read Stocks'!M186 -> 0 | C187: ='Read Stocks'!N186 -> 0 | D187: FALSE | F187: 4 | G187: 45
A188: 185 | B188: ='Read Stocks'!M187 -> 0 | C188: ='Read Stocks'!N187 -> 0 | D188: FALSE | F188: 4 | G188: 45
A189: 186 | B189: ='Read Stocks'!M188 -> 0 | C189: ='Read Stocks'!N188 -> 0 | D189: FALSE | F189: 4 | G189: 45
A190: 187 | B190: ='Read Stocks'!M189 -> 0 | C190: ='Read Stocks'!N189 -> 0 | D190: FALSE | F190: 4 | G190: 45
A191: 188 | B191: ='Read Stocks'!M190 -> 0 | C191: ='Read Stocks'!N190 -> 0 | D191: FALSE | F191: 4 | G191: 45
A192: 189 | B192: ='Read Stocks'!M191 -> 0 | C192: ='Read Stocks'!N191 -> 0 | D192: FALSE | F192: 4 | G192: 45
A193: 190 | B193: ='Read Stocks'!M192 -> 0 | C193: ='Read Stocks'!N192 -> 0 | D193: FALSE | F193: 4 | G193: 45
A194: 191 | B194: ='Read Stocks'!M193 -> 0 | C194: ='Read Stocks'!N193 -> 0 | D194: FALSE | F194: 4 | G194: 45
A195: 192 | B195: ='Read Stocks'!M194 -> 0 | C195: ='Read Stocks'!N194 -> 0 | D195: FALSE | F195: 4 | G195: 45
D196: FALSE | F196: 4 | G196: 45
D197: FALSE | F197: 4 | G197: 45 | H197: =MATCH(G197,F$1:F$555,0) ->  | J197: =INDEX(C:C,H197) -> 
D198: FALSE | F198: 4 | G198: 45
D199: FALSE | F199: 4 | G199: 45
D200: FALSE | F200: 4 | G200: 45
... 100 more rows

Sheet Summary
C1: Selected Start | D1: =Forms!G9 -> 1993-01-01 | G1: Index No (Frms) | I1: =Forms!J4 -> 1 | L1: Graph Code | M1: =Forms!P7 -> 3 | N1: Height | O1: =COUNT(D10:D853) -> 307 | P1: Graph Cols | Q1: =COUNTIF('Multiple Stock Graph'!D:D,TRUE)+2 -> 6 | W1: Instructions at www.edbodmer.com | AS1: Periods in Yr | AU1: =IF(D6,52,12) -> 12
C2: End Date | D2: =MIN(Forms!L9,MAX(A:A)) -> 2018-07-01 | G2: Col to Read | I2: =INDEX('Read Stocks'!O3:O202,Summary!I1) -> F | N2: This is the data that is graphed | W2: Questions: e-mail edwardbodmer@gmail.com | AB2: =MIN(INDIRECT(AB5&"!A:A")) -> 1962-01-01 | AC2: =MIN(INDIRECT(AC5&"!A:A")) -> 1980-12-01 | AD2: 2004-08-01 | AE2: 1997-05-01 | BN2: First two are inflation, next 5 are exchange rates with multiplication
C3: Start of Series | D3: =IFERROR(MIN(INDIRECT("'"&$G$7&"'!A:A")),start_of_date) -> 1950-01-01 | J3: Final Val | K3: =LOOKUP(D2,$D$10:$D$837,K10:K837) -> 6.195291771 | AH3: Exchange Rate Adjustments | AN3: Adjusted Values for Exchange Rate | AS3: Beta | AT3: =SLOPE(AT10:AT837,$AT$10:$AT$837) -> 1 | AU3: =SLOPE(AU12:AU837,AT12:AT837) -> 1.2773269 | AV3: 1.261186782 | AW3: 1.075015777 | AX3: 1.818534245 | BA3: =LOOKUP($D$2,$D:$D,BA:BA) -> 9.365477196 | BB3: 101.7038244 | BC3: 21.93819088 | BD3: 1133.200033 | BE3: 1 | BF3: 1
C4: Final Start | D4: =MAX(D3,D1) -> 1993-01-01 | E4: =(D2-D4-1)/365.4 -> 25.48166393 | G4: No Re-calc | J4: IRR | K4: =(K3)^(1/($E$4-1))-1 -> 0.0773411915 | V4: Raw Values without Re-calc | AB4: Re-orded Lookup Value for Raw Value with Adjusted Date | AS4: Std Dev | AT4: =STDEV(AT10:AT837) -> 0.04117690924 | AU4: 0.07496151143 | AV4: 0.131209999 | AW4: 0.08796550304 | AX4: 0.1609608112 | BA4: =IF(BA3<>1,(BA3)^(1/($E$4-1))-1,"") -> 0.09568062486 | BB4: =IF(BB3<>1,(BB3)^(1/($E$4-1))-1,"") -> 0.207795755 | BC4: 0.1344461644 | BD4: 0.3327814688 | BG4: Raw Retrieval of Inflation and Exchange Indirect | BN4: Exchange Rate with Lookup
D5: Monhly Switch | M5: Single | O5: Main | P5: Comparators from Choose and Data to Right | V5: =TRANSPOSE('Multiple Stock Graph'!I4:I9) -> GE | W5: AAPL | X5: GOOG | Y5: AMZN | AB5: =V5 -> GE | AC5: =W5 -> AAPL | AD5: GOOG | AE5: AMZN | AS5: Volatiltiy | AT5: =AT4*$AU$1^0.5 -> 0.1426409978 | AU5: =AU4*$AU$1^0.5 -> 0.2596742928 | AV5: 0.4545247695 | AW5: 0.3047214412 | AX5: 0.557584606
A6: Base | D6: FALSE | F6: Base Stock | G6: Base Stock | H6: Exc Rate/Infl | I6: Adj for Inf/Exc | J6: Change | K6: Index | M6: Graph | O6: Item | P6: First Comparator(Stats) | V6: =MATCH(V5,'Read Stocks'!$M:$M,0) -> 8 | W6: =MATCH(W5,'Read Stocks'!$M:$M,0) -> 9 | X6: =MATCH(X5,'Read Stocks'!$M:$M,0) -> 10 | Y6: =MATCH(Y5,'Read Stocks'!$M:$M,0) -> 11 | Z6: =MATCH(Z5,'Read Stocks'!$M:$M,0) ->  | AA6: =MATCH(AA5,'Read Stocks'!$M:$M,0) ->  | AH6: FALSE | AI6: FALSE | AJ6: FALSE | AK6: FALSE | AL6: FALSE | AM6: FALSE | AT6: Growth Rate | AU6: Growth Rate | BA6: Index | BG6: =BN6 -> GDP Inf | BH6: =BO6 -> CPI US | BI6: Euro | BJ6: INR | BK6: UK | BN6: =TRANSPOSE('Exchange Rates'!D13:D47) -> GDP Inf | BO6: CPI US | BP6: Euro | BQ6: INR | BR6: UK | BS6: CFH | BT6: US NOM GNP
A7: Date | B7: Monthly | C7: Weekely | D7: Month or Day | E7: Date Selected | F7: =Forms!K4 -> 0 | G7: =Forms!L4 -> S&P 500 | H7: Adjustment | I7: =G7 -> S&P 500 | J7: =G7 -> S&P 500 | K7: =J7 -> S&P 500 | L7: X-Axis | M7: =CHOOSE($M$1,G7,J7,K7) -> S&P 500 | N7: x-axis | O7: =INDEX('Read Stocks'!N3:N202,Summary!I1) -> US S&P 500 | P7: =TRANSPOSE('Multiple Stock Graph'!J4:J9) -> General Electric | Q7: Apple | R7: Google | S7: Amazon | V7: =INDEX('Read Stocks'!$O:$O,Summary!V6) -> F | W7: =INDEX('Read Stocks'!$O:$O,Summary!W6) -> F | X7: =INDEX('Read Stocks'!$O:$O,Summary!X6) -> F | Y7: =INDEX('Read Stocks'!$O:$O,Summary!Y6) -> F | Z7: =INDEX('Read Stocks'!$O:$O,Summary!Z6) ->  | AA7: =INDEX('Read Stocks'!$O:$O,Summary!AA6) ->  | AH7: =TRANSPOSE('Multiple Stock Graph'!K16:K21) -> 0 | AI7: 0 | AJ7: 0 | AK7: 0 | AL7: 0 | AM7: 0 | AN7: =P7 -> General Electric | AO7: Apple | AP7: Google | AQ7: Amazon | AT7: =J7 -> S&P 500 | AU7: =V5 -> GE | AV7: AAPL | AW7: GOOG | AX7: AMZN | BA7: =AU7 -> GE | BB7: AAPL | BC7: GOOG | BD7: AMZN | BN7: B | BO7: B | BP7: B | BQ7: B | BR7: B | BS7: B | BT7: B
A8: Copied | B8: Date | C8: Date | D8: Date | E8: Switch | F8: Raw Data | G8: Raw Data | H8: ='Multiple Stock Graph'!K15 -> 0 | P8: 1 | Q8: 2 | R8: 3 | S8: 4 | T8: 5 | U8: 6 | V8: 1 | W8: 2 | X8: 3 | Y8: 4 | Z8: 5 | AA8: 6 | AH8: =IFERROR(INDEX($BN$6:$BT$6,AH7),"") ->  | AI8: =IFERROR(INDEX($BN$6:$BT$6,AI7),"") ->  | AN8: 1 | AO8: 2 | AP8: 3 | AQ8: 4 | AR8: 5 | AS8: 6 | BN8: Divide | BO8: Divide | BP8: Multply | BQ8: Multply | BR8: Multply | BS8: Multply | BT8: Multply
F9: =I2 -> F | G9: =I2 -> F | K9: 1 | O9: =O7 -> US S&P 500 | P9: =P7 -> General Electric | Q9: =Q7 -> Apple | R9: Google | S9: Amazon | BA9: 1 | BB9: 1 | BC9: 1 | BD9: 1 | BE9: 1 | BF9: 1
A10: 1950-01-01 | B10: =MAX(D3,D1) -> 1993-01-01 | C10: =B10 -> 1993-01-01 | D10: =IF($D$6,C10,B10) -> 1993-01-01 | E10: =AND(D10>=$D$4,D10<=$D$2) -> TRUE | F10: =LOOKUP(D10,A:A,G:G) -> 438.779999 | G10: =IFERROR(LOOKUP($A10,INDIRECT("'"&G$7&"'!A:A"),INDIRECT("'"&G$7&"'!"&$G$9&":"&$G$9)),0) -> 17.049999 | H10: =IF(H$8,INDEX($BN10:$BT10,H$8),1) -> 1 | I10: =IF(ISNUMBER(F10),F10,I11)*H10 -> 438.779999 | J10: =IFERROR(LN(G10/G9),FALSE) -> FALSE | K10: =IF($E10,(K9*(1+J10)),1) -> 1 | L10: =IF(E10,D10,NA()) -> 1993-01-01 | M10: =CHOOSE($M$1,I10,J10,K10) -> 1 | N10: =L10 -> 1993-01-01 | O10: =M10 -> 1 | P10: =CHOOSE($M$1,AN10,AU10,BA10) -> 1 | Q10: =CHOOSE($M$1,AO10,AV10,BB10) -> 1 | R10: =CHOOSE($M$1,AP10,AW10,BC10) -> 1 | S10: =CHOOSE($M$1,AQ10,AX10,BD10) -> 1 | T10: =CHOOSE($M$1,AR10,AY10,BE10) -> 1 | U10: =CHOOSE($M$1,AS10,AZ10,BF10) -> 1 | V10: =LOOKUP($A10,INDIRECT("'"&V$5&"'!A:A"),INDIRECT("'"&V$5&"'!"&V$7&":"&V$7)) ->  | W10: =LOOKUP($A10,INDIRECT("'"&W$5&"'!A:A"),INDIRECT("'"&W$5&"'!"&W$7&":"&W$7)) ->  | X10: =LOOKUP($A10,INDIRECT("'"&X$5&"'!A:A"),INDIRECT("'"&X$5&"'!"&X$7&":"&X$7)) ->  | AB10: =IF(ISNUMBER(LOOKUP($D10,$A:$A,V:V)),LOOKUP($D10,$A:$A,V:V),AB9) -> 1.426825 | AC10: =IF(ISNUMBER(LOOKUP($D10,$A:$A,W:W)),LOOKUP($D10,$A:$A,W:W),AC9) -> 1.813728 | AD10: 0 | AE10: 0 | AF10: 0 | AG10: 0 | AH10: =IF(AH$7,INDEX($BN10:$BT10,AH$7),1) -> 1 | AI10: =IF(AI$7,INDEX($BN10:$BT10,AI$7),1) -> 1 | AJ10: 1 | AK10: 1 | AL10: 1 | AM10: 1 | AN10: =IFERROR(IF(ISNUMBER(AB10)>0.1,AB10,AN11)*AH10,AN11) -> 1.426825 | AO10: =IFERROR(IF(ISNUMBER(AC10)>0.1,AC10,AO11)*AI10,AO11) -> 1.813728 | AP10: 0 | AQ10: 0 | AR10: 0 | AS10: =IF(ISNUMBER(AG10)>0.1,AG10,AS11) -> 0 | AT10: =J10 -> FALSE | AU10: =IF(E10,IFERROR(LN(AN10/AN9),FALSE)) -> FALSE | AV10: =IF(E10,IFERROR(LN(AO10/AO9),FALSE)) -> FALSE | AW10: =IF(E10,IFERROR(LN(AP10/AP9),FALSE)) -> FALSE | AX10: =IF(E10,IFERROR(LN(AQ10/AQ9),FALSE)) -> FALSE | AY10: =IF(E10,IFERROR(LN(AR10/AR9),FALSE)) -> FALSE | AZ10: =IF(E10,IFERROR(LN(AS10/AS9),FALSE)) -> FALSE | BA10: 1 | BB10: 1 | BC10: 1 | BD10: 1 | BE10: 1 | BF10: 1 | BG10: =IFERROR(LOOKUP($A10,INDIRECT("'"&BN$6&"'!A:A"),INDIRECT("'"&BN$6&"'!"&BN$7&":"&BN$7)),0) -> 12.853 | BH10: =IFERROR(LOOKUP($A10,INDIRECT("'"&BO$6&"'!A:A"),INDIRECT("'"&BO$6&"'!"&BO$7&":"&BO$7)),0) -> 23.51 | BI10: 0 | BJ10: 0 | BK10: 0 | BL10: 0 | BM10: 282.056 | BN10: =IFERROR(1/IFERROR(LOOKUP($D10,$A:$A,BG:BG)*1,0),1) -> 0.01463850219 | BO10: =IFERROR(1/IFERROR(LOOKUP($D10,$A:$A,BH:BH)*1,0),1) -> 0.00700280112 | BP10: =IFERROR(LOOKUP($D10,$A:$A,BI:BI)*1,0) -> 0 | BQ10: 0 | BR10: 1.5325 | BS10: 0 | BT10: 6766.665
A11: 1950-02-01 | B11: =IF(B10<=$D$2,EOMONTH(B10,1)) -> 1993-02-28 | C11: =IF(C10<=$D$2,C10+7) -> 1993-01-08 | D11: =IF($D$6,C11,B11) -> 1993-02-28 | E11: =AND(D11>=$D$4,D10<=$D$2) -> TRUE | F11: =LOOKUP(D11,A:A,G:G) -> 443.380005 | G11: =IFERROR(LOOKUP($A11,INDIRECT("'"&G$7&"'!A:A"),INDIRECT("'"&G$7&"'!"&$G$9&":"&$G$9)),0) -> 17.219999 | H11: =IF(H$8,INDEX($BN11:$BT11,H$8),1) -> 1 | I11: =IF(ISNUMBER(F11),F11,I12)*H11 -> 443.380005 | J11: =IFERROR(LN(I11/I10),FALSE) -> 0.01042905521 | K11: =IF($E11,(K10*I11/I10),1) -> 1.010483627 | L11: =IF(E11,D11,NA()) -> 1993-02-28 | M11: =CHOOSE($M$1,I11,J11,K11) -> 1.010483627 | N11: =L11 -> 1993-02-28 | O11: =M11 -> 1.010483627 | P11: =IFERROR(CHOOSE($M$1,AN11,AU11,BA11),1) -> 0.9767778109 | Q11: 0.8907559458 | R11: 1 | S11: 1 | T11: 1 | U11: 1 | V11: =LOOKUP($A11,INDIRECT("'"&V$5&"'!A:A"),INDIRECT("'"&V$5&"'!"&V$7&":"&V$7)) ->  | Y11: =LOOKUP($A11,INDIRECT("'"&Y$5&"'!A:A"),INDIRECT("'"&Y$5&"'!"&Y$7&":"&Y$7)) ->  | AB11: =IF(ISNUMBER(LOOKUP($D11,$A:$A,V:V)),LOOKUP($D11,$A:$A,V:V),AB10) -> 1.393691 | AC11: =IF(ISNUMBER(LOOKUP($D11,$A:$A,W:W)),LOOKUP($D11,$A:$A,W:W),AC10) -> 1.615589 | AD11: =IF(ISNUMBER(LOOKUP($D11,$A:$A,X:X)),LOOKUP($D11,$A:$A,X:X),AD10) -> 0 | AE11: =IF(ISNUMBER(LOOKUP($D11,$A:$A,Y:Y)),LOOKUP($D11,$A:$A,Y:Y),AE10) -> 0 | AF11: =IF(ISNUMBER(LOOKUP($D11,$A:$A,Z:Z)),LOOKUP($D11,$A:$A,Z:Z),AF10) -> 0 | AG11: =IF(ISNUMBER(LOOKUP($D11,$A:$A,AA:AA)),LOOKUP($D11,$A:$A,AA:AA),AG10) -> 0 | AH11: =IF(AH$7,INDEX($BN11:$BT11,AH$7),1) -> 1 | AI11: 1 | AJ11: 1 | AK11: 1 | AL11: 1 | AM11: 1 | AN11: =IFERROR(IF(ISNUMBER(AB11)>0.1,AB11,AN12)*AH11,AN12) -> 1.393691 | AO11: =IFERROR(IF(ISNUMBER(AC11)>0.1,AC11,AO12)*AI11,AO12) -> 1.615589 | AP11: =IFERROR(IF(ISNUMBER(AD11)>0.1,AD11,AP12)*AJ11,AP12) -> 0 | AQ11: =IFERROR(IF(ISNUMBER(AE11)>0.1,AE11,AQ12)*AK11,AQ12) -> 0 | AR11: =IFERROR(IF(ISNUMBER(AF11)>0.1,AF11,AR12)*AL11,AR12) -> 0 | AS11: =IF(ISNUMBER(AG11)>0.1,AG11,AS12) -> 0 | AT11: =J11 -> 0.01042905521 | AU11: =IF(E11,IFERROR(LN(AN11/AN10),FALSE)) -> -0.02349607258 | AV11: =IF(E11,IFERROR(LN(AO11/AO10),FALSE)) -> -0.1156847995 | AW11: =IF(E11,IFERROR(LN(AP11/AP10),FALSE)) -> FALSE | AX11: =IF(E11,IFERROR(LN(AQ11/AQ10),FALSE)) -> FALSE | AY11: =IF(E11,IFERROR(LN(AR11/AR10),FALSE)) -> FALSE | AZ11: =IF(E11,IFERROR(LN(AS11/AS10),FALSE)) -> FALSE | BA11: =IFERROR(IF($E11,BA10*AN11/AN10,1),1) -> 0.9767778109 | BB11: =IFERROR(IF($E11,BB10*AO11/AO10,1),1) -> 0.8907559458 | BC11: =IFERROR(IF($E11,BC10*AP11/AP10,1),1) -> 1 | BD11: =IFERROR(IF($E11,BD10*AQ11/AQ10,1),1) -> 1 | BE11: 1 | BF11: 1 | BG11: =IFERROR(LOOKUP($A11,INDIRECT("'"&BN$6&"'!A:A"),INDIRECT("'"&BN$6&"'!"&BN$7&":"&BN$7)),0) -> 12.853 | BH11: =IFERROR(LOOKUP($A11,INDIRECT("'"&BO$6&"'!A:A"),INDIRECT("'"&BO$6&"'!"&BO$7&":"&BO$7)),0) -> 23.61 | BI11: =IFERROR(LOOKUP($A11,INDIRECT("'"&BP$6&"'!A:A"),INDIRECT("'"&BP$6&"'!"&BP$7&":"&BP$7)),0) -> 0 | BJ11: =IFERROR(LOOKUP($A11,INDIRECT("'"&BQ$6&"'!A:A"),INDIRECT("'"&BQ$6&"'!"&BQ$7&":"&BQ$7)),0) -> 0 | BK11: =IFERROR(LOOKUP($A11,INDIRECT("'"&BR$6&"'!A:A"),INDIRECT("'"&BR$6&"'!"&BR$7&":"&BR$7)),0) -> 0 | BL11: =IFERROR(LOOKUP($A11,INDIRECT("'"&BS$6&"'!A:A"),INDIRECT("'"&BS$6&"'!"&BS$7&":"&BS$7)),0) -> 0 | BM11: =IFERROR(LOOKUP($A11,INDIRECT("'"&BT$6&"'!A:A"),INDIRECT("'"&BT$6&"'!"&BT$7&":"&BT$7)),0) -> 282.056 | BN11: =IFERROR(1/IFERROR(LOOKUP($D11,$A:$A,BG:BG)*1,0),1) -> 0.01463850219 | BO11: =IFERROR(1/IFERROR(LOOKUP($D11,$A:$A,BH:BH)*1,0),1) -> 0.006988120196 | BP11: =IFERROR(LOOKUP($D11,$A:$A,BI:BI)*1,BP10) -> 0 | BQ11: 29.35 | BR11: 1.4395 | BS11: 1.5185 | BT11: 6766.665
A12: 1950-03-01 | B12: =IF(B11<=$D$2,EOMONTH(B11,1)) -> 1993-03-31 | C12: =IF(C11<=$D$2,C11+7) -> 1993-01-15 | D12: =IF($D$6,C12,B12) -> 1993-03-31 | E12: =AND(D12>=$D$4,D11<=$D$2) -> TRUE | F12: 451.670013 | G12: 17.290001 | H12: 1 | I12: 451.670013 | J12: =IFERROR(LN(I12/I11),FALSE) -> 0.01852465203 | K12: =IF($E12,(K11*I12/I11),1) -> 1.029376941 | L12: 1993-03-31 | M12: 1.029376941 | N12: 1993-03-31 | O12: =M12 -> 1.029376941 | P12: =IFERROR(CHOOSE($M$1,AN12,AU12,BA12),1) -> 1.034832583 | Q12: =IFERROR(CHOOSE($M$1,AO12,AV12,BB12),1) -> 0.8674360213 | R12: =IFERROR(CHOOSE($M$1,AP12,AW12,BC12),1) -> 1 | S12: =IFERROR(CHOOSE($M$1,AQ12,AX12,BD12),1) -> 1 | T12: =IFERROR(CHOOSE($M$1,AR12,AY12,BE12),1) -> 1 | U12: =IFERROR(CHOOSE($M$1,AS12,AZ12,BF12),1) -> 1 | AB12: 1.476525 | AC12: 1.573293 | AD12: 0 | AE12: 0 | AF12: 0 | AG12: 0 | AH12: 1 | AI12: 1 | AJ12: 1 | AK12: 1 | AL12: 1 | AM12: 1 | AN12: 1.476525 | AO12: 1.573293 | AP12: 0 | AQ12: 0 | AR12: 0 | AS12: 0 | AT12: =J12 -> 0.01852465203 | AU12: 0.0577357305 | AV12: -0.02652872106 | AW12: FALSE | AX12: FALSE | AY12: FALSE | AZ12: FALSE | BA12: =IFERROR(IF($E12,BA11*AN12/AN11,1),1) -> 1.034832583 | BB12: =IFERROR(IF($E12,BB11*AO12/AO11,1),1) -> 0.8674360213 | BC12: =IFERROR(IF($E12,BC11*AP12/AP11,1),1) -> 1 | BD12: =IFERROR(IF($E12,BD11*AQ12/AQ11,1),1) -> 1 | BE12: =IFERROR(IF($E12,BE11*AR12/AR11,1),1) -> 1 | BF12: =IFERROR(IF($E12,BF11*AS12/AS11,1),1) -> 1 | BG12: 12.853 | BH12: 23.64 | BI12: 0 | BJ12: 0 | BK12: 0 | BL12: 0 | BM12: 282.056 | BN12: 0.01463850219 | BO12: 0.006978367062 | BP12: =IFERROR(LOOKUP($D12,$A:$A,BI:BI)*1,BP11) -> 0 | BQ12: =IFERROR(LOOKUP($D12,$A:$A,BJ:BJ)*1,BQ11) -> 33.5 | BR12: =IFERROR(LOOKUP($D12,$A:$A,BK:BK)*1,BR11) -> 1.4617 | BS12: =IFERROR(LOOKUP($D12,$A:$A,BL:BL)*1,BS11) -> 1.5265 | BT12: =IFERROR(LOOKUP($D12,$A:$A,BM:BM)*1,BT11) -> 6766.665
A13: 1950-04-01 | B13: 1993-04-30 | C13: 1993-01-22 | D13: =IF($D$6,C13,B13) -> 1993-04-30 | E13: TRUE | F13: 440.190002 | G13: 18.07 | H13: 1 | I13: 440.190002 | J13: -0.02574539704 | K13: =IF($E13,(K12*I13/I12),1) -> 1.003213462 | L13: =IF(E13,D13,NA()) -> 1993-04-30 | M13: =CHOOSE($M$1,I13,J13,K13) -> 1.003213462 | N13: =L13 -> 1993-04-30 | O13: =M13 -> 1.003213462 | P13: =IFERROR(CHOOSE($M$1,AN13,AU13,BA13),1) -> 1.154101589 | Q13: =IFERROR(CHOOSE($M$1,AO13,AV13,BB13),1) -> 0.8632248055 | R13: =IFERROR(CHOOSE($M$1,AP13,AW13,BC13),1) -> 1 | S13: =IFERROR(CHOOSE($M$1,AQ13,AX13,BD13),1) -> 1 | T13: =IFERROR(CHOOSE($M$1,AR13,AY13,BE13),1) -> 1 | U13: =IFERROR(CHOOSE($M$1,AS13,AZ13,BF13),1) -> 1 | AB13: 1.646701 | AC13: 1.565655 | AD13: 0 | AE13: 0 | AF13: 0 | AG13: 0 | AH13: 1 | AI13: 1 | AJ13: 1 | AK13: 1 | AL13: 1 | AM13: 1 | AN13: 1.646701 | AO13: 1.565655 | AP13: 0 | AQ13: 0 | AR13: 0 | AS13: 0 | AT13: =J13 -> -0.02574539704 | AU13: 0.1090825385 | AV13: -0.004866608223 | AW13: FALSE | AX13: FALSE | AY13: FALSE | AZ13: FALSE | BA13: 1.154101589 | BB13: 0.8632248055 | BC13: 1 | BD13: 1 | BE13: 1 | BF13: 1 | BG13: 12.897 | BH13: 23.65 | BI13: 0 | BJ13: 0 | BK13: 0 | BL13: 0 | BM13: 291.699 | BN13: 0.01455201618 | BO13: 0.006954102921 | BP13: 0 | BQ13: 31.5 | BR13: 1.5447 | BS13: 1.4824 | BT13: 6839.59
A14: 1950-05-01 | B14: 1993-05-31 | C14: 1993-01-29 | D14: 1993-05-31 | E14: TRUE | F14: 450.190002 | G14: 18.780001 | H14: 1 | I14: 450.190002 | J14: 0.02246326389 | K14: 1.026003927 | L14: 1993-05-31 | M14: 1.026003927 | N14: 1993-05-31 | O14: 1.026003927 | P14: 1.181163773 | Q14: 0.9537587775 | R14: 1 | S14: 1 | T14: 1 | U14: 1 | AB14: 1.685314 | AC14: 1.729859 | AD14: 0 | AE14: 0 | AF14: 0 | AG14: 0 | AH14: 1 | AI14: 1 | AJ14: 1 | AK14: 1 | AL14: 1 | AM14: 1 | AN14: 1.685314 | AO14: 1.729859 | AP14: 0 | AQ14: 0 | AR14: 0 | AS14: 0 | AT14: 0.02246326389 | AU14: 0.02317800407 | AV14: 0.09973563551 | AW14: FALSE | AX14: FALSE | AY14: FALSE | AZ14: FALSE | BA14: 1.181163773 | BB14: 0.9537587775 | BC14: 1 | BD14: 1 | BE14: 1 | BF14: 1 | BG14: 12.897 | BH14: 23.77 | BI14: 0 | BJ14: 0 | BK14: 0 | BL14: 0 | BM14: 291.699 | BN14: 0.01455201618 | BO14: 0.00693481276 | BP14: 0 | BQ14: 31.65 | BR14: 1.5477 | BS14: 1.435 | BT14: 6839.59
A15: 1950-06-01 | B15: 1993-06-30 | C15: 1993-02-05 | D15: 1993-06-30 | E15: TRUE | F15: 450.529999 | G15: 17.690001 | H15: 1 | I15: 450.529999 | J15: 0.000754944968 | K15: 1.026778796 | L15: 1993-06-30 | M15: 1.026778796 | N15: 1993-06-30 | O15: 1.026778796 | P15: 1.219368178 | Q15: 0.666708018 | R15: 1 | S15: 1 | T15: 1 | U15: 1 | AB15: 1.739825 | AC15: 1.209227 | AD15: 0 | AE15: 0 | AF15: 0 | AG15: 0 | AH15: 1 | AI15: 1 | AJ15: 1 | AK15: 1 | AL15: 1 | AM15: 1 | AN15: 1.739825 | AO15: 1.209227 | AP15: 0 | AQ15: 0 | AR15: 0 | AS15: 0 | AT15: 0.000754944968 | AU15: 0.03183263686 | AV15: -0.3580585898 | AW15: FALSE | AX15: FALSE | AY15: FALSE | AZ15: FALSE | BA15: 1.219368178 | BB15: 0.666708018 | BC15: 1 | BD15: 1 | BE15: 1 | BF15: 1 | BG15: 12.897 | BH15: 23.88 | BI15: 0 | BJ15: 0 | BK15: 0 | BL15: 0 | BM15: 291.699 | BN15: 0.01455201618 | BO15: 0.00693000693 | BP15: 0 | BQ15: 31.7 | BR15: 1.5082 | BS15: 1.425 | BT15: 6839.59
A16: 1950-07-01 | B16: 1993-07-31 | C16: 1993-02-12 | D16: 1993-07-31 | E16: TRUE | F16: 448.130005 | G16: 17.84 | H16: 1 | I16: 448.130005 | J16: -0.005341285236 | K16: 1.021309098 | L16: 1993-07-31 | M16: 1.021309098 | N16: 1993-07-31 | O16: 1.021309098 | P16: 1.363870131 | Q16: 0.4683833519 | R16: 1 | S16: 1 | T16: 1 | U16: 1 | AB16: 1.946004 | AC16: 0.84952 | AD16: 0 | AE16: 0 | AF16: 0 | AG16: 0 | AH16: 1 | AI16: 1 | AJ16: 1 | AK16: 1 | AL16: 1 | AM16: 1 | AN16: 1.946004 | AO16: 0.84952 | AP16: 0 | AQ16: 0 | AR16: 0 | AS16: 0 | AT16: -0.005341285236 | AU16: 0.1119935058 | AV16: -0.3530651074 | AW16: FALSE | AX16: FALSE | AY16: FALSE | AZ16: FALSE | BA16: 1.363870131 | BB16: 0.4683833519 | BC16: 1 | BD16: 1 | BE16: 1 | BF16: 1 | BG16: 13.177 | BH16: 24.07 | BI16: 0 | BJ16: 0 | BK16: 0 | BL16: 0 | BM16: 309.76 | BN16: 0.0144659183 | BO16: 0.006920415225 | BP16: 0 | BQ16: 31.6 | BR16: 1.4955 | BS16: 1.5065 | BT16: 6918.254
A17: 1950-08-01 | B17: 1993-08-31 | C17: 1993-02-19 | D17: 1993-08-31 | E17: TRUE | F17: 463.559998 | G17: 18.42 | H17: 1 | I17: 463.559998 | J17: 0.0338524421 | K17: 1.056474769 | L17: 1993-08-31 | M17: 1.056474769 | N17: 1993-08-31 | O17: 1.056474769 | P17: 1.360407899 | Q17: 0.4472848189 | R17: 1 | S17: 1 | T17: 1 | U17: 1 | AB17: 1.941064 | AC17: 0.811253 | AD17: 0 | AE17: 0 | AF17: 0 | AG17: 0 | AH17: 1 | AI17: 1 | AJ17: 1 | AK17: 1 | AL17: 1 | AM17: 1 | AN17: 1.941064 | AO17: 0.811253 | AP17: 0 | AQ17: 0 | AR17: 0 | AS17: 0 | AT17: 0.0338524421 | AU17: -0.002541762922 | AV17: -0.04609151809 | AW17: FALSE | AX17: FALSE | AY17: FALSE | AZ17: FALSE | BA17: 1.360407899 | BB17: 0.4472848189 | BC17: 1 | BD17: 1 | BE17: 1 | BF17: 1 | BG17: 13.177 | BH17: 24.2 | BI17: 0 | BJ17: 0 | BK17: 0 | BL17: 0 | BM17: 309.76 | BN17: 0.0144659183 | BO17: 0.006906077348 | BP17: 0 | BQ17: 31.6 | BR17: 1.4914 | BS17: 1.523 | BT17: 6918.254
A18: 1950-09-01 | B18: 1993-09-30 | C18: 1993-02-26 | D18: 1993-09-30 | E18: TRUE | F18: 458.929993 | G18: 19.450001 | H18: 1 | I18: 458.929993 | J18: -0.01003814442 | K18: 1.045922772 | L18: 1993-09-30 | M18: 1.045922772 | N18: 1993-09-30 | O18: 1.045922772 | P18: 1.327523698 | Q18: 0.3962777219 | R18: 1 | S18: 1 | T18: 1 | U18: 1 | AB18: 1.894144 | AC18: 0.71874 | AD18: 0 | AE18: 0 | AF18: 0 | AG18: 0 | AH18: 1 | AI18: 1 | AJ18: 1 | AK18: 1 | AL18: 1 | AM18: 1 | AN18: 1.894144 | AO18: 0.71874 | AP18: 0 | AQ18: 0 | AR18: 0 | AS18: 0 | AT18: -0.01003814442 | AU18: -0.0244692549 | AV18: -0.121080287 | AW18: FALSE | AX18: FALSE | AY18: FALSE | AZ18: FALSE | BA18: 1.327523698 | BB18: 0.3962777219 | BC18: 1 | BD18: 1 | BE18: 1 | BF18: 1 | BG18: 13.177 | BH18: 24.34 | BI18: 0 | BJ18: 0 | BK18: 0 | BL18: 0 | BM18: 309.76 | BN18: 0.0144659183 | BO18: 0.006896551724 | BP18: 0 | BQ18: 31.63 | BR18: 1.5248 | BS18: 1.459 | BT18: 6918.254
A19: 1950-10-01 | B19: 1993-10-31 | C19: 1993-03-05 | D19: 1993-10-31 | E19: TRUE | F19: 467.829987 | G19: 19.530001 | H19: 1 | I19: 467.829987 | J19: 0.01920727655 | K19: 1.066206272 | L19: 1993-10-31 | M19: 1.066206272 | N19: 1993-10-31 | O19: 1.066206272 | P19: 1.454219684 | Q19: 0.5213069435 | R19: 1 | S19: 1 | T19: 1 | U19: 1 | AB19: 2.074917 | AC19: 0.945509 | AD19: 0 | AE19: 0 | AF19: 0 | AG19: 0 | AH19: 1 | AI19: 1 | AJ19: 1 | AK19: 1 | AL19: 1 | AM19: 1 | AN19: 2.074917 | AO19: 0.945509 | AP19: 0 | AQ19: 0 | AR19: 0 | AS19: 0 | AT19: 0.01920727655 | AU19: 0.09115413144 | AV19: 0.2742237279 | AW19: FALSE | AX19: FALSE | AY19: FALSE | AZ19: FALSE | BA19: 1.454219684 | BB19: 0.5213069435 | BC19: 1 | BD19: 1 | BE19: 1 | BF19: 1 | BG19: 13.425 | BH19: 24.5 | BI19: 0 | BJ19: 0 | BK19: 0 | BL19: 0 | BM19: 321.554 | BN19: 0.01438745414 | BO19: 0.006868131868 | BP19: 0 | BQ19: 31.53 | BR19: 1.5023 | BS19: 1.4247 | BT19: 7034.356
A20: 1950-11-01 | B20: 1993-11-30 | C20: 1993-03-12 | D20: 1993-11-30 | E20: TRUE | F20: 461.790009 | G20: 19.51 | H20: 1 | I20: 461.790009 | J20: -0.0129946925 | K20: 1.052440882 | L20: 1993-11-30 | M20: 1.052440882 | N20: 1993-11-30 | O20: 1.052440882 | P20: 1.474833284 | Q20: 0.5340216394 | R20: 1 | S20: 1 | T20: 1 | U20: 1 | AB20: 2.104329 | AC20: 0.96857 | AD20: 0 | AE20: 0 | AF20: 0 | AG20: 0 | AH20: 1 | AI20: 1 | AJ20: 1 | AK20: 1 | AL20: 1 | AM20: 1 | AN20: 2.104329 | AO20: 0.96857 | AP20: 0 | AQ20: 0 | AR20: 0 | AS20: 0 | AT20: -0.0129946925 | AU20: 0.01407549859 | AV20: 0.02409735013 | AW20: FALSE | AX20: FALSE | AY20: FALSE | AZ20: FALSE | BA20: 1.474833284 | BB20: 0.5340216394 | BC20: 1 | BD20: 1 | BE20: 1 | BF20: 1 | BG20: 13.425 | BH20: 24.6 | BI20: 0 | BJ20: 0 | BK20: 0 | BL20: 0 | BM20: 321.554 | BN20: 0.01438745414 | BO20: 0.006849315068 | BP20: 0 | BQ20: 31.43 | BR20: 1.4808 | BS20: 1.5015 | BT20: 7034.356
A21: 1950-12-01 | B21: 1993-12-31 | C21: 1993-03-19 | D21: 1993-12-31 | E21: TRUE | F21: 466.450012 | G21: 20.41 | H21: 1 | I21: 466.450012 | J21: 0.01004059735 | K21: 1.063061245 | L21: 1993-12-31 | M21: 1.063061245 | N21: 1993-12-31 | O21: 1.063061245 | P21: 1.572280413 | Q21: 0.4976617222 | R21: 1 | S21: 1 | T21: 1 | U21: 1 | AB21: 2.243369 | AC21: 0.902623 | AD21: 0 | AE21: 0 | AF21: 0 | AG21: 0 | AH21: 1 | AI21: 1 | AJ21: 1 | AK21: 1 | AL21: 1 | AM21: 1 | AN21: 2.243369 | AO21: 0.902623 | AP21: 0 | AQ21: 0 | AR21: 0 | AS21: 0 | AT21: 0.01004059735 | AU21: 0.06398210235 | AV21: -0.07051578794 | AW21: FALSE | AX21: FALSE | AY21: FALSE | AZ21: FALSE | BA21: 1.572280413 | BB21: 0.4976617222 | BC21: 1 | BD21: 1 | BE21: 1 | BF21: 1 | BG21: 13.425 | BH21: 24.98 | BI21: 0 | BJ21: 0 | BK21: 0 | BL21: 0 | BM21: 321.554 | BN21: 0.01438745414 | BO21: 0.006835269993 | BP21: 0 | BQ21: 31.44 | BR21: 1.4913 | BS21: 1.4965 | BT21: 7034.356
A22: 1951-01-01 | B22: 1994-01-31 | C22: 1993-03-26 | D22: 1994-01-31 | E22: TRUE | F22: 481.609985 | G22: 21.66 | H22: 1 | I22: 481.609985 | J22: 0.03198376762 | K22: 1.097611528 | L22: 1994-01-31 | M22: 1.097611528 | N22: 1994-01-31 | O22: 1.097611528 | P22: 1.758292713 | Q22: 0.5572108938 | R22: 1 | S22: 1 | T22: 1 | U22: 1 | AB22: 2.508776 | AC22: 1.010629 | AD22: 0 | AE22: 0 | AF22: 0 | AG22: 0 | AH22: 1 | AI22: 1 | AJ22: 1 | AK22: 1 | AL22: 1 | AM22: 1 | AN22: 2.508776 | AO22: 1.010629 | AP22: 0 | AQ22: 0 | AR22: 0 | AS22: 0 | AT22: 0.03198376762 | AU22: 0.111816231 | AV22: 0.1130232193 | AW22: FALSE | AX22: FALSE | AY22: FALSE | AZ22: FALSE | BA22: 1.758292713 | BB22: 0.5572108938 | BC22: 1 | BD22: 1 | BE22: 1 | BF22: 1 | BG22: 13.909 | BH22: 25.38 | BI22: 0 | BJ22: 0 | BK22: 0 | BL22: 0 | BM22: 337.537 | BN22: 0.01431905723 | BO22: 0.006835269993 | BP22: 0 | BQ22: 31.44 | BR22: 1.4923 | BS22: 1.488 | BT22: 7143.011
A23: 1951-02-01 | B23: 1994-02-28 | C23: 1993-04-02 | D23: 1994-02-28 | E23: TRUE | F23: 467.140015 | G23: 21.799999 | H23: 1 | I23: 467.140015 | J23: -0.03050559603 | K23: 1.064633794 | L23: 1994-02-28 | M23: 1.064633794 | N23: 1994-02-28 | O23: 1.064633794 | P23: 1.719536734 | Q23: 0.6210137352 | R23: 1 | S23: 1 | T23: 1 | U23: 1 | AB23: 2.453478 | AC23: 1.12635 | AD23: 0 | AE23: 0 | AF23: 0 | AG23: 0 | AH23: 1 | AI23: 1 | AJ23: 1 | AK23: 1 | AL23: 1 | AM23: 1 | AN23: 2.453478 | AO23: 1.12635 | AP23: 0 | AQ23: 0 | AR23: 0 | AS23: 0 | AT23: -0.03050559603 | AU23: -0.02228837508 | AV23: 0.1084094069 | AW23: FALSE | AX23: FALSE | AY23: FALSE | AZ23: FALSE | BA23: 1.719536734 | BB23: 0.6210137352 | BC23: 1 | BD23: 1 | BE23: 1 | BF23: 1 | BG23: 13.909 | BH23: 25.83 | BI23: 0 | BJ23: 0 | BK23: 0 | BL23: 0 | BM23: 337.537 | BN23: 0.01431905723 | BO23: 0.006816632584 | BP23: 0 | BQ23: 31.44 | BR23: 1.4792 | BS23: 1.45 | BT23: 7143.011
A24: 1951-03-01 | B24: 1994-03-31 | C24: 1993-04-09 | D24: 1994-03-31 | E24: TRUE | F24: 445.769989 | G24: 21.4 | H24: 1 | I24: 445.769989 | J24: -0.04682593146 | K24: 1.015930512 | L24: 1994-03-31 | M24: 1.015930512 | N24: 1994-03-31 | O24: 1.015930512 | P24: 1.631825907 | Q24: 0.5677538198 | R24: 1 | S24: 1 | T24: 1 | U24: 1 | AB24: 2.32833 | AC24: 1.029751 | AD24: 0 | AE24: 0 | AF24: 0 | AG24: 0 | AH24: 1 | AI24: 1 | AJ24: 1 | AK24: 1 | AL24: 1 | AM24: 1 | AN24: 2.32833 | AO24: 1.029751 | AP24: 0 | AQ24: 0 | AR24: 0 | AS24: 0 | AT24: -0.04682593146 | AU24: -0.05235533732 | AV24: -0.08966529079 | AW24: FALSE | AX24: FALSE | AY24: FALSE | AZ24: FALSE | BA24: 1.631825907 | BB24: 0.5677538198 | BC24: 1 | BD24: 1 | BE24: 1 | BF24: 1 | BG24: 13.909 | BH24: 25.88 | BI24: 0 | BJ24: 0 | BK24: 0 | BL24: 0 | BM24: 337.537 | BN24: 0.01431905723 | BO24: 0.006798096533 | BP24: 0 | BQ24: 31.72 | BR24: 1.4919 | BS24: 1.44 | BT24: 7143.011
A25: 1951-04-01 | B25: 1994-04-30 | C25: 1993-04-16 | D25: 1994-04-30 | E25: TRUE | F25: 450.910004 | G25: 22.43 | H25: 1 | I25: 450.910004 | J25: 0.01146467266 | K25: 1.027644845 | L25: 1994-04-30 | M25: 1.027644845 | N25: 1994-04-30 | O25: 1.027644845 | P25: 1.692530619 | Q25: 0.5122592803 | R25: 1 | S25: 1 | T25: 1 | U25: 1 | AB25: 2.414945 | AC25: 0.929099 | AD25: 0 | AE25: 0 | AF25: 0 | AG25: 0 | AH25: 1 | AI25: 1 | AJ25: 1 | AK25: 1 | AL25: 1 | AM25: 1 | AN25: 2.414945 | AO25: 0.929099 | AP25: 0 | AQ25: 0 | AR25: 0 | AS25: 0 | AT25: 0.01146467266 | AU25: 0.03652524012 | AV25: -0.1028570051 | AW25: FALSE | AX25: FALSE | AY25: FALSE | AZ25: FALSE | BA25: 1.692530619 | BB25: 0.5122592803 | BC25: 1 | BD25: 1 | BE25: 1 | BF25: 1 | BG25: 14.002 | BH25: 25.92 | BI25: 0 | BJ25: 0 | BK25: 0 | BL25: 0 | BM25: 345.973 | BN25: 0.01425029213 | BO25: 0.006793478261 | BP25: 0 | BQ25: 31.42 | BR25: 1.4823 | BS25: 1.4265 | BT25: 7269.779
A26: 1951-05-01 | B26: 1994-05-31 | C26: 1993-04-23 | D26: 1994-05-31 | E26: TRUE | F26: 456.5 | G26: 21.52 | H26: 1 | I26: 456.5 | J26: 0.01232092812 | K26: 1.040384705 | L26: 1994-05-31 | M26: 1.040384705 | N26: 1994-05-31 | O26: 1.040384705 | P26: 1.768050041 | Q26: 0.4994525089 | R26: 1 | S26: 1 | T26: 1 | U26: 1 | Y26: =LOOKUP($A26,INDIRECT("'"&Y$5&"'!A:A"),INDIRECT("'"&Y$5&"'!"&Y$7&":"&Y$7)) ->  | AB26: 2.522698 | AC26: 0.905871 | AD26: 0 | AE26: 0 | AF26: 0 | AG26: 0 | AH26: 1 | AI26: 1 | AJ26: 1 | AK26: 1 | AL26: 1 | AM26: 1 | AN26: 2.522698 | AO26: 0.905871 | AP26: 0 | AQ26: 0 | AR26: 0 | AS26: 0 | AT26: 0.01232092812 | AU26: 0.04365245121 | AV26: -0.02531838754 | AW26: FALSE | AX26: FALSE | AY26: FALSE | AZ26: FALSE | BA26: 1.768050041 | BB26: 0.4994525089 | BC26: 1 | BD26: 1 | BE26: 1 | BF26: 1 | BG26: 14.002 | BH26: 25.99 | BI26: 0 | BJ26: 0 | BK26: 0 | BL26: 0 | BM26: 345.973 | BN26: 0.01425029213 | BO26: 0.006779661017 | BP26: 0 | BQ26: 31.37 | BR26: 1.5042 | BS26: 1.411 | BT26: 7269.779
A27: 1951-06-01 | B27: 1994-06-30 | C27: 1993-04-30 | D27: 1994-06-30 | E27: TRUE | F27: 444.269989 | G27: 20.959999 | H27: 1 | I27: 444.269989 | J27: -0.02715623908 | K27: 1.012511942 | L27: 1994-06-30 | M27: 1.012511942 | N27: 1994-06-30 | O27: 1.012511942 | P27: 1.656992273 | Q27: 0.454284766 | R27: 1 | S27: 1 | T27: 1 | U27: 1 | AB27: 2.364238 | AC27: 0.823949 | AD27: 0 | AE27: 0 | AF27: 0 | AG27: 0 | AH27: 1 | AI27: 1 | AJ27: 1 | AK27: 1 | AL27: 1 | AM27: 1 | AN27: 2.364238 | AO27: 0.823949 | AP27: 0 | AQ27: 0 | AR27: 0 | AS27: 0 | AT27: -0.02715623908 | AU27: -0.06487319243 | AV27: -0.09478827701 | AW27: FALSE | AX27: FALSE | AY27: FALSE | AZ27: FALSE | BA27: 1.656992273 | BB27: 0.454284766 | BC27: 1 | BD27: 1 | BE27: 1 | BF27: 1 | BG27: 14.002 | BH27: 25.93 | BI27: 0 | BJ27: 0 | BK27: 0 | BL27: 0 | BM27: 345.973 | BN27: 0.01425029213 | BO27: 0.00676132522 | BP27: 0 | BQ27: 31.38 | BR27: 1.5262 | BS27: 1.4005 | BT27: 7269.779
A28: 1951-07-01 | B28: 1994-07-31 | C28: 1993-05-07 | D28: 1994-07-31 | E28: TRUE | F28: 458.26001 | G28: 22.4 | H28: 1 | I28: 458.26001 | J28: 0.0310042695 | K28: 1.04439585 | L28: 1994-07-31 | M28: 1.04439585 | N28: 1994-07-31 | O28: 1.04439585 | P28: 1.875636466 | Q28: 0.5774983901 | R28: 1 | S28: 1 | T28: 1 | U28: 1 | AB28: 2.676205 | AC28: 1.047425 | AD28: 0 | AE28: 0 | AF28: 0 | AG28: 0 | AH28: 1 | AI28: 1 | AJ28: 1 | AK28: 1 | AL28: 1 | AM28: 1 | AN28: 2.676205 | AO28: 1.047425 | AP28: 0 | AQ28: 0 | AR28: 0 | AS28: 0 | AT28: 0.0310042695 | AU28: 0.1239439749 | AV28: 0.2399814154 | AW28: FALSE | AX28: FALSE | AY28: FALSE | AZ28: FALSE | BA28: 1.875636466 | BB28: 0.5774983901 | BC28: 1 | BD28: 1 | BE28: 1 | BF28: 1 | BG28: 14.01 | BH28: 25.91 | BI28: 0 | BJ28: 0 | BK28: 0 | BL28: 0 | BM28: 353.381 | BN28: 0.01416892189 | BO28: 0.006738544474 | BP28: 0 | BQ28: 31.3725 | BR28: 1.5467 | BS28: 1.3355 | BT28: 7352.37
A29: 1951-08-01 | B29: 1994-08-31 | C29: 1993-05-14 | D29: 1994-08-31 | E29: TRUE | F29: 475.48999 | G29: 23.280001 | H29: 1 | I29: 475.48999 | J29: 0.03690909979 | K29: 1.083663775 | L29: 1994-08-31 | M29: 1.083663775 | N29: 1994-08-31 | O29: 1.083663775 | P29: 1.852364516 | Q29: 0.620355974 | R29: 1 | S29: 1 | T29: 1 | U29: 1 | AB29: 2.643 | AC29: 1.125157 | AD29: 0 | AE29: 0 | AF29: 0 | AG29: 0 | AH29: 1 | AI29: 1 | AJ29: 1 | AK29: 1 | AL29: 1 | AM29: 1 | AN29: 2.643 | AO29: 1.125157 | AP29: 0 | AQ29: 0 | AR29: 0 | AS29: 0 | AT29: 0.03690909979 | AU29: -0.01248511059 | AV29: 0.07158781027 | AW29: FALSE | AX29: FALSE | AY29: FALSE | AZ29: FALSE | BA29: 1.852364516 | BB29: 0.620355974 | BC29: 1 | BD29: 1 | BE29: 1 | BF29: 1 | BG29: 14.01 | BH29: 25.86 | BI29: 0 | BJ29: 0 | BK29: 0 | BL29: 0 | BM29: 353.381 | BN29: 0.01416892189 | BO29: 0.006711409396 | BP29: 0 | BQ29: 31.3725 | BR29: 1.5422 | BS29: 1.3315 | BT29: 7352.37
A30: 1951-09-01 | B30: 1994-09-30 | C30: 1993-05-21 | D30: 1994-09-30 | E30: TRUE | F30: 462.709991 | G30: 23.26 | H30: 1 | I30: 462.709991 | J30: -0.02724534173 | K30: 1.054537563 | L30: 1994-09-30 | M30: 1.054537563 | N30: 1994-09-30 | O30: 1.054537563 | P30: 1.791861651 | Q30: 0.5795014467 | R30: 1 | S30: 1 | T30: 1 | U30: 1 | AB30: 2.556673 | AC30: 1.051058 | AD30: 0 | AE30: 0 | AF30: 0 | AG30: 0 | AH30: 1 | AI30: 1 | AJ30: 1 | AK30: 1 | AL30: 1 | AM30: 1 | AN30: 2.556673 | AO30: 1.051058 | AP30: 0 | AQ30: 0 | AR30: 0 | AS30: 0 | AT30: -0.02724534173 | AU30: -0.03320783173 | AV30: -0.06812530557 | AW30: FALSE | AX30: FALSE | AY30: FALSE | AZ30: FALSE | BA30: 1.791861651 | BB30: 0.5795014467 | BC30: 1 | BD30: 1 | BE30: 1 | BF30: 1 | BG30: 14.01 | BH30: 26.03 | BI30: 0 | BJ30: 0 | BK30: 0 | BL30: 0 | BM30: 353.381 | BN30: 0.01416892189 | BO30: 0.006697923644 | BP30: 0 | BQ30: 31.375 | BR30: 1.5661 | BS30: 1.324 | BT30: 7352.37
A31: 1951-10-01 | B31: 1994-10-31 | C31: 1993-05-28 | D31: 1994-10-31 | E31: TRUE | F31: 472.350006 | G31: 22.940001 | H31: 1 | I31: 472.350006 | J31: 0.02061976041 | K31: 1.076507605 | L31: 1994-10-31 | M31: 1.076507605 | N31: 1994-10-31 | O31: 1.076507605 | P31: 1.90400785 | Q31: 0.7429234152 | R31: 1 | S31: 1 | T31: 1 | U31: 1 | AB31: 2.716686 | AC31: 1.347461 | AD31: 0 | AE31: 0 | AF31: 0 | AG31: 0 | AH31: 1 | AI31: 1 | AJ31: 1 | AK31: 1 | AL31: 1 | AM31: 1 | AN31: 2.716686 | AO31: 1.347461 | AP31: 0 | AQ31: 0 | AR31: 0 | AS31: 0 | AT31: 0.02061976041 | AU31: 0.06070595123 | AV31: 0.248424805 | AW31: FALSE | AX31: FALSE | AY31: FALSE | AZ31: FALSE | BA31: 1.90400785 | BB31: 0.7429234152 | BC31: 1 | BD31: 1 | BE31: 1 | BF31: 1 | BG31: 14.17 | BH31: 26.16 | BI31: 0 | BJ31: 0 | BK31: 0 | BL31: 0 | BM31: 358.33 | BN31: 0.01409244645 | BO31: 0.006693440428 | BP31: 0 | BQ31: 31.3675 | BR31: 1.6064 | BS31: 1.2865 | BT31: 7475.65
A32: 1951-11-01 | B32: 1994-11-30 | C32: 1993-06-04 | D32: 1994-11-30 | E32: TRUE | F32: 453.690002 | G32: 22.879999 | H32: 1 | I32: 453.690002 | J32: -0.04030609908 | K32: 1.033980589 | L32: 1994-11-30 | M32: 1.033980589 | N32: 1994-11-30 | O32: 1.033980589 | P32: 1.792007429 | Q32: 0.640784616 | R32: 1 | S32: 1 | T32: 1 | U32: 1 | AB32: 2.556881 | AC32: 1.162209 | AD32: 0 | AE32: 0 | AF32: 0 | AG32: 0 | AH32: 1 | AI32: 1 | AJ32: 1 | AK32: 1 | AL32: 1 | AM32: 1 | AN32: 2.556881 | AO32: 1.162209 | AP32: 0 | AQ32: 0 | AR32: 0 | AS32: 0 | AT32: -0.04030609908 | AU32: -0.06062459881 | AV32: -0.1478995763 | AW32: FALSE | AX32: FALSE | AY32: FALSE | AZ32: FALSE | BA32: 1.792007429 | BB32: 0.640784616 | BC32: 1 | BD32: 1 | BE32: 1 | BF32: 1 | BG32: 14.17 | BH32: 26.32 | BI32: 0 | BJ32: 0 | BK32: 0 | BL32: 0 | BM32: 358.33 | BN32: 0.01409244645 | BO32: 0.006675567423 | BP32: 0 | BQ32: 31.39 | BR32: 1.5892 | BS32: 1.248 | BT32: 7475.65
A33: 1951-12-01 | B33: 1994-12-31 | C33: 1993-06-11 | D33: 1994-12-31 | E33: TRUE | F33: 459.269989 | G33: 23.77 | H33: 1 | I33: 459.269989 | J33: 0.01222409862 | K33: 1.046697639 | L33: 1994-12-31 | M33: 1.046697639 | N33: 1994-12-31 | O33: 1.046697639 | P33: 1.986790251 | Q33: 0.6729096094 | R33: 1 | S33: 1 | T33: 1 | U33: 1 | AB33: 2.834802 | AC33: 1.220475 | AD33: 0 | AE33: 0 | AF33: 0 | AG33: 0 | AH33: 1 | AI33: 1 | AJ33: 1 | AK33: 1 | AL33: 1 | AM33: 1 | AN33: 2.834802 | AO33: 1.220475 | AP33: 0 | AQ33: 0 | AR33: 0 | AS33: 0 | AT33: 0.01222409862 | AU33: 0.1031839372 | AV33: 0.04891762267 | AW33: FALSE | AX33: FALSE | AY33: FALSE | AZ33: FALSE | BA33: 1.986790251 | BB33: 0.6729096094 | BC33: 1 | BD33: 1 | BE33: 1 | BF33: 1 | BG33: 14.17 | BH33: 26.47 | BI33: 0 | BJ33: 0 | BK33: 0 | BL33: 0 | BM33: 358.33 | BN33: 0.01409244645 | BO33: 0.006662225183 | BP33: 0 | BQ33: 31.4225 | BR33: 1.5587 | BS33: 1.3305 | BT33: 7475.65
A34: 1952-01-01 | B34: 1995-01-31 | C34: 1993-06-18 | D34: 1995-01-31 | E34: TRUE | F34: 470.420013 | G34: 24.139999 | H34: 1 | I34: 470.420013 | J34: 0.02398769186 | K34: 1.072109062 | L34: 1995-01-31 | M34: 1.072109062 | N34: 1995-01-31 | O34: 1.072109062 | P34: 2.108952394 | Q34: 0.6966342252 | R34: 1 | S34: 1 | T34: 1 | U34: 1 | AB34: 3.009106 | AC34: 1.263505 | AD34: 0 | AE34: 0 | AF34: 0 | AG34: 0 | AH34: 1 | AI34: 1 | AJ34: 1 | AK34: 1 | AL34: 1 | AM34: 1 | AN34: 3.009106 | AO34: 1.263505 | AP34: 0 | AQ34: 0 | AR34: 0 | AS34: 0 | AT34: 0.02398769186 | AU34: 0.05967093121 | AV34: 0.03464947787 | AW34: FALSE | AX34: FALSE | AY34: FALSE | AZ34: FALSE | BA34: 2.108952394 | BB34: 0.6966342252 | BC34: 1 | BD34: 1 | BE34: 1 | BF34: 1 | BG34: 14.163 | BH34: 26.45 | BI34: 0 | BJ34: 0 | BK34: 0 | BL34: 0 | BM34: 361.821 | BN34: 0.01401659565 | BO34: 0.006644518272 | BP34: 0 | BQ34: 31.3725 | BR34: 1.5746 | BS34: 1.31 | BT34: 7552.116
A35: 1952-02-01 | B35: 1995-02-28 | C35: 1993-06-25 | D35: 1995-02-28 | E35: TRUE | F35: 487.390015 | G35: 23.26 | H35: 1 | I35: 487.390015 | J35: 0.03543871441 | K35: 1.110784485 | L35: 1995-02-28 | M35: 1.110784485 | N35: 1995-02-28 | O35: 1.110784485 | P35: 2.242041596 | Q35: 0.681536592 | R35: 1 | S35: 1 | T35: 1 | U35: 1 | AB35: 3.199001 | AC35: 1.236122 | AD35: 0 | AE35: 0 | AF35: 0 | AG35: 0 | AH35: 1 | AI35: 1 | AJ35: 1 | AK35: 1 | AL35: 1 | AM35: 1 | AN35: 3.199001 | AO35: 1.236122 | AP35: 0 | AQ35: 0 | AR35: 0 | AS35: 0 | AT35: 0.03543871441 | AU35: 0.06119554889 | AV35: -0.02191054543 | AW35: FALSE | AX35: FALSE | AY35: FALSE | AZ35: FALSE | BA35: 2.242041596 | BB35: 0.681536592 | BC35: 1 | BD35: 1 | BE35: 1 | BF35: 1 | BG35: 14.163 | BH35: 26.41 | BI35: 0 | BJ35: 0 | BK35: 0 | BL35: 0 | BM35: 361.821 | BN35: 0.01401659565 | BO35: 0.006626905235 | BP35: 0 | BQ35: 31.3725 | BR35: 1.572 | BS35: 1.289 | BT35: 7552.116
A36: 1952-03-01 | B36: 1995-03-31 | C36: 1993-07-02 | D36: 1995-03-31 | E36: TRUE | F36: 500.709991 | G36: 24.370001 | H36: 1 | I36: 500.709991 | J36: 0.02696241847 | K36: 1.141141329 | L36: 1995-03-31 | M36: 1.141141329 | N36: 1995-03-31 | O36: 1.141141329 | P36: 2.21132935 | Q36: 0.6098814155 | R36: 1 | S36: 1 | T36: 1 | U36: 1 | AB36: 3.15518 | AC36: 1.106159 | AD36: 0 | AE36: 0 | AF36: 0 | AG36: 0 | AH36: 1 | AI36: 1 | AJ36: 1 | AK36: 1 | AL36: 1 | AM36: 1 | AN36: 3.15518 | AO36: 1.106159 | AP36: 0 | AQ36: 0 | AR36: 0 | AS36: 0 | AT36: 0.02696241847 | AU36: -0.0137930269 | AV36: -0.1110854056 | AW36: FALSE | AX36: FALSE | AY36: FALSE | AZ36: FALSE | BA36: 2.21132935 | BB36: 0.6098814155 | BC36: 1 | BD36: 1 | BE36: 1 | BF36: 1 | BG36: 14.163 | BH36: 26.39 | BI36: 0 | BJ36: 0 | BK36: 0 | BL36: 0 | BM36: 361.821 | BN36: 0.01401659565 | BO36: 0.006613756614 | BP36: 0 | BQ36: 31.415 | BR36: 1.6002 | BS36: 1.2405 | BT36: 7552.116
A37: 1952-04-01 | B37: 1995-04-30 | C37: 1993-07-09 | D37: 1995-04-30 | E37: TRUE | F37: 514.710022 | G37: 23.32 | H37: 1 | I37: 514.710022 | J37: 0.0275766048 | K37: 1.17304805 | L37: 1995-04-30 | M37: 1.17304805 | N37: 1995-04-30 | O37: 1.17304805 | P37: 2.401060396 | Q37: 0.6617861113 | R37: 1 | S37: 1 | T37: 1 | U37: 1 | AB37: 3.425893 | AC37: 1.2003 | AD37: 0 | AE37: 0 | AF37: 0 | AG37: 0 | AH37: 1 | AI37: 1 | AJ37: 1 | AK37: 1 | AL37: 1 | AM37: 1 | AN37: 3.425893 | AO37: 1.2003 | AP37: 0 | AQ37: 0 | AR37: 0 | AS37: 0 | AT37: 0.0275766048 | AU37: 0.08231662099 | AV37: 0.08167787148 | AW37: FALSE | AX37: FALSE | AY37: FALSE | AZ37: FALSE | BA37: 2.401060396 | BB37: 0.6617861113 | BC37: 1 | BD37: 1 | BE37: 1 | BF37: 1 | BG37: 14.18 | BH37: 26.46 | BI37: 0 | BJ37: 0 | BK37: 0 | BL37: 0 | BM37: 363.049 | BN37: 0.0139495306 | BO37: 0.006587615283 | BP37: 0 | BQ37: 31.43 | BR37: 1.6073 | BS37: 1.133 | BT37: 7613.638
A38: 1952-05-01 | B38: 1995-05-31 | C38: 1993-07-16 | D38: 1995-05-31 | E38: TRUE | F38: 533.400024 | G38: 23.860001 | H38: 1 | I38: 533.400024 | J38: 0.03566797874 | K38: 1.215643432 | L38: 1995-05-31 | M38: 1.215643432 | N38: 1995-05-31 | O38: 1.215643432 | P38: 2.486813029 | Q38: 0.7190979022 | R38: 1 | S38: 1 | T38: 1 | U38: 1 | AB38: 3.548247 | AC38: 1.304248 | AD38: 0 | AE38: 0 | AF38: 0 | AG38: 0 | AH38: 1 | AI38: 1 | AJ38: 1 | AK38: 1 | AL38: 1 | AM38: 1 | AN38: 3.548247 | AO38: 1.304248 | AP38: 0 | AQ38: 0 | AR38: 0 | AS38: 0 | AT38: 0.03566797874 | AU38: 0.03509151105 | AV38: 0.08305510392 | AW38: FALSE | AX38: FALSE | AY38: FALSE | AZ38: FALSE | BA38: 2.486813029 | BB38: 0.7190979022 | BC38: 1 | BD38: 1 | BE38: 1 | BF38: 1 | BG38: 14.18 | BH38: 26.47 | BI38: 0 | BJ38: 0 | BK38: 0 | BL38: 0 | BM38: 363.049 | BN38: 0.0139495306 | BO38: 0.006574621959 | BP38: 0 | BQ38: 31.44 | BR38: 1.5874 | BS38: 1.146 | BT38: 7613.638
A39: 1952-06-01 | B39: 1995-06-30 | C39: 1993-07-23 | D39: 1995-06-30 | E39: TRUE | F39: 544.75 | G39: 24.959999 | H39: 1 | I39: 544.75 | J39: 0.02105531708 | K39: 1.241510555 | L39: 1995-06-30 | M39: 1.241510555 | N39: 1995-06-30 | O39: 1.241510555 | P39: 2.417138752 | Q39: 0.8056742797 | R39: 1 | S39: 1 | T39: 1 | U39: 1 | AB39: 3.448834 | AC39: 1.461274 | AD39: 0 | AE39: 0 | AF39: 0 | AG39: 0 | AH39: 1 | AI39: 1 | AJ39: 1 | AK39: 1 | AL39: 1 | AM39: 1 | AN39: 3.448834 | AO39: 1.461274 | AP39: 0 | AQ39: 0 | AR39: 0 | AS39: 0 | AT39: 0.02105531708 | AU39: -0.02841747581 | AV39: 0.1136820285 | AW39: FALSE | AX39: FALSE | AY39: FALSE | AZ39: FALSE | BA39: 2.417138752 | BB39: 0.8056742797 | BC39: 1 | BD39: 1 | BE39: 1 | BF39: 1 | BG39: 14.18 | BH39: 26.53 | BI39: 0 | BJ39: 0 | BK39: 0 | BL39: 0 | BM39: 363.049 | BN39: 0.0139495306 | BO39: 0.00656167979 | BP39: 0 | BQ39: 31.42 | BR39: 1.5948 | BS39: 1.171 | BT39: 7613.638
A40: 1952-07-01 | B40: 1995-07-31 | C40: 1993-07-30 | D40: 1995-07-31 | E40: TRUE | F40: 562.059998 | G40: 25.4 | H40: 1 | I40: 562.059998 | J40: 0.03128162838 | K40: 1.280960844 | L40: 1995-07-31 | M40: 1.280960844 | N40: 1995-07-31 | O40: 1.280960844 | P40: 2.645861966 | Q40: 0.7807339358 | R40: 1 | S40: 1 | T40: 1 | U40: 1 | AB40: 3.775182 | AC40: 1.416039 | AD40: 0 | AE40: 0 | AF40: 0 | AG40: 0 | AH40: 1 | AI40: 1 | AJ40: 1 | AK40: 1 | AL40: 1 | AM40: 1 | AN40: 3.775182 | AO40: 1.416039 | AP40: 0 | AQ40: 0 | AR40: 0 | AS40: 0 | AT40: 0.03128162838 | AU40: 0.09041239056 | AV40: -0.0314451207 | AW40: FALSE | AX40: FALSE | AY40: FALSE | AZ40: FALSE | BA40: 2.645861966 | BB40: 0.7807339358 | BC40: 1 | BD40: 1 | BE40: 1 | BF40: 1 | BG40: 14.339 | BH40: 26.68 | BI40: 0 | BJ40: 0 | BK40: 0 | BL40: 0 | BM40: 369.683 | BN40: 0.01388117712 | BO40: 0.006553079948 | BP40: 0 | BQ40: 31.41 | BR40: 1.5952 | BS40: 1.1515 | BT40: 7701.977
A41: 1952-08-01 | B41: 1995-08-31 | C41: 1993-08-06 | D41: 1995-08-31 | E41: TRUE | F41: 561.880005 | G41: 25.030001 | H41: 1 | I41: 561.880005 | J41: -0.0003202893412 | K41: 1.280550632 | L41: 1995-08-31 | M41: 1.280550632 | N41: 1995-08-31 | O41: 1.280550632 | P41: 2.640255813 | Q41: 0.7460346866 | R41: 1 | S41: 1 | T41: 1 | U41: 1 | AB41: 3.767183 | AC41: 1.353104 | AD41: 0 | AE41: 0 | AF41: 0 | AG41: 0 | AH41: 1 | AI41: 1 | AJ41: 1 | AK41: 1 | AL41: 1 | AM41: 1 | AN41: 3.767183 | AO41: 1.353104 | AP41: 0 | AQ41: 0 | AR41: 0 | AS41: 0 | AT41: -0.0003202893412 | AU41: -0.002121086158 | AV41: -0.04546232481 | AW41: FALSE | AX41: FALSE | AY41: FALSE | AZ41: FALSE | BA41: 2.640255813 | BB41: 0.7460346866 | BC41: 1 | BD41: 1 | BE41: 1 | BF41: 1 | BG41: 14.339 | BH41: 26.69 | BI41: 0 | BJ41: 0 | BK41: 0 | BL41: 0 | BM41: 369.683 | BN41: 0.01388117712 | BO41: 0.006540222368 | BP41: 0 | BQ41: 31.42 | BR41: 1.5668 | BS41: 1.146 | BT41: 7701.977
A42: 1952-09-01 | B42: 1995-09-30 | C42: 1993-08-13 | D42: 1995-09-30 | E42: TRUE | F42: 584.409973 | G42: 24.540001 | H42: 1 | I42: 584.409973 | J42: 0.03931443224 | K42: 1.331897476 | L42: 1995-09-30 | M42: 1.331897476 | N42: 1995-09-30 | O42: 1.331897476 | P42: 2.858876877 | Q42: 0.6480409411 | R42: 1 | S42: 1 | T42: 1 | U42: 1 | AB42: 4.079117 | AC42: 1.17537 | AD42: 0 | AE42: 0 | AF42: 0 | AG42: 0 | AH42: 1 | AI42: 1 | AJ42: 1 | AK42: 1 | AL42: 1 | AM42: 1 | AN42: 4.079117 | AO42: 1.17537 | AP42: 0 | AQ42: 0 | AR42: 0 | AS42: 0 | AT42: 0.03931443224 | AU42: 0.07955303612 | AV42: -0.1408182208 | AW42: FALSE | AX42: FALSE | AY42: FALSE | AZ42: FALSE | BA42: 2.858876877 | BB42: 0.6480409411 | BC42: 1 | BD42: 1 | BE42: 1 | BF42: 1 | BG42: 14.339 | BH42: 26.63 | BI42: 0 | BJ42: 0 | BK42: 0 | BL42: 0 | BM42: 369.683 | BN42: 0.01388117712 | BO42: 0.006531678641 | BP42: 0 | BQ42: 31.925 | BR42: 1.559 | BS42: 1.201 | BT42: 7701.977
A43: 1952-10-01 | B43: 1995-10-31 | C43: 1993-08-20 | D43: 1995-10-31 | E43: TRUE | F43: 581.5 | G43: 24.52 | H43: 1 | I43: 581.5 | J43: -0.004991773138 | K43: 1.325265512 | L43: 1995-10-31 | M43: 1.325265512 | N43: 1995-10-31 | O43: 1.325265512 | P43: 2.949321746 | Q43: 0.6317314393 | R43: 1 | S43: 1 | T43: 1 | U43: 1 | AB43: 4.208166 | AC43: 1.145789 | AD43: 0 | AE43: 0 | AF43: 0 | AG43: 0 | AH43: 1 | AI43: 1 | AJ43: 1 | AK43: 1 | AL43: 1 | AM43: 1 | AN43: 4.208166 | AO43: 1.145789 | AP43: 0 | AQ43: 0 | AR43: 0 | AS43: 0 | AT43: -0.004991773138 | AU43: 0.0311463799 | AV43: -0.02548950898 | AW43: FALSE | AX43: FALSE | AY43: FALSE | AZ43: FALSE | BA43: 2.949321746 | BB43: 0.6317314393 | BC43: 1 | BD43: 1 | BE43: 1 | BF43: 1 | BG43: 14.378 | BH43: 26.69 | BI43: 0 | BJ43: 0 | BK43: 0 | BL43: 0 | BM43: 382.751 | BN43: 0.01381463522 | BO43: 0.00651465798 | BP43: 0 | BQ43: 33.94 | BR43: 1.5779 | BS43: 1.156 | BT43: 7803.073
A44: 1952-11-01 | B44: 1995-11-30 | C44: 1993-08-27 | D44: 1995-11-30 | E44: TRUE | F44: 605.369995 | G44: 25.66 | H44: 1 | I44: 605.369995 | J44: 0.04022886113 | K44: 1.379666339 | L44: 1995-11-30 | M44: 1.379666339 | N44: 1995-11-30 | O44: 1.379666339 | P44: 3.130010338 | Q44: 0.6632631795 | R44: 1 | S44: 1 | T44: 1 | U44: 1 | AB44: 4.465977 | AC44: 1.202979 | AD44: 0 | AE44: 0 | AF44: 0 | AG44: 0 | AH44: 1 | AI44: 1 | AJ44: 1 | AK44: 1 | AL44: 1 | AM44: 1 | AN44: 4.465977 | AO44: 1.202979 | AP44: 0 | AQ44: 0 | AR44: 0 | AS44: 0 | AT44: 0.04022886113 | AU44: 0.05946108006 | AV44: 0.04870749781 | AW44: FALSE | AX44: FALSE | AY44: FALSE | AZ44: FALSE | BA44: 3.130010338 | BB44: 0.6632631795 | BC44: 1 | BD44: 1 | BE44: 1 | BF44: 1 | BG44: 14.378 | BH44: 26.69 | BI44: 0 | BJ44: 0 | BK44: 0 | BL44: 0 | BM44: 382.751 | BN44: 0.01381463522 | BO44: 0.006506180872 | BP44: 0 | BQ44: 34.6 | BR44: 1.5625 | BS44: 1.1395 | BT44: 7803.073
A45: 1952-12-01 | B45: 1995-12-31 | C45: 1993-09-03 | D45: 1995-12-31 | E45: TRUE | F45: 615.929993 | G45: 26.57 | H45: 1 | I45: 615.929993 | J45: 0.01729347626 | K45: 1.403733065 | L45: 1995-12-31 | M45: 1.403733065 | N45: 1995-12-31 | O45: 1.403733065 | P45: 3.357329035 | Q45: 0.5562614681 | R45: 1 | S45: 1 | T45: 1 | U45: 1 | AB45: 4.790321 | AC45: 1.008907 | AD45: 0 | AE45: 0 | AF45: 0 | AG45: 0 | AH45: 1 | AI45: 1 | AJ45: 1 | AK45: 1 | AL45: 1 | AM45: 1 | AN45: 4.790321 | AO45: 1.008907 | AP45: 0 | AQ45: 0 | AR45: 0 | AS45: 0 | AT45: 0.01729347626 | AU45: 0.07010942041 | AV45: -0.1759334138 | AW45: FALSE | AX45: FALSE | AY45: FALSE | AZ45: FALSE | BA45: 3.357329035 | BB45: 0.5562614681 | BC45: 1 | BD45: 1 | BE45: 1 | BF45: 1 | BG45: 14.378 | BH45: 26.71 | BI45: 0 | BJ45: 0 | BK45: 0 | BL45: 0 | BM45: 382.751 | BN45: 0.01381463522 | BO45: 0.006497725796 | BP45: 0 | BQ45: 34.93 | BR45: 1.5405 | BS45: 1.174 | BT45: 7803.073
A46: 1953-01-01 | B46: 1996-01-31 | C46: 1993-09-10 | D46: 1996-01-31 | E46: TRUE | F46: 636.02002 | G46: 26.379999 | H46: 1 | I46: 636.02002 | J46: 0.03209673148 | K46: 1.44951917 | L46: 1996-01-31 | M46: 1.44951917 | N46: 1996-01-31 | O46: 1.44951917 | P46: 3.72128397 | Q46: 0.4820932356 | R46: 1 | S46: 1 | T46: 1 | U46: 1 | AB46: 5.309621 | AC46: 0.874386 | AD46: 0 | AE46: 0 | AF46: 0 | AG46: 0 | AH46: 1 | AI46: 1 | AJ46: 1 | AK46: 1 | AL46: 1 | AM46: 1 | AN46: 5.309621 | AO46: 0.874386 | AP46: 0 | AQ46: 0 | AR46: 0 | AS46: 0 | AT46: 0.03209673148 | AU46: 0.1029230342 | AV46: -0.1431009199 | AW46: FALSE | AX46: FALSE | AY46: FALSE | AZ46: FALSE | BA46: 3.72128397 | BB46: 0.4820932356 | BC46: 1 | BD46: 1 | BE46: 1 | BF46: 1 | BG46: 14.381 | BH46: 26.64 | BI46: 0 | BJ46: 0 | BK46: 0 | BL46: 0 | BM46: 389.888 | BN46: 0.0137483502 | BO46: 0.006464124111 | BP46: 0 | BQ46: 34.93 | BR46: 1.5288 | BS46: 1.174 | BT46: 7905.735
A47: 1953-02-01 | B47: 1996-02-29 | C47: 1993-09-17 | D47: 1996-02-29 | E47: TRUE | F47: 640.429993 | G47: 25.9 | H47: 1 | I47: 640.429993 | J47: 0.006909773984 | K47: 1.459569703 | L47: 1996-02-29 | M47: 1.459569703 | N47: 1996-02-29 | O47: 1.459569703 | P47: 3.660678079 | Q47: 0.4799120927 | R47: 1 | S47: 1 | T47: 1 | U47: 1 | AB47: 5.223147 | AC47: 0.87043 | AD47: 0 | AE47: 0 | AF47: 0 | AG47: 0 | AH47: 1 | AI47: 1 | AJ47: 1 | AK47: 1 | AL47: 1 | AM47: 1 | AN47: 5.223147 | AO47: 0.87043 | AP47: 0 | AQ47: 0 | AR47: 0 | AS47: 0 | AT47: 0.006909773984 | AU47: -0.01642036414 | AV47: -0.004534583336 | AW47: FALSE | AX47: FALSE | AY47: FALSE | AZ47: FALSE | BA47: 3.660678079 | BB47: 0.4799120927 | BC47: 1 | BD47: 1 | BE47: 1 | BF47: 1 | BG47: 14.381 | BH47: 26.59 | BI47: 0 | BJ47: 0 | BK47: 0 | BL47: 0 | BM47: 389.888 | BN47: 0.0137483502 | BO47: 0.006451612903 | BP47: 0 | BQ47: 36.61 | BR47: 1.536 | BS47: 1.2195 | BT47: 7905.735
A48: 1953-03-01 | B48: 1996-03-31 | C48: 1993-09-24 | D48: 1996-03-31 | E48: TRUE | F48: 645.5 | G48: 25.290001 | H48: 1 | I48: 645.5 | J48: 0.00788539547 | K48: 1.471124485 | L48: 1996-03-31 | M48: 1.471124485 | N48: 1996-03-31 | O48: 1.471124485 | P48: 3.775830953 | Q48: 0.4286486177 | R48: 1 | S48: 1 | T48: 1 | U48: 1 | AB48: 5.38745 | AC48: 0.777452 | AD48: 0 | AE48: 0 | AF48: 0 | AG48: 0 | AH48: 1 | AI48: 1 | AJ48: 1 | AK48: 1 | AL48: 1 | AM48: 1 | AN48: 5.38745 | AO48: 0.777452 | AP48: 0 | AQ48: 0 | AR48: 0 | AS48: 0 | AT48: 0.00788539547 | AU48: 0.03097208084 | AV48: -0.1129654366 | AW48: FALSE | AX48: FALSE | AY48: FALSE | AZ48: FALSE | BA48: 3.775830953 | BB48: 0.4286486177 | BC48: 1 | BD48: 1 | BE48: 1 | BF48: 1 | BG48: 14.381 | BH48: 26.63 | BI48: 0 | BJ48: 0 | BK48: 0 | BL48: 0 | BM48: 389.888 | BN48: 0.0137483502 | BO48: 0.006430868167 | BP48: 0 | BQ48: 34.6 | BR48: 1.5271 | BS48: 1.2053 | BT48: 7905.735
A49: 1953-04-01 | B49: 1996-04-30 | C49: 1993-10-01 | D49: 1996-04-30 | E49: TRUE | F49: 654.169983 | G49: 24.620001 | H49: 1 | I49: 654.169983 | J49: 0.01334202024 | K49: 1.490883779 | L49: 1996-04-30 | M49: 1.490883779 | N49: 1996-04-30 | O49: 1.490883779 | P49: 3.885072801 | Q49: 0.4253763519 | R49: 1 | S49: 1 | T49: 1 | U49: 1 | AB49: 5.543319 | AC49: 0.771517 | AD49: 0 | AE49: 0 | AF49: 0 | AG49: 0 | AH49: 1 | AI49: 1 | AJ49: 1 | AK49: 1 | AL49: 1 | AM49: 1 | AN49: 5.543319 | AO49: 0.771517 | AP49: 0 | AQ49: 0 | AR49: 0 | AS49: 0 | AT49: 0.01334202024 | AU49: 0.0285212442 | AV49: -0.007663199256 | AW49: FALSE | AX49: FALSE | AY49: FALSE | AZ49: FALSE | BA49: 3.885072801 | BB49: 0.4253763519 | BC49: 1 | BD49: 1 | BE49: 1 | BF49: 1 | BG49: 14.409 | BH49: 26.69 | BI49: 0 | BJ49: 0 | BK49: 0 | BL49: 0 | BM49: 393.801 | BN49: 0.01369169051 | BO49: 0.006406149904 | BP49: 0 | BQ49: 34.25 | BR49: 1.516 | BS49: 1.1948 | BT49: 8061.846
A50: 1953-05-01 | B50: 1996-05-31 | C50: 1993-10-08 | D50: 1996-05-31 | E50: TRUE | F50: 669.119995 | G50: 24.540001 | H50: 1 | I50: 669.119995 | J50: 0.02259617824 | K50: 1.524955551 | L50: 1996-05-31 | M50: 1.524955551 | N50: 1996-05-31 | O50: 1.524955551 | P50: 4.161679954 | Q50: 0.4559162124 | R50: 1 | S50: 1 | T50: 1 | U50: 1 | AB50: 5.937989 | AC50: 0.826908 | AD50: 0 | AE50: 0 | AF50: 0 | AG50: 0 | AH50: 1 | AI50: 1 | AJ50: 1 | AK50: 1 | AL50: 1 | AM50: 1 | AN50: 5.937989 | AO50: 0.826908 | AP50: 0 | AQ50: 0 | AR50: 0 | AS50: 0 | AT50: 0.02259617824 | AU50: 0.06877710502 | AV50: 0.06933473681 | AW50: FALSE | AX50: FALSE | AY50: FALSE | AZ50: FALSE | BA50: 4.161679954 | BB50: 0.4559162124 | BC50: 1 | BD50: 1 | BE50: 1 | BF50: 1 | BG50: 14.409 | BH50: 26.7 | BI50: 0 | BJ50: 0 | BK50: 0 | BL50: 0 | BM50: 393.801 | BN50: 0.01369169051 | BO50: 0.006393861893 | BP50: 0 | BQ50: 34.8 | BR50: 1.5152 | BS50: 1.2497 | BT50: 8061.846
A51: 1953-06-01 | B51: 1996-06-30 | C51: 1993-10-15 | D51: 1996-06-30 | E51: TRUE | F51: 670.630005 | G51: 24.139999 | H51: 1 | I51: 670.630005 | J51: 0.002254167777 | K51: 1.528396934 | L51: 1996-06-30 | M51: 1.528396934 | N51: 1996-06-30 | O51: 1.528396934 | P51: 4.36284688 | Q51: 0.3664783253 | R51: 1 | S51: 1 | T51: 1 | U51: 1 | AB51: 6.225019 | AC51: 0.664692 | AD51: 0 | AE51: 0 | AF51: 0 | AG51: 0 | AH51: 1 | AI51: 1 | AJ51: 1 | AK51: 1 | AL51: 1 | AM51: 1 | AN51: 6.225019 | AO51: 0.664692 | AP51: 0 | AQ51: 0 | AR51: 0 | AS51: 0 | AT51: 0.002254167777 | AU51: 0.04720597069 | AV51: -0.2183696679 | AW51: FALSE | AX51: FALSE | AY51: FALSE | AZ51: FALSE | BA51: 4.36284688 | BB51: 0.3664783253 | BC51: 1 | BD51: 1 | BE51: 1 | BF51: 1 | BG51: 14.409 | BH51: 26.77 | BI51: 0 | BJ51: 0 | BK51: 0 | BL51: 0 | BM51: 393.801 | BN51: 0.01369169051 | BO51: 0.006381620932 | BP51: 0 | BQ51: 35.23 | BR51: 1.5416 | BS51: 1.251 | BT51: 8061.846
A52: 1953-07-01 | B52: 1996-07-31 | C52: 1993-10-22 | D52: 1996-07-31 | E52: TRUE | F52: 639.950012 | G52: 24.75 | H52: 1 | I52: 639.950012 | J52: -0.04682750949 | K52: 1.458475804 | L52: 1996-07-31 | M52: 1.458475804 | N52: 1996-07-31 | O52: 1.458475804 | P52: 4.136532511 | Q52: 0.3839296741 | R52: 1 | S52: 1 | T52: 1 | U52: 1 | AB52: 5.902108 | AC52: 0.696344 | AD52: 0 | AE52: 0 | AF52: 0 | AG52: 0 | AH52: 1 | AI52: 1 | AJ52: 1 | AK52: 1 | AL52: 1 | AM52: 1 | AN52: 5.902108 | AO52: 0.696344 | AP52: 0 | AQ52: 0 | AR52: 0 | AS52: 0 | AT52: -0.04682750949 | AU52: -0.05326691932 | AV52: 0.04652001563 | AW52: FALSE | AX52: FALSE | AY52: FALSE | AZ52: FALSE | BA52: 4.136532511 | BB52: 0.3839296741 | BC52: 1 | BD52: 1 | BE52: 1 | BF52: 1 | BG52: 14.47 | BH52: 26.79 | BI52: 0 | BJ52: 0 | BK52: 0 | BL52: 0 | BM52: 392.98 | BN52: 0.01364703313 | BO52: 0.006369426752 | BP52: 0 | BQ52: 35.1 | BR52: 1.553 | BS52: 1.2495 | BT52: 8157.22
A53: 1953-08-01 | B53: 1996-08-31 | C53: 1993-10-29 | D53: 1996-08-31 | E53: TRUE | F53: 651.98999 | G53: 23.32 | H53: 1 | I53: 651.98999 | J53: 0.01863914199 | K53: 1.485915474 | L53: 1996-08-31 | M53: 1.485915474 | N53: 1996-08-31 | O53: 1.485915474 | P53: 4.317978729 | Q53: 0.423195209 | R53: 1 | S53: 1 | T53: 1 | U53: 1 | AB53: 6.161 | AC53: 0.767561 | AD53: 0 | AE53: 0 | AF53: 0 | AG53: 0 | AH53: 1 | AI53: 1 | AJ53: 1 | AK53: 1 | AL53: 1 | AM53: 1 | AN53: 6.161 | AO53: 0.767561 | AP53: 0 | AQ53: 0 | AR53: 0 | AS53: 0 | AT53: 0.01863914199 | AU53: 0.0429295268 | AV53: 0.09737416403 | AW53: FALSE | AX53: FALSE | AY53: FALSE | AZ53: FALSE | BA53: 4.317978729 | BB53: 0.423195209 | BC53: 1 | BD53: 1 | BE53: 1 | BF53: 1 | BG53: 14.47 | BH53: 26.85 | BI53: 0 | BJ53: 0 | BK53: 0 | BL53: 0 | BM53: 392.98 | BN53: 0.01364703313 | BO53: 0.006361323155 | BP53: 0 | BQ53: 35.65 | BR53: 1.5499 | BS53: 1.2008 | BT53: 8157.22
A54: 1953-09-01 | B54: 1996-09-30 | C54: 1993-11-05 | D54: 1996-09-30 | E54: TRUE | F54: 687.330017 | G54: 23.35 | H54: 1 | I54: 687.330017 | J54: 0.05278534192 | K54: 1.566457037 | L54: 1996-09-30 | M54: 1.566457037 | N54: 1996-09-30 | O54: 1.566457037 | P54: 4.727047115 | Q54: 0.3872019399 | R54: 1 | S54: 1 | T54: 1 | U54: 1 | AB54: 6.744669 | AC54: 0.702279 | AD54: 0 | AE54: 0 | AF54: 0 | AG54: 0 | AH54: 1 | AI54: 1 | AJ54: 1 | AK54: 1 | AL54: 1 | AM54: 1 | AN54: 6.744669 | AO54: 0.702279 | AP54: 0 | AQ54: 0 | AR54: 0 | AS54: 0 | AT54: 0.05278534192 | AU54: 0.09051331304 | AV54: -0.08888719416 | AW54: FALSE | AX54: FALSE | AY54: FALSE | AZ54: FALSE | BA54: 4.727047115 | BB54: 0.3872019399 | BC54: 1 | BD54: 1 | BE54: 1 | BF54: 1 | BG54: 14.47 | BH54: 26.89 | BI54: 0 | BJ54: 0 | BK54: 0 | BL54: 0 | BM54: 392.98 | BN54: 0.01364703313 | BO54: 0.00634115409 | BP54: 0 | BQ54: 35.85 | BR54: 1.5593 | BS54: 1.2009 | BT54: 8157.22
A55: 1953-10-01 | B55: 1996-10-31 | C55: 1993-11-12 | D55: 1996-10-31 | E55: TRUE | F55: 705.27002 | G55: 24.540001 | H55: 1 | I55: 705.27002 | J55: 0.02576618561 | K55: 1.607343137 | L55: 1996-10-31 | M55: 1.607343137 | N55: 1996-10-31 | O55: 1.607343137 | P55: 5.182117639 | Q55: 0.401381023 | R55: 1 | S55: 1 | T55: 1 | U55: 1 | AB55: 7.393975 | AC55: 0.727996 | AD55: 0 | AE55: 0 | AF55: 0 | AG55: 0 | AH55: 1 | AI55: 1 | AJ55: 1 | AK55: 1 | AL55: 1 | AM55: 1 | AN55: 7.393975 | AO55: 0.727996 | AP55: 0 | AQ55: 0 | AR55: 0 | AS55: 0 | AT55: 0.02576618561 | AU55: 0.09191306432 | AV55: 0.03596479271 | AW55: FALSE | AX55: FALSE | AY55: FALSE | AZ55: FALSE | BA55: 5.182117639 | BB55: 0.401381023 | BC55: 1 | BD55: 1 | BE55: 1 | BF55: 1 | BG55: 14.497 | BH55: 26.95 | BI55: 0 | BJ55: 0 | BK55: 0 | BL55: 0 | BM55: 387.798 | BN55: 0.01357441494 | BO55: 0.006321112516 | BP55: 0 | BQ55: 35.85 | BR55: 1.5863 | BS55: 1.2545 | BT55: 8291.163
A56: 1953-11-01 | B56: 1996-11-30 | C56: 1993-11-19 | D56: 1996-11-30 | E56: TRUE | F56: 757.02002 | G56: 24.76 | H56: 1 | I56: 757.02002 | J56: 0.07080896301 | K56: 1.725283791 | L56: 1996-11-30 | M56: 1.725283791 | N56: 1996-11-30 | O56: 1.725283791 | P56: 5.570442766 | Q56: 0.4210135147 | R56: 1 | S56: 1 | T56: 1 | U56: 1 | AB56: 7.948047 | AC56: 0.763604 | AD56: 0 | AE56: 0 | AF56: 0 | AG56: 0 | AH56: 1 | AI56: 1 | AJ56: 1 | AK56: 1 | AL56: 1 | AM56: 1 | AN56: 7.948047 | AO56: 0.763604 | AP56: 0 | AQ56: 0 | AR56: 0 | AS56: 0 | AT56: 0.07080896301 | AU56: 0.07226075872 | AV56: 0.04775377651 | AW56: FALSE | AX56: FALSE | AY56: FALSE | AZ56: FALSE | BA56: 5.570442766 | BB56: 0.4210135147 | BC56: 1 | BD56: 1 | BE56: 1 | BF56: 1 | BG56: 14.497 | BH56: 26.85 | BI56: 0 | BJ56: 0 | BK56: 0 | BL56: 0 | BM56: 387.798 | BN56: 0.01357441494 | BO56: 0.006301197227 | BP56: 0 | BQ56: 35.84 | BR56: 1.6623 | BS56: 1.27 | BT56: 8291.163
A57: 1953-12-01 | B57: 1996-12-31 | C57: 1993-11-26 | D57: 1996-12-31 | E57: TRUE | F57: 740.73999 | G57: 24.809999 | H57: 1 | I57: 740.73999 | J57: -0.02174002656 | K57: 1.688180846 | L57: 1996-12-31 | M57: 1.688180846 | N57: 1996-12-31 | O57: 1.688180846 | P57: 5.295936783 | Q57: 0.364296631 | R57: 1 | S57: 1 | T57: 1 | U57: 1 | AB57: 7.556375 | AC57: 0.660735 | AD57: 0 | AE57: 0 | AF57: 0 | AG57: 0 | AH57: 1 | AI57: 1 | AJ57: 1 | AK57: 1 | AL57: 1 | AM57: 1 | AN57: 7.556375 | AO57: 0.660735 | AP57: 0 | AQ57: 0 | AR57: 0 | AS57: 0 | AT57: -0.02174002656 | AU57: -0.05053466027 | AV57: -0.1446964784 | AW57: FALSE | AX57: FALSE | AY57: FALSE | AZ57: FALSE | BA57: 5.295936783 | BB57: 0.364296631 | BC57: 1 | BD57: 1 | BE57: 1 | BF57: 1 | BG57: 14.497 | BH57: 26.87 | BI57: 0 | BJ57: 0 | BK57: 0 | BL57: 0 | BM57: 387.798 | BN57: 0.01357441494 | BO57: 0.006285355123 | BP57: 0 | BQ57: 35.747 | BR57: 1.6639 | BS57: 1.3033 | BT57: 8291.163
A58: 1954-01-01 | B58: 1997-01-31 | C58: 1993-12-03 | D58: 1997-01-31 | E58: TRUE | F58: 786.159973 | G58: 26.08 | H58: 1 | I58: 786.159973 | J58: 0.05951062668 | K58: 1.791695097 | L58: 1997-01-31 | M58: 1.791695097 | N58: 1997-01-31 | O58: 1.791695097 | P58: 5.716469083 | Q58: 0.2901283985 | R58: 1 | S58: 1 | T58: 1 | U58: 1 | AB58: 8.156401 | AC58: 0.526214 | AD58: 0 | AE58: 0 | AF58: 0 | AG58: 0 | AH58: 1 | AI58: 1 | AJ58: 1 | AK58: 1 | AL58: 1 | AM58: 1 | AN58: =IFERROR(IF(ISNUMBER(AB58)>0.1,AB58,AN59)*AH58,AN59) -> 8.156401 | AO58: 0.526214 | AP58: 0 | AQ58: 0 | AR58: 0 | AS58: 0 | AT58: 0.05951062668 | AU58: 0.07641143992 | AV58: -0.2276448776 | AW58: FALSE | AX58: FALSE | AY58: FALSE | AZ58: FALSE | BA58: 5.716469083 | BB58: 0.2901283985 | BC58: 1 | BD58: 1 | BE58: 1 | BF58: 1 | BG58: 14.543 | BH58: 26.94 | BI58: 0 | BJ58: 0 | BK58: 0 | BL58: 0 | BM58: 387.345 | BN58: 0.01349400192 | BO58: 0.006273525721 | BP58: 0 | BQ58: 35.747 | BR58: 1.6585 | BS58: 1.3033 | BT58: 8385.773
A59: 1954-02-01 | B59: 1997-02-28 | C59: 1993-12-10 | D59: 1997-02-28 | E59: TRUE | F59: 790.820007 | G59: 26.15 | H59: 1 | I59: 790.820007 | J59: 0.005910090963 | K59: 1.802315531 | L59: 1997-02-28 | M59: 1.802315531 | N59: 1997-02-28 | O59: 1.802315531 | P59: 5.681947681 | Q59: 0.2835844184 | R59: 1 | S59: 1 | T59: 1 | U59: 1 | AB59: 8.107145 | AC59: 0.514345 | AD59: 0 | AE59: 0 | AF59: 0 | AG59: 0 | AH59: 1 | AI59: 1 | AJ59: 1 | AK59: 1 | AL59: 1 | AM59: 1 | AN59: 8.107145 | AO59: 0.514345 | AP59: 0 | AQ59: 0 | AR59: 0 | AS59: 0 | AT59: 0.005910090963 | AU59: -0.006057246138 | AV59: -0.02281372758 | AW59: FALSE | AX59: FALSE | AY59: FALSE | AZ59: FALSE | BA59: 5.681947681 | BB59: 0.2835844184 | BC59: 1 | BD59: 1 | BE59: 1 | BF59: 1 | BG59: 14.543 | BH59: 26.99 | BI59: 0 | BJ59: 0 | BK59: 0 | BL59: 0 | BM59: 387.345 | BN59: 0.01349400192 | BO59: 0.006261740764 | BP59: 0 | BQ59: 35.9 | BR59: 1.6256 | BS59: 1.419 | BT59: 8385.773
A60: 1954-03-01 | B60: 1997-03-31 | C60: 1993-12-17 | D60: 1997-03-31 | E60: TRUE | F60: 757.119995 | G60: 26.940001 | H60: 1 | I60: 757.119995 | J60: -0.04354863593 | K60: 1.725511638 | L60: 1997-03-31 | M60: 1.725511638 | N60: 1997-03-31 | O60: 1.725511638 | P60: 5.481733219 | Q60: 0.318487116 | R60: 1 | S60: 1 | T60: 1 | U60: 1 | AB60: 7.821474 | AC60: 0.577649 | AD60: 0 | AE60: 0 | AF60: 0 | AG60: 0 | AH60: 1 | AI60: 1 | AJ60: 1 | AK60: 1 | AL60: 1 | AM60: 1 | AN60: 7.821474 | AO60: 0.577649 | AP60: 0 | AQ60: 0 | AR60: 0 | AS60: 0 | AT60: -0.04354863593 | AU60: -0.03587274378 | AV60: 0.1160721713 | AW60: FALSE | AX60: FALSE | AY60: FALSE | AZ60: FALSE | BA60: 5.481733219 | BB60: 0.318487116 | BC60: 1 | BD60: 1 | BE60: 1 | BF60: 1 | BG60: 14.543 | BH60: 26.93 | BI60: 0 | BJ60: 0 | BK60: 0 | BL60: 0 | BM60: 387.345 | BN60: 0.01349400192 | BO60: 0.006257822278 | BP60: 0 | BQ60: 35.91 | BR60: 1.6096 | BS60: 1.4735 | BT60: 8385.773
A61: 1954-04-01 | B61: 1997-04-30 | C61: 1993-12-24 | D61: 1997-04-30 | E61: TRUE | F61: 801.340027 | G61: 28.26 | H61: 1 | I61: 801.340027 | J61: 0.05676360537 | K61: 1.826291146 | L61: 1997-04-30 | M61: 1.826291146 | N61: 1997-04-30 | O61: 1.826291146 | P61: 6.32157062 | Q61: 0.29667293 | R61: 1 | S61: 1 | T61: 1 | U61: 1 | AB61: 9.019775 | AC61: 0.538084 | AD61: 0 | AE61: 0 | AF61: 0 | AG61: 0 | AH61: 1 | AI61: 1 | AJ61: 1 | AK61: 1 | AL61: 1 | AM61: 1 | AN61: 9.019775 | AO61: 0.538084 | AP61: 0 | AQ61: 0 | AR61: 0 | AS61: 0 | AT61: 0.05676360537 | AU61: 0.1425463614 | AV61: -0.07095173597 | AW61: FALSE | AX61: FALSE | AY61: FALSE | AZ61: FALSE | BA61: 6.32157062 | BB61: 0.29667293 | BC61: 1 | BD61: 1 | BE61: 1 | BF61: 1 | BG61: 14.556 | BH61: 26.86 | BI61: 0 | BJ61: 0 | BK61: 0 | BL61: 0 | BM61: 388.119 | BN61: 0.01346674388 | BO61: 0.006253908693 | BP61: 0 | BQ61: 35.89 | BR61: 1.6293 | BS61: 1.4427 | BT61: 8549.503
A62: 1954-05-01 | B62: 1997-05-31 | C62: 1993-12-31 | D62: 1997-05-31 | E62: TRUE | F62: 848.280029 | G62: 29.190001 | H62: 1 | I62: 848.280029 | J62: 0.05692544404 | K62: 1.933269591 | L62: 1997-05-31 | M62: 1.933269591 | N62: 1997-05-31 | O62: 1.933269591 | P62: 6.876843341 | Q62: 0.2901283985 | R62: 1 | S62: 1 | T62: 1 | U62: 1 | AB62: 9.812052 | AC62: 0.526214 | AD62: 0 | AE62: 1.5 | AF62: 0 | AG62: 0 | AH62: 1 | AI62: 1 | AJ62: 1 | AK62: 1 | AL62: 1 | AM62: 1 | AN62: 9.812052 | AO62: 0.526214 | AP62: 0 | AQ62: 1.5 | AR62: 0 | AS62: 0 | AT62: 0.05692544404 | AU62: 0.08419203682 | AV62: -0.0223067077 | AW62: FALSE | AX62: FALSE | AY62: FALSE | AZ62: FALSE | BA62: 6.876843341 | BB62: 0.2901283985 | BC62: 1 | BD62: 1 | BE62: 1 | BF62: 1 | BG62: 14.556 | BH62: 26.93 | BI62: 0 | BJ62: 0 | BK62: 0 | BL62: 0 | BM62: 388.119 | BN62: 0.01346674388 | BO62: 0.006253908693 | BP62: 0 | BQ62: 35.77 | BR62: 1.6322 | BS62: 1.4685 | BT62: 8549.503
A63: 1954-06-01 | B63: 1997-06-30 | C63: 1994-01-07 | D63: 1997-06-30 | E63: TRUE | F63: 885.140015 | G63: 29.209999 | H63: 1 | I63: 885.140015 | J63: 0.04253503738 | K63: 2.017275211 | L63: 1997-06-30 | M63: 2.017275211 | N63: 1997-06-30 | O63: 2.017275211 | P63: 7.403638848 | Q63: 0.2486817207 | R63: 1 | S63: 1.027778 | T63: 1 | U63: 1 | AB63: 10.563697 | AC63: 0.451041 | AD63: 0 | AE63: 1.541667 | AF63: 0 | AG63: 0 | AH63: 1 | AI63: 1 | AJ63: 1 | AK63: 1 | AL63: 1 | AM63: 1 | AN63: 10.563697 | AO63: 0.451041 | AP63: 0 | AQ63: 1.541667 | AR63: 0 | AS63: 0 | AT63: 0.04253503738 | AU63: 0.07381188569 | AV63: -0.1541497296 | AW63: FALSE | AX63: 0.0273991904 | AY63: FALSE | AZ63: FALSE | BA63: 7.403638848 | BB63: 0.2486817207 | BC63: 1 | BD63: 1.027778 | BE63: 1 | BF63: 1 | BG63: 14.556 | BH63: 26.94 | BI63: 0 | BJ63: 0 | BK63: 0 | BL63: 0 | BM63: 388.119 | BN63: 0.01346674388 | BO63: 0.006242197253 | BP63: 0 | BQ63: 35.8 | BR63: 1.6449 | BS63: 1.4145 | BT63: 8549.503
A64: 1954-07-01 | B64: 1997-07-31 | C64: 1994-01-14 | D64: 1997-07-31 | E64: TRUE | F64: 954.309998 | G64: 30.879999 | H64: 1 | I64: 954.309998 | J64: 0.07524272262 | K64: 2.174916815 | L64: 1997-07-31 | M64: 2.174916815 | N64: 1997-07-31 | O64: 2.174916815 | P64: 7.987389484 | Q64: 0.3053986044 | R64: 1 | S64: 1.597222 | T64: 1 | U64: 1 | AB64: 11.396607 | AC64: 0.55391 | AD64: 0 | AE64: 2.395833 | AF64: 0 | AG64: 0 | AH64: 1 | AI64: 1 | AJ64: 1 | AK64: 1 | AL64: 1 | AM64: 1 | AN64: 11.396607 | AO64: 0.55391 | AP64: 0 | AQ64: 2.395833 | AR64: 0 | AS64: 0 | AT64: 0.07524272262 | AU64: 0.07589236781 | AV64: 0.2054439742 | AW64: FALSE | AX64: 0.4408666798 | AY64: FALSE | AZ64: FALSE | BA64: 7.987389484 | BB64: 0.3053986044 | BC64: 1 | BD64: 1.597222 | BE64: 1 | BF64: 1 | BG64: 14.575 | BH64: 26.86 | BI64: 0 | BJ64: 0 | BK64: 0 | BL64: 0 | BM64: 393.034 | BN64: 0.01340860028 | BO64: 0.006234413965 | BP64: 0 | BQ64: 35.83 | BR64: 1.6694 | BS64: 1.459 | BT64: 8685.903
A65: 1954-08-01 | B65: 1997-08-31 | C65: 1994-01-21 | D65: 1997-08-31 | E65: TRUE | F65: 899.469971 | G65: 29.83 | H65: 1 | I65: 899.469971 | J65: -0.05918289543 | K65: 2.049933846 | L65: 1997-08-31 | M65: 2.049933846 | N65: 1997-08-31 | O65: 2.049933846 | P65: 7.210610271 | Q65: 0.3795668369 | R65: 1 | S65: 1.559028 | T65: 1 | U65: 1 | AB65: 10.288279 | AC65: 0.688431 | AD65: 0 | AE65: 2.338542 | AF65: 0 | AG65: 0 | AH65: 1 | AI65: 1 | AJ65: 1 | AK65: 1 | AL65: 1 | AM65: 1 | AN65: 10.288279 | AO65: 0.688431 | AP65: 0 | AQ65: 2.338542 | AR65: 0 | AS65: 0 | AT65: -0.05918289543 | AU65: -0.1023103934 | AV65: 0.2174128766 | AW65: FALSE | AX65: -0.02420332007 | AY65: FALSE | AZ65: FALSE | BA65: 7.210610271 | BB65: 0.3795668369 | BC65: 1 | BD65: 1.559028 | BE65: 1 | BF65: 1 | BG65: 14.575 | BH65: 26.85 | BI65: 0 | BJ65: 0 | BK65: 0 | BL65: 0 | BM65: 393.034 | BN65: 0.01340860028 | BO65: 0.006218905473 | BP65: 0 | BQ65: 35.8 | BR65: 1.6035 | BS65: 1.526 | BT65: 8685.903
A66: 1954-09-01 | B66: 1997-09-30 | C66: 1994-01-28 | D66: 1997-09-30 | E66: TRUE | F66: 947.280029 | G66: 32.310001 | H66: 1 | I66: 947.280029 | J66: 0.05178908191 | K66: 2.158895189 | L66: 1997-09-30 | M66: 2.158895189 | N66: 1997-09-30 | O66: 2.158895189 | P66: 7.844513518 | Q66: 0.3784762655 | R66: 1 | S66: 2.892361333 | T66: 1 | U66: 1 | Y66: =LOOKUP($A66,INDIRECT("'"&Y$5&"'!A:A"),INDIRECT("'"&Y$5&"'!"&Y$7&":"&Y$7)) ->  | AB66: 11.192748 | AC66: 0.686453 | AD66: 0 | AE66: 4.338542 | AF66: 0 | AG66: 0 | AH66: =IF(AH$7,INDEX($BN66:$BT66,AH$7),1) -> 1 | AI66: 1 | AJ66: 1 | AK66: 1 | AL66: 1 | AM66: 1 | AN66: 11.192748 | AO66: 0.686453 | AP66: 0 | AQ66: 4.338542 | AR66: 0 | AS66: 0 | AT66: 0.05178908191 | AU66: 0.08426078248 | AV66: -0.002877335637 | AW66: FALSE | AX66: 0.6180106887 | AY66: FALSE | AZ66: FALSE | BA66: 7.844513518 | BB66: 0.3784762655 | BC66: 1 | BD66: 2.892361333 | BE66: 1 | BF66: 1 | BG66: 14.575 | BH66: 26.81 | BI66: 0 | BJ66: 0 | BK66: 0 | BL66: 0 | BM66: 393.034 | BN66: 0.01340860028 | BO66: 0.006203473945 | BP66: 0 | BQ66: 35.8 | BR66: 1.6013 | BS66: 1.526 | BT66: 8685.903
A67: 1954-10-01 | B67: 1997-10-31 | C67: 1994-02-04 | D67: 1997-10-31 | E67: TRUE | F67: 914.619995 | G67: 31.68 | H67: 1 | I67: 914.619995 | J67: -0.03508607764 | K67: 2.084461455 | L67: 1997-10-31 | M67: 2.084461455 | N67: 1997-10-31 | O67: 2.084461455 | P67: 7.536258476 | Q67: 0.297217113 | R67: 1 | S67: 3.388888667 | T67: 1 | U67: 1 | AB67: 10.752922 | AC67: 0.539071 | AD67: 0 | AE67: 5.083333 | AF67: 0 | AG67: 0 | AH67: 1 | AI67: 1 | AJ67: 1 | AK67: 1 | AL67: 1 | AM67: 1 | AN67: 10.752922 | AO67: 0.539071 | AP67: 0 | AQ67: 5.083333 | AR67: 0 | AS67: 0 | AT67: -0.03508607764 | AU67: -0.04008853699 | AV67: -0.241690472 | AW67: FALSE | AX67: 0.1584288018 | AY67: FALSE | AZ67: FALSE | BA67: 7.536258476 | BB67: 0.297217113 | BC67: 1 | BD67: 3.388888667 | BE67: 1 | BF67: 1 | BG67: 14.615 | BH67: 26.72 | BI67: 0 | BJ67: 0 | BK67: 0 | BL67: 0 | BM67: 402.077 | BN67: 0.01336469582 | BO67: 0.006191950464 | BP67: 0 | BQ67: 36.2 | BR67: 1.633 | BS67: 1.4609 | BT67: 8782.231
A68: 1954-11-01 | B68: 1997-11-30 | C68: 1994-02-11 | D68: 1997-11-30 | E68: TRUE | F68: 955.400024 | G68: 34.240002 | H68: 1 | I68: 955.400024 | J68: 0.04362145308 | K68: 2.177401035 | L68: 1997-11-30 | M68: 2.177401035 | N68: 1997-11-30 | O68: 2.177401035 | P68: 8.614948575 | Q68: 0.3097614416 | R68: 1 | S68: 2.75 | T68: 1 | U68: 1 | AB68: 12.292024 | AC68: 0.561823 | AD68: 0 | AE68: 4.125 | AF68: 0 | AG68: 0 | AH68: 1 | AI68: 1 | AJ68: 1 | AK68: 1 | AL68: 1 | AM68: 1 | AN68: 12.292024 | AO68: 0.561823 | AP68: 0 | AQ68: 4.125 | AR68: 0 | AS68: 0 | AT68: 0.04362145308 | AU68: 0.1337730652 | AV68: 0.04133956602 | AW68: FALSE | AX68: -0.208901129 | AY68: FALSE | AZ68: FALSE | BA68: 8.614948575 | BB68: 0.3097614416 | BC68: 1 | BD68: 2.75 | BE68: 1 | BF68: 1 | BG68: 14.615 | BH68: 26.78 | BI68: 0 | BJ68: 0 | BK68: 0 | BL68: 0 | BM68: 402.077 | BN68: 0.01336469582 | BO68: 0.006184291899 | BP68: 0 | BQ68: 36.39 | BR68: 1.6889 | BS68: 1.3995 | BT68: 8782.231
A69: 1954-12-01 | B69: 1997-12-31 | C69: 1994-02-18 | D69: 1997-12-31 | E69: TRUE | F69: 970.429993 | G69: 35.98 | H69: 1 | I69: 970.429993 | J69: 0.01560913895 | K69: 2.211655033 | L69: 1997-12-31 | M69: 2.211655033 | N69: 1997-12-31 | O69: 2.211655033 | P69: 8.556639392 | Q69: 0.2290486776 | R69: 1 | S69: 3.347222 | T69: 1 | U69: 1 | AB69: 12.208827 | AC69: 0.415432 | AD69: 0 | AE69: 5.020833 | AF69: 0 | AG69: 0 | AH69: 1 | AI69: 1 | AJ69: 1 | AK69: 1 | AL69: 1 | AM69: 1 | AN69: 12.208827 | AO69: 0.415432 | AP69: 0 | AQ69: 5.020833 | AR69: 0 | AS69: 0 | AT69: 0.01560913895 | AU69: -0.006791382044 | AV69: -0.301867911 | AW69: FALSE | AX69: 0.1965298364 | AY69: FALSE | AZ69: FALSE | BA69: 8.556639392 | BB69: 0.2290486776 | BC69: 1 | BD69: 3.347222 | BE69: 1 | BF69: 1 | BG69: 14.615 | BH69: 26.77 | BI69: 0 | BJ69: 0 | BK69: 0 | BL69: 0 | BM69: 402.077 | BN69: 0.01336469582 | BO69: 0.006180469716 | BP69: 0 | BQ69: 39.45 | BR69: 1.6597 | BS69: 1.433 | BT69: 8782.231
A70: 1955-01-01 | B70: 1998-01-31 | C70: 1994-02-25 | D70: 1998-01-31 | E70: TRUE | F70: 980.280029 | G70: 36.630001 | H70: 1 | I70: 980.280029 | J70: 0.0100990097 | K70: 2.234103722 | L70: 1998-01-31 | M70: 2.234103722 | N70: 1998-01-31 | O70: 2.234103722 | P70: 9.154027999 | Q70: 0.3195776875 | R70: 1 | S70: 3.277778 | T70: 1 | U70: 1 | AB70: 13.061196 | AC70: 0.579627 | AD70: 0 | AE70: 4.916667 | AF70: 0 | AG70: 0 | AH70: 1 | AI70: 1 | AJ70: 1 | AK70: 1 | AL70: 1 | AM70: 1 | AN70: 13.061196 | AO70: 0.579627 | AP70: 0 | AQ70: 4.916667 | AR70: 0 | AS70: 0 | AT70: 0.0100990097 | AU70: 0.06748648228 | AV70: 0.3330658506 | AW70: FALSE | AX70: -0.02096499428 | AY70: FALSE | AZ70: FALSE | BA70: 9.154027999 | BB70: 0.3195776875 | BC70: 1 | BD70: 3.277778 | BE70: 1 | BF70: 1 | BG70: 14.683 | BH70: 26.77 | BI70: 0 | BJ70: 0 | BK70: 0 | BL70: 0 | BM70: 415.496 | BN70: 0.01334525509 | BO70: 0.006172839506 | BP70: 0 | BQ70: 39.45 | BR70: 1.635 | BS70: 1.433 | BT70: 8891.834
A71: 1955-02-01 | B71: 1998-02-28 | C71: 1994-03-04 | D71: 1998-02-28 | E71: TRUE | F71: 1049.339966 | G71: 36.759998 | H71: 1 | I71: 1049.339966 | J71: 0.06807836696 | K71: 2.391494527 | L71: 1998-02-28 | M71: 2.391494527 | N71: 1998-02-28 | O71: 2.391494527 | P71: 9.183550891 | Q71: 0.4122878403 | R71: 1 | S71: 4.277778 | T71: 1 | U71: 1 | AB71: 13.10332 | AC71: 0.747778 | AD71: 0 | AE71: 6.416667 | AF71: 0 | AG71: 0 | AH71: 1 | AI71: 1 | AJ71: 1 | AK71: 1 | AL71: 1 | AM71: 1 | AN71: 13.10332 | AO71: 0.747778 | AP71: 0 | AQ71: 6.416667 | AR71: 0 | AS71: 0 | AT71: 0.06807836696 | AU71: 0.003219936222 | AV71: 0.2547213493 | AW71: FALSE | AX71: 0.2662679621 | AY71: FALSE | AZ71: FALSE | BA71: 9.183550891 | BB71: 0.4122878403 | BC71: 1 | BD71: 4.277778 | BE71: 1 | BF71: 1 | BG71: 14.683 | BH71: 26.82 | BI71: 0 | BJ71: 0 | BK71: 0 | BL71: 0 | BM71: 415.496 | BN71: 0.01334525509 | BO71: 0.006172839506 | BP71: 0 | BQ71: 38.8 | BR71: 1.6408 | BS71: 1.482 | BT71: 8891.834
A72: 1955-03-01 | B72: 1998-03-31 | C72: 1994-03-11 | D72: 1998-03-31 | E72: TRUE | F72: 1101.75 | G72: 36.580002 | H72: 1 | I72: 1101.75 | J72: 0.04873846203 | K72: 2.510939429 | L72: 1998-03-31 | M72: 2.510939429 | N72: 1998-03-31 | O72: 2.510939429 | P72: 10.18016295 | Q72: 0.4799120927 | R72: 1 | S72: 4.751733333 | T72: 1 | U72: 1 | AB72: 14.525311 | AC72: 0.87043 | AD72: 0 | AE72: 7.1276 | AF72: 0 | AG72: 0 | AH72: 1 | AI72: 1 | AJ72: 1 | AK72: 1 | AL72: 1 | AM72: 1 | AN72: 14.525311 | AO72: 0.87043 | AP72: 0 | AQ72: 7.1276 | AR72: 0 | AS72: 0 | AT72: 0.04873846203 | AU72: 0.1030270807 | AV72: 0.1518811999 | AW72: FALSE | AX72: 0.1050757479 | AY72: FALSE | AZ72: FALSE | BA72: 10.18016295 | BB72: 0.4799120927 | BC72: 1 | BD72: 4.751733333 | BE72: 1 | BF72: 1 | BG72: 14.683 | BH72: 26.79 | BI72: 0 | BJ72: 0 | BK72: 0 | BL72: 0 | BM72: 415.496 | BN72: 0.01334525509 | BO72: 0.006172839506 | BP72: 0 | BQ72: 39.45 | BR72: 1.6619 | BS72: 1.4662 | BT72: 8891.834
A73: 1955-04-01 | B73: 1998-04-30 | C73: 1994-03-18 | D73: 1998-04-30 | E73: TRUE | F73: 1111.75 | G73: 37.959999 | H73: 1 | I73: 1111.75 | J73: 0.009035525669 | K73: 2.533729893 | L73: 1998-04-30 | M73: 2.533729893 | N73: 1998-04-30 | O73: 2.533729893 | P73: 10.18212885 | Q73: 0.4777303984 | R73: 1 | S73: 5.097222 | T73: 1 | U73: 1 | AB73: 14.528116 | AC73: 0.866473 | AD73: 0 | AE73: 7.645833 | AF73: 0 | AG73: 0 | AH73: 1 | AI73: 1 | AJ73: 1 | AK73: 1 | AL73: 1 | AM73: 1 | AN73: 14.528116 | AO73: 0.866473 | AP73: 0 | AQ73: 7.645833 | AR73: 0 | AS73: 0 | AT73: 0.009035525669 | AU73: 0.0001930925401 | AV73: -0.004556393588 | AW73: FALSE | AX73: 0.07018622168 | AY73: FALSE | AZ73: FALSE | BA73: 10.18212885 | BB73: 0.4777303984 | BC73: 1 | BD73: 5.097222 | BE73: 1 | BF73: 1 | BG73: 14.744 | BH73: 26.79 | BI73: 0 | BJ73: 0 | BK73: 0 | BL73: 0 | BM73: 423.93 | BN73: 0.01331380642 | BO73: 0.006165228113 | BP73: 0 | BQ73: 39.55 | BR73: 1.6723 | BS73: 1.5335 | BT73: 8992.195
A74: 1955-05-01 | B74: 1998-05-31 | C74: 1994-03-25 | D74: 1998-05-31 | E74: TRUE | F74: 1090.819946 | G74: 37.91 | H74: 1 | I74: 1090.819946 | J74: -0.01900569292 | K74: 2.486029328 | L74: 1998-05-31 | M74: 2.486029328 | N74: 1998-05-31 | O74: 2.486029328 | P74: 9.965482803 | Q74: 0.4646418868 | R74: 1 | S74: 4.895833333 | T74: 1 | U74: 1 | AB74: 14.219 | AC74: 0.842734 | AD74: 0 | AE74: 7.34375 | AF74: 0 | AG74: 0 | AH74: 1 | AI74: 1 | AJ74: 1 | AK74: 1 | AL74: 1 | AM74: 1 | AN74: 14.219 | AO74: 0.842734 | AP74: 0 | AQ74: 7.34375 | AR74: 0 | AS74: 0 | AT74: -0.01900569292 | AU74: -0.02150670799 | AV74: -0.02777958036 | AW74: FALSE | AX74: -0.04031118221 | AY74: FALSE | AZ74: FALSE | BA74: 9.965482803 | BB74: 0.4646418868 | BC74: 1 | BD74: 4.895833333 | BE74: 1 | BF74: 1 | BG74: 14.744 | BH74: 26.77 | BI74: 0 | BJ74: 0 | BK74: 0 | BL74: 0 | BM74: 423.93 | BN74: 0.01331380642 | BO74: 0.006150061501 | BP74: 0 | BQ74: 39.82 | BR74: 1.6382 | BS74: 1.4883 | BT74: 8992.195
A75: 1955-06-01 | B75: =IF(B74<=$D$2,EOMONTH(B74,1)) -> 1998-06-30 | C75: 1994-04-01 | D75: 1998-06-30 | E75: TRUE | F75: =LOOKUP(D75,A:A,G:G) -> 1133.839966 | G75: =IFERROR(LOOKUP($A75,INDIRECT("'"&G$7&"'!A:A"),INDIRECT("'"&G$7&"'!"&$G$9&":"&$G$9)),0) -> 41.029999 | H75: =IF(H$8,INDEX($BN75:$BT75,H$8),1) -> 1 | I75: =IF(ISNUMBER(F75),F75,I76)*H75 -> 1133.839966 | J75: 0.03868041441 | K75: 2.584073952 | L75: 1998-06-30 | M75: 2.584073952 | N75: 1998-06-30 | O75: 2.584073952 | P75: 10.86192981 | Q75: 0.5006351559 | R75: 1 | S75: 11.08333333 | T75: 1 | U75: 1 | V75: =LOOKUP($A75,INDIRECT("'"&V$5&"'!A:A"),INDIRECT("'"&V$5&"'!"&V$7&":"&V$7)) ->  | AB75: =IF(ISNUMBER(LOOKUP($D75,$A:$A,V:V)),LOOKUP($D75,$A:$A,V:V),AB74) -> 15.498073 | AC75: =IF(ISNUMBER(LOOKUP($D75,$A:$A,W:W)),LOOKUP($D75,$A:$A,W:W),AC74) -> 0.908016 | AD75: =IF(ISNUMBER(LOOKUP($D75,$A:$A,X:X)),LOOKUP($D75,$A:$A,X:X),AD74) -> 0 | AE75: =IF(ISNUMBER(LOOKUP($D75,$A:$A,Y:Y)),LOOKUP($D75,$A:$A,Y:Y),AE74) -> 16.625 | AF75: =IF(ISNUMBER(LOOKUP($D75,$A:$A,Z:Z)),LOOKUP($D75,$A:$A,Z:Z),AF74) -> 0 | AG75: =IF(ISNUMBER(LOOKUP($D75,$A:$A,AA:AA)),LOOKUP($D75,$A:$A,AA:AA),AG74) -> 0 | AH75: 1 | AI75: 1 | AJ75: 1 | AK75: 1 | AL75: 1 | AM75: 1 | AN75: =IFERROR(IF(ISNUMBER(AB75)>0.1,AB75,AN76)*AH75,AN76) -> 15.498073 | AO75: =IFERROR(IF(ISNUMBER(AC75)>0.1,AC75,AO76)*AI75,AO76) -> 0.908016 | AP75: =IFERROR(IF(ISNUMBER(AD75)>0.1,AD75,AP76)*AJ75,AP76) -> 0 | AQ75: =IFERROR(IF(ISNUMBER(AE75)>0.1,AE75,AQ76)*AK75,AQ76) -> 16.625 | AR75: =IFERROR(IF(ISNUMBER(AF75)>0.1,AF75,AR76)*AL75,AR76) -> 0 | AS75: =IF(ISNUMBER(AG75)>0.1,AG75,AS76) -> 0 | AT75: 0.03868041441 | AU75: =IF(E75,IFERROR(LN(AN75/AN74),FALSE)) -> 0.0861365952 | AV75: =IF(E75,IFERROR(LN(AO75/AO74),FALSE)) -> 0.07461063112 | AW75: =IF(E75,IFERROR(LN(AP75/AP74),FALSE)) -> FALSE | AX75: =IF(E75,IFERROR(LN(AQ75/AQ74),FALSE)) -> 0.8170579752 | AY75: =IF(E75,IFERROR(LN(AR75/AR74),FALSE)) -> FALSE | AZ75: =IF(E75,IFERROR(LN(AS75/AS74),FALSE)) -> FALSE | BA75: 10.86192981 | BB75: 0.5006351559 | BC75: 1 | BD75: 11.08333333 | BE75: 1 | BF75: 1 | BG75: =IFERROR(LOOKUP($A75,INDIRECT("'"&BN$6&"'!A:A"),INDIRECT("'"&BN$6&"'!"&BN$7&":"&BN$7)),0) -> 14.744 | BH75: =IFERROR(LOOKUP($A75,INDIRECT("'"&BO$6&"'!A:A"),INDIRECT("'"&BO$6&"'!"&BO$7&":"&BO$7)),0) -> 26.71 | BI75: =IFERROR(LOOKUP($A75,INDIRECT("'"&BP$6&"'!A:A"),INDIRECT("'"&BP$6&"'!"&BP$7&":"&BP$7)),0) -> 0 | BJ75: =IFERROR(LOOKUP($A75,INDIRECT("'"&BQ$6&"'!A:A"),INDIRECT("'"&BQ$6&"'!"&BQ$7&":"&BQ$7)),0) -> 0 | BK75: =IFERROR(LOOKUP($A75,INDIRECT("'"&BR$6&"'!A:A"),INDIRECT("'"&BR$6&"'!"&BR$7&":"&BR$7)),0) -> 0 | BL75: =IFERROR(LOOKUP($A75,INDIRECT("'"&BS$6&"'!A:A"),INDIRECT("'"&BS$6&"'!"&BS$7&":"&BS$7)),0) -> 0 | BM75: =IFERROR(LOOKUP($A75,INDIRECT("'"&BT$6&"'!A:A"),INDIRECT("'"&BT$6&"'!"&BT$7&":"&BT$7)),0) -> 423.93 | BN75: =IFERROR(1/IFERROR(LOOKUP($D75,$A:$A,BG:BG)*1,0),1) -> 0.01331380642 | BO75: =IFERROR(1/IFERROR(LOOKUP($D75,$A:$A,BH:BH)*1,0),1) -> 0.006142506143 | BP75: 0 | BQ75: 41.85 | BR75: 1.6504 | BS75: 1.4765 | BT75: 8992.195
A76: 1955-07-01 | B76: 1998-07-31 | C76: =IF(C75<=$D$2,C75+7) -> 1994-04-08 | D76: 1998-07-31 | E76: =AND(D76>=$D$4,D75<=$D$2) -> TRUE | F76: 1120.670044 | G76: 43.52 | H76: 1 | I76: 1120.670044 | J76: =IFERROR(LN(I76/I75),FALSE) -> -0.01168331189 | K76: 2.554059088 | L76: 1998-07-31 | M76: 2.554059088 | N76: 1998-07-31 | O76: 2.554059088 | P76: 10.69011336 | Q76: 0.6042526774 | R76: 1 | S76: 12.319444 | T76: 1 | U76: 1 | AB76: 15.252921 | AC76: 1.09595 | AD76: 0 | AE76: 18.479166 | AF76: 0 | AG76: 0 | AH76: 1 | AI76: 1 | AJ76: 1 | AK76: 1 | AL76: 1 | AM76: 1 | AN76: 15.252921 | AO76: 1.09595 | AP76: 0 | AQ76: 18.479166 | AR76: 0 | AS76: 0 | AT76: -0.01168331189 | AU76: -0.01594466792 | AV76: 0.1881148464 | AW76: FALSE | AX76: 0.1057363488 | AY76: FALSE | AZ76: FALSE | BA76: =IFERROR(IF($E76,BA75*AN76/AN75,1),1) -> 10.69011336 | BB76: =IFERROR(IF($E76,BB75*AO76/AO75,1),1) -> 0.6042526774 | BC76: =IFERROR(IF($E76,BC75*AP76/AP75,1),1) -> 1 | BD76: =IFERROR(IF($E76,BD75*AQ76/AQ75,1),1) -> 12.319444 | BE76: =IFERROR(IF($E76,BE75*AR76/AR75,1),1) -> 1 | BF76: =IFERROR(IF($E76,BF75*AS76/AS75,1),1) -> 1 | BG76: 14.847 | BH76: 26.76 | BI76: 0 | BJ76: 0 | BK76: 0 | BL76: 0 | BM76: 432.668 | BN76: 0.01325679742 | BO76: 0.00612745098 | BP76: =IFERROR(LOOKUP($D76,$A:$A,BI:BI)*1,BP75) -> 0 | BQ76: =IFERROR(LOOKUP($D76,$A:$A,BJ:BJ)*1,BQ75) -> 42.35 | BR76: =IFERROR(LOOKUP($D76,$A:$A,BK:BK)*1,BR75) -> 1.6437 | BS76: =IFERROR(LOOKUP($D76,$A:$A,BL:BL)*1,BS75) -> 1.5285 | BT76: =IFERROR(LOOKUP($D76,$A:$A,BM:BM)*1,BT75) -> 9130.667
A77: 1955-08-01 | B77: 1998-08-31 | C77: 1994-04-15 | D77: =IF($D$6,C77,B77) -> 1998-08-31 | E77: TRUE | F77: 957.280029 | G77: 43.18 | H77: 1 | I77: 957.280029 | J77: -0.157586079 | K77: =IF($E77,(K76*I77/I76),1) -> 2.181685654 | L77: =IF(E77,D77,NA()) -> 1998-08-31 | M77: =CHOOSE($M$1,I77,J77,K77) -> 2.181685654 | N77: =L77 -> 1998-08-31 | O77: =M77 -> 2.181685654 | P77: =IFERROR(CHOOSE($M$1,AN77,AU77,BA77),1) -> 9.657665796 | Q77: =IFERROR(CHOOSE($M$1,AO77,AV77,BB77),1) -> 0.5442635279 | R77: =IFERROR(CHOOSE($M$1,AP77,AW77,BC77),1) -> 1 | S77: =IFERROR(CHOOSE($M$1,AQ77,AX77,BD77),1) -> 9.305555333 | T77: =IFERROR(CHOOSE($M$1,AR77,AY77,BE77),1) -> 1 | U77: =IFERROR(CHOOSE($M$1,AS77,AZ77,BF77),1) -> 1 | AB77: 13.779799 | AC77: 0.987146 | AD77: 0 | AE77: 13.958333 | AF77: 0 | AG77: 0 | AH77: 1 | AI77: 1 | AJ77: 1 | AK77: 1 | AL77: 1 | AM77: 1 | AN77: 13.779799 | AO77: 0.987146 | AP77: 0 | AQ77: 13.958333 | AR77: 0 | AS77: 0 | AT77: =J77 -> -0.157586079 | AU77: -0.1015673466 | AV77: -0.1045588945 | AW77: FALSE | AX77: -0.2805672577 | AY77: FALSE | AZ77: FALSE | BA77: 9.657665796 | BB77: 0.5442635279 | BC77: 1 | BD77: 9.305555333 | BE77: 1 | BF77: 1 | BG77: 14.847 | BH77: 26.72 | BI77: 0 | BJ77: 0 | BK77: 0 | BL77: 0 | BM77: 432.668 | BN77: 0.01325679742 | BO77: 0.00611995104 | BP77: 0 | BQ77: 42.6 | BR77: 1.6342 | BS77: 1.4915 | BT77: 9130.667
A78: 1955-09-01 | B78: 1998-09-30 | C78: 1994-04-22 | D78: 1998-09-30 | E78: TRUE | F78: 1017.01001 | G78: 43.669998 | H78: 1 | I78: 1017.01001 | J78: 0.06052627874 | K78: 2.317813055 | L78: 1998-09-30 | M78: 2.317813055 | N78: 1998-09-30 | O78: 2.317813055 | P78: 9.604853433 | Q78: 0.6653323982 | R78: 1 | S78: 12.40277733 | T78: 1 | U78: 1 | AB78: 13.704445 | AC78: 1.206732 | AD78: 0 | AE78: 18.604166 | AF78: 0 | AG78: 0 | AH78: 1 | AI78: 1 | AJ78: 1 | AK78: 1 | AL78: 1 | AM78: 1 | AN78: 13.704445 | AO78: 1.206732 | AP78: 0 | AQ78: 18.604166 | AR78: 0 | AS78: 0 | AT78: 0.06052627874 | AU78: -0.005483446357 | AV78: 0.2008532068 | AW78: FALSE | AX78: 0.2873088565 | AY78: FALSE | AZ78: FALSE | BA78: 9.604853433 | BB78: 0.6653323982 | BC78: 1 | BD78: 12.40277733 | BE78: 1 | BF78: 1 | BG78: 14.847 | BH78: 26.85 | BI78: 0 | BJ78: 0 | BK78: 0 | BL78: 0 | BM78: 432.668 | BN78: 0.01325679742 | BO78: 0.006116207951 | BP78: 0 | BQ78: 42.65 | BR78: 1.6823 | BS78: 1.4405 | BT78: 9130.667
A79: 1955-10-01 | B79: 1998-10-31 | C79: 1994-04-29 | D79: 1998-10-31 | E79: TRUE | F79: 1098.670044 | G79: 42.34 | H79: 1 | I79: 1098.670044 | J79: 0.07723343771 | K79: 2.503920066 | L79: 1998-10-31 | M79: 2.503920066 | N79: 1998-10-31 | O79: 2.503920066 | P79: 10.67877911 | Q79: 0.6478810494 | R79: 1 | S79: 14.04861067 | T79: 1 | U79: 1 | AB79: 15.236749 | AC79: 1.17508 | AD79: 0 | AE79: 21.072916 | AF79: 0 | AG79: 0 | AH79: 1 | AI79: 1 | AJ79: 1 | AK79: 1 | AL79: 1 | AM79: 1 | AN79: 15.236749 | AO79: 1.17508 | AP79: 0 | AQ79: 21.072916 | AR79: 0 | AS79: 0 | AT79: 0.07723343771 | AU79: 0.1059899745 | AV79: -0.02657964897 | AW79: FALSE | AX79: 0.1246030799 | AY79: FALSE | AZ79: FALSE | BA79: 10.67877911 | BB79: 0.6478810494 | BC79: 1 | BD79: 14.04861067 | BE79: 1 | BF79: 1 | BG79: 14.995 | BH79: 26.82 | BI79: 0 | BJ79: 0 | BK79: 0 | BL79: 0 | BM79: 439.619 | BN79: 0.01322034346 | BO79: 0.006101281269 | BP79: 0 | BQ79: 42.5 | BR79: 1.6944 | BS79: 1.364 | BT79: 9306.215
A80: 1955-11-01 | B80: 1998-11-30 | C80: 1994-05-06 | D80: 1998-11-30 | E80: TRUE | F80: 1163.630005 | G80: 45.509998 | H80: 1 | I80: 1163.630005 | J80: 0.05744403626 | K80: 2.651966835 | L80: 1998-11-30 | M80: 2.651966835 | N80: 1998-11-30 | O80: 2.651966835 | P80: 11.02965816 | Q80: 0.5573520396 | R80: 1 | S80: 21.33333333 | T80: 1 | U80: 1 | AB80: 15.737392 | AC80: 1.010885 | AD80: 0 | AE80: 32 | AF80: 0 | AG80: 0 | AH80: 1 | AI80: 1 | AJ80: 1 | AK80: 1 | AL80: 1 | AM80: 1 | AN80: 15.737392 | AO80: 1.010885 | AP80: 0 | AQ80: 32 | AR80: 0 | AS80: 0 | AT80: 0.05744403626 | AU80: 0.03232932947 | AV80: -0.1505100456 | AW80: FALSE | AX80: 0.4177472887 | AY80: FALSE | AZ80: FALSE | BA80: 11.02965816 | BB80: 0.5573520396 | BC80: 1 | BD80: 21.33333333 | BE80: 1 | BF80: 1 | BG80: 14.995 | BH80: 26.88 | BI80: 0 | BJ80: 0 | BK80: 0 | BL80: 0 | BM80: 439.619 | BN80: 0.01322034346 | BO80: 0.006093845216 | BP80: 0 | BQ80: 42.45 | BR80: 1.6611 | BS80: 1.3548 | BT80: 9306.215
A81: 1955-12-01 | B81: 1998-12-31 | C81: 1994-05-13 | D81: 1998-12-31 | E81: TRUE | F81: 1229.22998 | G81: 45.48 | H81: 1 | I81: 1229.22998 | J81: 0.05484350716 | K81: 2.801472225 | L81: 1998-12-31 | M81: 2.801472225 | N81: 1998-12-31 | O81: 2.801472225 | P81: 12.44840818 | Q81: 0.714414179 | R81: 1 | S81: 35.69444533 | T81: 1 | U81: 1 | AB81: 17.7617 | AC81: 1.295753 | AD81: 0 | AE81: 53.541668 | AF81: 0 | AG81: 0 | AH81: 1 | AI81: 1 | AJ81: 1 | AK81: 1 | AL81: 1 | AM81: 1 | AN81: 17.7617 | AO81: 1.295753 | AP81: 0 | AQ81: 53.541668 | AR81: 0 | AS81: 0 | AT81: 0.05484350716 | AU81: 0.1210049169 | AV81: 0.2482658085 | AW81: FALSE | AX81: 0.5147242891 | AY81: FALSE | AZ81: FALSE | BA81: 12.44840818 | BB81: 0.714414179 | BC81: 1 | BD81: 35.69444533 | BE81: 1 | BF81: 1 | BG81: 14.995 | BH81: 26.87 | BI81: 0 | BJ81: 0 | BK81: 0 | BL81: 0 | BM81: 439.619 | BN81: 0.01322034346 | BO81: 0.006082725061 | BP81: 0 | BQ81: 42.61 | BR81: 1.6708 | BS81: 1.3783 | BT81: 9306.215
A82: 1956-01-01 | B82: 1999-01-31 | C82: 1994-05-20 | D82: 1999-01-31 | E82: TRUE | F82: 1279.640015 | G82: 43.82 | H82: 1 | I82: 1279.640015 | J82: 0.04019085927 | K82: 2.916359036 | L82: 1999-01-31 | M82: 2.916359036 | N82: 1999-01-31 | O82: 2.916359036 | P82: 12.93286142 | Q82: 0.7187770162 | R82: 1 | S82: 38.97916667 | T82: 1 | U82: 1 | AB82: 18.45293 | AC82: 1.303666 | AD82: 0 | AE82: 58.46875 | AF82: 0 | AG82: 0 | AH82: 1 | AI82: 1 | AJ82: 1 | AK82: 1 | AL82: 1 | AM82: 1 | AN82: 18.45293 | AO82: 1.303666 | AP82: 0 | AQ82: 58.46875 | AR82: 0 | AS82: 0 | AT82: 0.04019085927 | AU82: 0.03817871176 | AV82: 0.006088302381 | AW82: FALSE | AX82: 0.08803223159 | AY82: FALSE | AZ82: FALSE | BA82: 12.93286142 | BB82: 0.7187770162 | BC82: 1 | BD82: 38.97916667 | BE82: 1 | BF82: 1 | BG82: 15.144 | BH82: 26.83 | BI82: 0 | BJ82: 0 | BK82: 0 | BL82: 0 | BM82: 442.597 | BN82: 0.01317071886 | BO82: 0.006071645416 | BP82: 1.1591 | BQ82: 42.61 | BR82: 1.6498 | BS82: 1.3783 | BT82: 9438.205
A83: 1956-02-01 | B83: 1999-02-28 | C83: 1994-05-27 | D83: 1999-02-28 | E83: TRUE | F83: 1238.329956 | G83: 45.34 | H83: 1 | I83: 1238.329956 | J83: -0.03281513792 | K83: 2.822211493 | L83: 1999-02-28 | M83: 2.822211493 | N83: 1999-02-28 | O83: 2.822211493 | P83: 12.37023041 | Q83: 0.6075249431 | R83: 1 | S83: 42.70833333 | T83: 1 | U83: 1 | AB83: 17.650154 | AC83: 1.101885 | AD83: 0 | AE83: 64.0625 | AF83: 0 | AG83: 0 | AH83: 1 | AI83: 1 | AJ83: 1 | AK83: 1 | AL83: 1 | AM83: 1 | AN83: 17.650154 | AO83: 1.101885 | AP83: 0 | AQ83: 64.0625 | AR83: 0 | AS83: 0 | AT83: -0.03281513792 | AU83: -0.04447865691 | AV83: -0.1681579462 | AW83: FALSE | AX83: 0.09136674586 | AY83: FALSE | AZ83: FALSE | BA83: 12.37023041 | BB83: 0.6075249431 | BC83: 1 | BD83: 42.70833333 | BE83: 1 | BF83: 1 | BG83: 15.144 | BH83: 26.86 | BI83: 0 | BJ83: 0 | BK83: 0 | BL83: 0 | BM83: 442.597 | BN83: 0.01317071886 | BO83: 0.006071645416 | BP83: 1.1203 | BQ83: 42.55 | BR83: 1.6276 | BS83: 1.4232 | BT83: 9438.205
A84: 1956-03-01 | B84: 1999-03-31 | C84: 1994-06-03 | D84: 1999-03-31 | E84: TRUE | F84: 1286.369995 | G84: 48.48 | H84: 1 | I84: 1286.369995 | J84: 0.03806063221 | K84: 2.931696973 | L84: 1999-03-31 | M84: 2.931696973 | N84: 1999-03-31 | O84: 2.931696973 | P84: 13.64193436 | Q84: 0.6271574349 | R84: 1 | S84: 57.39583333 | T84: 1 | U84: 1 | AB84: 19.464653 | AC84: 1.137493 | AD84: 0 | AE84: 86.09375 | AF84: 0 | AG84: 0 | AH84: 1 | AI84: 1 | AJ84: 1 | AK84: 1 | AL84: 1 | AM84: 1 | AN84: 19.464653 | AO84: 1.137493 | AP84: 0 | AQ84: 86.09375 | AR84: 0 | AS84: 0 | AT84: 0.03806063221 | AU84: 0.09785564548 | AV84: 0.03180436841 | AW84: FALSE | AX84: 0.2955776495 | AY84: FALSE | AZ84: FALSE | BA84: 13.64193436 | BB84: 0.6271574349 | BC84: 1 | BD84: 57.39583333 | BE84: 1 | BF84: 1 | BG84: 15.144 | BH84: 26.89 | BI84: 0 | BJ84: 0 | BK84: 0 | BL84: 0 | BM84: 442.597 | BN84: 0.01317071886 | BO84: 0.006067961165 | BP84: 1.0886 | BQ84: 42.54 | BR84: 1.6213 | BS84: 1.462 | BT84: 9438.205
A85: 1956-04-01 | B85: 1999-04-30 | C85: 1994-06-10 | D85: 1999-04-30 | E85: TRUE | F85: 1335.180054 | G85: 48.380001 | H85: 1 | I85: 1335.180054 | J85: 0.03724186028 | K85: 3.042937365 | L85: 1999-04-30 | M85: 3.042937365 | N85: 1999-04-30 | O85: 3.042937365 | P85: 13.13421408 | Q85: 0.8027620459 | R85: 1 | S85: 57.35416667 | T85: 1 | U85: 1 | AB85: 18.740225 | AC85: 1.455992 | AD85: 0 | AE85: 86.03125 | AF85: 0 | AG85: 0 | AH85: 1 | AI85: 1 | AJ85: 1 | AK85: 1 | AL85: 1 | AM85: 1 | AN85: 18.740225 | AO85: 1.455992 | AP85: 0 | AQ85: 86.03125 | AR85: 0 | AS85: 0 | AT85: 0.03724186028 | AU85: -0.03792787089 | AV85: 0.2468607373 | AW85: FALSE | AX85: -0.0007262164444 | AY85: FALSE | AZ85: FALSE | BA85: 13.13421408 | BB85: 0.8027620459 | BC85: 1 | BD85: 57.35416667 | BE85: 1 | BF85: 1 | BG85: 15.234 | BH85: 26.93 | BI85: 0 | BJ85: 0 | BK85: 0 | BL85: 0 | BM85: 448.848 | BN85: 0.01312318736 | BO85: 0.006027727547 | BP85: 1.0701 | BQ85: 42.5 | BR85: 1.6089 | BS85: 1.481 | BT85: 9550.036
A86: 1956-05-01 | B86: 1999-05-31 | C86: 1994-06-17 | D86: 1999-05-31 | E86: TRUE | F86: 1301.839966 | G86: 45.200001 | H86: 1 | I86: 1301.839966 | J86: -0.02528753241 | K86: 2.966953756 | L86: 1999-05-31 | M86: 2.966953756 | N86: 1999-05-31 | O86: 2.966953756 | P86: 12.67459219 | Q86: 0.7689499197 | R86: 1 | S86: 39.58333333 | T86: 1 | U86: 1 | AB86: 18.084425 | AC86: 1.394666 | AD86: 0 | AE86: 59.375 | AF86: 0 | AG86: 0 | AH86: 1 | AI86: 1 | AJ86: 1 | AK86: 1 | AL86: 1 | AM86: 1 | AN86: 18.084425 | AO86: 1.394666 | AP86: 0 | AQ86: 59.375 | AR86: 0 | AS86: 0 | AT86: -0.02528753241 | AU86: -0.03562121255 | AV86: -0.04303249517 | AW86: FALSE | AX86: -0.37083734 | AY86: FALSE | AZ86: FALSE | BA86: 12.67459219 | BB86: 0.7689499197 | BC86: 1 | BD86: 39.58333333 | BE86: 1 | BF86: 1 | BG86: 15.234 | BH86: 27.03 | BI86: 0 | BJ86: 0 | BK86: 0 | BL86: 0 | BM86: 448.848 | BN86: 0.01312318736 | BO86: 0.006024096386 | BP86: 1.063 | BQ86: 42.84 | BR86: 1.6154 | BS86: 1.5257 | BT86: 9550.036
A87: 1956-06-01 | B87: 1999-06-30 | C87: 1994-06-24 | D87: 1999-06-30 | E87: TRUE | F87: 1372.709961 | G87: 46.970001 | H87: 1 | I87: 1372.709961 | J87: 0.0530082375 | K87: 3.128469766 | L87: 1999-06-30 | M87: 3.128469766 | N87: 1999-06-30 | O87: 3.128469766 | P87: 14.08461514 | Q87: 0.8082154546 | R87: 1 | S87: 41.70833333 | T87: 1 | U87: 1 | AB87: 20.096281 | AC87: 1.465883 | AD87: 0 | AE87: 62.5625 | AF87: 0 | AG87: 0 | AH87: 1 | AI87: 1 | AJ87: 1 | AK87: 1 | AL87: 1 | AM87: 1 | AN87: 20.096281 | AO87: 1.465883 | AP87: 0 | AQ87: 62.5625 | AR87: 0 | AS87: 0 | AT87: 0.0530082375 | AU87: 0.1054837025 | AV87: 0.04980283119 | AW87: FALSE | AX87: 0.05229279472 | AY87: FALSE | AZ87: FALSE | BA87: 14.08461514 | BB87: 0.8082154546 | BC87: 1 | BD87: 41.70833333 | BE87: 1 | BF87: 1 | BG87: 15.234 | BH87: 27.15 | BI87: 0 | BJ87: 0 | BK87: 0 | BL87: 0 | BM87: 448.848 | BN87: 0.01312318736 | BO87: 0.006024096386 | BP87: 1.0377 | BQ87: 43 | BR87: 1.595 | BS87: 1.523 | BT87: 9550.036
A88: 1956-07-01 | B88: 1999-07-31 | C88: 1994-07-01 | D88: 1999-07-31 | E88: TRUE | F88: 1328.719971 | G88: 49.389999 | H88: 1 | I88: 1328.719971 | J88: -0.03257080877 | K88: 3.028214536 | L88: 1999-07-31 | M88: 3.028214536 | N88: 1999-07-31 | O88: 3.028214536 | P88: 13.58603963 | Q88: 0.9718215741 | R88: 1 | S88: 33.35416667 | T88: 1 | U88: 1 | AB88: 19.384901 | AC88: 1.76262 | AD88: 0 | AE88: 50.03125 | AF88: 0 | AG88: 0 | AH88: 1 | AI88: 1 | AJ88: 1 | AK88: 1 | AL88: 1 | AM88: 1 | AN88: 19.384901 | AO88: 1.76262 | AP88: 0 | AQ88: 50.03125 | AR88: 0 | AS88: 0 | AT88: -0.03257080877 | AU88: -0.036040309 | AV88: 0.1843435472 | AW88: FALSE | AX88: -0.2235182469 | AY88: FALSE | AZ88: FALSE | BA88: 13.58603963 | BB88: 0.9718215741 | BC88: 1 | BD88: 33.35416667 | BE88: 1 | BF88: 1 | BG88: 15.425 | BH88: 27.29 | BI88: 0 | BJ88: 0 | BK88: 0 | BL88: 0 | BM88: 454.125 | BN88: 0.01307839188 | BO88: 0.00599880024 | BP88: 1.037 | BQ88: 43.35 | BR88: 1.5751 | BS88: 1.569 | BT88: 9704.595
A89: 1956-08-01 | B89: 1999-08-31 | C89: 1994-07-08 | D89: 1999-08-31 | E89: TRUE | F89: 1320.410034 | G89: 47.509998 | H89: 1 | I89: 1320.410034 | J89: -0.006273730803 | K89: 3.009275803 | L89: 1999-08-31 | M89: 3.009275803 | N89: 1999-08-31 | O89: 3.009275803 | P89: 14.1306341 | Q89: 1.138699959 | R89: 1 | S89: 41.45833333 | T89: 1 | U89: 1 | AB89: 20.161942 | AC89: 2.065292 | AD89: 0 | AE89: 62.1875 | AF89: 0 | AG89: 0 | AH89: 1 | AI89: 1 | AJ89: 1 | AK89: 1 | AL89: 1 | AM89: 1 | AN89: 20.161942 | AO89: 2.065292 | AP89: 0 | AQ89: 62.1875 | AR89: 0 | AS89: 0 | AT89: -0.006273730803 | AU89: 0.03930230386 | AV89: 0.1584702823 | AW89: FALSE | AX89: 0.2175062047 | AY89: FALSE | AZ89: FALSE | BA89: 14.1306341 | BB89: 1.138699959 | BC89: 1 | BD89: 41.45833333 | BE89: 1 | BF89: 1 | BG89: 15.425 | BH89: 27.31 | BI89: 0 | BJ89: 0 | BK89: 0 | BL89: 0 | BM89: 454.125 | BN89: 0.01307839188 | BO89: 0.005984440455 | BP89: 1.0605 | BQ89: 43.45 | BR89: 1.6058 | BS89: 1.4925 | BT89: 9704.595
A90: 1956-09-01 | B90: 1999-09-30 | C90: 1994-07-15 | D90: 1999-09-30 | E90: TRUE | F90: 1282.709961 | G90: 45.349998 | H90: 1 | I90: 1282.709961 | J90: -0.02896732324 | K90: 2.923355586 | L90: 1999-09-30 | M90: 2.923355586 | N90: 1999-09-30 | O90: 2.923355586 | P90: 14.9169751 | Q90: 1.104888385 | R90: 1 | S90: 53.29166667 | T90: 1 | U90: 1 | AB90: 21.283913 | AC90: 2.003967 | AD90: 0 | AE90: 79.9375 | AF90: 0 | AG90: 0 | AH90: 1 | AI90: 1 | AJ90: 1 | AK90: 1 | AL90: 1 | AM90: 1 | AN90: 21.283913 | AO90: 2.003967 | AP90: 0 | AQ90: 79.9375 | AR90: 0 | AS90: 0 | AT90: -0.02896732324 | AU90: 0.05415476122 | AV90: -0.03014290475 | AW90: FALSE | AX90: 0.2510910644 | AY90: FALSE | AZ90: FALSE | BA90: 14.9169751 | BB90: 1.104888385 | BC90: 1 | BD90: 53.29166667 | BE90: 1 | BF90: 1 | BG90: 15.425 | BH90: 27.35 | BI90: 0 | BJ90: 0 | BK90: 0 | BL90: 0 | BM90: 454.125 | BN90: 0.01307839188 | BO90: 0.005959475566 | BP90: 1.0497 | BQ90: 43.55 | BR90: 1.6247 | BS90: 1.5135 | BT90: 9704.595
A91: 1956-10-01 | B91: 1999-10-31 | C91: 1994-07-22 | D91: 1999-10-31 | E91: TRUE | F91: 1362.930054 | G91: 45.580002 | H91: 1 | I91: 1362.930054 | J91: 0.06066183677 | K91: 3.106180904 | L91: 1999-10-31 | M91: 3.106180904 | N91: 1999-10-31 | O91: 3.106180904 | P91: 17.19849596 | Q91: 1.398289049 | R91: 1 | S91: 47.08333333 | T91: 1 | U91: 1 | AB91: 24.539244 | AC91: 2.536116 | AD91: 0 | AE91: 70.625 | AF91: 0 | AG91: 0 | AH91: 1 | AI91: 1 | AJ91: 1 | AK91: 1 | AL91: 1 | AM91: 1 | AN91: 24.539244 | AO91: 2.536116 | AP91: 0 | AQ91: 70.625 | AR91: 0 | AS91: 0 | AT91: 0.06066183677 | AU91: 0.1423221028 | AV91: 0.2355050608 | AW91: FALSE | AX91: -0.1238608899 | AY91: FALSE | AZ91: FALSE | BA91: 17.19849596 | BB91: 1.398289049 | BC91: 1 | BD91: 47.08333333 | BE91: 1 | BF91: 1 | BG91: 15.487 | BH91: 27.51 | BI91: 0 | BJ91: 0 | BK91: 0 | BL91: 0 | BM91: 463.023 | BN91: 0.01300846851 | BO91: 0.005948839976 | BP91: 1.0706 | BQ91: 43.73 | BR91: 1.6572 | BS91: 1.4867 | BT91: 9931.958
A92: 1956-11-01 | B92: 1999-11-30 | C92: 1994-07-29 | D92: 1999-11-30 | E92: TRUE | F92: 1388.910034 | G92: 45.080002 | H92: 1 | I92: 1388.910034 | J92: 0.01888245762 | K92: 3.165390485 | L92: 1999-11-30 | M92: 3.165390485 | N92: 1999-11-30 | O92: 3.165390485 | P92: 16.51627074 | Q92: 1.70805049 | R92: 1 | S92: 56.70833333 | T92: 1 | U92: 1 | AB92: 23.565828 | AC92: 3.097939 | AD92: 0 | AE92: 85.0625 | AF92: 0 | AG92: 0 | AH92: 1 | AI92: 1 | AJ92: 1 | AK92: 1 | AL92: 1 | AM92: 1 | AN92: 23.565828 | AO92: 3.097939 | AP92: 0 | AQ92: 85.0625 | AR92: 0 | AS92: 0 | AT92: 0.01888245762 | AU92: -0.04047593535 | AV92: 0.2001032748 | AW92: FALSE | AX92: 0.1860020909 | AY92: FALSE | AZ92: FALSE | BA92: 16.51627074 | BB92: 1.70805049 | BC92: 1 | BD92: 56.70833333 | BE92: 1 | BF92: 1 | BG92: 15.487 | BH92: 27.51 | BI92: 0 | BJ92: 0 | BK92: 0 | BL92: 0 | BM92: 463.023 | BN92: 0.01300846851 | BO92: 0.00593824228 | BP92: 1.0328 | BQ92: 43.51 | BR92: 1.6205 | BS92: 1.5291 | BT92: 9931.958
A93: 1956-12-01 | B93: 1999-12-31 | C93: 1994-08-05 | D93: 1999-12-31 | E93: TRUE | F93: 1469.25 | G93: 46.669998 | H93: 1 | I93: 1469.25 | J93: 0.05623277517 | K93: 3.348489 | L93: 1999-12-31 | M93: 3.348489 | N93: 1999-12-31 | O93: 3.348489 | P93: 19.64182433 | Q93: 1.794216112 | R93: 1 | S93: 50.75 | T93: 1 | U93: 1 | AB93: 28.025446 | AC93: 3.25422 | AD93: 0 | AE93: 76.125 | AF93: 0 | AG93: 0 | AH93: 1 | AI93: 1 | AJ93: 1 | AK93: 1 | AL93: 1 | AM93: 1 | AN93: 28.025446 | AO93: 3.25422 | AP93: 0 | AQ93: 76.125 | AR93: 0 | AS93: 0 | AT93: 0.05623277517 | AU93: 0.1733151866 | AV93: 0.04921556393 | AW93: FALSE | AX93: -0.1110095544 | AY93: FALSE | AZ93: FALSE | BA93: 19.64182433 | BB93: 1.794216112 | BC93: 1 | BD93: 50.75 | BE93: 1 | BF93: 1 | BG93: 15.487 | BH93: 27.63 | BI93: 0 | BJ93: 0 | BK93: 0 | BL93: 0 | BM93: 463.023 | BN93: 0.01300846851 | BO93: 0.005924170616 | BP93: 1.011 | BQ93: 43.45 | BR93: 1.6132 | BS93: 1.592 | BT93: 9931.958
A94: 1957-01-01 | B94: 2000-01-31 | C94: 1994-08-12 | D94: 2000-01-31 | E94: TRUE | F94: 1394.459961 | G94: 44.720001 | H94: 1 | I94: 1394.459961 | J94: -0.05224485092 | K94: 3.178039027 | L94: 2000-01-31 | M94: 3.178039027 | N94: 2000-01-31 | O94: 3.178039027 | P94: 17.14173777 | Q94: 1.810576889 | R94: 1 | S94: 43.04166667 | T94: 1 | U94: 1 | AB94: 24.45826 | AC94: 3.283894 | AD94: 0 | AE94: 64.5625 | AF94: 0 | AG94: 0 | AH94: 1 | AI94: 1 | AJ94: 1 | AK94: 1 | AL94: 1 | AM94: 1 | AN94: 24.45826 | AO94: 3.283894 | AP94: 0 | AQ94: 64.5625 | AR94: 0 | AS94: 0 | AT94: -0.05224485092 | AU94: -0.136144892 | AV94: 0.009077297751 | AW94: FALSE | AX94: -0.1647429792 | AY94: FALSE | AZ94: FALSE | BA94: 17.14173777 | BB94: 1.810576889 | BC94: 1 | BD94: 43.04166667 | BE94: 1 | BF94: 1 | BG94: 15.7 | BH94: 27.67 | BI94: 0 | BJ94: 0 | BK94: 0 | BL94: 0 | BM94: 472.864 | BN94: 0.01292056437 | BO94: 0.005906674542 | BP94: 1.0131 | BQ94: 43.51 | BR94: 1.6404 | BS94: 1.593 | BT94: 10031.808
A95: 1957-02-01 | B95: 2000-02-29 | C95: 1994-08-19 | D95: 2000-02-29 | E95: TRUE | F95: 1366.420044 | G95: 43.259998 | H95: 1 | I95: 1366.420044 | J95: -0.02031300244 | K95: 3.114134753 | L95: 2000-02-29 | M95: 3.114134753 | N95: 2000-02-29 | O95: 3.114134753 | P95: 16.93386855 | Q95: 2.000360032 | R95: 1 | S95: 45.91666667 | T95: 1 | U95: 1 | AB95: 24.161667 | AC95: 3.628109 | AD95: 0 | AE95: 68.875 | AF95: 0 | AG95: 0 | AH95: 1 | AI95: 1 | AJ95: 1 | AK95: 1 | AL95: 1 | AM95: 1 | AN95: 24.161667 | AO95: 3.628109 | AP95: 0 | AQ95: 68.875 | AR95: 0 | AS95: 0 | AT95: -0.02031300244 | AU95: -0.01220062215 | AV95: 0.09968166254 | AW95: FALSE | AX95: 0.06465952059 | AY95: FALSE | AZ95: FALSE | BA95: 16.93386855 | BB95: 2.000360032 | BC95: 1 | BD95: 45.91666667 | BE95: 1 | BF95: 1 | BG95: 15.7 | BH95: 27.8 | BI95: 0 | BJ95: 0 | BK95: 0 | BL95: 0 | BM95: 472.864 | BN95: 0.01292056437 | BO95: 0.005882352941 | BP95: 0.9834 | BQ95: 43.62 | BR95: 1.6 | BS95: 1.654 | BT95: 10031.808
A96: 1957-03-01 | B96: 2000-03-31 | C96: 1994-08-26 | D96: 2000-03-31 | E96: TRUE | F96: 1498.579956 | G96: 44.110001 | H96: 1 | I96: 1498.579956 | J96: 0.09232375056 | K96: 3.415333332 | L96: 2000-03-31 | M96: 3.415333332 | N96: 2000-03-31 | O96: 3.415333332 | P96: 19.90809034 | Q96: 2.370110623 | R96: 1 | S96: 44.66666667 | T96: 1 | U96: 1 | AB96: 28.405361 | AC96: 4.298736 | AD96: 0 | AE96: 67 | AF96: 0 | AG96: 0 | AH96: 1 | AI96: 1 | AJ96: 1 | AK96: 1 | AL96: 1 | AM96: 1 | AN96: 28.405361 | AO96: 4.298736 | AP96: 0 | AQ96: 67 | AR96: 0 | AS96: 0 | AT96: 0.09232375056 | AU96: 0.1618105259 | AV96: 0.1696094501 | AW96: FALSE | AX96: -0.02760064808 | AY96: FALSE | AZ96: FALSE | BA96: 19.90809034 | BB96: 2.370110623 | BC96: 1 | BD96: 44.66666667 | BE96: 1 | BF96: 1 | BG96: 15.7 | BH96: 27.86 | BI96: 0 | BJ96: 0 | BK96: 0 | BL96: 0 | BM96: 472.864 | BN96: 0.01292056437 | BO96: 0.005847953216 | BP96: 0.9643 | BQ96: 43.63 | BR96: 1.5799 | BS96: 1.6568 | BT96: 10031.808
A97: 1957-04-01 | B97: 2000-04-30 | C97: 1994-09-02 | D97: 2000-04-30 | E97: TRUE | F97: 1452.430054 | G97: 45.740002 | H97: 1 | I97: 1452.430054 | J97: -0.03127991072 | K97: 3.310155562 | L97: 2000-04-30 | M97: 3.310155562 | N97: 2000-04-30 | O97: 3.310155562 | P97: 20.29511608 | Q97: 2.165057826 | R97: 1 | S97: 36.79166667 | T97: 1 | U97: 1 | AB97: 28.957579 | AC97: 3.926826 | AD97: 0 | AE97: 55.1875 | AF97: 0 | AG97: 0 | AH97: 1 | AI97: 1 | AJ97: 1 | AK97: 1 | AL97: 1 | AM97: 1 | AN97: 28.957579 | AO97: 3.926826 | AP97: 0 | AQ97: 55.1875 | AR97: 0 | AS97: 0 | AT97: -0.03127991072 | AU97: 0.019254071 | AV97: -0.09048956002 | AW97: FALSE | AX97: -0.193956141 | AY97: FALSE | AZ97: FALSE | BA97: 20.29511608 | BB97: 2.165057826 | BC97: 1 | BD97: 36.79166667 | BE97: 1 | BF97: 1 | BG97: 15.81 | BH97: 27.93 | BI97: 0 | BJ97: 0 | BK97: 0 | BL97: 0 | BM97: 475.392 | BN97: 0.01284274064 | BO97: 0.005851375073 | BP97: 0.9449 | BQ97: 43.65 | BR97: 1.5823 | BS97: 1.663 | BT97: 10279.56
A98: 1957-05-01 | B98: 2000-05-31 | C98: 1994-09-09 | D98: 2000-05-31 | E98: TRUE | F98: 1420.599976 | G98: 47.43 | H98: 1 | I98: 1420.599976 | J98: -0.0221587523 | K98: 3.237613335 | L98: 2000-05-31 | M98: 3.237613335 | N98: 2000-05-31 | O98: 3.237613335 | P98: 20.3757861 | Q98: 1.46591275 | R98: 1 | S98: 32.20833333 | T98: 1 | U98: 1 | AB98: 29.072681 | AC98: 2.658767 | AD98: 0 | AE98: 48.3125 | AF98: 0 | AG98: 0 | AH98: 1 | AI98: 1 | AJ98: 1 | AK98: 1 | AL98: 1 | AM98: 1 | AN98: 29.072681 | AO98: 2.658767 | AP98: 0 | AQ98: 48.3125 | AR98: 0 | AS98: 0 | AT98: -0.0221587523 | AU98: 0.003966970024 | AV98: -0.3899689845 | AW98: FALSE | AX98: -0.133046152 | AY98: FALSE | AZ98: FALSE | BA98: 20.3757861 | BB98: 1.46591275 | BC98: 1 | BD98: 32.20833333 | BE98: 1 | BF98: 1 | BG98: 15.81 | BH98: 28 | BI98: 0 | BJ98: 0 | BK98: 0 | BL98: 0 | BM98: 475.392 | BN98: 0.01284274064 | BO98: 0.005841121495 | BP98: 0.9059 | BQ98: 43.67 | BR98: 1.509 | BS98: 1.7135 | BT98: 10279.56
A99: 1957-06-01 | B99: 2000-06-30 | C99: 1994-09-16 | D99: 2000-06-30 | E99: TRUE | F99: 1454.599976 | G99: 47.369999 | H99: 1 | I99: 1454.599976 | J99: 0.02365163155 | K99: 3.315100915 | L99: 2000-06-30 | M99: 3.315100915 | N99: 2000-06-30 | O99: 3.315100915 | P99: 20.5209847 | Q99: 1.828028238 | R99: 1 | S99: 24.20833333 | T99: 1 | U99: 1 | AB99: 29.279854 | AC99: 3.315546 | AD99: 0 | AE99: 36.3125 | AF99: 0 | AG99: 0 | AH99: 1 | AI99: 1 | AJ99: 1 | AK99: 1 | AL99: 1 | AM99: 1 | AN99: 29.279854 | AO99: 3.315546 | AP99: 0 | AQ99: 36.3125 | AR99: 0 | AS99: 0 | AT99: 0.02365163155 | AU99: 0.007100766761 | AV99: 0.2207598345 | AW99: FALSE | AX99: -0.2855282917 | AY99: FALSE | AZ99: FALSE | BA99: 20.5209847 | BB99: 1.828028238 | BC99: 1 | BD99: 24.20833333 | BE99: 1 | BF99: 1 | BG99: 15.81 | BH99: 28.11 | BI99: 0 | BJ99: 0 | BK99: 0 | BL99: 0 | BM99: 475.392 | BN99: 0.01284274064 | BO99: 0.005807200929 | BP99: 0.9505 | BQ99: 44.65 | BR99: 1.5092 | BS99: 1.6878 | BT99: 10279.56
A100: 1957-07-01 | B100: 2000-07-31 | C100: 1994-09-23 | D100: 2000-07-31 | E100: TRUE | F100: 1430.829956 | G100: 47.91 | H100: 1 | I100: 1430.829956 | J100: -0.01647626752 | K100: 3.260927935 | L100: 2000-07-31 | M100: 3.260927935 | N100: 2000-07-31 | O100: 3.260927935 | P100: 20.01278853 | Q100: 1.773493049 | R100: 1 | S100: 20.08333333 | T100: 1 | U100: 1 | AB100: 28.554747 | AC100: 3.216634 | AD100: 0 | AE100: 30.125 | AF100: 0 | AG100: 0 | AH100: 1 | AI100: 1 | AJ100: 1 | AK100: 1 | AL100: 1 | AM100: 1 | AN100: 28.554747 | AO100: 3.216634 | AP100: 0 | AQ100: 30.125 | AR100: 0 | AS100: 0 | AT100: -0.01647626752 | AU100: -0.02507651076 | AV100: -0.03028684477 | AW100: FALSE | AX100: -0.1868066428 | AY100: FALSE | AZ100: FALSE | BA100: 20.01278853 | BB100: 1.773493049 | BC100: 1 | BD100: 20.08333333 | BE100: 1 | BF100: 1 | BG100: 15.904 | BH100: 28.19 | BI100: 0 | BJ100: 0 | BK100: 0 | BL100: 0 | BM100: 482.723 | BN100: 0.01276992427 | BO100: 0.005790387956 | BP100: 0.9386 | BQ100: 44.7 | BR100: 1.5076 | BS100: 1.6317 | BT100: 10347.082
A101: 1957-08-01 | B101: 2000-08-31 | C101: 1994-09-30 | D101: 2000-08-31 | E101: TRUE | F101: 1517.680054 | G101: 45.220001 | H101: 1 | I101: 1517.680054 | J101: 0.05892822392 | K101: 3.458863343 | L101: 2000-08-31 | M101: 3.458863343 | N101: 2000-08-31 | O101: 3.458863343 | P101: 22.75873776 | Q101: 2.126883414 | R101: 1 | S101: 27.66666667 | T101: 1 | U101: 1 | AB101: 32.472736 | AC101: 3.857588 | AD101: 0 | AE101: 41.5 | AF101: 0 | AG101: 0 | AH101: 1 | AI101: 1 | AJ101: 1 | AK101: 1 | AL101: 1 | AM101: 1 | AN101: 32.472736 | AO101: 3.857588 | AP101: 0 | AQ101: 41.5 | AR101: 0 | AS101: 0 | AT101: 0.05892822392 | AU101: 0.128577653 | AV101: 0.1817066465 | AW101: FALSE | AX101: 0.3203380354 | AY101: FALSE | AZ101: FALSE | BA101: 22.75873776 | BB101: 2.126883414 | BC101: 1 | BD101: 27.66666667 | BE101: 1 | BF101: 1 | BG101: 15.904 | BH101: 28.28 | BI101: 0 | BJ101: 0 | BK101: 0 | BL101: 0 | BM101: 482.723 | BN101: 0.01276992427 | BO101: 0.005790387956 | BP101: 0.9045 | BQ101: 45.15 | BR101: 1.4889 | BS101: 1.6758 | BT101: 10347.082
A102: 1957-09-01 | B102: 2000-09-30 | C102: 1994-10-07 | D102: 2000-09-30 | E102: TRUE | F102: 1436.51001 | G102: 42.419998 | H102: 1 | I102: 1436.51001 | J102: -0.0549663209 | K102: 3.273873042 | L102: 2000-09-30 | M102: 3.273873042 | N102: 2000-09-30 | O102: 3.273873042 | P102: 22.44331716 | Q102: 0.8987444644 | R102: 1 | S102: 25.625 | T102: 1 | U102: 1 | AB102: 32.022686 | AC102: 1.630078 | AD102: 0 | AE102: 38.4375 | AF102: 0 | AG102: 0 | AH102: 1 | AI102: 1 | AJ102: 1 | AK102: 1 | AL102: 1 | AM102: 1 | AN102: 32.022686 | AO102: 1.630078 | AP102: 0 | AQ102: 38.4375 | AR102: 0 | AS102: 0 | AT102: -0.0549663209 | AU102: -0.01395625584 | AV102: -0.8614142513 | AW102: FALSE | AX102: -0.07665988167 | AY102: FALSE | AZ102: FALSE | BA102: 22.44331716 | BB102: 0.8987444644 | BC102: 1 | BD102: 25.625 | BE102: 1 | BF102: 1 | BG102: 15.904 | BH102: 28.32 | BI102: 0 | BJ102: 0 | BK102: 0 | BL102: 0 | BM102: 482.723 | BN102: 0.01276992427 | BO102: 0.005760368664 | BP102: 0.8695 | BQ102: 45.8 | BR102: 1.4336 | BS102: 1.723 | BT102: 10347.082
A103: 1957-10-01 | B103: 2000-10-31 | C103: 1994-10-14 | D103: 2000-10-31 | E103: TRUE | F103: 1429.400024 | G103: 41.060001 | H103: 1 | I103: 1429.400024 | J103: -0.004961775145 | K103: 3.257669053 | L103: 2000-10-31 | M103: 3.257669053 | N103: 2000-10-31 | O103: 3.257669053 | P103: 21.32810751 | Q103: 0.6827837471 | R103: 1 | S103: 24.41666667 | T103: 1 | U103: 1 | AB103: 30.431477 | AC103: 1.238384 | AD103: 0 | AE103: 36.625 | AF103: 0 | AG103: 0 | AH103: 1 | AI103: 1 | AJ103: 1 | AK103: 1 | AL103: 1 | AM103: 1 | AN103: 30.431477 | AO103: 1.238384 | AP103: 0 | AQ103: 36.625 | AR103: 0 | AS103: 0 | AT103: -0.004961775145 | AU103: -0.05096708876 | AV103: -0.2748205626 | AW103: FALSE | AX103: -0.04830247823 | AY103: FALSE | AZ103: FALSE | BA103: 21.32810751 | BB103: 0.6827837471 | BC103: 1 | BD103: 24.41666667 | BE103: 1 | BF103: 1 | BG103: 15.915 | BH103: 28.32 | BI103: 0 | BJ103: 0 | BK103: 0 | BL103: 0 | BM103: 477.398 | BN103: 0.01270276793 | BO103: 0.005750431282 | BP103: 0.8525 | BQ103: 46.06 | BR103: 1.4506 | BS103: 1.7265 | BT103: 10491.035
A104: 1957-11-01 | B104: 2000-11-30 | C104: 1994-10-21 | D104: 2000-11-30 | E104: TRUE | F104: 1314.949951 | G104: 41.720001 | H104: 1 | I104: 1314.949951 | J104: -0.08345618776 | K104: 2.996832021 | L104: 2000-11-30 | M104: 2.996832021 | N104: 2000-11-30 | O104: 2.996832021 | P104: 19.28528306 | Q104: 0.5758945112 | R104: 1 | S104: 16.45833333 | T104: 1 | U104: 1 | AB104: 27.516724 | AC104: 1.044516 | AD104: 0 | AE104: 24.6875 | AF104: 0 | AG104: 0 | AH104: 1 | AI104: 1 | AJ104: 1 | AK104: 1 | AL104: 1 | AM104: 1 | AN104: 27.516724 | AO104: 1.044516 | AP104: 0 | AQ104: 24.6875 | AR104: 0 | AS104: 0 | AT104: -0.08345618776 | AU104: -0.1006835351 | AV104: -0.1702536836 | AW104: FALSE | AX104: -0.3944340247 | AY104: FALSE | AZ104: FALSE | BA104: 19.28528306 | BB104: 0.5758945112 | BC104: 1 | BD104: 16.45833333 | BE104: 1 | BF104: 1 | BG104: 15.915 | BH104: 28.41 | BI104: 0 | BJ104: 0 | BK104: 0 | BL104: 0 | BM104: 477.398 | BN104: 0.01270276793 | BO104: 0.005740528129 | BP104: 0.8552 | BQ104: 46.82 | BR104: 1.4258 | BS104: 1.7765 | BT104: 10491.035
A105: 1957-12-01 | B105: 2000-12-31 | C105: 1994-10-28 | D105: 2000-12-31 | E105: TRUE | F105: 1320.280029 | G105: 39.990002 | H105: 1 | I105: 1320.280029 | J105: 0.004045252452 | K105: 3.008979516 | L105: 2000-12-31 | M105: 3.008979516 | N105: 2000-12-31 | O105: 3.008979516 | P105: 18.65298127 | Q105: 0.5191776275 | R105: 1 | S105: 10.375 | T105: 1 | U105: 1 | AB105: 26.61454 | AC105: 0.941647 | AD105: 0 | AE105: 15.5625 | AF105: 0 | AG105: 0 | AH105: 1 | AI105: 1 | AJ105: 1 | AK105: 1 | AL105: 1 | AM105: 1 | AN105: 26.61454 | AO105: 0.941647 | AP105: 0 | AQ105: 15.5625 | AR105: 0 | AS105: 0 | AT105: 0.004045252452 | AU105: -0.03333628229 | AV105: -0.1036784295 | AW105: FALSE | AX105: -0.4614328684 | AY105: FALSE | AZ105: FALSE | BA105: 18.65298127 | BB105: 0.5191776275 | BC105: 1 | BD105: 10.375 | BE105: 1 | BF105: 1 | BG105: 15.915 | BH105: 28.47 | BI105: 0 | BJ105: 0 | BK105: 0 | BL105: 0 | BM105: 477.398 | BN105: 0.01270276793 | BO105: 0.005727376861 | BP105: 0.8983 | BQ105: 46.89 | BR105: 1.4629 | BS105: 1.7285 | BT105: 10491.035
A106: 1958-01-01 | B106: 2001-01-31 | C106: 1994-11-04 | D106: 2001-01-31 | E106: TRUE | F106: 1366.01001 | G106: 41.700001 | H106: 1 | I106: 1366.01001 | J106: 0.03405023181 | K106: 3.113200267 | L106: 2001-01-31 | M106: 3.113200267 | N106: 2001-01-31 | O106: 3.113200267 | P106: 17.9495299 | Q106: 0.7547708366 | R106: 1 | S106: 11.54166667 | T106: 1 | U106: 1 | AB106: 25.610838 | AC106: 1.368949 | AD106: 0 | AE106: 17.3125 | AF106: 0 | AG106: 0 | AH106: 1 | AI106: 1 | AJ106: 1 | AK106: 1 | AL106: 1 | AM106: 1 | AN106: 25.610838 | AO106: 1.368949 | AP106: 0 | AQ106: 17.3125 | AR106: 0 | AS106: 0 | AT106: 0.03405023181 | AU106: -0.03844206172 | AV106: 0.3741681014 | AW106: FALSE | AX106: 0.1065646097 | AY106: FALSE | AZ106: FALSE | BA106: 17.9495299 | BB106: 0.7547708366 | BC106: 1 | BD106: 11.54166667 | BE106: 1 | BF106: 1 | BG106: 16.087 | BH106: 28.64 | BI106: 0 | BJ106: 0 | BK106: 0 | BL106: 0 | BM106: 470.17 | BN106: 0.01262562497 | BO106: 0.00569476082 | BP106: 0.9376 | BQ106: 46.89 | BR106: 1.4775 | BS106: 1.7285 | BT106: 10510.594
A107: 1958-02-01 | B107: 2001-02-28 | C107: 1994-11-11 | D107: 2001-02-28 | E107: TRUE | F107: 1239.939941 | G107: 40.84 | H107: 1 | I107: 1239.939941 | J107: -0.09683114532 | K107: 2.825880723 | L107: 2001-02-28 | M107: 2.825880723 | N107: 2001-02-28 | O107: 2.825880723 | P107: 18.15252746 | Q107: 0.6369742321 | R107: 1 | S107: 6.791666667 | T107: 1 | U107: 1 | AB107: 25.90048 | AC107: 1.155298 | AD107: 0 | AE107: 10.1875 | AF107: 0 | AG107: 0 | AH107: 1 | AI107: 1 | AJ107: 1 | AK107: 1 | AL107: 1 | AM107: 1 | AN107: 25.90048 | AO107: 1.155298 | AP107: 0 | AQ107: 10.1875 | AR107: 0 | AS107: 0 | AT107: -0.09683114532 | AU107: 0.01124588008 | AV107: -0.1696849728 | AW107: FALSE | AX107: -0.5302673054 | AY107: FALSE | AZ107: FALSE | BA107: 18.15252746 | BB107: 0.6369742321 | BC107: 1 | BD107: 6.791666667 | BE107: 1 | BF107: 1 | BG107: 16.087 | BH107: 28.7 | BI107: 0 | BJ107: 0 | BK107: 0 | BL107: 0 | BM107: 470.17 | BN107: 0.01262562497 | BO107: 0.005681818182 | BP107: 0.9205 | BQ107: 46.41 | BR107: 1.4525 | BS107: 1.633 | BT107: 10510.594
A108: 1958-03-01 | B108: 2001-03-31 | C108: 1994-11-18 | D108: 2001-03-31 | E108: TRUE | F108: 1160.329956 | G108: 42.099998 | H108: 1 | I108: 1160.329956 | J108: -0.06635853427 | K108: 2.64444587 | L108: 2001-03-31 | M108: 2.64444587 | N108: 2001-03-31 | O108: 2.64444587 | P108: 16.34117288 | Q108: 0.7703023827 | R108: 1 | S108: 6.82 | T108: 1 | U108: 1 | AB108: 23.315994 | AC108: 1.397119 | AD108: 0 | AE108: 10.23 | AF108: 0 | AG108: 0 | AH108: 1 | AI108: 1 | AJ108: 1 | AK108: =IF(AK$7,INDEX($BN108:$BT108,AK$7),1) -> 1 | AL108: 1 | AM108: 1 | AN108: 23.315994 | AO108: 1.397119 | AP108: 0 | AQ108: 10.23 | AR108: 0 | AS108: 0 | AT108: -0.06635853427 | AU108: -0.1051219385 | AV108: 0.1900539398 | AW108: FALSE | AX108: 0.004163101397 | AY108: FALSE | AZ108: FALSE | BA108: 16.34117288 | BB108: 0.7703023827 | BC108: 1 | BD108: 6.82 | BE108: 1 | BF108: 1 | BG108: 16.087 | BH108: 28.87 | BI108: 0 | BJ108: 0 | BK108: 0 | BL108: 0 | BM108: 470.17 | BN108: 0.01262562497 | BO108: 0.005678591709 | BP108: 0.9083 | BQ108: 46.59 | BR108: 1.4445 | BS108: 1.6557 | BT108: 10510.594
A109: 1958-04-01 | B109: 2001-04-30 | C109: 1994-11-25 | D109: 2001-04-30 | E109: TRUE | F109: 1249.459961 | G109: 43.439999 | H109: 1 | I109: 1249.459961 | J109: 0.07400701726 | K109: 2.847577291 | L109: 2001-04-30 | M109: 2.847577291 | N109: 2001-04-30 | O109: 2.847577291 | P109: 19.0132511 | Q109: 0.8896692338 | R109: 1 | S109: 10.52 | T109: 1 | U109: 1 | AB109: 27.128582 | AC109: 1.613618 | AD109: 0 | AE109: 15.78 | AF109: 0 | AG109: 0 | AH109: =IF(AH$7,INDEX($BN109:$BT109,AH$7),1) -> 1 | AI109: 1 | AJ109: 1 | AK109: 1 | AL109: 1 | AM109: 1 | AN109: 27.128582 | AO109: 1.613618 | AP109: 0 | AQ109: 15.78 | AR109: 0 | AS109: 0 | AT109: 0.07400701726 | AU109: 0.1514482956 | AV109: 0.1440666036 | AW109: FALSE | AX109: 0.4334187355 | AY109: FALSE | AZ109: FALSE | BA109: 19.0132511 | BB109: 0.8896692338 | BC109: 1 | BD109: 10.52 | BE109: 1 | BF109: 1 | BG109: 16.134 | BH109: 28.94 | BI109: 0 | BJ109: 0 | BK109: 0 | BL109: 0 | BM109: 474.672 | BN109: 0.0125497283 | BO109: 0.00566893424 | BP109: 0.8925 | BQ109: 46.85 | BR109: 1.4348 | BS109: 1.736 | BT109: 10644.451
A110: 1958-05-01 | B110: 2001-05-31 | C110: 1994-12-02 | D110: 2001-05-31 | E110: TRUE | F110: 1255.819946 | G110: 44.09 | H110: 1 | I110: 1255.819946 | J110: 0.005077275912 | K110: 2.862071992 | L110: 2001-05-31 | M110: 2.862071992 | N110: 2001-05-31 | O110: 2.862071992 | P110: 19.1973844 | Q110: 0.6963089284 | R110: 1 | S110: 11.12666733 | T110: 1 | U110: 1 | AB110: 27.391308 | AC110: 1.262915 | AD110: 0 | AE110: 16.690001 | AF110: 0 | AG110: 0 | AH110: 1 | AI110: 1 | AJ110: 1 | AK110: 1 | AL110: 1 | AM110: 1 | AN110: 27.391308 | AO110: 1.262915 | AP110: 0 | AQ110: 16.690001 | AR110: 0 | AS110: 0 | AT110: 0.005077275912 | AU110: 0.009637878348 | AV110: -0.2450563218 | AW110: FALSE | AX110: 0.05606648217 | AY110: FALSE | AZ110: FALSE | BA110: 19.1973844 | BB110: 0.6963089284 | BC110: 1 | BD110: 11.12666733 | BE110: 1 | BF110: 1 | BG110: 16.134 | BH110: 28.94 | BI110: 0 | BJ110: 0 | BK110: 0 | BL110: 0 | BM110: 474.672 | BN110: 0.0125497283 | BO110: 0.005640157924 | BP110: 0.8753 | BQ110: 46.87 | BR110: 1.4265 | BS110: 1.7255 | BT110: 10644.451
A111: 1958-06-01 | B111: 2001-06-30 | C111: 1994-12-09 | D111: 2001-06-30 | E111: TRUE | F111: 1224.380005 | G111: 45.240002 | H111: 1 | I111: 1224.380005 | J111: -0.02535410517 | K111: 2.790418906 | L111: 2001-06-30 | M111: 2.790418906 | N111: 2001-06-30 | O111: 2.790418906 | P111: 19.1973844 | Q111: 0.8114877203 | R111: 1 | S111: 9.433333333 | T111: 1 | U111: 1 | AB111: 27.391308 | AC111: 1.471818 | AD111: 0 | AE111: 14.15 | AF111: 0 | AG111: 0 | AH111: 1 | AI111: 1 | AJ111: 1 | AK111: 1 | AL111: 1 | AM111: 1 | AN111: 27.391308 | AO111: 1.471818 | AP111: 0 | AQ111: 14.15 | AR111: 0 | AS111: 0 | AT111: -0.02535410517 | AU111: 0 | AV111: 0.1530758303 | AW111: FALSE | AX111: -0.1650951735 | AY111: FALSE | AZ111: FALSE | BA111: 19.1973844 | BB111: 0.8114877203 | BC111: 1 | BD111: 9.433333333 | BE111: 1 | BF111: 1 | BG111: 16.134 | BH111: 28.91 | BI111: 0 | BJ111: 0 | BK111: 0 | BL111: 0 | BM111: 474.672 | BN111: 0.0125497283 | BO111: 0.005627462015 | BP111: 0.853 | BQ111: 47.05 | BR111: 1.402 | BS111: 1.7992 | BT111: 10644.451
